Workbook

Sheet Resumo
A1: Ministério da Integração e do Desenvolvimento Regional
A2: Companhia de Desenvolvimento dos Vales do São Francisco e do Parnaíba
A4: PLANILHA RESUMO
A5: OBRA: | B5: Execução de manutenção e recuperação nas barragens de Poções, Poço da Pedra, Taquarandi, Caatinga de Moura e Tamboril II, localizadas no estado da Bahia. | E5: BDI (serv.): | F5: ='BDI serv'!D23 -> 0.2321 | G5: Bancos de dados:
A6: LOCAL: | B6: BARRAGENS DA BAHIA | E6: BDI (forn.): | F6: ='BDI forn'!D23 -> 0.136 | G6: JUN/25 - SINAPI
A7: DATA BASE: | B7: 2025-08-01 | C7: Encargos sociais - Horistas: | F7: ='Encargos Sociais'!E49 -> 1.1557 | G7: FEV/25 - ORSE
A8: PRAZO: | B8: =' Cronograma Geral'!B8 -> 210 dias | C8: Encargos sociais - Mensalista: | F8: ='Encargos Sociais'!F49 -> 0.7129 | G8: MAI/25 - SBC
E9: Desconto: | F9: 0 | G9: ABRIL/2025 - SICRO3
G10: JAN/25 - EMBASA
A11: ITEM | B11: DESCRIÇÃO | C11: UNID. | D11: QUANT. | E11: CUSTO UNITÁRIO | F11: PREÇO UNITÁRIO | G11: PREÇO TOTAL
A13: 1 | B13: BARRAGENS PERNAMBUCO | G13: =SUM(G14:G18) -> 2955458.54
A14: 1.1 | B14: Poções | C14: unid. | D14: 1 | E14: =Poções!I72 -> 428768.12 | F14: =Poções!I74 -> 528236.4 | G14: =TRUNC(D14*F14,2) -> 528236.4
A15: 1.2 | B15: Poço da Pedra | C15: unid. | D15: 1 | E15: ='Poço da Pedra'!I83 -> 505778.16 | F15: ='Poço da Pedra'!I85 -> 623091.31 | G15: 623091.31
A16: 1.3 | B16: Taquarandi | C16: unid. | D16: 1 | E16: =Taquarandi!I89 -> 755112.97 | F16: =Taquarandi!I91 -> 930310.63 | G16: 930310.63
A17: 1.4 | B17: Caatinga de Moura | C17: unid. | D17: 1 | E17: ='Caatinga de Moura'!I59 -> 220634.27 | F17: ='Caatinga de Moura'!I61 -> 271826.93 | G17: 271826.93
A18: 1.5 | B18: Tamboril II | C18: unid. | D18: 1 | E18: ='Tamboril II'!I84 -> 488620.64 | F18: ='Tamboril II'!I86 -> 601993.27 | G18: 601993.27
B20: TOTAL (Custo): | G20: =SUMPRODUCT(D13:D19,E13:E19) -> 2398914.16
B21: BDI e Encargos Sociais: | G21: =G22-G20 -> 556544.38
B22: TOTAL GERAL COM BDI: | G22: =SUMPRODUCT(D13:D19,F13:F19) -> 2955458.54

Sheet Poções
A1: Ministério da Integração e do Desenvolvimento Regional
A2: Companhia de Desenvolvimento dos Vales do São Francisco e do Parnaíba
A4: PLANILHA ORÇAMENTÁRIA - ORÇAMENTO NÃO DESONERADO
A5: OBRA: | B5: =Resumo!B5 -> Execução de manutenção e recuperação nas barragens de Poções, Poço da Pedra, Taquarandi, Caatinga de Moura e Tamboril II, localizadas no estado da Bahia. | G5: BDI (serv.): | H5: ='BDI serv'!D23 -> 0.2321 | I5: Bancos de dados:
A6: LOCAL: | B6: =Resumo!B6 -> BARRAGENS DA BAHIA | G6: BDI (forn.): | H6: ='BDI forn'!D23 -> 0.136 | I6: =Resumo!G6 -> JUN/25 - SINAPI
A7: DATA BASE: | B7: =Resumo!B7 -> 2025-08-01 | E7: Encargos sociais - Horistas: | H7: ='Encargos Sociais'!E49 -> 1.1557 | I7: =Resumo!G7 -> FEV/25 - ORSE
A8: PRAZO: | B8: 90 dias | E8: Encargos sociais - Mensalista: | H8: ='Encargos Sociais'!F49 -> 0.7129 | I8: =Resumo!G8 -> MAI/25 - SBC
B9: =Resumo!B14 -> Poções | G9: Desconto: | H9: 0 | I9: =Resumo!G9 -> ABRIL/2025 - SICRO3
I10: JAN/25 - EMBASA
A11: ITEM | B11: REFERÊNCIA | D11: DESCRIÇÃO | E11: UNID. | F11: QUANT. | G11: CUSTO UNITÁRIO | H11: PREÇO UNITÁRIO | I11: PREÇO TOTAL
B12: FONTE | C12: CÓDIGO
A13: 1 | D13: ADMINISTRAÇÃO DA OBRA | I13: =SUM(I14) -> 105283.65
A14: 1.1 | D14: Administração da Obra | I14: =SUM(I15:I15) -> 105283.65
A15: 1.1.1 | B15: PRÓPRIA | C15: CPU.01 | D15: =(VLOOKUP(C15,CPU!$B$10:$C$373,2,0)) -> Administração Local | E15: mês | F15: 3 | G15: =TRUNC((1-$H$9)*(SUMIFS(CPU!$G:$G,CPU!$A:$A,Poções!$C15,CPU!$H:$H,"ss")+SUMIFS(CPU!$G:$G,CPU!$A:$A,Poções!$C15,CPU!$H:$H,"mdo")+SUMIF('Comp SINAPI 06-2025 Onerado'!B:B,Poções!C15,'Comp SINAPI 06-2025 Onerado'!E:E)+SUMIF('Ins SINAPI 06-2025 Onerado'!B:B,Poções!C15,'Ins SINAPI 06-2025 Onerado'!F:F)),2) -> 28483.53 | H15: =TRUNC(G15*(1+$H$5),2) -> 35094.55 | I15: =TRUNC(F15*H15,2) -> 105283.65
A17: 2 | D17: SERVIÇOS PRELIMINARES | I17: =SUM(I18,I20,I22) -> 30284.52
A18: 2.1 | D18: Mobilização e desmobilização | I18: =SUM(I19) -> 3918.04
A19: 2.1.1 | B19: PRÓPRIA | C19: CPU.02 | D19: =(VLOOKUP(C19,CPU!$B$10:$C$373,2,0)) -> Mobilização e desmobilização de instalação do canteiro | E19: un | F19: 1 | G19: =TRUNC((1-$H$9)*(SUMIFS(CPU!$G:$G,CPU!$A:$A,Poções!$C19,CPU!$H:$H,"ss")+SUMIFS(CPU!$G:$G,CPU!$A:$A,Poções!$C19,CPU!$H:$H,"mdo")+SUMIF('Comp SINAPI 06-2025 Onerado'!B:B,Poções!C19,'Comp SINAPI 06-2025 Onerado'!E:E)+SUMIF('Ins SINAPI 06-2025 Onerado'!B:B,Poções!C19,'Ins SINAPI 06-2025 Onerado'!F:F)),2) -> 3179.97 | H19: =TRUNC(G19*(1+$H$5),2) -> 3918.04 | I19: =TRUNC(F19*H19,2) -> 3918.04
A20: 2.2 | D20: Canteiro de obras | I20: =SUM(I21) -> 25266.1
A21: 2.2.1 | B21: PRÓPRIA | C21: CPU.03 | D21: =(VLOOKUP(C21,CPU!$B$10:$C$373,2,0)) -> Execução de canteiro de obras, inclusive, limpeza, refeitório, sanitários e central de formas | E21: m2 | F21: 28.5 | G21: =TRUNC((1-$H$9)*(SUMIFS(CPU!$G:$G,CPU!$A:$A,Poções!$C21,CPU!$H:$H,"ss")+SUMIFS(CPU!$G:$G,CPU!$A:$A,Poções!$C21,CPU!$H:$H,"mdo")+SUMIF('Comp SINAPI 06-2025 Onerado'!B:B,Poções!C21,'Comp SINAPI 06-2025 Onerado'!E:E)+SUMIF('Ins SINAPI 06-2025 Onerado'!B:B,Poções!C21,'Ins SINAPI 06-2025 Onerado'!F:F)),2) -> 719.53 | H21: =TRUNC(G21*(1+$H$5),2) -> 886.53 | I21: =TRUNC(F21*H21,2) -> 25266.1
A22: 2.3 | D22: Sinalização | I22: =SUM(I23:I23) -> 1100.38
A23: 2.3.1 | B23: SINAPI | C23: 103689 | D23: =IF(J23="ca",VLOOKUP(C23,'Comp SINAPI 06-2025 Onerado'!$B$11:$C$9004,2,0),VLOOKUP(C23,'Ins SINAPI 06-2025 Onerado'!$B$10:$C$9004,2,0)) -> FORNECIMENTO E INSTALAÇÃO DE PLACA DE OBRA COM CHAPA GALVANIZADA E ESTRUTURA DE MADEIRA. AF_03/2022_PS | E23: =IF(J23="ca",VLOOKUP(C23,'Comp SINAPI 06-2025 Onerado'!$B$11:$D$9004,3,0),VLOOKUP(C23,'Ins SINAPI 06-2025 Onerado'!$B$11:$D$9004,3,0)) -> M2 | F23: 2 | G23: =TRUNC((1-$H$9)*(SUMIFS(CPU!$G:$G,CPU!$A:$A,Poções!$C23,CPU!$H:$H,"ss")+SUMIFS(CPU!$G:$G,CPU!$A:$A,Poções!$C23,CPU!$H:$H,"mdo")+SUMIF('Comp SINAPI 06-2025 Onerado'!B:B,Poções!C23,'Comp SINAPI 06-2025 Onerado'!E:E)+SUMIF('Ins SINAPI 06-2025 Onerado'!B:B,Poções!C23,'Ins SINAPI 06-2025 Onerado'!F:F)),2) -> 446.55 | H23: =TRUNC(G23*(1+$H$5),2) -> 550.19 | I23: =TRUNC(F23*H23,2) -> 1100.38 | J23: ca
A25: 3 | D25: CORTE DA VEGETAÇÃO E REMOÇÃO DAS RAIZES | I25: =SUM(I26) -> 158957.56
A26: 3.1 | D26: Remoção da vegetação | I26: =SUM(I27:I28) -> 158957.56
A27: 3.1.1 | B27: PRÓPRIA | C27: CPU.04 | D27: =(VLOOKUP(C27,CPU!$B$10:$C$373,2,0)) -> Limpeza de vegetação | E27: =(VLOOKUP(C27,CPU!B2:D$422,3,0)) -> m2 | F27: 15808 | G27: =TRUNC((1-$H$9)*(SUMIFS(CPU!$G:$G,CPU!$A:$A,Poções!$C27,CPU!$H:$H,"ss")+SUMIFS(CPU!$G:$G,CPU!$A:$A,Poções!$C27,CPU!$H:$H,"mdo")+SUMIF('Comp SINAPI 06-2025 Onerado'!B:B,Poções!C27,'Comp SINAPI 06-2025 Onerado'!E:E)+SUMIF('Ins SINAPI 06-2025 Onerado'!B:B,Poções!C27,'Ins SINAPI 06-2025 Onerado'!F:F)),2) -> 7.89 | H27: =TRUNC(G27*(1+$H$5),2) -> 9.72 | I27: =TRUNC(F27*H27,2) -> 153653.76
A28: 3.1.2 | B28: PRÓPRIA | C28: CPU.05 | D28: =(VLOOKUP(C28,CPU!$B$10:$C$373,2,0)) -> Corte de tronco e remoção de raiz | E28: =(VLOOKUP(C28,CPU!B3:D$422,3,0)) -> un | F28: 10 | G28: =TRUNC((1-$H$9)*(SUMIFS(CPU!$G:$G,CPU!$A:$A,Poções!$C28,CPU!$H:$H,"ss")+SUMIFS(CPU!$G:$G,CPU!$A:$A,Poções!$C28,CPU!$H:$H,"mdo")+SUMIF('Comp SINAPI 06-2025 Onerado'!B:B,Poções!C28,'Comp SINAPI 06-2025 Onerado'!E:E)+SUMIF('Ins SINAPI 06-2025 Onerado'!B:B,Poções!C28,'Ins SINAPI 06-2025 Onerado'!F:F)),2) -> 430.47 | H28: =TRUNC(G28*(1+$H$5),2) -> 530.38 | I28: =TRUNC(F28*H28,2) -> 5303.8
A30: 4 | D30: RESTAURAÇÃO DA CRISTA | I30: =I31 -> 24643.03
A31: 4.1 | D31: Restauração da crista | I31: =SUM(I32:I35) -> 24643.03
A32: 4.1.1 | B32: PRÓPRIA | C32: CPU.11 | D32: Apicoamento da superfície | E32: =(VLOOKUP(C32,CPU!B6:D$422,3,0)) -> m2 | F32: 121 | G32: =TRUNC((1-$H$9)*(SUMIFS(CPU!$G:$G,CPU!$A:$A,Poções!$C32,CPU!$H:$H,"ss")+SUMIFS(CPU!$G:$G,CPU!$A:$A,Poções!$C32,CPU!$H:$H,"mdo")+SUMIF('Comp SINAPI 06-2025 Onerado'!B:B,Poções!C32,'Comp SINAPI 06-2025 Onerado'!E:E)+SUMIF('Ins SINAPI 06-2025 Onerado'!B:B,Poções!C32,'Ins SINAPI 06-2025 Onerado'!F:F)),2) -> 33.92 | H32: =TRUNC(G32*(1+$H$5),2) -> 41.79 | I32: =TRUNC(F32*H32,2) -> 5056.59
A33: 4.1.2 | B33: PRÓPRIA | C33: CPU.24 | D33: =(VLOOKUP(C33,CPU!$B$10:$C$373,2,0)) -> Limpeza da superfície | E33: =(VLOOKUP(C33,CPU!B7:D$422,3,0)) -> m2 | F33: 121 | G33: =TRUNC((1-$H$9)*(SUMIFS(CPU!$G:$G,CPU!$A:$A,Poções!$C33,CPU!$H:$H,"ss")+SUMIFS(CPU!$G:$G,CPU!$A:$A,Poções!$C33,CPU!$H:$H,"mdo")+SUMIF('Comp SINAPI 06-2025 Onerado'!B:B,Poções!C33,'Comp SINAPI 06-2025 Onerado'!E:E)+SUMIF('Ins SINAPI 06-2025 Onerado'!B:B,Poções!C33,'Ins SINAPI 06-2025 Onerado'!F:F)),2) -> 8.67 | H33: =TRUNC(G33*(1+$H$5),2) -> 10.68 | I33: =TRUNC(F33*H33,2) -> 1292.28
A34: 4.1.3 | B34: PRÓPRIA | C34: CPU.33 | D34: =(VLOOKUP(C34,CPU!$B$10:$C$373,2,0)) -> Selagem superficial de fissuras com adesivo estrutural à base de resina epóxi de alta viscosidade | E34: =(VLOOKUP(C34,CPU!B8:D$422,3,0)) -> m | F34: 50 | G34: =TRUNC((1-$H$9)*(SUMIFS(CPU!$G:$G,CPU!$A:$A,Poções!$C34,CPU!$H:$H,"ss")+SUMIFS(CPU!$G:$G,CPU!$A:$A,Poções!$C34,CPU!$H:$H,"mdo")+SUMIF('Comp SINAPI 06-2025 Onerado'!B:B,Poções!C34,'Comp SINAPI 06-2025 Onerado'!E:E)+SUMIF('Ins SINAPI 06-2025 Onerado'!B:B,Poções!C34,'Ins SINAPI 06-2025 Onerado'!F:F)),2) -> 28.94 | H34: =TRUNC(G34*(1+$H$5),2) -> 35.65 | I34: =TRUNC(F34*H34,2) -> 1782.5
A35: 4.1.4 | B35: PRÓPRIA | C35: CPU.23 | D35: =(VLOOKUP(C35,CPU!$B$10:$C$373,2,0)) -> Emboço ou massa única em argamassa | E35: =(VLOOKUP(C35,CPU!B9:D$422,3,0)) -> m2 | F35: =F33 -> 121 | G35: =TRUNC((1-$H$9)*(SUMIFS(CPU!$G:$G,CPU!$A:$A,Poções!$C35,CPU!$H:$H,"ss")+SUMIFS(CPU!$G:$G,CPU!$A:$A,Poções!$C35,CPU!$H:$H,"mdo")+SUMIF('Comp SINAPI 06-2025 Onerado'!B:B,Poções!C35,'Comp SINAPI 06-2025 Onerado'!E:E)+SUMIF('Ins SINAPI 06-2025 Onerado'!B:B,Poções!C35,'Ins SINAPI 06-2025 Onerado'!F:F)),2) -> 110.76 | H35: =TRUNC(G35*(1+$H$5),2) -> 136.46 | I35: =TRUNC(F35*H35,2) -> 16511.66
A37: 5 | D37: MANUTENÇÃO NO PARAMENTO DE MONTANTE | I37: =SUM(I38) -> 46324.2
A38: 5.1 | D38: Paramento de Montante | I38: =SUM(I39:I40) -> 46324.2
A39: 5.1.1 | B39: PRÓPRIA | C39: CPU.24 | D39: =(VLOOKUP(C39,CPU!$B$10:$C$1931,2,0)) -> Limpeza da superfície | E39: =(VLOOKUP(C39,CPU!B13:D$1931,3,0)) -> m2 | F39: 485 | G39: =TRUNC((1-$H$9)*(SUMIFS(CPU!$G:$G,CPU!$A:$A,Poções!$C39,CPU!$H:$H,"ss")+SUMIFS(CPU!$G:$G,CPU!$A:$A,Poções!$C39,CPU!$H:$H,"mdo")+SUMIF('Comp SINAPI 06-2025 Onerado'!B:B,Poções!C39,'Comp SINAPI 06-2025 Onerado'!E:E)+SUMIF('Ins SINAPI 06-2025 Onerado'!B:B,Poções!C39,'Ins SINAPI 06-2025 Onerado'!F:F)),2) -> 8.67 | H39: =TRUNC(G39*(1+$H$5),2) -> 10.68 | I39: =TRUNC(F39*H39,2) -> 5179.8
A40: 5.1.2 | B40: PRÓPRIA | C40: CPU.31 | D40: =(VLOOKUP(C40,CPU!$B$10:$C$1931,2,0)) -> Concreto projetado c/ aditivo impermeabilizante | E40: =(VLOOKUP(C40,CPU!B14:D$1931,3,0)) -> m3 | F40: 24 | G40: =TRUNC((1-$H$9)*(SUMIFS(CPU!$G:$G,CPU!$A:$A,Poções!$C40,CPU!$H:$H,"ss")+SUMIFS(CPU!$G:$G,CPU!$A:$A,Poções!$C40,CPU!$H:$H,"mdo")+SUMIF('Comp SINAPI 06-2025 Onerado'!B:B,Poções!C40,'Comp SINAPI 06-2025 Onerado'!E:E)+SUMIF('Ins SINAPI 06-2025 Onerado'!B:B,Poções!C40,'Ins SINAPI 06-2025 Onerado'!F:F)),2) -> 1391.41 | H40: =TRUNC(G40*(1+$H$5),2) -> 1714.35 | I40: =TRUNC(F40*H40,2) -> 41144.4
A42: 6 | D42: MANUTENÇÃO DO PARAMENTO DE JUSANTE | I42: =SUM(I43,I48) -> 134788.5
A43: 6.1 | D43: Paramento de Jusante | I43: =SUM(I44:I47) -> 83258.58
A44: 6.1.1 | B44: PRÓPRIA | C44: CPU.11 | D44: =(VLOOKUP(C44,CPU!$B$10:$C$1931,2,0)) -> Apicoamento da superfície | E44: =(VLOOKUP(C44,CPU!B17:D$1931,3,0)) -> m2 | F44: 242 | G44: =TRUNC((1-$H$9)*(SUMIFS(CPU!$G:$G,CPU!$A:$A,Poções!$C44,CPU!$H:$H,"ss")+SUMIFS(CPU!$G:$G,CPU!$A:$A,Poções!$C44,CPU!$H:$H,"mdo")+SUMIF('Comp SINAPI 06-2025 Onerado'!B:B,Poções!C44,'Comp SINAPI 06-2025 Onerado'!E:E)+SUMIF('Ins SINAPI 06-2025 Onerado'!B:B,Poções!C44,'Ins SINAPI 06-2025 Onerado'!F:F)),2) -> 33.92 | H44: =TRUNC(G44*(1+$H$5),2) -> 41.79 | I44: =TRUNC(F44*H44,2) -> 10113.18
A45: 6.1.2 | B45: PRÓPRIA | C45: CPU.24 | D45: =(VLOOKUP(C45,CPU!$B$10:$C$1931,2,0)) -> Limpeza da superfície | E45: =(VLOOKUP(C45,CPU!B18:D$1931,3,0)) -> m2 | F45: 485 | G45: =TRUNC((1-$H$9)*(SUMIFS(CPU!$G:$G,CPU!$A:$A,Poções!$C45,CPU!$H:$H,"ss")+SUMIFS(CPU!$G:$G,CPU!$A:$A,Poções!$C45,CPU!$H:$H,"mdo")+SUMIF('Comp SINAPI 06-2025 Onerado'!B:B,Poções!C45,'Comp SINAPI 06-2025 Onerado'!E:E)+SUMIF('Ins SINAPI 06-2025 Onerado'!B:B,Poções!C45,'Ins SINAPI 06-2025 Onerado'!F:F)),2) -> 8.67 | H45: =TRUNC(G45*(1+$H$5),2) -> 10.68 | I45: =TRUNC(F45*H45,2) -> 5179.8
A46: 6.1.3 | B46: PRÓPRIA | C46: CPU.23 | D46: =(VLOOKUP(C46,CPU!$B$10:$C$1931,2,0)) -> Emboço ou massa única em argamassa | E46: =(VLOOKUP(C46,CPU!B18:D$1931,3,0)) -> m2 | F46: 485 | G46: =TRUNC((1-$H$9)*(SUMIFS(CPU!$G:$G,CPU!$A:$A,Poções!$C46,CPU!$H:$H,"ss")+SUMIFS(CPU!$G:$G,CPU!$A:$A,Poções!$C46,CPU!$H:$H,"mdo")+SUMIF('Comp SINAPI 06-2025 Onerado'!B:B,Poções!C46,'Comp SINAPI 06-2025 Onerado'!E:E)+SUMIF('Ins SINAPI 06-2025 Onerado'!B:B,Poções!C46,'Ins SINAPI 06-2025 Onerado'!F:F)),2) -> 110.76 | H46: =TRUNC(G46*(1+$H$5),2) -> 136.46 | I46: =TRUNC(F46*H46,2) -> 66183.1
A47: 6.1.4 | B47: PRÓPRIA | C47: CPU.33 | D47: =(VLOOKUP(C47,CPU!$B$10:$C$1931,2,0)) -> Selagem superficial de fissuras com adesivo estrutural à base de resina epóxi de alta viscosidade | E47: =(VLOOKUP(C47,CPU!B19:D$1931,3,0)) -> m | F47: 50 | G47: =TRUNC((1-$H$9)*(SUMIFS(CPU!$G:$G,CPU!$A:$A,Poções!$C47,CPU!$H:$H,"ss")+SUMIFS(CPU!$G:$G,CPU!$A:$A,Poções!$C47,CPU!$H:$H,"mdo")+SUMIF('Comp SINAPI 06-2025 Onerado'!B:B,Poções!C47,'Comp SINAPI 06-2025 Onerado'!E:E)+SUMIF('Ins SINAPI 06-2025 Onerado'!B:B,Poções!C47,'Ins SINAPI 06-2025 Onerado'!F:F)),2) -> 28.94 | H47: =TRUNC(G47*(1+$H$5),2) -> 35.65 | I47: =TRUNC(F47*H47,2) -> 1782.5
A48: 6.2 | D48: Tratamento do pé do paramento de jusante | I48: =SUM(I49:I50) -> 51529.92
A49: 6.2.1 | B49: PRÓPRIA | C49: CPU.16 | D49: =(VLOOKUP(C49,CPU!$B$10:$C$1931,2,0)) -> Restauração com uso de concreto | E49: =(VLOOKUP(C49,CPU!B22:D$1931,3,0)) -> m3 | F49: 24 | G49: =TRUNC((1-$H$9)*(SUMIFS(CPU!$G:$G,CPU!$A:$A,Poções!$C49,CPU!$H:$H,"ss")+SUMIFS(CPU!$G:$G,CPU!$A:$A,Poções!$C49,CPU!$H:$H,"mdo")+SUMIF('Comp SINAPI 06-2025 Onerado'!B:B,Poções!C49,'Comp SINAPI 06-2025 Onerado'!E:E)+SUMIF('Ins SINAPI 06-2025 Onerado'!B:B,Poções!C49,'Ins SINAPI 06-2025 Onerado'!F:F)),2) -> 1335.82 | H49: =TRUNC(G49*(1+$H$5),2) -> 1645.86 | I49: =TRUNC(F49*H49,2) -> 39500.64
A50: 6.2.2 | B50: PRÓPRIA | C50: CPU.17 | D50: =(VLOOKUP(C50,CPU!$B$10:$C$1931,2,0)) -> Preenchimento de erosão com uso de Pedra Argamassada | E50: =(VLOOKUP(C50,CPU!B23:D$1931,3,0)) -> m3 | F50: 8 | G50: =TRUNC((1-$H$9)*(SUMIFS(CPU!$G:$G,CPU!$A:$A,Poções!$C50,CPU!$H:$H,"ss")+SUMIFS(CPU!$G:$G,CPU!$A:$A,Poções!$C50,CPU!$H:$H,"mdo")+SUMIF('Comp SINAPI 06-2025 Onerado'!B:B,Poções!C50,'Comp SINAPI 06-2025 Onerado'!E:E)+SUMIF('Ins SINAPI 06-2025 Onerado'!B:B,Poções!C50,'Ins SINAPI 06-2025 Onerado'!F:F)),2) -> 1220.41 | H50: =TRUNC(G50*(1+$H$5),2) -> 1503.66 | I50: =TRUNC(F50*H50,2) -> 12029.28
A52: 7 | D52: MANUTENÇÃO DOS EQUIPAMENTOS HIDROMECÂNICOS | I52: =I53 -> 3073.58
A53: 7.1 | D53: Manutenção do registro gaveta e tubulações | I53: =SUM(I54:I55) -> 3073.58
A54: 7.1.1 | B54: EMBASA | C54: 25.08.02 | D54: MANUTENCAO EM VALVULAS (VRP, NIVEL E ANTI-GOLPE), VENTOSAS E REGISTROS DE 1" A 8" POLEGADAS | E54: UN | F54: 1 | G54: =TRUNC((1-$H$9)*473.94) -> 473 | H54: =TRUNC(G54*(1+$H$5),2) -> 582.78 | I54: =TRUNC(F54*H54,2) -> 582.78
A55: 7.1.2 | B55: PRÓPRIA | C55: CPU.27 | D55: =(VLOOKUP(C55,CPU!$B$10:$C$1931,2,0)) -> Pintura esmalte, incl. base anticorrosiva e lixamento, em duas demãos | E55: =(VLOOKUP(C55,CPU!B28:D$1931,3,0)) -> m2 | F55: 20 | G55: =TRUNC((1-$H$9)*(SUMIFS(CPU!$G:$G,CPU!$A:$A,Poções!$C55,CPU!$H:$H,"ss")+SUMIFS(CPU!$G:$G,CPU!$A:$A,Poções!$C55,CPU!$H:$H,"mdo")+SUMIF('Comp SINAPI 06-2025 Onerado'!B:B,Poções!C55,'Comp SINAPI 06-2025 Onerado'!E:E)+SUMIF('Ins SINAPI 06-2025 Onerado'!B:B,Poções!C55,'Ins SINAPI 06-2025 Onerado'!F:F)),2) -> 101.08 | H55: =TRUNC(G55*(1+$H$5),2) -> 124.54 | I55: =TRUNC(F55*H55,2) -> 2490.8
A57: 8 | D57: SERVIÇOS COMPLEMENTARES | I57: =SUM(I58,I60) -> 4886.86
A58: 8.1 | D58: Instalação de placas de aviso | I58: =SUM(I59:I59) -> 2200.76
A59: 8.1.1 | B59: SINAPI | C59: 103689 | D59: =IF(J59="ca",VLOOKUP(C59,'Comp SINAPI 06-2025 Onerado'!$B$11:$C$9004,2,0),VLOOKUP(C59,'Ins SINAPI 06-2025 Onerado'!$B$10:$C$9004,2,0)) -> FORNECIMENTO E INSTALAÇÃO DE PLACA DE OBRA COM CHAPA GALVANIZADA E ESTRUTURA DE MADEIRA. AF_03/2022_PS | E59: =IF(J59="ca",VLOOKUP(C59,'Comp SINAPI 06-2025 Onerado'!$B$11:$D$9004,3,0),VLOOKUP(C59,'Ins SINAPI 06-2025 Onerado'!$B$11:$D$9004,3,0)) -> M2 | F59: 4 | G59: =TRUNC((1-$H$9)*(SUMIFS(CPU!$G:$G,CPU!$A:$A,Poções!$C59,CPU!$H:$H,"ss")+SUMIFS(CPU!$G:$G,CPU!$A:$A,Poções!$C59,CPU!$H:$H,"mdo")+SUMIF('Comp SINAPI 06-2025 Onerado'!B:B,Poções!C59,'Comp SINAPI 06-2025 Onerado'!E:E)+SUMIF('Ins SINAPI 06-2025 Onerado'!B:B,Poções!C59,'Ins SINAPI 06-2025 Onerado'!F:F)),2) -> 446.55 | H59: =TRUNC(G59*(1+$H$5),2) -> 550.19 | I59: =TRUNC(F59*H59,2) -> 2200.76 | J59: ca
A60: 8.2 | D60: Instalação de Régua Linimétrica Padrão “ANA” em Aço Carbono - 2 X 70 X 1000 mm | I60: =SUM(I61:I61) -> 2686.1
A61: 8.2.1 | B61: PRÓPRIA | C61: CPU.18 | D61: =(VLOOKUP(C61,CPU!$B$10:$C$373,2,0)) -> Régua Linimétrica Padrão “ANA”, Aço Carbono - 2 X 70 X 1000 mm (Fornecimento e Instalação) | E61: un | F61: 5 | G61: =TRUNC((1-$H$9)*(SUMIFS(CPU!$G:$G,CPU!$A:$A,Poções!$C61,CPU!$H:$H,"ss")+SUMIFS(CPU!$G:$G,CPU!$A:$A,Poções!$C61,CPU!$H:$H,"mdo")+SUMIF('Comp SINAPI 06-2025 Onerado'!B:B,Poções!C61,'Comp SINAPI 06-2025 Onerado'!E:E)+SUMIF('Ins SINAPI 06-2025 Onerado'!B:B,Poções!C61,'Ins SINAPI 06-2025 Onerado'!F:F)),2) -> 436.02 | H61: =TRUNC(G61*(1+$H$5),2) -> 537.22 | I61: =TRUNC(F61*H61,2) -> 2686.1
A63: 9 | D63: PROJETO "AS IS" | I63: =SUM(I64) -> 17606.65
A64: 9.1 | D64: Levantamento topográfico e "AS IS" | I64: =SUM(I65:I66) -> 17606.65
A65: 9.1.1 | B65: ORSE | C65: 9346 | D65: Levantamento topográfico planimétrico cadastral | E65: m2 | F65: =F27 -> 15808 | G65: =TRUNC(0.35*(1-$H$9),2) -> 0.35 | H65: =TRUNC(G65*(1+$H$5),2) -> 0.43 | I65: =TRUNC(F65*H65,2) -> 6797.44
A66: 9.1.2 | B66: PRÓPRIA | C66: CPU.25 | D66: =(VLOOKUP(C66,CPU!$B$10:$C$373,2,0)) -> Projeto geométrico | E66: un | F66: 1 | G66: =TRUNC((1-$H$9)*(SUMIFS(CPU!$G:$G,CPU!$A:$A,Poções!$C66,CPU!$H:$H,"ss")+SUMIFS(CPU!$G:$G,CPU!$A:$A,Poções!$C66,CPU!$H:$H,"mdo")+SUMIF('Comp SINAPI 06-2025 Onerado'!B:B,Poções!C66,'Comp SINAPI 06-2025 Onerado'!E:E)+SUMIF('Ins SINAPI 06-2025 Onerado'!B:B,Poções!C66,'Ins SINAPI 06-2025 Onerado'!F:F)),2) -> 8773 | H66: =TRUNC(G66*(1+$H$5),2) -> 10809.21 | I66: =TRUNC(F66*H66,2) -> 10809.21
A68: 10 | D68: FISCALIZAÇÃO E ACOMPANHAMENTO | I68: =SUM(I69) -> 2387.85
A69: 10.1 | D69: Disponibilidade de veículo para apoio a fiscalização | I69: =SUM(I70:I71) -> 2387.85
A70: 10.1.1 | B70: PRÓPRIA | C70: CPU.30 | D70: =(VLOOKUP(C70,CPU!$B$10:$C$373,2,0)) -> Disponibilidade de veículo para apoio a fiscalização, inclusive combustível | E70: un | F70: =F15+2 -> 5 | G70: =TRUNC((1-$H$9)*(SUMIFS(CPU!$G:$G,CPU!$A:$A,Poções!$C70,CPU!$H:$H,"ss")+SUMIFS(CPU!$G:$G,CPU!$A:$A,Poções!$C70,CPU!$H:$H,"mdo")+SUMIF('Comp SINAPI 06-2025 Onerado'!B:B,Poções!C70,'Comp SINAPI 06-2025 Onerado'!E:E)+SUMIF('Ins SINAPI 06-2025 Onerado'!B:B,Poções!C70,'Ins SINAPI 06-2025 Onerado'!F:F)),2) -> 387.61 | H70: =TRUNC(G70*(1+$H$5),2) -> 477.57 | I70: =TRUNC(F70*H70,2) -> 2387.85
D72: TOTAL (Custo): | I72: =TRUNC(SUMPRODUCT(F14:F71,G14:G71),2) -> 428768.12
D73: BDI e Encargos Sociais: | I73: =I74-I72 -> 99468.28
D74: TOTAL GERAL COM BDI: | I74: =SUM(I13,I17,I25,I30,I37,I42,I52,I57,I63,I68) -> 528236.4 | L74: =TRUNC(SUMPRODUCT(F14:F71,H14:H71),2) -> 528236.4

Sheet Poço da Pedra
A1: Ministério da Integração e do Desenvolvimento Regional
A2: Companhia de Desenvolvimento dos Vales do São Francisco e do Parnaíba
A4: PLANILHA ORÇAMENTÁRIA - ORÇAMENTO NÃO DESONERADO
A5: OBRA: | B5: =Resumo!B5 -> Execução de manutenção e recuperação nas barragens de Poções, Poço da Pedra, Taquarandi, Caatinga de Moura e Tamboril II, localizadas no estado da Bahia. | G5: BDI (serv.): | H5: ='BDI serv'!D23 -> 0.2321 | I5: Bancos de dados:
A6: LOCAL: | B6: =Resumo!B6 -> BARRAGENS DA BAHIA | G6: BDI (forn.): | H6: ='BDI forn'!D23 -> 0.136 | I6: =Resumo!G6 -> JUN/25 - SINAPI
A7: DATA BASE: | B7: =Resumo!B7 -> 2025-08-01 | E7: Encargos sociais - Horistas: | H7: ='Encargos Sociais'!E49 -> 1.1557 | I7: =Resumo!G7 -> FEV/25 - ORSE
A8: PRAZO: | B8: 90 dias | E8: Encargos sociais - Mensalista: | H8: ='Encargos Sociais'!F49 -> 0.7129 | I8: =Resumo!G8 -> MAI/25 - SBC
B9: =Resumo!B15 -> Poço da Pedra | G9: Desconto: | H9: 0 | I9: =Resumo!G9 -> ABRIL/2025 - SICRO3
I10: =Resumo!G10 -> JAN/25 - EMBASA
A11: ITEM | B11: REFERÊNCIA | D11: DESCRIÇÃO | E11: UNID. | F11: QUANT. | G11: CUSTO UNITÁRIO | H11: PREÇO UNITÁRIO | I11: PREÇO TOTAL
B12: FONTE | C12: CÓDIGO
A13: 1 | D13: ADMINISTRAÇÃO DA OBRA | I13: =SUM(I14) -> 105283.65
A14: 1.1 | D14: Administração da Obra | I14: =SUM(I15:I15) -> 105283.65
A15: 1.1.1 | B15: PRÓPRIA | C15: CPU.01 | D15: =(VLOOKUP(C15,CPU!$B$10:$C$373,2,0)) -> Administração Local | E15: mês | F15: 3 | G15: =TRUNC((1-$H$9)*(SUMIFS(CPU!$G:$G,CPU!$A:$A,'Poço da Pedra'!$C15,CPU!$H:$H,"ss")+SUMIFS(CPU!$G:$G,CPU!$A:$A,'Poço da Pedra'!$C15,CPU!$H:$H,"mdo")+SUMIF('Comp SINAPI 06-2025 Onerado'!B:B,'Poço da Pedra'!C15,'Comp SINAPI 06-2025 Onerado'!E:E)+SUMIF('Ins SINAPI 06-2025 Onerado'!B:B,'Poço da Pedra'!C15,'Ins SINAPI 06-2025 Onerado'!F:F)),2) -> 28483.53 | H15: =TRUNC(G15*(1+$H$5),2) -> 35094.55 | I15: =TRUNC(F15*H15,2) -> 105283.65
A17: 2 | D17: SERVIÇOS PRELIMINARES | I17: =SUM(I18,I20,I22) -> 30284.52
A18: 2.1 | D18: Mobilização e desmobilização | I18: =SUM(I19) -> 3918.04
A19: 2.1.1 | B19: PRÓPRIA | C19: CPU.02 | D19: =(VLOOKUP(C19,CPU!$B$10:$C$373,2,0)) -> Mobilização e desmobilização de instalação do canteiro | E19: un | F19: 1 | G19: =TRUNC((1-$H$9)*(SUMIFS(CPU!$G:$G,CPU!$A:$A,'Poço da Pedra'!$C19,CPU!$H:$H,"ss")+SUMIFS(CPU!$G:$G,CPU!$A:$A,'Poço da Pedra'!$C19,CPU!$H:$H,"mdo")+SUMIF('Comp SINAPI 06-2025 Onerado'!B:B,'Poço da Pedra'!C19,'Comp SINAPI 06-2025 Onerado'!E:E)+SUMIF('Ins SINAPI 06-2025 Onerado'!B:B,'Poço da Pedra'!C19,'Ins SINAPI 06-2025 Onerado'!F:F)),2) -> 3179.97 | H19: =TRUNC(G19*(1+$H$5),2) -> 3918.04 | I19: =TRUNC(F19*H19,2) -> 3918.04
A20: 2.2 | D20: Canteiro de obras | I20: =SUM(I21) -> 25266.1
A21: 2.2.1 | B21: PRÓPRIA | C21: CPU.03 | D21: =(VLOOKUP(C21,CPU!$B$10:$C$373,2,0)) -> Execução de canteiro de obras, inclusive, limpeza, refeitório, sanitários e central de formas | E21: m2 | F21: 28.5 | G21: =TRUNC((1-$H$9)*(SUMIFS(CPU!$G:$G,CPU!$A:$A,'Poço da Pedra'!$C21,CPU!$H:$H,"ss")+SUMIFS(CPU!$G:$G,CPU!$A:$A,'Poço da Pedra'!$C21,CPU!$H:$H,"mdo")+SUMIF('Comp SINAPI 06-2025 Onerado'!B:B,'Poço da Pedra'!C21,'Comp SINAPI 06-2025 Onerado'!E:E)+SUMIF('Ins SINAPI 06-2025 Onerado'!B:B,'Poço da Pedra'!C21,'Ins SINAPI 06-2025 Onerado'!F:F)),2) -> 719.53 | H21: =TRUNC(G21*(1+$H$5),2) -> 886.53 | I21: =TRUNC(F21*H21,2) -> 25266.1
A22: 2.3 | D22: Sinalização | I22: =SUM(I23:I23) -> 1100.38
A23: 2.3.1 | B23: SINAPI | C23: 103689 | D23: =IF(J23="ca",VLOOKUP(C23,'Comp SINAPI 06-2025 Onerado'!$B$11:$C$9004,2,0),VLOOKUP(C23,'Ins SINAPI 06-2025 Onerado'!$B$10:$C$9004,2,0)) -> FORNECIMENTO E INSTALAÇÃO DE PLACA DE OBRA COM CHAPA GALVANIZADA E ESTRUTURA DE MADEIRA. AF_03/2022_PS | E23: =IF(J23="ca",VLOOKUP(C23,'Comp SINAPI 06-2025 Onerado'!$B$11:$D$9004,3,0),VLOOKUP(C23,'Ins SINAPI 06-2025 Onerado'!$B$11:$D$9004,3,0)) -> M2 | F23: 2 | G23: =TRUNC((1-$H$9)*(SUMIFS(CPU!$G:$G,CPU!$A:$A,'Poço da Pedra'!$C23,CPU!$H:$H,"ss")+SUMIFS(CPU!$G:$G,CPU!$A:$A,'Poço da Pedra'!$C23,CPU!$H:$H,"mdo")+SUMIF('Comp SINAPI 06-2025 Onerado'!B:B,'Poço da Pedra'!C23,'Comp SINAPI 06-2025 Onerado'!E:E)+SUMIF('Ins SINAPI 06-2025 Onerado'!B:B,'Poço da Pedra'!C23,'Ins SINAPI 06-2025 Onerado'!F:F)),2) -> 446.55 | H23: =TRUNC(G23*(1+$H$5),2) -> 550.19 | I23: =TRUNC(F23*H23,2) -> 1100.38 | J23: ca
A25: 3 | D25: CORTE DA VEGETAÇÃO E REMOÇÃO DAS RAIZES | I25: =SUM(I26) -> 240035.16
A26: 3.1 | D26: Remoção da vegetação | I26: =SUM(I27:I28) -> 240035.16
A27: 3.1.1 | B27: PRÓPRIA | C27: CPU.04 | D27: =(VLOOKUP(C27,CPU!$B$10:$C$373,2,0)) -> Limpeza de vegetação | E27: =(VLOOKUP(C27,CPU!B2:D$422,3,0)) -> m2 | F27: 23058 | G27: =TRUNC((1-$H$9)*(SUMIFS(CPU!$G:$G,CPU!$A:$A,'Poço da Pedra'!$C27,CPU!$H:$H,"ss")+SUMIFS(CPU!$G:$G,CPU!$A:$A,'Poço da Pedra'!$C27,CPU!$H:$H,"mdo")+SUMIF('Comp SINAPI 06-2025 Onerado'!B:B,'Poço da Pedra'!C27,'Comp SINAPI 06-2025 Onerado'!E:E)+SUMIF('Ins SINAPI 06-2025 Onerado'!B:B,'Poço da Pedra'!C27,'Ins SINAPI 06-2025 Onerado'!F:F)),2) -> 7.89 | H27: =TRUNC(G27*(1+$H$5),2) -> 9.72 | I27: =TRUNC(F27*H27,2) -> 224123.76
A28: 3.1.2 | B28: PRÓPRIA | C28: CPU.05 | D28: =(VLOOKUP(C28,CPU!$B$10:$C$373,2,0)) -> Corte de tronco e remoção de raiz | E28: =(VLOOKUP(C28,CPU!B3:D$422,3,0)) -> un | F28: 30 | G28: =TRUNC((1-$H$9)*(SUMIFS(CPU!$G:$G,CPU!$A:$A,'Poço da Pedra'!$C28,CPU!$H:$H,"ss")+SUMIFS(CPU!$G:$G,CPU!$A:$A,'Poço da Pedra'!$C28,CPU!$H:$H,"mdo")+SUMIF('Comp SINAPI 06-2025 Onerado'!B:B,'Poço da Pedra'!C28,'Comp SINAPI 06-2025 Onerado'!E:E)+SUMIF('Ins SINAPI 06-2025 Onerado'!B:B,'Poço da Pedra'!C28,'Ins SINAPI 06-2025 Onerado'!F:F)),2) -> 430.47 | H28: =TRUNC(G28*(1+$H$5),2) -> 530.38 | I28: =TRUNC(F28*H28,2) -> 15911.4
A30: 4 | D30: RECUPERAÇÃO DO MACIÇO | I30: =SUM(I31,I33) -> 3487.04
A31: 4.1 | D31: Recomposição das Erosões (erosões locais nas ombreiras e aterro), trincas e buracos | I31: =I32 -> 3192.88
A32: 4.1.1 | B32: PRÓPRIA | C32: CPU.13 | D32: =(VLOOKUP(C32,CPU!$B$10:$C$373,2,0)) -> Recomposição das erosões, inclusive, regularização da superfície e reaterro | E32: =(VLOOKUP(C32,CPU!B4:D$422,3,0)) -> m3 | F32: 8 | G32: =TRUNC((1-$H$9)*(SUMIFS(CPU!$G:$G,CPU!$A:$A,'Poço da Pedra'!$C32,CPU!$H:$H,"ss")+SUMIFS(CPU!$G:$G,CPU!$A:$A,'Poço da Pedra'!$C32,CPU!$H:$H,"mdo")+SUMIF('Comp SINAPI 06-2025 Onerado'!B:B,'Poço da Pedra'!C32,'Comp SINAPI 06-2025 Onerado'!E:E)+SUMIF('Ins SINAPI 06-2025 Onerado'!B:B,'Poço da Pedra'!C32,'Ins SINAPI 06-2025 Onerado'!F:F)),2) -> 323.93 | H32: =TRUNC(G32*(1+$H$5),2) -> 399.11 | I32: =TRUNC(F32*H32,2) -> 3192.88
A33: 4.2 | D33: Injeção de nata de cimento em buracos | I33: =SUM(I34:I34) -> 294.16
A34: 4.2.1 | B34: PRÓPRIA | C34: CPU.26 | D34: =(VLOOKUP(C34,CPU!$B$10:$C$373,2,0)) -> Injeção de nata de cimento em buracos | E34: =(VLOOKUP(C34,CPU!B6:D$422,3,0)) -> m3 | F34: 0.2 | G34: =TRUNC((1-$H$9)*(SUMIFS(CPU!$G:$G,CPU!$A:$A,'Poço da Pedra'!$C34,CPU!$H:$H,"ss")+SUMIFS(CPU!$G:$G,CPU!$A:$A,'Poço da Pedra'!$C34,CPU!$H:$H,"mdo")+SUMIF('Comp SINAPI 06-2025 Onerado'!B:B,'Poço da Pedra'!C34,'Comp SINAPI 06-2025 Onerado'!E:E)+SUMIF('Ins SINAPI 06-2025 Onerado'!B:B,'Poço da Pedra'!C34,'Ins SINAPI 06-2025 Onerado'!F:F)),2) -> 1193.77 | H34: =TRUNC(G34*(1+$H$5),2) -> 1470.84 | I34: =TRUNC(F34*H34,2) -> 294.16
A36: 5 | D36: REGULARIZAÇÃO E PAVIMENTAÇÃO DA CRISTA | I36: =SUM(I37,I39,I41) -> 84880.42
A37: 5.1 | D37: Limpeza e Regularização da Crista | I37: =SUM(I38:I38) -> 5862.4
A38: 5.1.2 | B38: PRÓPRIA | C38: CPU.14 | D38: =(VLOOKUP(C38,CPU!$B$10:$C$373,2,0)) -> Regularização e compactação | E38: =(VLOOKUP(C38,CPU!B10:D373,3,0)) -> m2 | F38: 1280 | G38: =TRUNC((1-$H$9)*(SUMIFS(CPU!$G:$G,CPU!$A:$A,'Poço da Pedra'!$C38,CPU!$H:$H,"ss")+SUMIFS(CPU!$G:$G,CPU!$A:$A,'Poço da Pedra'!$C38,CPU!$H:$H,"mdo")+SUMIF('Comp SINAPI 06-2025 Onerado'!B:B,'Poço da Pedra'!C38,'Comp SINAPI 06-2025 Onerado'!E:E)+SUMIF('Ins SINAPI 06-2025 Onerado'!B:B,'Poço da Pedra'!C38,'Ins SINAPI 06-2025 Onerado'!F:F)),2) -> 3.72 | H38: =TRUNC(G38*(1+$H$5),2) -> 4.58 | I38: =TRUNC(F38*H38,2) -> 5862.4
A39: 5.2 | D39: Recuperação de meio-fio em ambos os lados da crista | I39: =SUM(I40:I40) -> 2782.5
A40: 5.2.1 | B40: PRÓPRIA | C40: CPU.29 | D40: =(VLOOKUP(C40,CPU!$B$10:$C$373,2,0)) -> Fornecimento e Assentamento de Guia (meio-fio) Pré-fabricado, dimensões 100x15x20 cm (comprimento x base x altura) | E40: =(VLOOKUP(C40,CPU!B12:D375,3,0)) -> M | F40: 35 | G40: =TRUNC((1-$H$9)*(SUMIFS(CPU!$G:$G,CPU!$A:$A,'Poço da Pedra'!$C40,CPU!$H:$H,"ss")+SUMIFS(CPU!$G:$G,CPU!$A:$A,'Poço da Pedra'!$C40,CPU!$H:$H,"mdo")+SUMIF('Comp SINAPI 06-2025 Onerado'!B:B,'Poço da Pedra'!C40,'Comp SINAPI 06-2025 Onerado'!E:E)+SUMIF('Ins SINAPI 06-2025 Onerado'!B:B,'Poço da Pedra'!C40,'Ins SINAPI 06-2025 Onerado'!F:F)),2) -> 64.53 | H40: =TRUNC(G40*(1+$H$5),2) -> 79.5 | I40: =TRUNC(F40*H40,2) -> 2782.5
A41: 5.3 | D41: Pavimentação da Crista | I41: =SUM(I42:I42) -> 76235.52
A42: 5.3.1 | B42: PRÓPRIA | C42: CPU.15 | D42: =(VLOOKUP(C42,CPU!$B$10:$C$373,2,0)) -> Execução de Revestimento com BGTC | E42: =(VLOOKUP(C42,CPU!B14:D377,3,0)) -> m3 | F42: =F38*0.1 -> 128 | G42: =TRUNC((1-$H$9)*(SUMIFS(CPU!$G:$G,CPU!$A:$A,'Poço da Pedra'!$C42,CPU!$H:$H,"ss")+SUMIFS(CPU!$G:$G,CPU!$A:$A,'Poço da Pedra'!$C42,CPU!$H:$H,"mdo")+SUMIF('Comp SINAPI 06-2025 Onerado'!B:B,'Poço da Pedra'!C42,'Comp SINAPI 06-2025 Onerado'!E:E)+SUMIF('Ins SINAPI 06-2025 Onerado'!B:B,'Poço da Pedra'!C42,'Ins SINAPI 06-2025 Onerado'!F:F)),2) -> 483.4 | H42: =TRUNC(G42*(1+$H$5),2) -> 595.59 | I42: =TRUNC(F42*H42,2) -> 76235.52
A44: 6 | D44: MANUTENÇÃO NO TALUDE DE MONTANTE | I44: =SUM(I45) -> 27625.8
A45: 6.1 | D45: Preechimento com enrocamento no encontro do talude com a ombreira de montante em ambos os lados | I45: =SUM(I46:I46) -> 27625.8
A46: 6.1.1 | B46: PRÓPRIA | C46: CPU.07 | D46: =(VLOOKUP(C46,CPU!$B$10:$C$373,2,0)) -> Enrocamento c/ pedra de mão c/ fornecimento e assentamento | E46: =(VLOOKUP(C46,CPU!B24:D422,3,0)) -> m3 | F46: 60 | G46: =TRUNC((1-$H$9)*(SUMIFS(CPU!$G:$G,CPU!$A:$A,'Poço da Pedra'!$C46,CPU!$H:$H,"ss")+SUMIFS(CPU!$G:$G,CPU!$A:$A,'Poço da Pedra'!$C46,CPU!$H:$H,"mdo")+SUMIF('Comp SINAPI 06-2025 Onerado'!B:B,'Poço da Pedra'!C46,'Comp SINAPI 06-2025 Onerado'!E:E)+SUMIF('Ins SINAPI 06-2025 Onerado'!B:B,'Poço da Pedra'!C46,'Ins SINAPI 06-2025 Onerado'!F:F)),2) -> 373.7 | H46: =TRUNC(G46*(1+$H$5),2) -> 460.43 | I46: =TRUNC(F46*H46,2) -> 27625.8
A48: 7 | D48: DRENAGEM SUPERFICIAL DO TALUDE DE JUSANTE | I48: =SUM(I49,I51) -> 2240.18
A49: 7.1 | D49: Limpeza das canaletas | I49: =I50 -> 594.32
A50: 7.1.1 | B50: SICRO | C50: 4915711 | D50: Limpeza de descida d'água | E50: m | F50: 323 | G50: =TRUNC((1-$H$9)*1.5,2) -> 1.5 | H50: =TRUNC(G50*(1+$H$5),2) -> 1.84 | I50: =TRUNC(F50*H50,2) -> 594.32
A51: 7.2 | D51: Recuperação de trechos danificados da descida d'água | I51: =I52 -> 1645.86
A52: 7.2.1 | B52: PRÓPRIA | C52: CPU.16 | D52: =(VLOOKUP(C52,CPU!$B$10:$C$373,2,0)) -> Restauração com uso de concreto | E52: =(VLOOKUP(C52,CPU!B20:D422,3,0)) -> m3 | F52: 1 | G52: =TRUNC((1-$H$9)*(SUMIFS(CPU!$G:$G,CPU!$A:$A,'Poço da Pedra'!$C52,CPU!$H:$H,"ss")+SUMIFS(CPU!$G:$G,CPU!$A:$A,'Poço da Pedra'!$C52,CPU!$H:$H,"mdo")+SUMIF('Comp SINAPI 06-2025 Onerado'!B:B,'Poço da Pedra'!C52,'Comp SINAPI 06-2025 Onerado'!E:E)+SUMIF('Ins SINAPI 06-2025 Onerado'!B:B,'Poço da Pedra'!C52,'Ins SINAPI 06-2025 Onerado'!F:F)),2) -> 1335.82 | H52: =TRUNC(G52*(1+$H$5),2) -> 1645.86 | I52: =TRUNC(F52*H52,2) -> 1645.86
A54: 8 | D54: PROTEÇÃO SUPERFICIAL DO TALUDE DE JUSANTE | I54: =SUM(I55) -> 87216
A55: 8.1 | D55: Proteção vegetal | I55: =SUM(I56:I56) -> 87216
A56: 8.1.1 | B56: PRÓPRIA | C56: CPU.10 | D56: =(VLOOKUP(C56,CPU!$B$10:$C$373,2,0)) -> Plantio de vegetação para proteção de talude com hidrossemeadura, inclusive adubação e transporte | E56: =(VLOOKUP(C56,CPU!B28:D422,3,0)) -> m2 | F56: 6900 | G56: =TRUNC((1-$H$9)*(SUMIFS(CPU!$G:$G,CPU!$A:$A,'Poço da Pedra'!$C56,CPU!$H:$H,"ss")+SUMIFS(CPU!$G:$G,CPU!$A:$A,'Poço da Pedra'!$C56,CPU!$H:$H,"mdo")+SUMIF('Comp SINAPI 06-2025 Onerado'!B:B,'Poço da Pedra'!C56,'Comp SINAPI 06-2025 Onerado'!E:E)+SUMIF('Ins SINAPI 06-2025 Onerado'!B:B,'Poço da Pedra'!C56,'Ins SINAPI 06-2025 Onerado'!F:F)),2) -> 10.26 | H56: =TRUNC(G56*(1+$H$5),2) -> 12.64 | I56: =TRUNC(F56*H56,2) -> 87216
A58: 9 | D58: RESTAURAÇÃO DO MURO LATERAL | I58: =SUM(I59) -> 3065.86
A59: 9.1 | D59: Restauração do muro lateral | I59: =SUM(I60:I61) -> 3065.86
A60: 9.1.1 | B60: PRÓPRIA | C60: CPU.24 | D60: =(VLOOKUP(C60,CPU!$B$10:$C$373,2,0)) -> Limpeza da superfície | E60: =(VLOOKUP(C60,CPU!B37:D439,3,0)) -> m2 | F60: 122 | G60: =TRUNC((1-$H$9)*(SUMIFS(CPU!$G:$G,CPU!$A:$A,'Poço da Pedra'!$C60,CPU!$H:$H,"ss")+SUMIFS(CPU!$G:$G,CPU!$A:$A,'Poço da Pedra'!$C60,CPU!$H:$H,"mdo")+SUMIF('Comp SINAPI 06-2025 Onerado'!B:B,'Poço da Pedra'!C60,'Comp SINAPI 06-2025 Onerado'!E:E)+SUMIF('Ins SINAPI 06-2025 Onerado'!B:B,'Poço da Pedra'!C60,'Ins SINAPI 06-2025 Onerado'!F:F)),2) -> 8.67 | H60: =TRUNC(G60*(1+$H$5),2) -> 10.68 | I60: =TRUNC(F60*H60,2) -> 1302.96
A61: 9.1.2 | B61: SINAPI | C61: 104642 | D61: =IF(J61="ca",VLOOKUP(C61,'Comp SINAPI 06-2025 Onerado'!$B$11:$C$9004,2,0),VLOOKUP(C61,'Ins SINAPI 06-2025 Onerado'!$B$10:$C$9004,2,0)) -> PINTURA LÁTEX ACRÍLICA STANDARD, APLICAÇÃO MANUAL EM PAREDES, DUAS DEMÃOS. AF_04/2023 | E61: =IF(J61="ca",VLOOKUP(C61,'Comp SINAPI 06-2025 Onerado'!$B$11:$D$9004,3,0),VLOOKUP(C61,'Ins SINAPI 06-2025 Onerado'!$B$11:$D$9004,3,0)) -> M2 | F61: 122 | G61: =TRUNC((1-$H$9)*(SUMIFS(CPU!$G:$G,CPU!$A:$A,'Poço da Pedra'!$C61,CPU!$H:$H,"ss")+SUMIFS(CPU!$G:$G,CPU!$A:$A,'Poço da Pedra'!$C61,CPU!$H:$H,"mdo")+SUMIF('Comp SINAPI 06-2025 Onerado'!B:B,'Poço da Pedra'!C61,'Comp SINAPI 06-2025 Onerado'!E:E)+SUMIF('Ins SINAPI 06-2025 Onerado'!B:B,'Poço da Pedra'!C61,'Ins SINAPI 06-2025 Onerado'!F:F)),2) -> 11.73 | H61: =TRUNC(G61*(1+$H$5),2) -> 14.45 | I61: =TRUNC(F61*H61,2) -> 1762.9 | J61: ca
A63: 10 | D63: RESTAURAÇÃO DA SOLEIRA DO VERTEDOURO | I63: =SUM(I64) -> 7750.5
A64: 10.1 | D64: Restauração da soleira do vertedouro | I64: =SUM(I65:I66) -> 7750.5
A65: 10.1.1 | B65: PRÓPRIA | C65: CPU.24 | D65: =(VLOOKUP(C65,CPU!$B$10:$C$373,2,0)) -> Limpeza da superfície | E65: =(VLOOKUP(C65,CPU!B39:D441,3,0)) -> m2 | F65: 225 | G65: =TRUNC((1-$H$9)*(SUMIFS(CPU!$G:$G,CPU!$A:$A,'Poço da Pedra'!$C65,CPU!$H:$H,"ss")+SUMIFS(CPU!$G:$G,CPU!$A:$A,'Poço da Pedra'!$C65,CPU!$H:$H,"mdo")+SUMIF('Comp SINAPI 06-2025 Onerado'!B:B,'Poço da Pedra'!C65,'Comp SINAPI 06-2025 Onerado'!E:E)+SUMIF('Ins SINAPI 06-2025 Onerado'!B:B,'Poço da Pedra'!C65,'Ins SINAPI 06-2025 Onerado'!F:F)),2) -> 8.67 | H65: =TRUNC(G65*(1+$H$5),2) -> 10.68 | I65: =TRUNC(F65*H65,2) -> 2403
A66: 10.1.2 | B66: PRÓPRIA | C66: CPU.33 | D66: =(VLOOKUP(C66,CPU!$B$10:$C$433,2,0)) -> Selagem superficial de fissuras com adesivo estrutural à base de resina epóxi de alta viscosidade | E66: =(VLOOKUP(C66,CPU!B39:D441,3,0)) -> m | F66: 150 | G66: =TRUNC((1-$H$9)*(SUMIFS(CPU!$G:$G,CPU!$A:$A,'Poço da Pedra'!$C66,CPU!$H:$H,"ss")+SUMIFS(CPU!$G:$G,CPU!$A:$A,'Poço da Pedra'!$C66,CPU!$H:$H,"mdo")+SUMIF('Comp SINAPI 06-2025 Onerado'!B:B,'Poço da Pedra'!C66,'Comp SINAPI 06-2025 Onerado'!E:E)+SUMIF('Ins SINAPI 06-2025 Onerado'!B:B,'Poço da Pedra'!C66,'Ins SINAPI 06-2025 Onerado'!F:F)),2) -> 28.94 | H66: =TRUNC(G66*(1+$H$5),2) -> 35.65 | I66: =TRUNC(F66*H66,2) -> 5347.5
A68: 11 | D68: SERVIÇOS COMPLEMENTARES | I68: =SUM(I69,I71) -> 8110.18
A69: 11.1 | D69: Instalação de placas de aviso | I69: =SUM(I70:I70) -> 2200.76
A70: 11.1.1 | B70: SINAPI | C70: 103689 | D70: =IF(J70="ca",VLOOKUP(C70,'Comp SINAPI 06-2025 Onerado'!$B$11:$C$9004,2,0),VLOOKUP(C70,'Ins SINAPI 06-2025 Onerado'!$B$10:$C$9004,2,0)) -> FORNECIMENTO E INSTALAÇÃO DE PLACA DE OBRA COM CHAPA GALVANIZADA E ESTRUTURA DE MADEIRA. AF_03/2022_PS | E70: =IF(J70="ca",VLOOKUP(C70,'Comp SINAPI 06-2025 Onerado'!$B$11:$D$9004,3,0),VLOOKUP(C70,'Ins SINAPI 06-2025 Onerado'!$B$11:$D$9004,3,0)) -> M2 | F70: 4 | G70: =TRUNC((1-$H$9)*(SUMIFS(CPU!$G:$G,CPU!$A:$A,'Poço da Pedra'!$C70,CPU!$H:$H,"ss")+SUMIFS(CPU!$G:$G,CPU!$A:$A,'Poço da Pedra'!$C70,CPU!$H:$H,"mdo")+SUMIF('Comp SINAPI 06-2025 Onerado'!B:B,'Poço da Pedra'!C70,'Comp SINAPI 06-2025 Onerado'!E:E)+SUMIF('Ins SINAPI 06-2025 Onerado'!B:B,'Poço da Pedra'!C70,'Ins SINAPI 06-2025 Onerado'!F:F)),2) -> 446.55 | H70: =TRUNC(G70*(1+$H$5),2) -> 550.19 | I70: =TRUNC(F70*H70,2) -> 2200.76 | J70: ca
A71: 11.2 | D71: Régua Linimétrica Padrão “ANA”, Aço Carbono - 2 X 70 X 1000 mm (Fornecimento e Instalação) | I71: =SUM(I72:I72) -> 5909.42
A72: 11.2.1 | B72: PRÓPRIA | C72: CPU.18 | D72: =(VLOOKUP(C72,CPU!$B$10:$C$373,2,0)) -> Régua Linimétrica Padrão “ANA”, Aço Carbono - 2 X 70 X 1000 mm (Fornecimento e Instalação) | E72: un | F72: 11 | G72: =TRUNC((1-$H$9)*(SUMIFS(CPU!$G:$G,CPU!$A:$A,'Poço da Pedra'!$C72,CPU!$H:$H,"ss")+SUMIFS(CPU!$G:$G,CPU!$A:$A,'Poço da Pedra'!$C72,CPU!$H:$H,"mdo")+SUMIF('Comp SINAPI 06-2025 Onerado'!B:B,'Poço da Pedra'!C72,'Comp SINAPI 06-2025 Onerado'!E:E)+SUMIF('Ins SINAPI 06-2025 Onerado'!B:B,'Poço da Pedra'!C72,'Ins SINAPI 06-2025 Onerado'!F:F)),2) -> 436.02 | H72: =TRUNC(G72*(1+$H$5),2) -> 537.22 | I72: =TRUNC(F72*H72,2) -> 5909.42
A74: 12 | D74: PROJETO "AS IS" | I74: =SUM(I75) -> 20724.15
A75: 12.1 | D75: Levantamento topográfico e "AS IS" | I75: =SUM(I76:I77) -> 20724.15
A76: 12.1.1 | B76: ORSE | C76: 9346 | D76: Levantamento topográfico planimétrico cadastral | E76: m2 | F76: =F27 -> 23058 | G76: =TRUNC(0.35*(1-$H$9),2) -> 0.35 | H76: =TRUNC(G76*(1+$H$5),2) -> 0.43 | I76: =TRUNC(F76*H76,2) -> 9914.94
A77: 12.1.2 | B77: PRÓPRIA | C77: CPU.25 | D77: =(VLOOKUP(C77,CPU!$B$10:$C$373,2,0)) -> Projeto geométrico | E77: un | F77: 1 | G77: =TRUNC((1-$H$9)*(SUMIFS(CPU!$G:$G,CPU!$A:$A,'Poço da Pedra'!$C77,CPU!$H:$H,"ss")+SUMIFS(CPU!$G:$G,CPU!$A:$A,'Poço da Pedra'!$C77,CPU!$H:$H,"mdo")+SUMIF('Comp SINAPI 06-2025 Onerado'!B:B,'Poço da Pedra'!C77,'Comp SINAPI 06-2025 Onerado'!E:E)+SUMIF('Ins SINAPI 06-2025 Onerado'!B:B,'Poço da Pedra'!C77,'Ins SINAPI 06-2025 Onerado'!F:F)),2) -> 8773 | H77: =TRUNC(G77*(1+$H$5),2) -> 10809.21 | I77: =TRUNC(F77*H77,2) -> 10809.21
A79: 13 | D79: FISCALIZAÇÃO E ACOMPANHAMENTO | I79: =SUM(I80) -> 2387.85
A80: 13.1 | D80: Disponibilidade de veículo para apoio a fiscalização | I80: =SUM(I81:I82) -> 2387.85
A81: 13.1.1 | B81: PRÓPRIA | C81: CPU.30 | D81: =(VLOOKUP(C81,CPU!$B$10:$C$373,2,0)) -> Disponibilidade de veículo para apoio a fiscalização, inclusive combustível | E81: un | F81: =F15+2 -> 5 | G81: =TRUNC((1-$H$9)*(SUMIFS(CPU!$G:$G,CPU!$A:$A,'Poço da Pedra'!$C81,CPU!$H:$H,"ss")+SUMIFS(CPU!$G:$G,CPU!$A:$A,'Poço da Pedra'!$C81,CPU!$H:$H,"mdo")+SUMIF('Comp SINAPI 06-2025 Onerado'!B:B,'Poço da Pedra'!C81,'Comp SINAPI 06-2025 Onerado'!E:E)+SUMIF('Ins SINAPI 06-2025 Onerado'!B:B,'Poço da Pedra'!C81,'Ins SINAPI 06-2025 Onerado'!F:F)),2) -> 387.61 | H81: =TRUNC(G81*(1+$H$5),2) -> 477.57 | I81: =TRUNC(F81*H81,2) -> 2387.85
D83: TOTAL (Custo): | I83: =TRUNC(SUMPRODUCT(F14:F82,G14:G82),2) -> 505778.16
D84: BDI e Encargos Sociais: | I84: =I85-I83 -> 117313.15
D85: TOTAL GERAL COM BDI: | I85: =SUM(I13,I17,I25,I30,I36,I44,I48,I54,I63,I58,I68,I74,I79) -> 623091.31 | L85: =TRUNC(SUMPRODUCT(F14:F82,H14:H82),2) -> 623091.32

Sheet Taquarandi
A1: Ministério da Integração e do Desenvolvimento Regional
A2: Companhia de Desenvolvimento dos Vales do São Francisco e do Parnaíba
A4: PLANILHA ORÇAMENTÁRIA - ORÇAMENTO NÃO DESONERADO
A5: OBRA: | B5: =Resumo!B5 -> Execução de manutenção e recuperação nas barragens de Poções, Poço da Pedra, Taquarandi, Caatinga de Moura e Tamboril II, localizadas no estado da Bahia. | G5: BDI (serv.): | H5: ='BDI serv'!D23 -> 0.2321 | I5: Bancos de dados:
A6: LOCAL: | B6: =Resumo!B6 -> BARRAGENS DA BAHIA | G6: BDI (forn.): | H6: ='BDI forn'!D23 -> 0.136 | I6: =Resumo!G6 -> JUN/25 - SINAPI
A7: DATA BASE: | B7: =Resumo!B7 -> 2025-08-01 | E7: Encargos sociais - Horistas: | H7: ='Encargos Sociais'!E49 -> 1.1557 | I7: =Resumo!G7 -> FEV/25 - ORSE
A8: PRAZO: | B8: 120 dias | E8: Encargos sociais - Mensalista: | H8: ='Encargos Sociais'!F49 -> 0.7129 | I8: =Resumo!G8 -> MAI/25 - SBC
B9: =Resumo!B16 -> Taquarandi | G9: Desconto: | H9: 0 | I9: =Resumo!G9 -> ABRIL/2025 - SICRO3
I10: =Resumo!G10 -> JAN/25 - EMBASA
A11: ITEM | B11: REFERÊNCIA | D11: DESCRIÇÃO | E11: UNID. | F11: QUANT. | G11: CUSTO UNITÁRIO | H11: PREÇO UNITÁRIO | I11: PREÇO TOTAL
B12: FONTE | C12: CÓDIGO
A13: 1 | D13: ADMINISTRAÇÃO DA OBRA | I13: =SUM(I14) -> 140378.2
A14: 1.1 | D14: Administração da Obra | I14: =SUM(I15:I15) -> 140378.2
A15: 1.1.1 | B15: PRÓPRIA | C15: CPU.01 | D15: =(VLOOKUP(C15,CPU!$B$10:$C$373,2,0)) -> Administração Local | E15: mês | F15: 4 | G15: =TRUNC((1-$H$9)*(SUMIFS(CPU!$G:$G,CPU!$A:$A,Taquarandi!$C15,CPU!$H:$H,"ss")+SUMIFS(CPU!$G:$G,CPU!$A:$A,Taquarandi!$C15,CPU!$H:$H,"mdo")+SUMIF('Comp SINAPI 06-2025 Onerado'!B:B,Taquarandi!C15,'Comp SINAPI 06-2025 Onerado'!E:E)+SUMIF('Ins SINAPI 06-2025 Onerado'!B:B,Taquarandi!C15,'Ins SINAPI 06-2025 Onerado'!F:F)),2) -> 28483.53 | H15: =TRUNC(G15*(1+$H$5),2) -> 35094.55 | I15: =TRUNC(F15*H15,2) -> 140378.2
A17: 2 | D17: SERVIÇOS PRELIMINARES | I17: =SUM(I18,I20,I22) -> 30284.52
A18: 2.1 | D18: Mobilização e desmobilização | I18: =SUM(I19) -> 3918.04
A19: 2.1.1 | B19: PRÓPRIA | C19: CPU.02 | D19: =(VLOOKUP(C19,CPU!$B$10:$C$373,2,0)) -> Mobilização e desmobilização de instalação do canteiro | E19: un | F19: 1 | G19: =TRUNC((1-$H$9)*(SUMIFS(CPU!$G:$G,CPU!$A:$A,Taquarandi!$C19,CPU!$H:$H,"ss")+SUMIFS(CPU!$G:$G,CPU!$A:$A,Taquarandi!$C19,CPU!$H:$H,"mdo")+SUMIF('Comp SINAPI 06-2025 Onerado'!B:B,Taquarandi!C19,'Comp SINAPI 06-2025 Onerado'!E:E)+SUMIF('Ins SINAPI 06-2025 Onerado'!B:B,Taquarandi!C19,'Ins SINAPI 06-2025 Onerado'!F:F)),2) -> 3179.97 | H19: =TRUNC(G19*(1+$H$5),2) -> 3918.04 | I19: =TRUNC(F19*H19,2) -> 3918.04
A20: 2.2 | D20: Canteiro de obras | I20: =SUM(I21) -> 25266.1
A21: 2.2.1 | B21: PRÓPRIA | C21: CPU.03 | D21: =(VLOOKUP(C21,CPU!$B$10:$C$373,2,0)) -> Execução de canteiro de obras, inclusive, limpeza, refeitório, sanitários e central de formas | E21: m2 | F21: 28.5 | G21: =TRUNC((1-$H$9)*(SUMIFS(CPU!$G:$G,CPU!$A:$A,Taquarandi!$C21,CPU!$H:$H,"ss")+SUMIFS(CPU!$G:$G,CPU!$A:$A,Taquarandi!$C21,CPU!$H:$H,"mdo")+SUMIF('Comp SINAPI 06-2025 Onerado'!B:B,Taquarandi!C21,'Comp SINAPI 06-2025 Onerado'!E:E)+SUMIF('Ins SINAPI 06-2025 Onerado'!B:B,Taquarandi!C21,'Ins SINAPI 06-2025 Onerado'!F:F)),2) -> 719.53 | H21: =TRUNC(G21*(1+$H$5),2) -> 886.53 | I21: =TRUNC(F21*H21,2) -> 25266.1
A22: 2.3 | D22: Sinalização | I22: =SUM(I23:I23) -> 1100.38
A23: 2.3.1 | B23: SINAPI | C23: 103689 | D23: =IF(J23="ca",VLOOKUP(C23,'Comp SINAPI 06-2025 Onerado'!$B$11:$C$9004,2,0),VLOOKUP(C23,'Ins SINAPI 06-2025 Onerado'!$B$10:$C$9004,2,0)) -> FORNECIMENTO E INSTALAÇÃO DE PLACA DE OBRA COM CHAPA GALVANIZADA E ESTRUTURA DE MADEIRA. AF_03/2022_PS | E23: =IF(J23="ca",VLOOKUP(C23,'Comp SINAPI 06-2025 Onerado'!$B$11:$D$9004,3,0),VLOOKUP(C23,'Ins SINAPI 06-2025 Onerado'!$B$11:$D$9004,3,0)) -> M2 | F23: 2 | G23: =TRUNC((1-$H$9)*(SUMIFS(CPU!$G:$G,CPU!$A:$A,Taquarandi!$C23,CPU!$H:$H,"ss")+SUMIFS(CPU!$G:$G,CPU!$A:$A,Taquarandi!$C23,CPU!$H:$H,"mdo")+SUMIF('Comp SINAPI 06-2025 Onerado'!B:B,Taquarandi!C23,'Comp SINAPI 06-2025 Onerado'!E:E)+SUMIF('Ins SINAPI 06-2025 Onerado'!B:B,Taquarandi!C23,'Ins SINAPI 06-2025 Onerado'!F:F)),2) -> 446.55 | H23: =TRUNC(G23*(1+$H$5),2) -> 550.19 | I23: =TRUNC(F23*H23,2) -> 1100.38 | J23: ca
A25: 3 | D25: CORTE DA VEGETAÇÃO E REMOÇÃO DAS RAIZES | I25: =SUM(I26) -> 192649.92
A26: 3.1 | D26: Remoção da vegetação | I26: =SUM(I27:I28) -> 192649.92
A27: 3.1.1 | B27: PRÓPRIA | C27: CPU.04 | D27: =(VLOOKUP(C27,CPU!$B$10:$C$373,2,0)) -> Limpeza de vegetação | E27: =(VLOOKUP(C27,CPU!B2:D$422,3,0)) -> m2 | F27: 16546 | G27: =TRUNC((1-$H$9)*(SUMIFS(CPU!$G:$G,CPU!$A:$A,Taquarandi!$C27,CPU!$H:$H,"ss")+SUMIFS(CPU!$G:$G,CPU!$A:$A,Taquarandi!$C27,CPU!$H:$H,"mdo")+SUMIF('Comp SINAPI 06-2025 Onerado'!B:B,Taquarandi!C27,'Comp SINAPI 06-2025 Onerado'!E:E)+SUMIF('Ins SINAPI 06-2025 Onerado'!B:B,Taquarandi!C27,'Ins SINAPI 06-2025 Onerado'!F:F)),2) -> 7.89 | H27: =TRUNC(G27*(1+$H$5),2) -> 9.72 | I27: =TRUNC(F27*H27,2) -> 160827.12
A28: 3.1.2 | B28: PRÓPRIA | C28: CPU.05 | D28: =(VLOOKUP(C28,CPU!$B$10:$C$373,2,0)) -> Corte de tronco e remoção de raiz | E28: =(VLOOKUP(C28,CPU!B3:D$422,3,0)) -> un | F28: 60 | G28: =TRUNC((1-$H$9)*(SUMIFS(CPU!$G:$G,CPU!$A:$A,Taquarandi!$C28,CPU!$H:$H,"ss")+SUMIFS(CPU!$G:$G,CPU!$A:$A,Taquarandi!$C28,CPU!$H:$H,"mdo")+SUMIF('Comp SINAPI 06-2025 Onerado'!B:B,Taquarandi!C28,'Comp SINAPI 06-2025 Onerado'!E:E)+SUMIF('Ins SINAPI 06-2025 Onerado'!B:B,Taquarandi!C28,'Ins SINAPI 06-2025 Onerado'!F:F)),2) -> 430.47 | H28: =TRUNC(G28*(1+$H$5),2) -> 530.38 | I28: =TRUNC(F28*H28,2) -> 31822.8
A30: 4 | D30: RECUPERAÇÃO DO MACIÇO | I30: =SUM(I31) -> 55476.29
A31: 4.1 | D31: Recomposição das Erosões (erosões locais nas ombreiras e aterro), trincas e buracos | I31: =I32 -> 55476.29
A32: 4.1.1 | B32: PRÓPRIA | C32: CPU.13 | D32: =(VLOOKUP(C32,CPU!$B$10:$C$373,2,0)) -> Recomposição das erosões, inclusive, regularização da superfície e reaterro | E32: =(VLOOKUP(C32,CPU!B4:D$422,3,0)) -> m3 | F32: 139 | G32: =TRUNC((1-$H$9)*(SUMIFS(CPU!$G:$G,CPU!$A:$A,Taquarandi!$C32,CPU!$H:$H,"ss")+SUMIFS(CPU!$G:$G,CPU!$A:$A,Taquarandi!$C32,CPU!$H:$H,"mdo")+SUMIF('Comp SINAPI 06-2025 Onerado'!B:B,Taquarandi!C32,'Comp SINAPI 06-2025 Onerado'!E:E)+SUMIF('Ins SINAPI 06-2025 Onerado'!B:B,Taquarandi!C32,'Ins SINAPI 06-2025 Onerado'!F:F)),2) -> 323.93 | H32: =TRUNC(G32*(1+$H$5),2) -> 399.11 | I32: =TRUNC(F32*H32,2) -> 55476.29
A34: 5 | D34: REGULARIZAÇÃO E PAVIMENTAÇÃO DA CRISTA | I34: =SUM(I35,I37,I39) -> 127204.08
A35: 5.1 | D35: Limpeza e Regularização da Crista | I35: =SUM(I36:I36) -> 8312.7
A36: 5.1.1 | B36: PRÓPRIA | C36: CPU.14 | D36: =(VLOOKUP(C36,CPU!$B$10:$C$373,2,0)) -> Regularização e compactação | E36: =(VLOOKUP(C36,CPU!B10:D373,3,0)) -> m2 | F36: 1815 | G36: =TRUNC((1-$H$9)*(SUMIFS(CPU!$G:$G,CPU!$A:$A,Taquarandi!$C36,CPU!$H:$H,"ss")+SUMIFS(CPU!$G:$G,CPU!$A:$A,Taquarandi!$C36,CPU!$H:$H,"mdo")+SUMIF('Comp SINAPI 06-2025 Onerado'!B:B,Taquarandi!C36,'Comp SINAPI 06-2025 Onerado'!E:E)+SUMIF('Ins SINAPI 06-2025 Onerado'!B:B,Taquarandi!C36,'Ins SINAPI 06-2025 Onerado'!F:F)),2) -> 3.72 | H36: =TRUNC(G36*(1+$H$5),2) -> 4.58 | I36: =TRUNC(F36*H36,2) -> 8312.7
A37: 5.2 | D37: Recuperação de meio-fio em ambos os lados da crista | I37: =SUM(I38:I38) -> 10494
A38: 5.2.1 | B38: PRÓPRIA | C38: CPU.29 | D38: =(VLOOKUP(C38,CPU!$B$10:$C$373,2,0)) -> Fornecimento e Assentamento de Guia (meio-fio) Pré-fabricado, dimensões 100x15x20 cm (comprimento x base x altura) | E38: =(VLOOKUP(C38,CPU!B13:D376,3,0)) -> M | F38: 132 | G38: =TRUNC((1-$H$9)*(SUMIFS(CPU!$G:$G,CPU!$A:$A,Taquarandi!$C38,CPU!$H:$H,"ss")+SUMIFS(CPU!$G:$G,CPU!$A:$A,Taquarandi!$C38,CPU!$H:$H,"mdo")+SUMIF('Comp SINAPI 06-2025 Onerado'!B:B,Taquarandi!C38,'Comp SINAPI 06-2025 Onerado'!E:E)+SUMIF('Ins SINAPI 06-2025 Onerado'!B:B,Taquarandi!C38,'Ins SINAPI 06-2025 Onerado'!F:F)),2) -> 64.53 | H38: =TRUNC(G38*(1+$H$5),2) -> 79.5 | I38: =TRUNC(F38*H38,2) -> 10494
A39: 5.3 | D39: Pavimentação da Crista | I39: =SUM(I40:I40) -> 108397.38
A40: 5.3.1 | B40: PRÓPRIA | C40: CPU.15 | D40: =(VLOOKUP(C40,CPU!$B$10:$C$373,2,0)) -> Execução de Revestimento com BGTC | E40: =(VLOOKUP(C40,CPU!B14:D377,3,0)) -> m3 | F40: =ROUND(F36*0.1,0) -> 182 | G40: =TRUNC((1-$H$9)*(SUMIFS(CPU!$G:$G,CPU!$A:$A,Taquarandi!$C40,CPU!$H:$H,"ss")+SUMIFS(CPU!$G:$G,CPU!$A:$A,Taquarandi!$C40,CPU!$H:$H,"mdo")+SUMIF('Comp SINAPI 06-2025 Onerado'!B:B,Taquarandi!C40,'Comp SINAPI 06-2025 Onerado'!E:E)+SUMIF('Ins SINAPI 06-2025 Onerado'!B:B,Taquarandi!C40,'Ins SINAPI 06-2025 Onerado'!F:F)),2) -> 483.4 | H40: =TRUNC(G40*(1+$H$5),2) -> 595.59 | I40: =TRUNC(F40*H40,2) -> 108397.38
A42: 6 | D42: MANUTENÇÃO NO TALUDE DE MONTANTE | I42: =SUM(I43) -> 29007.09
A43: 6.1 | D43: Enrocamento com pedra de mão para proteção do talude | I43: =SUM(I44:I44) -> 29007.09
A44: 6.1.1 | B44: PRÓPRIA | C44: CPU.07 | D44: =(VLOOKUP(C44,CPU!$B$10:$C$373,2,0)) -> Enrocamento c/ pedra de mão c/ fornecimento e assentamento | E44: =(VLOOKUP(C44,CPU!B24:D422,3,0)) -> m3 | F44: 63 | G44: =TRUNC((1-$H$9)*(SUMIFS(CPU!$G:$G,CPU!$A:$A,Taquarandi!$C44,CPU!$H:$H,"ss")+SUMIFS(CPU!$G:$G,CPU!$A:$A,Taquarandi!$C44,CPU!$H:$H,"mdo")+SUMIF('Comp SINAPI 06-2025 Onerado'!B:B,Taquarandi!C44,'Comp SINAPI 06-2025 Onerado'!E:E)+SUMIF('Ins SINAPI 06-2025 Onerado'!B:B,Taquarandi!C44,'Ins SINAPI 06-2025 Onerado'!F:F)),2) -> 373.7 | H44: =TRUNC(G44*(1+$H$5),2) -> 460.43 | I44: =TRUNC(F44*H44,2) -> 29007.09
A46: 7 | D46: PROTEÇÃO SUPERFICIAL DO TALUDE DE JUSANTE | I46: =SUM(I47) -> 63857.28
A47: 7.1 | D47: Proteção vegetal | I47: =SUM(I48:I48) -> 63857.28
A48: 7.1.1 | B48: PRÓPRIA | C48: CPU.10 | D48: =(VLOOKUP(C48,CPU!$B$10:$C$373,2,0)) -> Plantio de vegetação para proteção de talude com hidrossemeadura, inclusive adubação e transporte | E48: =(VLOOKUP(C48,CPU!B28:D422,3,0)) -> m2 | F48: 5052 | G48: =TRUNC((1-$H$9)*(SUMIFS(CPU!$G:$G,CPU!$A:$A,Taquarandi!$C48,CPU!$H:$H,"ss")+SUMIFS(CPU!$G:$G,CPU!$A:$A,Taquarandi!$C48,CPU!$H:$H,"mdo")+SUMIF('Comp SINAPI 06-2025 Onerado'!B:B,Taquarandi!C48,'Comp SINAPI 06-2025 Onerado'!E:E)+SUMIF('Ins SINAPI 06-2025 Onerado'!B:B,Taquarandi!C48,'Ins SINAPI 06-2025 Onerado'!F:F)),2) -> 10.26 | H48: =TRUNC(G48*(1+$H$5),2) -> 12.64 | I48: =TRUNC(F48*H48,2) -> 63857.28
A50: 8 | D50: RECUPERAÇÃO DA CANALETA INTERCEPTORA DE PÉ DE ATERRO NA OMBREIRA ESQUERDA DO TALUDE DE JUSANTE | I50: =SUM(I51,I53) -> 31446.85
A51: 8.1 | D51: Raspagem e regularização do trecho da canaleta | I51: =I52 -> 998.44
A52: 8.1.1 | B52: PRÓPRIA | C52: CPU.14 | D52: =(VLOOKUP(C52,CPU!$B$10:$C$373,2,0)) -> Regularização e compactação | E52: =(VLOOKUP(C52,CPU!B18:D377,3,0)) -> m2 | F52: 218 | G52: =TRUNC((1-$H$9)*(SUMIFS(CPU!$G:$G,CPU!$A:$A,Taquarandi!$C52,CPU!$H:$H,"ss")+SUMIFS(CPU!$G:$G,CPU!$A:$A,Taquarandi!$C52,CPU!$H:$H,"mdo")+SUMIF('Comp SINAPI 06-2025 Onerado'!B:B,Taquarandi!C52,'Comp SINAPI 06-2025 Onerado'!E:E)+SUMIF('Ins SINAPI 06-2025 Onerado'!B:B,Taquarandi!C52,'Ins SINAPI 06-2025 Onerado'!F:F)),2) -> 3.72 | H52: =TRUNC(G52*(1+$H$5),2) -> 4.58 | I52: =TRUNC(F52*H52,2) -> 998.44
A53: 8.2 | D53: Execução de recuperação da canaleta conforme geometria do projeto da barragem | I53: =I54 -> 30448.41
A54: 8.2.1 | B54: PRÓPRIA | C54: CPU.16 | D54: =(VLOOKUP(C54,CPU!$B$10:$C$373,2,0)) -> Restauração com uso de concreto | E54: =(VLOOKUP(C54,CPU!B20:D422,3,0)) -> m3 | F54: 18.5 | G54: =TRUNC((1-$H$9)*(SUMIFS(CPU!$G:$G,CPU!$A:$A,Taquarandi!$C54,CPU!$H:$H,"ss")+SUMIFS(CPU!$G:$G,CPU!$A:$A,Taquarandi!$C54,CPU!$H:$H,"mdo")+SUMIF('Comp SINAPI 06-2025 Onerado'!B:B,Taquarandi!C54,'Comp SINAPI 06-2025 Onerado'!E:E)+SUMIF('Ins SINAPI 06-2025 Onerado'!B:B,Taquarandi!C54,'Ins SINAPI 06-2025 Onerado'!F:F)),2) -> 1335.82 | H54: =TRUNC(G54*(1+$H$5),2) -> 1645.86 | I54: =TRUNC(F54*H54,2) -> 30448.41
A56: 9 | D56: IMPLANTAÇÃO DE DISPOSITIVO DE DISSIPAÇÃO E CANAL PARA CONDUÇÃO DE FLUXO DA DESCARGA DE FUNDO PARA JUSANTE | I56: =SUM(I57,I59,I61) -> 163939.52
A57: 9.1 | D57: Escavação e regularização | I57: =I58 -> 4618.38
A58: 9.1.1 | B58: PRÓPRIA | C58: CPU.32 | D58: =(VLOOKUP(C58,CPU!$B$10:$C$373,2,0)) -> Escavação mecânica e regularização | E58: =(VLOOKUP(C58,CPU!B24:D377,3,0)) -> m3 | F58: 382 | G58: =TRUNC((1-$H$9)*(SUMIFS(CPU!$G:$G,CPU!$A:$A,Taquarandi!$C58,CPU!$H:$H,"ss")+SUMIFS(CPU!$G:$G,CPU!$A:$A,Taquarandi!$C58,CPU!$H:$H,"mdo")+SUMIF('Comp SINAPI 06-2025 Onerado'!B:B,Taquarandi!C58,'Comp SINAPI 06-2025 Onerado'!E:E)+SUMIF('Ins SINAPI 06-2025 Onerado'!B:B,Taquarandi!C58,'Ins SINAPI 06-2025 Onerado'!F:F)),2) -> 9.82 | H58: =TRUNC(G58*(1+$H$5),2) -> 12.09 | I58: =TRUNC(F58*H58,2) -> 4618.38
A59: 9.2 | D59: Implantação de dispositivo de dissipação de energia na saída da válvula gaveta | I59: =I60 -> 7005.74
A60: 9.2.1 | B60: PRÓPRIA | C60: CPU.21 | D60: =(VLOOKUP(C60,CPU!$B$10:$C$1932,2,0)) -> Saída da válvula de descarga em gabião com dispositivo de dissipação de energia | E60: =(VLOOKUP(C60,CPU!B26:D1932,3,0)) -> UN | F60: 1 | G60: =TRUNC((1-$H$9)*(SUMIFS(CPU!$G:$G,CPU!$A:$A,Taquarandi!$C60,CPU!$H:$H,"ss")+SUMIFS(CPU!$G:$G,CPU!$A:$A,Taquarandi!$C60,CPU!$H:$H,"mdo")+SUMIF('Comp SINAPI 06-2025 Onerado'!B:B,Taquarandi!C60,'Comp SINAPI 06-2025 Onerado'!E:E)+SUMIF('Ins SINAPI 06-2025 Onerado'!B:B,Taquarandi!C60,'Ins SINAPI 06-2025 Onerado'!F:F)),2) -> 5686.02 | H60: =TRUNC(G60*(1+$H$5),2) -> 7005.74 | I60: =TRUNC(F60*H60,2) -> 7005.74
A61: 9.3 | D61: Implantação de canal em gabião | I61: =I62 -> 152315.4
A62: 9.3.1 | B62: PRÓPRIA | C62: CPU.19 | D62: =(VLOOKUP(C62,CPU!$B$10:$C$1932,2,0)) -> Canal retangular em gabião | E62: =(VLOOKUP(C62,CPU!B28:D1934,3,0)) -> m | F62: 93 | G62: =TRUNC((1-$H$9)*(SUMIFS(CPU!$G:$G,CPU!$A:$A,Taquarandi!$C62,CPU!$H:$H,"ss")+SUMIFS(CPU!$G:$G,CPU!$A:$A,Taquarandi!$C62,CPU!$H:$H,"mdo")+SUMIF('Comp SINAPI 06-2025 Onerado'!B:B,Taquarandi!C62,'Comp SINAPI 06-2025 Onerado'!E:E)+SUMIF('Ins SINAPI 06-2025 Onerado'!B:B,Taquarandi!C62,'Ins SINAPI 06-2025 Onerado'!F:F)),2) -> 1329.28 | H62: =TRUNC(G62*(1+$H$5),2) -> 1637.8 | I62: =TRUNC(F62*H62,2) -> 152315.4
A64: 10 | D64: RESTAURAÇÃO DA SOLEIRA DO VERTEDOURO | I64: =SUM(I65) -> 5906.79
A65: 10.1 | D65: Restauração da soleira do vertedouro | I65: =SUM(I66:I68) -> 5906.79
A66: 10.1.1 | B66: PRÓPRIA | C66: CPU.24 | D66: =(VLOOKUP(C66,CPU!$B$10:$C$373,2,0)) -> Limpeza da superfície | E66: =(VLOOKUP(C66,CPU!B32:D434,3,0)) -> m2 | F66: 250 | G66: =TRUNC((1-$H$9)*(SUMIFS(CPU!$G:$G,CPU!$A:$A,Taquarandi!$C66,CPU!$H:$H,"ss")+SUMIFS(CPU!$G:$G,CPU!$A:$A,Taquarandi!$C66,CPU!$H:$H,"mdo")+SUMIF('Comp SINAPI 06-2025 Onerado'!B:B,Taquarandi!C66,'Comp SINAPI 06-2025 Onerado'!E:E)+SUMIF('Ins SINAPI 06-2025 Onerado'!B:B,Taquarandi!C66,'Ins SINAPI 06-2025 Onerado'!F:F)),2) -> 8.67 | H66: =TRUNC(G66*(1+$H$5),2) -> 10.68 | I66: =TRUNC(F66*H66,2) -> 2670
A67: 10.1.2 | B67: PRÓPRIA | C67: CPU.22 | D67: =(VLOOKUP(C67,CPU!$B$10:$C$433,2,0)) -> Tratamento de fissuras secas com injeção de adesivo estrutural à base de resina epóxi de baixa viscosidade - fornecimento e aplicação mecanizada | E67: =(VLOOKUP(C67,CPU!B32:D434,3,0)) -> m | F67: =2.5/0.25 -> 10 | G67: =TRUNC((1-$H$9)*(SUMIFS(CPU!$G:$G,CPU!$A:$A,Taquarandi!$C67,CPU!$H:$H,"ss")+SUMIFS(CPU!$G:$G,CPU!$A:$A,Taquarandi!$C67,CPU!$H:$H,"mdo")+SUMIF('Comp SINAPI 06-2025 Onerado'!B:B,Taquarandi!C67,'Comp SINAPI 06-2025 Onerado'!E:E)+SUMIF('Ins SINAPI 06-2025 Onerado'!B:B,Taquarandi!C67,'Ins SINAPI 06-2025 Onerado'!F:F)),2) -> 87.95 | H67: =TRUNC(G67*(1+$H$5),2) -> 108.36 | I67: =TRUNC(F67*H67,2) -> 1083.6
A68: 10.1.3 | B68: PRÓPRIA | C68: CPU.28 | D68: =(VLOOKUP(C68,CPU!$B$10:$C$433,2,0)) -> Aplicação de Graute cimentício para pequenos reparos estruturais | E68: =(VLOOKUP(C68,CPU!B33:D435,3,0)) -> m3 | F68: 0.5 | G68: =TRUNC((1-$H$9)*(SUMIFS(CPU!$G:$G,CPU!$A:$A,Taquarandi!$C68,CPU!$H:$H,"ss")+SUMIFS(CPU!$G:$G,CPU!$A:$A,Taquarandi!$C68,CPU!$H:$H,"mdo")+SUMIF('Comp SINAPI 06-2025 Onerado'!B:B,Taquarandi!C68,'Comp SINAPI 06-2025 Onerado'!E:E)+SUMIF('Ins SINAPI 06-2025 Onerado'!B:B,Taquarandi!C68,'Ins SINAPI 06-2025 Onerado'!F:F)),2) -> 3495.16 | H68: =TRUNC(G68*(1+$H$5),2) -> 4306.38 | I68: =TRUNC(F68*H68,2) -> 2153.19
A70: 11 | D70: CONTENÇÃO DO PROCESSO EROSIVO NA OMBREIRA | I70: =SUM(I71) -> 58574.4
A71: 11.1 | D71: Tratamento da erosão na ombreira | I71: =SUM(I72:I72) -> 58574.4 | J71: ca
A72: 11.1.1 | B72: PRÓPRIA | C72: CPU.12 | D72: =(VLOOKUP(C72,CPU!$B$10:$C$373,2,0)) -> Enrocamento ARCO tipo rachão reciclado cinza classe A jogado com fornecimento | E72: =(VLOOKUP(C72,CPU!B37:D439,3,0)) -> m3 | F72: 160 | G72: =TRUNC((1-$H$9)*(SUMIFS(CPU!$G:$G,CPU!$A:$A,Taquarandi!$C72,CPU!$H:$H,"ss")+SUMIFS(CPU!$G:$G,CPU!$A:$A,Taquarandi!$C72,CPU!$H:$H,"mdo")+SUMIF('Comp SINAPI 06-2025 Onerado'!B:B,Taquarandi!C72,'Comp SINAPI 06-2025 Onerado'!E:E)+SUMIF('Ins SINAPI 06-2025 Onerado'!B:B,Taquarandi!C72,'Ins SINAPI 06-2025 Onerado'!F:F)),2) -> 297.13 | H72: =TRUNC(G72*(1+$H$5),2) -> 366.09 | I72: =TRUNC(F72*H72,2) -> 58574.4
A74: 12 | D74: SERVIÇOS COMPLEMENTARES | I74: =SUM(I75,I77) -> 10796.28
A75: 12.1 | D75: Instalação de placas de aviso | I75: =SUM(I76:I76) -> 2200.76
A76: 12.1.1 | B76: SINAPI | C76: 103689 | D76: =IF(J71="ca",VLOOKUP(C76,'Comp SINAPI 06-2025 Onerado'!$B$11:$C$9004,2,0),VLOOKUP(C76,'Ins SINAPI 06-2025 Onerado'!$B$10:$C$9004,2,0)) -> FORNECIMENTO E INSTALAÇÃO DE PLACA DE OBRA COM CHAPA GALVANIZADA E ESTRUTURA DE MADEIRA. AF_03/2022_PS | E76: =IF(J71="ca",VLOOKUP(C76,'Comp SINAPI 06-2025 Onerado'!$B$11:$D$9004,3,0),VLOOKUP(C76,'Ins SINAPI 06-2025 Onerado'!$B$11:$D$9004,3,0)) -> M2 | F76: 4 | G76: =TRUNC((1-$H$9)*(SUMIFS(CPU!$G:$G,CPU!$A:$A,Taquarandi!$C76,CPU!$H:$H,"ss")+SUMIFS(CPU!$G:$G,CPU!$A:$A,Taquarandi!$C76,CPU!$H:$H,"mdo")+SUMIF('Comp SINAPI 06-2025 Onerado'!B:B,Taquarandi!C76,'Comp SINAPI 06-2025 Onerado'!E:E)+SUMIF('Ins SINAPI 06-2025 Onerado'!B:B,Taquarandi!C76,'Ins SINAPI 06-2025 Onerado'!F:F)),2) -> 446.55 | H76: =TRUNC(G76*(1+$H$5),2) -> 550.19 | I76: =TRUNC(F76*H76,2) -> 2200.76
A77: 12.2 | D77: Régua Linimétrica Padrão “ANA”, Aço Carbono - 2 X 70 X 1000 mm (Fornecimento e Instalação) | I77: =SUM(I78:I78) -> 8595.52
A78: 12.2.1 | B78: PRÓPRIA | C78: CPU.18 | D78: =(VLOOKUP(C78,CPU!$B$10:$C$373,2,0)) -> Régua Linimétrica Padrão “ANA”, Aço Carbono - 2 X 70 X 1000 mm (Fornecimento e Instalação) | E78: un | F78: 16 | G78: =TRUNC((1-$H$9)*(SUMIFS(CPU!$G:$G,CPU!$A:$A,Taquarandi!$C78,CPU!$H:$H,"ss")+SUMIFS(CPU!$G:$G,CPU!$A:$A,Taquarandi!$C78,CPU!$H:$H,"mdo")+SUMIF('Comp SINAPI 06-2025 Onerado'!B:B,Taquarandi!C78,'Comp SINAPI 06-2025 Onerado'!E:E)+SUMIF('Ins SINAPI 06-2025 Onerado'!B:B,Taquarandi!C78,'Ins SINAPI 06-2025 Onerado'!F:F)),2) -> 436.02 | H78: =TRUNC(G78*(1+$H$5),2) -> 537.22 | I78: =TRUNC(F78*H78,2) -> 8595.52
A80: 13 | D80: PROJETO "AS IS" | I80: =SUM(I81) -> 17923.99
A81: 13.1 | D81: Levantamento topógrafico e "AS IS" | I81: =SUM(I82:I83) -> 17923.99
A82: 13.1.1 | B82: ORSE | C82: 9346 | D82: Levantamento topográfico planimétrico cadastral | E82: m2 | F82: =F27 -> 16546 | G82: =TRUNC(0.35*(1-$H$9),2) -> 0.35 | H82: =TRUNC(G82*(1+$H$5),2) -> 0.43 | I82: =TRUNC(F82*H82,2) -> 7114.78
A83: 13.1.2 | B83: PRÓPRIA | C83: CPU.25 | D83: =(VLOOKUP(C83,CPU!$B$10:$C$373,2,0)) -> Projeto geométrico | E83: un | F83: 1 | G83: =TRUNC((1-$H$9)*(SUMIFS(CPU!$G:$G,CPU!$A:$A,Taquarandi!$C83,CPU!$H:$H,"ss")+SUMIFS(CPU!$G:$G,CPU!$A:$A,Taquarandi!$C83,CPU!$H:$H,"mdo")+SUMIF('Comp SINAPI 06-2025 Onerado'!B:B,Taquarandi!C83,'Comp SINAPI 06-2025 Onerado'!E:E)+SUMIF('Ins SINAPI 06-2025 Onerado'!B:B,Taquarandi!C83,'Ins SINAPI 06-2025 Onerado'!F:F)),2) -> 8773 | H83: =TRUNC(G83*(1+$H$5),2) -> 10809.21 | I83: =TRUNC(F83*H83,2) -> 10809.21
A85: 14 | D85: FISCALIZAÇÃO E ACOMPANHAMENTO | I85: =SUM(I86) -> 2865.42
A86: 14.1 | D86: Disponibilidade de velículo para apoio a fiscalização | I86: =SUM(I87:I88) -> 2865.42
A87: 14.1.1 | B87: PRÓPRIA | C87: CPU.30 | D87: =(VLOOKUP(C87,CPU!$B$10:$C$373,2,0)) -> Disponibilidade de veículo para apoio a fiscalização, inclusive combustível | E87: un | F87: =F15+2 -> 6 | G87: =TRUNC((1-$H$9)*(SUMIFS(CPU!$G:$G,CPU!$A:$A,Taquarandi!$C87,CPU!$H:$H,"ss")+SUMIFS(CPU!$G:$G,CPU!$A:$A,Taquarandi!$C87,CPU!$H:$H,"mdo")+SUMIF('Comp SINAPI 06-2025 Onerado'!B:B,Taquarandi!C87,'Comp SINAPI 06-2025 Onerado'!E:E)+SUMIF('Ins SINAPI 06-2025 Onerado'!B:B,Taquarandi!C87,'Ins SINAPI 06-2025 Onerado'!F:F)),2) -> 387.61 | H87: =TRUNC(G87*(1+$H$5),2) -> 477.57 | I87: =TRUNC(F87*H87,2) -> 2865.42
D89: TOTAL (Custo): | I89: =TRUNC(SUMPRODUCT(F14:F88,G14:G88),2) -> 755112.97
D90: BDI e Encargos Sociais: | I90: =I91-I89 -> 175197.66
D91: TOTAL GERAL COM BDI: | I91: =SUM(I13,I17,I25,I30,I34,I42,I50,I46,I56,I64,I70,I74,I80,I85) -> 930310.63 | M91: =SUMPRODUCT(F14:F88,H14:H88) -> 930310.635

Sheet Caatinga de Moura
A1: Ministério da Integração e do Desenvolvimento Regional
A2: Companhia de Desenvolvimento dos Vales do São Francisco e do Parnaíba
A4: PLANILHA ORÇAMENTÁRIA - ORÇAMENTO NÃO DESONERADO
A5: OBRA: | B5: =Resumo!B5 -> Execução de manutenção e recuperação nas barragens de Poções, Poço da Pedra, Taquarandi, Caatinga de Moura e Tamboril II, localizadas no estado da Bahia. | G5: BDI (serv.): | H5: ='BDI serv'!D23 -> 0.2321 | I5: Bancos de dados:
A6: LOCAL: | B6: =Resumo!B6 -> BARRAGENS DA BAHIA | G6: BDI (forn.): | H6: ='BDI forn'!D23 -> 0.136 | I6: =Resumo!G6 -> JUN/25 - SINAPI
A7: DATA BASE: | B7: =Resumo!B7 -> 2025-08-01 | E7: Encargos sociais - Horistas: | H7: ='Encargos Sociais'!E49 -> 1.1557 | I7: =Resumo!G7 -> FEV/25 - ORSE
A8: PRAZO: | B8: 90 dias | E8: Encargos sociais - Mensalista: | H8: ='Encargos Sociais'!F49 -> 0.7129 | I8: =Resumo!G8 -> MAI/25 - SBC
B9: =Resumo!B17 -> Caatinga de Moura | G9: Desconto: | H9: 0 | I9: =Resumo!G9 -> ABRIL/2025 - SICRO3
I10: =Resumo!G10 -> JAN/25 - EMBASA
A11: ITEM | B11: REFERÊNCIA | D11: DESCRIÇÃO | E11: UNID. | F11: QUANT. | G11: CUSTO UNITÁRIO | H11: PREÇO UNITÁRIO | I11: PREÇO TOTAL
B12: FONTE | C12: CÓDIGO
A13: 1 | D13: ADMINISTRAÇÃO DA OBRA | I13: =SUM(I14) -> 105283.65
A14: 1.1 | D14: Administração da Obra | I14: =SUM(I15:I15) -> 105283.65
A15: 1.1.1 | B15: PRÓPRIA | C15: CPU.01 | D15: =(VLOOKUP(C15,CPU!$B$10:$C$373,2,0)) -> Administração Local | E15: mês | F15: 3 | G15: =TRUNC((1-$H$9)*(SUMIFS(CPU!$G:$G,CPU!$A:$A,'Caatinga de Moura'!$C15,CPU!$H:$H,"ss")+SUMIFS(CPU!$G:$G,CPU!$A:$A,'Caatinga de Moura'!$C15,CPU!$H:$H,"mdo")+SUMIF('Comp SINAPI 06-2025 Onerado'!B:B,'Caatinga de Moura'!C15,'Comp SINAPI 06-2025 Onerado'!E:E)+SUMIF('Ins SINAPI 06-2025 Onerado'!B:B,'Caatinga de Moura'!C15,'Ins SINAPI 06-2025 Onerado'!F:F)),2) -> 28483.53 | H15: =TRUNC(G15*(1+$H$5),2) -> 35094.55 | I15: =TRUNC(F15*H15,2) -> 105283.65 | K15: =_xlfn.ISFORMULA(G15) -> TRUE
K16: =_xlfn.ISFORMULA(G16) -> FALSE
A17: 2 | D17: SERVIÇOS PRELIMINARES | I17: =SUM(I18,I20,I22) -> 30284.52 | K17: FALSE
A18: 2.1 | D18: Mobilização e desmobilização | I18: =SUM(I19) -> 3918.04 | K18: FALSE
A19: 2.1.1 | B19: PRÓPRIA | C19: CPU.02 | D19: =(VLOOKUP(C19,CPU!$B$10:$C$373,2,0)) -> Mobilização e desmobilização de instalação do canteiro | E19: un | F19: 1 | G19: =TRUNC((1-$H$9)*(SUMIFS(CPU!$G:$G,CPU!$A:$A,'Caatinga de Moura'!$C19,CPU!$H:$H,"ss")+SUMIFS(CPU!$G:$G,CPU!$A:$A,'Caatinga de Moura'!$C19,CPU!$H:$H,"mdo")+SUMIF('Comp SINAPI 06-2025 Onerado'!B:B,'Caatinga de Moura'!C19,'Comp SINAPI 06-2025 Onerado'!E:E)+SUMIF('Ins SINAPI 06-2025 Onerado'!B:B,'Caatinga de Moura'!C19,'Ins SINAPI 06-2025 Onerado'!F:F)),2) -> 3179.97 | H19: =TRUNC(G19*(1+$H$5),2) -> 3918.04 | I19: =TRUNC(F19*H19,2) -> 3918.04 | K19: TRUE
A20: 2.2 | D20: Canteiro de obras | I20: =SUM(I21) -> 25266.1 | K20: FALSE
A21: 2.2.1 | B21: PRÓPRIA | C21: CPU.03 | D21: =(VLOOKUP(C21,CPU!$B$10:$C$373,2,0)) -> Execução de canteiro de obras, inclusive, limpeza, refeitório, sanitários e central de formas | E21: m2 | F21: 28.5 | G21: =TRUNC((1-$H$9)*(SUMIFS(CPU!$G:$G,CPU!$A:$A,'Caatinga de Moura'!$C21,CPU!$H:$H,"ss")+SUMIFS(CPU!$G:$G,CPU!$A:$A,'Caatinga de Moura'!$C21,CPU!$H:$H,"mdo")+SUMIF('Comp SINAPI 06-2025 Onerado'!B:B,'Caatinga de Moura'!C21,'Comp SINAPI 06-2025 Onerado'!E:E)+SUMIF('Ins SINAPI 06-2025 Onerado'!B:B,'Caatinga de Moura'!C21,'Ins SINAPI 06-2025 Onerado'!F:F)),2) -> 719.53 | H21: =TRUNC(G21*(1+$H$5),2) -> 886.53 | I21: =TRUNC(F21*H21,2) -> 25266.1 | K21: TRUE
A22: 2.3 | D22: Sinalização | I22: =SUM(I23:I23) -> 1100.38 | K22: FALSE
A23: 2.3.1 | B23: SINAPI | C23: 103689 | D23: =IF(J23="ca",VLOOKUP(C23,'Comp SINAPI 06-2025 Onerado'!$B$11:$C$9004,2,0),VLOOKUP(C23,'Ins SINAPI 06-2025 Onerado'!$B$10:$C$9004,2,0)) ->  | E23: =IF(J23="ca",VLOOKUP(C23,'Comp SINAPI 06-2025 Onerado'!$B$11:$D$9004,3,0),VLOOKUP(C23,'Ins SINAPI 06-2025 Onerado'!$B$11:$D$9004,3,0)) ->  | F23: 2 | G23: =TRUNC((1-$H$9)*(SUMIFS(CPU!$G:$G,CPU!$A:$A,'Caatinga de Moura'!$C23,CPU!$H:$H,"ss")+SUMIFS(CPU!$G:$G,CPU!$A:$A,'Caatinga de Moura'!$C23,CPU!$H:$H,"mdo")+SUMIF('Comp SINAPI 06-2025 Onerado'!B:B,'Caatinga de Moura'!C23,'Comp SINAPI 06-2025 Onerado'!E:E)+SUMIF('Ins SINAPI 06-2025 Onerado'!B:B,'Caatinga de Moura'!C23,'Ins SINAPI 06-2025 Onerado'!F:F)),2) -> 446.55 | H23: =TRUNC(G23*(1+$H$5),2) -> 550.19 | I23: =TRUNC(F23*H23,2) -> 1100.38 | K23: =_xlfn.ISFORMULA(G23) -> TRUE
K24: FALSE
A25: 3 | D25: CORTE DA VEGETAÇÃO E REMOÇÃO DAS RAIZES | I25: =SUM(I26) -> 45641.8 | K25: FALSE
A26: 3.1 | D26: Remoção da vegetação | I26: =SUM(I27:I28) -> 45641.8 | K26: FALSE
A27: 3.1.1 | B27: PRÓPRIA | C27: CPU.04 | D27: =(VLOOKUP(C27,CPU!$B$10:$C$373,2,0)) -> Limpeza de vegetação | E27: =(VLOOKUP(C27,CPU!B2:D$422,3,0)) -> m2 | F27: 4150 | G27: =TRUNC((1-$H$9)*(SUMIFS(CPU!$G:$G,CPU!$A:$A,'Caatinga de Moura'!$C27,CPU!$H:$H,"ss")+SUMIFS(CPU!$G:$G,CPU!$A:$A,'Caatinga de Moura'!$C27,CPU!$H:$H,"mdo")+SUMIF('Comp SINAPI 06-2025 Onerado'!B:B,'Caatinga de Moura'!C27,'Comp SINAPI 06-2025 Onerado'!E:E)+SUMIF('Ins SINAPI 06-2025 Onerado'!B:B,'Caatinga de Moura'!C27,'Ins SINAPI 06-2025 Onerado'!F:F)),2) -> 7.89 | H27: =TRUNC(G27*(1+$H$5),2) -> 9.72 | I27: =TRUNC(F27*H27,2) -> 40338 | K27: TRUE
A28: 3.1.2 | B28: PRÓPRIA | C28: CPU.05 | D28: =(VLOOKUP(C28,CPU!$B$10:$C$373,2,0)) -> Corte de tronco e remoção de raiz | E28: =(VLOOKUP(C28,CPU!B3:D$422,3,0)) -> un | F28: 10 | G28: =TRUNC((1-$H$9)*(SUMIFS(CPU!$G:$G,CPU!$A:$A,'Caatinga de Moura'!$C28,CPU!$H:$H,"ss")+SUMIFS(CPU!$G:$G,CPU!$A:$A,'Caatinga de Moura'!$C28,CPU!$H:$H,"mdo")+SUMIF('Comp SINAPI 06-2025 Onerado'!B:B,'Caatinga de Moura'!C28,'Comp SINAPI 06-2025 Onerado'!E:E)+SUMIF('Ins SINAPI 06-2025 Onerado'!B:B,'Caatinga de Moura'!C28,'Ins SINAPI 06-2025 Onerado'!F:F)),2) -> 430.47 | H28: =TRUNC(G28*(1+$H$5),2) -> 530.38 | I28: =TRUNC(F28*H28,2) -> 5303.8 | K28: TRUE
K29: FALSE
A30: 4 | D30: RESTAURAÇÃO DA ESTRUTURA DE CONCRETO | I30: =SUM(I31,I34,I39) -> 65376.34 | K30: FALSE
A31: 4.1 | D31: CRISTA | I31: =SUM(I32:I33) -> 4205.8 | K31: FALSE
A32: 4.1.1 | B32: PRÓPRIA | C32: CPU.24 | D32: =(VLOOKUP(C32,CPU!$B$10:$C$373,2,0)) -> Limpeza da superfície | E32: =(VLOOKUP(C32,CPU!B1:D$422,3,0)) -> m2 | F32: 60 | G32: =TRUNC((1-$H$9)*(SUMIFS(CPU!$G:$G,CPU!$A:$A,'Caatinga de Moura'!$C32,CPU!$H:$H,"ss")+SUMIFS(CPU!$G:$G,CPU!$A:$A,'Caatinga de Moura'!$C32,CPU!$H:$H,"mdo")+SUMIF('Comp SINAPI 06-2025 Onerado'!B:B,'Caatinga de Moura'!C32,'Comp SINAPI 06-2025 Onerado'!E:E)+SUMIF('Ins SINAPI 06-2025 Onerado'!B:B,'Caatinga de Moura'!C32,'Ins SINAPI 06-2025 Onerado'!F:F)),2) -> 8.67 | H32: =TRUNC(G32*(1+$H$5),2) -> 10.68 | I32: =TRUNC(F32*H32,2) -> 640.8 | K32: TRUE
A33: 4.1.2 | B33: PRÓPRIA | C33: CPU.33 | D33: =(VLOOKUP(C33,CPU!$B$10:$C$373,2,0)) -> Selagem superficial de fissuras com adesivo estrutural à base de resina epóxi de alta viscosidade | E33: =(VLOOKUP(C33,CPU!B2:D$422,3,0)) -> m | F33: 100 | G33: =TRUNC((1-$H$9)*(SUMIFS(CPU!$G:$G,CPU!$A:$A,'Caatinga de Moura'!$C33,CPU!$H:$H,"ss")+SUMIFS(CPU!$G:$G,CPU!$A:$A,'Caatinga de Moura'!$C33,CPU!$H:$H,"mdo")+SUMIF('Comp SINAPI 06-2025 Onerado'!B:B,'Caatinga de Moura'!C33,'Comp SINAPI 06-2025 Onerado'!E:E)+SUMIF('Ins SINAPI 06-2025 Onerado'!B:B,'Caatinga de Moura'!C33,'Ins SINAPI 06-2025 Onerado'!F:F)),2) -> 28.94 | H33: =TRUNC(G33*(1+$H$5),2) -> 35.65 | I33: =TRUNC(F33*H33,2) -> 3565 | K33: TRUE
A34: 4.2 | D34: PARAMENTO DE MONTANTE | I34: =SUM(I35:I38) -> 34443.27 | K34: FALSE
A35: 4.2.1 | B35: PRÓPRIA | C35: CPU.24 | D35: =(VLOOKUP(C35,CPU!$B$10:$C$433,2,0)) -> Limpeza da superfície | E35: =(VLOOKUP(C35,CPU!B4:D$422,3,0)) -> m2 | F35: 800 | G35: =TRUNC((1-$H$9)*(SUMIFS(CPU!$G:$G,CPU!$A:$A,'Caatinga de Moura'!$C35,CPU!$H:$H,"ss")+SUMIFS(CPU!$G:$G,CPU!$A:$A,'Caatinga de Moura'!$C35,CPU!$H:$H,"mdo")+SUMIF('Comp SINAPI 06-2025 Onerado'!B:B,'Caatinga de Moura'!C35,'Comp SINAPI 06-2025 Onerado'!E:E)+SUMIF('Ins SINAPI 06-2025 Onerado'!B:B,'Caatinga de Moura'!C35,'Ins SINAPI 06-2025 Onerado'!F:F)),2) -> 8.67 | H35: =TRUNC(G35*(1+$H$5),2) -> 10.68 | I35: =TRUNC(F35*H35,2) -> 8544 | K35: TRUE
A36: 4.2.2 | B36: PRÓPRIA | C36: CPU.06 | D36: =(VLOOKUP(C36,CPU!$B$10:$C$433,2,0)) -> Tratamento para impermeabilização de fissuras com injeção de poliuretano | E36: =(VLOOKUP(C36,CPU!B5:D$422,3,0)) -> m | F36: 100 | G36: =TRUNC((1-$H$9)*(SUMIFS(CPU!$G:$G,CPU!$A:$A,'Caatinga de Moura'!$C36,CPU!$H:$H,"ss")+SUMIFS(CPU!$G:$G,CPU!$A:$A,'Caatinga de Moura'!$C36,CPU!$H:$H,"mdo")+SUMIF('Comp SINAPI 06-2025 Onerado'!B:B,'Caatinga de Moura'!C36,'Comp SINAPI 06-2025 Onerado'!E:E)+SUMIF('Ins SINAPI 06-2025 Onerado'!B:B,'Caatinga de Moura'!C36,'Ins SINAPI 06-2025 Onerado'!F:F)),2) -> 115.27 | H36: =TRUNC(G36*(1+$H$5),2) -> 142.02 | I36: =TRUNC(F36*H36,2) -> 14202 | K36: TRUE
A37: 4.2.3 | B37: PRÓPRIA | C37: CPU.22 | D37: =(VLOOKUP(C37,CPU!$B$10:$C$433,2,0)) -> Tratamento de fissuras secas com injeção de adesivo estrutural à base de resina epóxi de baixa viscosidade - fornecimento e aplicação mecanizada | E37: =(VLOOKUP(C37,CPU!B5:D$422,3,0)) -> m | F37: 100 | G37: =TRUNC((1-$H$9)*(SUMIFS(CPU!$G:$G,CPU!$A:$A,'Caatinga de Moura'!$C37,CPU!$H:$H,"ss")+SUMIFS(CPU!$G:$G,CPU!$A:$A,'Caatinga de Moura'!$C37,CPU!$H:$H,"mdo")+SUMIF('Comp SINAPI 06-2025 Onerado'!B:B,'Caatinga de Moura'!C37,'Comp SINAPI 06-2025 Onerado'!E:E)+SUMIF('Ins SINAPI 06-2025 Onerado'!B:B,'Caatinga de Moura'!C37,'Ins SINAPI 06-2025 Onerado'!F:F)),2) -> 87.95 | H37: =TRUNC(G37*(1+$H$5),2) -> 108.36 | I37: =TRUNC(F37*H37,2) -> 10836 | K37: TRUE
A38: 4.2.4 | B38: PRÓPRIA | C38: CPU.28 | D38: =(VLOOKUP(C38,CPU!$B$10:$C$433,2,0)) -> Aplicação de Graute cimentício para pequenos reparos estruturais | E38: =(VLOOKUP(C38,CPU!B6:D$433,3,0)) -> m3 | F38: 0.2 | G38: =TRUNC((1-$H$9)*(SUMIFS(CPU!$G:$G,CPU!$A:$A,'Caatinga de Moura'!$C38,CPU!$H:$H,"ss")+SUMIFS(CPU!$G:$G,CPU!$A:$A,'Caatinga de Moura'!$C38,CPU!$H:$H,"mdo")+SUMIF('Comp SINAPI 06-2025 Onerado'!B:B,'Caatinga de Moura'!C38,'Comp SINAPI 06-2025 Onerado'!E:E)+SUMIF('Ins SINAPI 06-2025 Onerado'!B:B,'Caatinga de Moura'!C38,'Ins SINAPI 06-2025 Onerado'!F:F)),2) -> 3495.16 | H38: =TRUNC(G38*(1+$H$5),2) -> 4306.38 | I38: =TRUNC(F38*H38,2) -> 861.27 | K38: TRUE
A39: 4.3 | D39: PARAMENTO DE JUSANTE | I39: =SUM(I40:I42) -> 26727.27 | K39: FALSE
A40: 4.3.1 | B40: PRÓPRIA | C40: CPU.24 | D40: =(VLOOKUP(C40,CPU!$B$10:$C$373,2,0)) -> Limpeza da superfície | E40: =(VLOOKUP(C40,CPU!B6:D$422,3,0)) -> m2 | F40: 900 | G40: =TRUNC((1-$H$9)*(SUMIFS(CPU!$G:$G,CPU!$A:$A,'Caatinga de Moura'!$C40,CPU!$H:$H,"ss")+SUMIFS(CPU!$G:$G,CPU!$A:$A,'Caatinga de Moura'!$C40,CPU!$H:$H,"mdo")+SUMIF('Comp SINAPI 06-2025 Onerado'!B:B,'Caatinga de Moura'!C40,'Comp SINAPI 06-2025 Onerado'!E:E)+SUMIF('Ins SINAPI 06-2025 Onerado'!B:B,'Caatinga de Moura'!C40,'Ins SINAPI 06-2025 Onerado'!F:F)),2) -> 8.67 | H40: =TRUNC(G40*(1+$H$5),2) -> 10.68 | I40: =TRUNC(F40*H40,2) -> 9612 | K40: TRUE
A41: 4.3.2 | B41: PRÓPRIA | C41: CPU.22 | D41: =(VLOOKUP(C41,CPU!$B$10:$C$433,2,0)) -> Tratamento de fissuras secas com injeção de adesivo estrutural à base de resina epóxi de baixa viscosidade - fornecimento e aplicação mecanizada | E41: =(VLOOKUP(C41,CPU!B9:D$422,3,0)) -> m | F41: 150 | G41: =TRUNC((1-$H$9)*(SUMIFS(CPU!$G:$G,CPU!$A:$A,'Caatinga de Moura'!$C41,CPU!$H:$H,"ss")+SUMIFS(CPU!$G:$G,CPU!$A:$A,'Caatinga de Moura'!$C41,CPU!$H:$H,"mdo")+SUMIF('Comp SINAPI 06-2025 Onerado'!B:B,'Caatinga de Moura'!C41,'Comp SINAPI 06-2025 Onerado'!E:E)+SUMIF('Ins SINAPI 06-2025 Onerado'!B:B,'Caatinga de Moura'!C41,'Ins SINAPI 06-2025 Onerado'!F:F)),2) -> 87.95 | H41: =TRUNC(G41*(1+$H$5),2) -> 108.36 | I41: =TRUNC(F41*H41,2) -> 16254 | K41: TRUE
A42: 4.3.3 | B42: PRÓPRIA | C42: CPU.28 | D42: =(VLOOKUP(C42,CPU!$B$10:$C$433,2,0)) -> Aplicação de Graute cimentício para pequenos reparos estruturais | E42: =(VLOOKUP(C42,CPU!B10:D$433,3,0)) -> m3 | F42: 0.2 | G42: =TRUNC((1-$H$9)*(SUMIFS(CPU!$G:$G,CPU!$A:$A,'Caatinga de Moura'!$C42,CPU!$H:$H,"ss")+SUMIFS(CPU!$G:$G,CPU!$A:$A,'Caatinga de Moura'!$C42,CPU!$H:$H,"mdo")+SUMIF('Comp SINAPI 06-2025 Onerado'!B:B,'Caatinga de Moura'!C42,'Comp SINAPI 06-2025 Onerado'!E:E)+SUMIF('Ins SINAPI 06-2025 Onerado'!B:B,'Caatinga de Moura'!C42,'Ins SINAPI 06-2025 Onerado'!F:F)),2) -> 3495.16 | H42: =TRUNC(G42*(1+$H$5),2) -> 4306.38 | I42: =TRUNC(F42*H42,2) -> 861.27 | K42: TRUE
K43: FALSE
A44: 5 | D44: SERVIÇOS COMPLEMENTARES | I44: =SUM(I45,I47) -> 10259.06 | K44: FALSE
A45: 5.1 | D45: Instalação de placas de aviso | I45: =SUM(I46:I46) -> 2200.76 | K45: FALSE
A46: 5.1.1 | B46: SINAPI | C46: 103689 | D46: =IF(J46="ca",VLOOKUP(C46,'Comp SINAPI 06-2025 Onerado'!$B$11:$C$9004,2,0),VLOOKUP(C46,'Ins SINAPI 06-2025 Onerado'!$B$10:$C$9004,2,0)) ->  | E46: =IF(J46="ca",VLOOKUP(C46,'Comp SINAPI 06-2025 Onerado'!$B$11:$D$9004,3,0),VLOOKUP(C46,'Ins SINAPI 06-2025 Onerado'!$B$11:$D$9004,3,0)) ->  | F46: 4 | G46: =TRUNC((1-$H$9)*(SUMIFS(CPU!$G:$G,CPU!$A:$A,'Caatinga de Moura'!$C46,CPU!$H:$H,"ss")+SUMIFS(CPU!$G:$G,CPU!$A:$A,'Caatinga de Moura'!$C46,CPU!$H:$H,"mdo")+SUMIF('Comp SINAPI 06-2025 Onerado'!B:B,'Caatinga de Moura'!C46,'Comp SINAPI 06-2025 Onerado'!E:E)+SUMIF('Ins SINAPI 06-2025 Onerado'!B:B,'Caatinga de Moura'!C46,'Ins SINAPI 06-2025 Onerado'!F:F)),2) -> 446.55 | H46: =TRUNC(G46*(1+$H$5),2) -> 550.19 | I46: =TRUNC(F46*H46,2) -> 2200.76 | K46: TRUE
A47: 5.2.1 | D47: Régua Linimétrica Padrão “ANA”, Aço Carbono - 2 X 70 X 1000 mm (Fornecimento e Instalação) | I47: =SUM(I48:I48) -> 8058.3 | K47: FALSE
A48: 5.2.1 | B48: PRÓPRIA | C48: CPU.18 | D48: =(VLOOKUP(C48,CPU!$B$10:$C$373,2,0)) -> Régua Linimétrica Padrão “ANA”, Aço Carbono - 2 X 70 X 1000 mm (Fornecimento e Instalação) | E48: un | F48: 15 | G48: =TRUNC((1-$H$9)*(SUMIFS(CPU!$G:$G,CPU!$A:$A,'Caatinga de Moura'!$C48,CPU!$H:$H,"ss")+SUMIFS(CPU!$G:$G,CPU!$A:$A,'Caatinga de Moura'!$C48,CPU!$H:$H,"mdo")+SUMIF('Comp SINAPI 06-2025 Onerado'!B:B,'Caatinga de Moura'!C48,'Comp SINAPI 06-2025 Onerado'!E:E)+SUMIF('Ins SINAPI 06-2025 Onerado'!B:B,'Caatinga de Moura'!C48,'Ins SINAPI 06-2025 Onerado'!F:F)),2) -> 436.02 | H48: =TRUNC(G48*(1+$H$5),2) -> 537.22 | I48: =TRUNC(F48*H48,2) -> 8058.3 | K48: TRUE
K49: FALSE
A50: 6 | D50: PROJETO "AS IS" | I50: =SUM(I51) -> 12593.71 | K50: FALSE
A51: 6.1 | D51: Levantamento topógrafico e "AS IS" | I51: =SUM(I52:I53) -> 12593.71 | K51: FALSE
A52: 6.1.1 | B52: ORSE | C52: 9346 | D52: Levantamento topográfico planimétrico cadastral | E52: m2 | F52: =F27 -> 4150 | G52: =TRUNC(0.35*(1-$H$9),2) -> 0.35 | H52: =TRUNC(G52*(1+$H$5),2) -> 0.43 | I52: =TRUNC(F52*H52,2) -> 1784.5 | K52: TRUE
A53: 6.1.2 | B53: PRÓPRIA | C53: CPU.25 | D53: =(VLOOKUP(C53,CPU!$B$10:$C$373,2,0)) -> Projeto geométrico | E53: un | F53: 1 | G53: =TRUNC((1-$H$9)*(SUMIFS(CPU!$G:$G,CPU!$A:$A,'Caatinga de Moura'!$C53,CPU!$H:$H,"ss")+SUMIFS(CPU!$G:$G,CPU!$A:$A,'Caatinga de Moura'!$C53,CPU!$H:$H,"mdo")+SUMIF('Comp SINAPI 06-2025 Onerado'!B:B,'Caatinga de Moura'!C53,'Comp SINAPI 06-2025 Onerado'!E:E)+SUMIF('Ins SINAPI 06-2025 Onerado'!B:B,'Caatinga de Moura'!C53,'Ins SINAPI 06-2025 Onerado'!F:F)),2) -> 8773 | H53: =TRUNC(G53*(1+$H$5),2) -> 10809.21 | I53: =TRUNC(F53*H53,2) -> 10809.21 | K53: TRUE
K54: FALSE
A55: 7 | D55: FISCALIZAÇÃO E ACOMPANHAMENTO | I55: =SUM(I56) -> 2387.85 | K55: FALSE
A56: 7.1 | D56: Disponibilidade de velículo para apoio a fiscalização | I56: =SUM(I57:I58) -> 2387.85 | K56: FALSE
A57: 7.1.1 | B57: PRÓPRIA | C57: CPU.30 | D57: =(VLOOKUP(C57,CPU!$B$10:$C$373,2,0)) -> Disponibilidade de veículo para apoio a fiscalização, inclusive combustível | E57: un | F57: =F15+2 -> 5 | G57: =TRUNC((1-$H$9)*(SUMIFS(CPU!$G:$G,CPU!$A:$A,'Caatinga de Moura'!$C57,CPU!$H:$H,"ss")+SUMIFS(CPU!$G:$G,CPU!$A:$A,'Caatinga de Moura'!$C57,CPU!$H:$H,"mdo")+SUMIF('Comp SINAPI 06-2025 Onerado'!B:B,'Caatinga de Moura'!C57,'Comp SINAPI 06-2025 Onerado'!E:E)+SUMIF('Ins SINAPI 06-2025 Onerado'!B:B,'Caatinga de Moura'!C57,'Ins SINAPI 06-2025 Onerado'!F:F)),2) -> 387.61 | H57: =TRUNC(G57*(1+$H$5),2) -> 477.57 | I57: =TRUNC(F57*H57,2) -> 2387.85 | K57: TRUE
K58: FALSE
D59: TOTAL (Custo): | I59: =TRUNC(SUMPRODUCT(F14:F58,G14:G58),2) -> 220634.27 | K59: FALSE
D60: BDI e Encargos Sociais: | I60: =I61-I59 -> 51192.66 | K60: FALSE
D61: TOTAL GERAL COM BDI: | I61: =SUM(I13,I17,I25,I30,I44,I50,I55) -> 271826.93 | K61: FALSE | L61: =TRUNC(SUMPRODUCT(F14:F58,H14:H58),2) -> 271826.94
K62: FALSE
K63: FALSE
K64: FALSE
K65: FALSE
K66: FALSE
K67: FALSE
K68: FALSE
K69: FALSE
K70: FALSE
K71: FALSE
K72: FALSE
K73: FALSE
K74: FALSE
K75: FALSE
K76: FALSE
K77: FALSE
K78: FALSE
K79: FALSE
K80: =_xlfn.ISFORMULA(G80) -> FALSE
K81: FALSE
K82: FALSE
K83: FALSE
K84: FALSE
K85: FALSE
K86: FALSE

Sheet Tamboril II
A1: Ministério da Integração e do Desenvolvimento Regional
A2: Companhia de Desenvolvimento dos Vales do São Francisco e do Parnaíba
A4: PLANILHA ORÇAMENTÁRIA - ORÇAMENTO NÃO DESONERADO
A5: OBRA: | B5: =Resumo!B5 -> Execução de manutenção e recuperação nas barragens de Poções, Poço da Pedra, Taquarandi, Caatinga de Moura e Tamboril II, localizadas no estado da Bahia. | G5: BDI (serv.): | H5: ='BDI serv'!D23 -> 0.2321 | I5: Bancos de dados:
A6: LOCAL: | B6: =Resumo!B6 -> BARRAGENS DA BAHIA | G6: BDI (forn.): | H6: ='BDI forn'!D23 -> 0.136 | I6: =Resumo!G6 -> JUN/25 - SINAPI
A7: DATA BASE: | B7: =Resumo!B7 -> 2025-08-01 | E7: Encargos sociais - Horistas: | H7: ='Encargos Sociais'!E49 -> 1.1557 | I7: =Resumo!G7 -> FEV/25 - ORSE
A8: PRAZO: | B8: 90 dias | E8: Encargos sociais - Mensalista: | H8: ='Encargos Sociais'!F49 -> 0.7129 | I8: =Resumo!G8 -> MAI/25 - SBC
B9: =Resumo!B18 -> Tamboril II | G9: Desconto: | H9: 0 | I9: =Resumo!G9 -> ABRIL/2025 - SICRO3
I10: =Resumo!G10 -> JAN/25 - EMBASA
A11: ITEM | B11: REFERÊNCIA | D11: DESCRIÇÃO | E11: UNID. | F11: QUANT. | G11: CUSTO UNITÁRIO | H11: PREÇO UNITÁRIO | I11: PREÇO TOTAL
B12: FONTE | C12: CÓDIGO
A13: 1 | D13: ADMINISTRAÇÃO DA OBRA | I13: =SUM(I14) -> 105283.65
A14: 1.1 | D14: Administração da Obra | I14: =SUM(I15:I15) -> 105283.65
A15: 1.1.1 | B15: PRÓPRIA | C15: CPU.01 | D15: Administração Local | E15: mês | F15: 3 | G15: =TRUNC((1-$H$9)*(SUMIFS(CPU!$G:$G,CPU!$A:$A,'Tamboril II'!$C15,CPU!$H:$H,"ss")+SUMIFS(CPU!$G:$G,CPU!$A:$A,'Tamboril II'!$C15,CPU!$H:$H,"mdo")+SUMIF('Comp SINAPI 06-2025 Onerado'!B:B,'Tamboril II'!C15,'Comp SINAPI 06-2025 Onerado'!E:E)+SUMIF('Ins SINAPI 06-2025 Onerado'!B:B,'Tamboril II'!C15,'Ins SINAPI 06-2025 Onerado'!F:F)),2) -> 28483.53 | H15: =TRUNC(G15*(1+$H$5),2) -> 35094.55 | I15: =TRUNC(F15*H15,2) -> 105283.65 | K15: =_xlfn.ISFORMULA(G15) -> TRUE
K16: =_xlfn.ISFORMULA(G16) -> FALSE
A17: 2 | D17: SERVIÇOS PRELIMINARES | I17: =SUM(I18,I20,I22) -> 30284.52 | K17: FALSE
A18: 2.1 | D18: Mobilização e desmobilização | I18: =SUM(I19) -> 3918.04 | K18: FALSE
A19: 2.1.1 | B19: PRÓPRIA | C19: CPU.02 | D19: Mobilização e desmobilização de instalação do canteiro | E19: un | F19: 1 | G19: =TRUNC((1-$H$9)*(SUMIFS(CPU!$G:$G,CPU!$A:$A,'Tamboril II'!$C19,CPU!$H:$H,"ss")+SUMIFS(CPU!$G:$G,CPU!$A:$A,'Tamboril II'!$C19,CPU!$H:$H,"mdo")+SUMIF('Comp SINAPI 06-2025 Onerado'!B:B,'Tamboril II'!C19,'Comp SINAPI 06-2025 Onerado'!E:E)+SUMIF('Ins SINAPI 06-2025 Onerado'!B:B,'Tamboril II'!C19,'Ins SINAPI 06-2025 Onerado'!F:F)),2) -> 3179.97 | H19: =TRUNC(G19*(1+$H$5),2) -> 3918.04 | I19: =TRUNC(F19*H19,2) -> 3918.04 | K19: TRUE
A20: 2.2 | D20: Canteiro de obras | I20: =SUM(I21) -> 25266.1 | K20: FALSE
A21: 2.2.1 | B21: PRÓPRIA | C21: CPU.03 | D21: Execução de canteiro de obras, inclusive, limpeza, refeitório, sanitários e central de formas | E21: m2 | F21: 28.5 | G21: =TRUNC((1-$H$9)*(SUMIFS(CPU!$G:$G,CPU!$A:$A,'Tamboril II'!$C21,CPU!$H:$H,"ss")+SUMIFS(CPU!$G:$G,CPU!$A:$A,'Tamboril II'!$C21,CPU!$H:$H,"mdo")+SUMIF('Comp SINAPI 06-2025 Onerado'!B:B,'Tamboril II'!C21,'Comp SINAPI 06-2025 Onerado'!E:E)+SUMIF('Ins SINAPI 06-2025 Onerado'!B:B,'Tamboril II'!C21,'Ins SINAPI 06-2025 Onerado'!F:F)),2) -> 719.53 | H21: =TRUNC(G21*(1+$H$5),2) -> 886.53 | I21: =TRUNC(F21*H21,2) -> 25266.1 | K21: TRUE
A22: 2.3 | D22: Sinalização | I22: =SUM(I23:I23) -> 1100.38 | K22: FALSE
A23: 2.3.1 | B23: SINAPI | C23: 103689 | D23: =IF(J23="ca",VLOOKUP(C23,'Comp SINAPI 06-2025 Onerado'!$B$11:$C$9004,2,0),VLOOKUP(C23,'Ins SINAPI 06-2025 Onerado'!$B$10:$C$9004,2,0)) -> FORNECIMENTO E INSTALAÇÃO DE PLACA DE OBRA COM CHAPA GALVANIZADA E ESTRUTURA DE MADEIRA. AF_03/2022_PS | E23: =IF(J23="ca",VLOOKUP(C23,'Comp SINAPI 06-2025 Onerado'!$B$11:$D$9004,3,0),VLOOKUP(C23,'Ins SINAPI 06-2025 Onerado'!$B$11:$D$9004,3,0)) -> M2 | F23: 2 | G23: =TRUNC((1-$H$9)*(SUMIFS(CPU!$G:$G,CPU!$A:$A,'Tamboril II'!$C23,CPU!$H:$H,"ss")+SUMIFS(CPU!$G:$G,CPU!$A:$A,'Tamboril II'!$C23,CPU!$H:$H,"mdo")+SUMIF('Comp SINAPI 06-2025 Onerado'!B:B,'Tamboril II'!C23,'Comp SINAPI 06-2025 Onerado'!E:E)+SUMIF('Ins SINAPI 06-2025 Onerado'!B:B,'Tamboril II'!C23,'Ins SINAPI 06-2025 Onerado'!F:F)),2) -> 446.55 | H23: =TRUNC(G23*(1+$H$5),2) -> 550.19 | I23: =TRUNC(F23*H23,2) -> 1100.38 | J23: ca | K23: =_xlfn.ISFORMULA(G23) -> TRUE
K24: FALSE
A25: 3 | D25: CORTE DA VEGETAÇÃO E REMOÇÃO DAS RAIZES | I25: =SUM(I26) -> 110490.08 | K25: FALSE
A26: 3.1 | D26: Remoção da vegetação | I26: =SUM(I27:I28) -> 110490.08 | K26: FALSE
A27: 3.1.1 | B27: PRÓPRIA | C27: CPU.04 | D27: Limpeza de vegetação | E27: =(VLOOKUP(C27,CPU!B2:D$422,3,0)) -> m2 | F27: 8639 | G27: =TRUNC((1-$H$9)*(SUMIFS(CPU!$G:$G,CPU!$A:$A,'Tamboril II'!$C27,CPU!$H:$H,"ss")+SUMIFS(CPU!$G:$G,CPU!$A:$A,'Tamboril II'!$C27,CPU!$H:$H,"mdo")+SUMIF('Comp SINAPI 06-2025 Onerado'!B:B,'Tamboril II'!C27,'Comp SINAPI 06-2025 Onerado'!E:E)+SUMIF('Ins SINAPI 06-2025 Onerado'!B:B,'Tamboril II'!C27,'Ins SINAPI 06-2025 Onerado'!F:F)),2) -> 7.89 | H27: =TRUNC(G27*(1+$H$5),2) -> 9.72 | I27: =TRUNC(F27*H27,2) -> 83971.08 | K27: TRUE
A28: 3.1.2 | B28: PRÓPRIA | C28: CPU.05 | D28: Corte de tronco e remoção de raiz | E28: =(VLOOKUP(C28,CPU!B3:D$422,3,0)) -> un | F28: 50 | G28: =TRUNC((1-$H$9)*(SUMIFS(CPU!$G:$G,CPU!$A:$A,'Tamboril II'!$C28,CPU!$H:$H,"ss")+SUMIFS(CPU!$G:$G,CPU!$A:$A,'Tamboril II'!$C28,CPU!$H:$H,"mdo")+SUMIF('Comp SINAPI 06-2025 Onerado'!B:B,'Tamboril II'!C28,'Comp SINAPI 06-2025 Onerado'!E:E)+SUMIF('Ins SINAPI 06-2025 Onerado'!B:B,'Tamboril II'!C28,'Ins SINAPI 06-2025 Onerado'!F:F)),2) -> 430.47 | H28: =TRUNC(G28*(1+$H$5),2) -> 530.38 | I28: =TRUNC(F28*H28,2) -> 26519 | K28: TRUE
K29: FALSE
A30: 4 | D30: RECUPERAÇÃO DO MACIÇO | I30: =SUM(I31,I33) -> 103705.8 | K30: FALSE
A31: 4.1 | D31: Recomposição das anomalias do aterro (erosões, trincas e buracos nas ombreiras e aterro) | I31: =SUM(I32:I32) -> 102970.38 | K31: FALSE
A32: 4.1.1 | B32: PRÓPRIA | C32: CPU.13 | D32: Recomposição das erosões, inclusive, regularização da superfície e reaterro | E32: =(VLOOKUP(C32,CPU!B4:D$422,3,0)) -> m3 | F32: 258 | G32: =TRUNC((1-$H$9)*(SUMIFS(CPU!$G:$G,CPU!$A:$A,'Tamboril II'!$C32,CPU!$H:$H,"ss")+SUMIFS(CPU!$G:$G,CPU!$A:$A,'Tamboril II'!$C32,CPU!$H:$H,"mdo")+SUMIF('Comp SINAPI 06-2025 Onerado'!B:B,'Tamboril II'!C32,'Comp SINAPI 06-2025 Onerado'!E:E)+SUMIF('Ins SINAPI 06-2025 Onerado'!B:B,'Tamboril II'!C32,'Ins SINAPI 06-2025 Onerado'!F:F)),2) -> 323.93 | H32: =TRUNC(G32*(1+$H$5),2) -> 399.11 | I32: =TRUNC(F32*H32,2) -> 102970.38 | K32: TRUE
A33: 4.2 | D33: Injeção de nata de cimento em buracos | I33: =SUM(I34:I34) -> 735.42 | K33: FALSE
A34: 4.2.1 | B34: PRÓPRIA | C34: CPU.26 | D34: Injeção de nata de cimento em buracos | E34: =(VLOOKUP(C34,CPU!B6:D$422,3,0)) -> m3 | F34: 0.5 | G34: =TRUNC((1-$H$9)*(SUMIFS(CPU!$G:$G,CPU!$A:$A,'Tamboril II'!$C34,CPU!$H:$H,"ss")+SUMIFS(CPU!$G:$G,CPU!$A:$A,'Tamboril II'!$C34,CPU!$H:$H,"mdo")+SUMIF('Comp SINAPI 06-2025 Onerado'!B:B,'Tamboril II'!C34,'Comp SINAPI 06-2025 Onerado'!E:E)+SUMIF('Ins SINAPI 06-2025 Onerado'!B:B,'Tamboril II'!C34,'Ins SINAPI 06-2025 Onerado'!F:F)),2) -> 1193.77 | H34: =TRUNC(G34*(1+$H$5),2) -> 1470.84 | I34: =TRUNC(F34*H34,2) -> 735.42 | K34: TRUE
K35: FALSE
A36: 5 | D36: REGULARIZAÇÃO E PAVIMENTAÇÃO DA CRISTA | I36: =SUM(I37,I39,I41) -> 128938.7 | K36: FALSE
A37: 5.1 | D37: Regularização da Crista | I37: =SUM(I38:I38) -> 5299.06 | K37: FALSE
A38: 5.1.2 | B38: PRÓPRIA | C38: CPU.14 | D38: =(VLOOKUP(C38,CPU!B10:C373,2,0)) -> Regularização e compactação | E38: =(VLOOKUP(C38,CPU!B10:D373,3,0)) -> m2 | F38: 1157 | G38: =TRUNC((1-$H$9)*(SUMIFS(CPU!$G:$G,CPU!$A:$A,'Tamboril II'!$C38,CPU!$H:$H,"ss")+SUMIFS(CPU!$G:$G,CPU!$A:$A,'Tamboril II'!$C38,CPU!$H:$H,"mdo")+SUMIF('Comp SINAPI 06-2025 Onerado'!B:B,'Tamboril II'!C38,'Comp SINAPI 06-2025 Onerado'!E:E)+SUMIF('Ins SINAPI 06-2025 Onerado'!B:B,'Tamboril II'!C38,'Ins SINAPI 06-2025 Onerado'!F:F)),2) -> 3.72 | H38: =TRUNC(G38*(1+$H$5),2) -> 4.58 | I38: =TRUNC(F38*H38,2) -> 5299.06 | K38: TRUE
A39: 5.2 | D39: Instalação de meio-fio e sarjeta em ambos os lados da crista | I39: =SUM(I40:I40) -> 54551.2 | K39: FALSE
A40: 5.2.1 | B40: PRÓPRIA | C40: CPU.20 | D40: =(VLOOKUP(C40,CPU!B12:C375,2,0)) -> Guia (meio-fio) e sarjeta conjudados de concreto, moldada In Loco, 45cm base (15 cm Base da Guia +30 cm Base da Sarjeta) x 22 cm Altura | E40: =(VLOOKUP(C40,CPU!B12:D375,3,0)) -> m | F40: 440 | G40: =TRUNC((1-$H$9)*(SUMIFS(CPU!$G:$G,CPU!$A:$A,'Tamboril II'!$C40,CPU!$H:$H,"ss")+SUMIFS(CPU!$G:$G,CPU!$A:$A,'Tamboril II'!$C40,CPU!$H:$H,"mdo")+SUMIF('Comp SINAPI 06-2025 Onerado'!B:B,'Tamboril II'!C40,'Comp SINAPI 06-2025 Onerado'!E:E)+SUMIF('Ins SINAPI 06-2025 Onerado'!B:B,'Tamboril II'!C40,'Ins SINAPI 06-2025 Onerado'!F:F)),2) -> 100.63 | H40: =TRUNC(G40*(1+$H$5),2) -> 123.98 | I40: =TRUNC(F40*H40,2) -> 54551.2 | K40: TRUE
A41: 5.3 | D41: Pavimentação da Crista | I41: =SUM(I42:I42) -> 69088.44 | K41: FALSE
A42: 5.3.1 | B42: PRÓPRIA | C42: CPU.15 | D42: =(VLOOKUP(C42,CPU!B14:C377,2,0)) -> Execução de Revestimento com BGTC | E42: =(VLOOKUP(C42,CPU!B14:D377,3,0)) -> m3 | F42: 116 | G42: =TRUNC((1-$H$9)*(SUMIFS(CPU!$G:$G,CPU!$A:$A,'Tamboril II'!$C42,CPU!$H:$H,"ss")+SUMIFS(CPU!$G:$G,CPU!$A:$A,'Tamboril II'!$C42,CPU!$H:$H,"mdo")+SUMIF('Comp SINAPI 06-2025 Onerado'!B:B,'Tamboril II'!C42,'Comp SINAPI 06-2025 Onerado'!E:E)+SUMIF('Ins SINAPI 06-2025 Onerado'!B:B,'Tamboril II'!C42,'Ins SINAPI 06-2025 Onerado'!F:F)),2) -> 483.4 | H42: =TRUNC(G42*(1+$H$5),2) -> 595.59 | I42: =TRUNC(F42*H42,2) -> 69088.44 | K42: TRUE
K43: FALSE
A44: 6 | D44: MANUTENÇÃO NO TALUDE DE MONTANTE | I44: =SUM(I45) -> 34532.25 | K44: FALSE
A45: 6.1 | D45: Enrocamento com pedra de mão para proteção do talude | I45: =SUM(I46:I46) -> 34532.25 | K45: FALSE
A46: 6.1.1 | B46: PRÓPRIA | C46: CPU.07 | D46: =(VLOOKUP(C46,CPU!B24:C377,2,0)) -> Enrocamento c/ pedra de mão c/ fornecimento e assentamento | E46: =(VLOOKUP(C46,CPU!B24:D422,3,0)) -> m3 | F46: 75 | G46: =TRUNC((1-$H$9)*(SUMIFS(CPU!$G:$G,CPU!$A:$A,'Tamboril II'!$C46,CPU!$H:$H,"ss")+SUMIFS(CPU!$G:$G,CPU!$A:$A,'Tamboril II'!$C46,CPU!$H:$H,"mdo")+SUMIF('Comp SINAPI 06-2025 Onerado'!B:B,'Tamboril II'!C46,'Comp SINAPI 06-2025 Onerado'!E:E)+SUMIF('Ins SINAPI 06-2025 Onerado'!B:B,'Tamboril II'!C46,'Ins SINAPI 06-2025 Onerado'!F:F)),2) -> 373.7 | H46: =TRUNC(G46*(1+$H$5),2) -> 460.43 | I46: =TRUNC(F46*H46,2) -> 34532.25 | K46: TRUE
K47: FALSE
A48: 7 | D48: DRENAGEM SUPERFICIAL DO TALUDE DE JUSANTE | I48: =SUM(I49,I51) -> 20872.92 | K48: FALSE
A49: 7.1 | D49: Implantação de Canaleta para descida d'água | I49: =I50 -> 18242.88 | K49: FALSE
A50: 7.1.1 | B50: PRÓPRIA | C50: CPU.08 | D50: =(VLOOKUP(C50,CPU!B18:C377,2,0)) -> Canaleta meia cana de concreto (D=30cm) - Fornecimento e instalação | E50: =(VLOOKUP(C50,CPU!B18:D377,3,0)) -> m | F50: 96 | G50: =TRUNC((1-$H$9)*(SUMIFS(CPU!$G:$G,CPU!$A:$A,'Tamboril II'!$C50,CPU!$H:$H,"ss")+SUMIFS(CPU!$G:$G,CPU!$A:$A,'Tamboril II'!$C50,CPU!$H:$H,"mdo")+SUMIF('Comp SINAPI 06-2025 Onerado'!B:B,'Tamboril II'!C50,'Comp SINAPI 06-2025 Onerado'!E:E)+SUMIF('Ins SINAPI 06-2025 Onerado'!B:B,'Tamboril II'!C50,'Ins SINAPI 06-2025 Onerado'!F:F)),2) -> 154.24 | H50: =TRUNC(G50*(1+$H$5),2) -> 190.03 | I50: =TRUNC(F50*H50,2) -> 18242.88 | K50: TRUE
A51: 7.3 | D51: Entrada para descida d'água | I51: =I52 -> 2630.04 | K51: FALSE
A52: 7.3.1 | B52: PRÓPRIA | C52: CPU.09 | D52: =(VLOOKUP(C52,CPU!B20:C377,2,0)) -> Entrada para descida d'água | E52: =(VLOOKUP(C52,CPU!B20:D422,3,0)) -> un | F52: 12 | G52: =TRUNC((1-$H$9)*(SUMIFS(CPU!$G:$G,CPU!$A:$A,'Tamboril II'!$C52,CPU!$H:$H,"ss")+SUMIFS(CPU!$G:$G,CPU!$A:$A,'Tamboril II'!$C52,CPU!$H:$H,"mdo")+SUMIF('Comp SINAPI 06-2025 Onerado'!B:B,'Tamboril II'!C52,'Comp SINAPI 06-2025 Onerado'!E:E)+SUMIF('Ins SINAPI 06-2025 Onerado'!B:B,'Tamboril II'!C52,'Ins SINAPI 06-2025 Onerado'!F:F)),2) -> 177.89 | H52: =TRUNC(G52*(1+$H$5),2) -> 219.17 | I52: =TRUNC(F52*H52,2) -> 2630.04 | K52: TRUE
K53: FALSE
A54: 8 | D54: PROTEÇÃO SUPERFICIAL DO TALUDE DE JUSANTE | I54: =SUM(I55) -> 23270.24 | K54: FALSE
A55: 8.1 | D55: Proteção vegetal | I55: =SUM(I56:I56) -> 23270.24 | K55: FALSE
A56: 8.1.1 | B56: PRÓPRIA | C56: CPU.10 | D56: =(VLOOKUP(C56,CPU!B28:C377,2,0)) -> Plantio de vegetação para proteção de talude com hidrossemeadura, inclusive adubação e transporte | E56: =(VLOOKUP(C56,CPU!B28:D422,3,0)) -> m2 | F56: 1841 | G56: =TRUNC((1-$H$9)*(SUMIFS(CPU!$G:$G,CPU!$A:$A,'Tamboril II'!$C56,CPU!$H:$H,"ss")+SUMIFS(CPU!$G:$G,CPU!$A:$A,'Tamboril II'!$C56,CPU!$H:$H,"mdo")+SUMIF('Comp SINAPI 06-2025 Onerado'!B:B,'Tamboril II'!C56,'Comp SINAPI 06-2025 Onerado'!E:E)+SUMIF('Ins SINAPI 06-2025 Onerado'!B:B,'Tamboril II'!C56,'Ins SINAPI 06-2025 Onerado'!F:F)),2) -> 10.26 | H56: =TRUNC(G56*(1+$H$5),2) -> 12.64 | I56: =TRUNC(F56*H56,2) -> 23270.24 | K56: TRUE
K57: FALSE
A58: 9 | D58: RESTAURAÇÃO DO MURO LATERAL | I58: =SUM(I59) -> 17656.8 | K58: FALSE
A59: 9.1 | D59: Aplicação de revestimento no muro lateral | I59: =SUM(I60:I61) -> 17656.8 | K59: FALSE
A60: 9.1.1 | B60: PRÓPRIA | C60: CPU.24 | D60: =(VLOOKUP(C60,CPU!B25:C377,2,0)) -> Limpeza da superfície | E60: =(VLOOKUP(C60,CPU!B25:D427,3,0)) -> m2 | F60: 120 | G60: =TRUNC((1-$H$9)*(SUMIFS(CPU!$G:$G,CPU!$A:$A,'Tamboril II'!$C60,CPU!$H:$H,"ss")+SUMIFS(CPU!$G:$G,CPU!$A:$A,'Tamboril II'!$C60,CPU!$H:$H,"mdo")+SUMIF('Comp SINAPI 06-2025 Onerado'!B:B,'Tamboril II'!C60,'Comp SINAPI 06-2025 Onerado'!E:E)+SUMIF('Ins SINAPI 06-2025 Onerado'!B:B,'Tamboril II'!C60,'Ins SINAPI 06-2025 Onerado'!F:F)),2) -> 8.67 | H60: =TRUNC(G60*(1+$H$5),2) -> 10.68 | I60: =TRUNC(F60*H60,2) -> 1281.6 | K60: TRUE
A61: 9.1.2 | B61: PRÓPRIA | C61: CPU.23 | D61: =(VLOOKUP(C61,CPU!B26:C377,2,0)) -> Emboço ou massa única em argamassa | E61: =(VLOOKUP(C61,CPU!B26:D428,3,0)) -> m2 | F61: =F60 -> 120 | G61: =TRUNC((1-$H$9)*(SUMIFS(CPU!$G:$G,CPU!$A:$A,'Tamboril II'!$C61,CPU!$H:$H,"ss")+SUMIFS(CPU!$G:$G,CPU!$A:$A,'Tamboril II'!$C61,CPU!$H:$H,"mdo")+SUMIF('Comp SINAPI 06-2025 Onerado'!B:B,'Tamboril II'!C61,'Comp SINAPI 06-2025 Onerado'!E:E)+SUMIF('Ins SINAPI 06-2025 Onerado'!B:B,'Tamboril II'!C61,'Ins SINAPI 06-2025 Onerado'!F:F)),2) -> 110.76 | H61: =TRUNC(G61*(1+$H$5),2) -> 136.46 | I61: =TRUNC(F61*H61,2) -> 16375.2 | K61: TRUE
K62: FALSE
A63: 10 | D63: RESTAURAÇÃO DA SOLEIRA DO VERTEDOURO | I63: =SUM(I64) -> 5696.84 | K63: FALSE
A64: 10.1 | D64: Restauração da soleira do vertedouro | I64: =SUM(I65:I67) -> 5696.84 | K64: FALSE
A65: 10.1.1 | B65: PRÓPRIA | C65: CPU.24 | D65: =(VLOOKUP(C65,CPU!B32:C377,2,0)) -> Limpeza da superfície | E65: =(VLOOKUP(C65,CPU!B32:D434,3,0)) -> m2 | F65: 160 | G65: =TRUNC((1-$H$9)*(SUMIFS(CPU!$G:$G,CPU!$A:$A,'Tamboril II'!$C65,CPU!$H:$H,"ss")+SUMIFS(CPU!$G:$G,CPU!$A:$A,'Tamboril II'!$C65,CPU!$H:$H,"mdo")+SUMIF('Comp SINAPI 06-2025 Onerado'!B:B,'Tamboril II'!C65,'Comp SINAPI 06-2025 Onerado'!E:E)+SUMIF('Ins SINAPI 06-2025 Onerado'!B:B,'Tamboril II'!C65,'Ins SINAPI 06-2025 Onerado'!F:F)),2) -> 8.67 | H65: =TRUNC(G65*(1+$H$5),2) -> 10.68 | I65: =TRUNC(F65*H65,2) -> 1708.8 | K65: TRUE
A66: 10.1.2 | B66: PRÓPRIA | C66: CPU.33 | D66: =(VLOOKUP(C66,CPU!B32:C377,2,0)) -> Selagem superficial de fissuras com adesivo estrutural à base de resina epóxi de alta viscosidade | E66: =(VLOOKUP(C66,CPU!B32:D434,3,0)) -> m | F66: 20 | G66: =TRUNC((1-$H$9)*(SUMIFS(CPU!$G:$G,CPU!$A:$A,'Tamboril II'!$C66,CPU!$H:$H,"ss")+SUMIFS(CPU!$G:$G,CPU!$A:$A,'Tamboril II'!$C66,CPU!$H:$H,"mdo")+SUMIF('Comp SINAPI 06-2025 Onerado'!B:B,'Tamboril II'!C66,'Comp SINAPI 06-2025 Onerado'!E:E)+SUMIF('Ins SINAPI 06-2025 Onerado'!B:B,'Tamboril II'!C66,'Ins SINAPI 06-2025 Onerado'!F:F)),2) -> 28.94 | H66: =TRUNC(G66*(1+$H$5),2) -> 35.65 | I66: =TRUNC(F66*H66,2) -> 713 | K66: TRUE
A67: 10.1.3 | B67: PRÓPRIA | C67: CPU.23 | D67: =(VLOOKUP(C67,CPU!B33:C377,2,0)) -> Emboço ou massa única em argamassa | E67: =(VLOOKUP(C67,CPU!B33:D435,3,0)) -> m2 | F67: 24 | G67: =TRUNC((1-$H$9)*(SUMIFS(CPU!$G:$G,CPU!$A:$A,'Tamboril II'!$C67,CPU!$H:$H,"ss")+SUMIFS(CPU!$G:$G,CPU!$A:$A,'Tamboril II'!$C67,CPU!$H:$H,"mdo")+SUMIF('Comp SINAPI 06-2025 Onerado'!B:B,'Tamboril II'!C67,'Comp SINAPI 06-2025 Onerado'!E:E)+SUMIF('Ins SINAPI 06-2025 Onerado'!B:B,'Tamboril II'!C67,'Ins SINAPI 06-2025 Onerado'!F:F)),2) -> 110.76 | H67: =TRUNC(G67*(1+$H$5),2) -> 136.46 | I67: =TRUNC(F67*H67,2) -> 3275.04 | K67: TRUE
K68: FALSE
A69: 11 | D69: SERVIÇOS COMPLEMENTARES | I69: =SUM(I70,I72) -> 4349.64 | K69: FALSE
A70: 11.1 | D70: Instalação de placas de aviso | I70: =SUM(I71:I71) -> 2200.76 | K70: FALSE
A71: 11.1.1 | B71: SINAPI | C71: 103689 | D71: =IF(J71="ca",VLOOKUP(C71,'Comp SINAPI 06-2025 Onerado'!$B$11:$C$9004,2,0),VLOOKUP(C71,'Ins SINAPI 06-2025 Onerado'!$B$10:$C$9004,2,0)) -> FORNECIMENTO E INSTALAÇÃO DE PLACA DE OBRA COM CHAPA GALVANIZADA E ESTRUTURA DE MADEIRA. AF_03/2022_PS | E71: =IF(J71="ca",VLOOKUP(C71,'Comp SINAPI 06-2025 Onerado'!$B$11:$D$9004,3,0),VLOOKUP(C71,'Ins SINAPI 06-2025 Onerado'!$B$11:$D$9004,3,0)) -> M2 | F71: 4 | G71: =TRUNC((1-$H$9)*(SUMIFS(CPU!$G:$G,CPU!$A:$A,'Tamboril II'!$C71,CPU!$H:$H,"ss")+SUMIFS(CPU!$G:$G,CPU!$A:$A,'Tamboril II'!$C71,CPU!$H:$H,"mdo")+SUMIF('Comp SINAPI 06-2025 Onerado'!B:B,'Tamboril II'!C71,'Comp SINAPI 06-2025 Onerado'!E:E)+SUMIF('Ins SINAPI 06-2025 Onerado'!B:B,'Tamboril II'!C71,'Ins SINAPI 06-2025 Onerado'!F:F)),2) -> 446.55 | H71: =TRUNC(G71*(1+$H$5),2) -> 550.19 | I71: =TRUNC(F71*H71,2) -> 2200.76 | J71: ca | K71: TRUE
A72: 11.2 | D72: Régua Linimétrica Padrão “ANA”, Aço Carbono - 2 X 70 X 1000 mm (Fornecimento e Instalação) | I72: =SUM(I73:I73) -> 2148.88 | K72: FALSE
A73: 11.2.1 | B73: PRÓPRIA | C73: CPU.18 | D73: Régua Linimétrica Padrão “ANA”, Aço Carbono - 2 X 70 X 1000 mm (Fornecimento e Instalação) | E73: un | F73: 4 | G73: =TRUNC((1-$H$9)*(SUMIFS(CPU!$G:$G,CPU!$A:$A,'Tamboril II'!$C73,CPU!$H:$H,"ss")+SUMIFS(CPU!$G:$G,CPU!$A:$A,'Tamboril II'!$C73,CPU!$H:$H,"mdo")+SUMIF('Comp SINAPI 06-2025 Onerado'!B:B,'Tamboril II'!C73,'Comp SINAPI 06-2025 Onerado'!E:E)+SUMIF('Ins SINAPI 06-2025 Onerado'!B:B,'Tamboril II'!C73,'Ins SINAPI 06-2025 Onerado'!F:F)),2) -> 436.02 | H73: =TRUNC(G73*(1+$H$5),2) -> 537.22 | I73: =TRUNC(F73*H73,2) -> 2148.88 | K73: TRUE
K74: FALSE
A75: 12 | D75: PROJETO "AS IS" | I75: =SUM(I76) -> 14523.98 | K75: FALSE
A76: 12.1 | D76: Levantamento topógrafico e "AS IS" | I76: =SUM(I77:I78) -> 14523.98 | K76: FALSE
A77: 12.1.1 | B77: ORSE | C77: 9346 | D77: Levantamento topográfico planimétrico cadastral | E77: m2 | F77: =F27 -> 8639 | G77: =TRUNC(0.35*(1-$H$9),2) -> 0.35 | H77: =TRUNC(G77*(1+$H$5),2) -> 0.43 | I77: =TRUNC(F77*H77,2) -> 3714.77 | K77: TRUE
A78: 12.1.2 | B78: PRÓPRIA | C78: CPU.25 | D78: Projeto Geométrico | E78: un | F78: 1 | G78: =TRUNC((1-$H$9)*(SUMIFS(CPU!$G:$G,CPU!$A:$A,'Tamboril II'!$C78,CPU!$H:$H,"ss")+SUMIFS(CPU!$G:$G,CPU!$A:$A,'Tamboril II'!$C78,CPU!$H:$H,"mdo")+SUMIF('Comp SINAPI 06-2025 Onerado'!B:B,'Tamboril II'!C78,'Comp SINAPI 06-2025 Onerado'!E:E)+SUMIF('Ins SINAPI 06-2025 Onerado'!B:B,'Tamboril II'!C78,'Ins SINAPI 06-2025 Onerado'!F:F)),2) -> 8773 | H78: =TRUNC(G78*(1+$H$5),2) -> 10809.21 | I78: =TRUNC(F78*H78,2) -> 10809.21 | K78: TRUE
K79: FALSE
A80: 13 | D80: FISCALIZAÇÃO E ACOMPANHAMENTO | I80: =SUM(I81) -> 2387.85 | K80: =_xlfn.ISFORMULA(G80) -> FALSE
A81: 13.1 | D81: Disponibilidade de velículo para apoio a fiscalização | I81: =SUM(I82:I83) -> 2387.85 | K81: FALSE
A82: 13.1.1 | B82: PRÓPRIA | C82: CPU.30 | D82: =(VLOOKUP(C82,CPU!B62:C377,2,0)) -> Disponibilidade de veículo para apoio a fiscalização, inclusive combustível | E82: un | F82: =F15+2 -> 5 | G82: =TRUNC((1-$H$9)*(SUMIFS(CPU!$G:$G,CPU!$A:$A,'Tamboril II'!$C82,CPU!$H:$H,"ss")+SUMIFS(CPU!$G:$G,CPU!$A:$A,'Tamboril II'!$C82,CPU!$H:$H,"mdo")+SUMIF('Comp SINAPI 06-2025 Onerado'!B:B,'Tamboril II'!C82,'Comp SINAPI 06-2025 Onerado'!E:E)+SUMIF('Ins SINAPI 06-2025 Onerado'!B:B,'Tamboril II'!C82,'Ins SINAPI 06-2025 Onerado'!F:F)),2) -> 387.61 | H82: =TRUNC(G82*(1+$H$5),2) -> 477.57 | I82: =TRUNC(F82*H82,2) -> 2387.85 | K82: TRUE
K83: FALSE
D84: TOTAL (Custo): | I84: =TRUNC(SUMPRODUCT(F14:F83,G14:G83),2) -> 488620.64 | K84: FALSE
D85: BDI e Encargos Sociais: | I85: =I86-I84 -> 113372.63 | K85: FALSE
D86: TOTAL GERAL COM BDI: | I86: =SUM(I13,I17,I25,I30,I36,I44,I48,I54,I58,I63,I69,I75,I80) -> 601993.27 | K86: FALSE | M86: =TRUNC(SUMPRODUCT(F14:F83,H14:H83),2) -> 601993.27

Sheet CPU
A1: Ministério da Integração e do Desenvolvimento Regional
A2: Companhia de Desenvolvimento dos Vales do São Francisco e do Parnaíba
A4: COMPOSIÇÕES DE PREÇOS UNITÁRIOS - ORÇAMENTO NÃO DESONERADO
A5: =Resumo!A5 -> OBRA: | B5: =Resumo!B5 -> Execução de manutenção e recuperação nas barragens de Poções, Poço da Pedra, Taquarandi, Caatinga de Moura e Tamboril II, localizadas no estado da Bahia.
A6: =Resumo!A6 -> LOCAL: | B6: =Resumo!B6 -> BARRAGENS DA BAHIA
A7: =Resumo!A7 -> DATA BASE: | B7: =Resumo!B7 -> 2025-08-01
A9: REFERÊNCIA | B9: CÓDIGO | C9: DESCRIÇÃO | D9: UNIDADE | E9: ÍNDICE | F9: CUSTO UNITÁRIO | G9: CUSTO TOTAL
B10: CPU.01 | C10: Administração Local | D10: mês | E10: 1 | G10: =SUM(G14,G13,G12,G11) -> 28483.53 | H10: S | J10: COMENTÁRIOS
A11: =B10 -> CPU.01 | C11: MATERIAL | G11: 0 | H11: ss
A12: =B10 -> CPU.01 | C12: EQUIPAMENTOS | G12: 0 | H12: ss
A13: =B10 -> CPU.01 | C13: SERVIÇOS | G13: 0 | H13: ss
A14: =B10 -> CPU.01 | C14: MÃO DE OBRA | G14: =SUM(G15:G17) -> 28483.53 | H14: mdo
A15: SINAPI | B15: 90778 | C15: =PROPER(IF(H15="i",VLOOKUP(B15,'Ins SINAPI 06-2025 Onerado'!$B$11:$F$50003,2,0),VLOOKUP(B15,'Comp SINAPI 06-2025 Onerado'!$B$11:$C$49969,2,0))) -> Engenheiro Civil De Obra Pleno Com Encargos Complementares | D15: =IF(H15="i",VLOOKUP(B15,'Ins SINAPI 06-2025 Onerado'!$B$11:$F$50003,2,0),VLOOKUP(B15,'Comp SINAPI 06-2025 Onerado'!$B$11:$H$49969,3,0)) -> H | E15: =1.5*5*4 -> 30 | F15: =IF(H15="i",VLOOKUP(B15,'Ins SINAPI 06-2025 Onerado'!$B$11:$F$50003,5,0),VLOOKUP(B15,'Comp SINAPI 06-2025 Onerado'!$B$11:$E$49969,4,0)) -> 135.07 | G15: =TRUNC(E15*F15,2) -> 4052.1 | H15: ca | I15: =_xlfn.ISFORMULA(F15) -> TRUE
A16: SINAPI | B16: 93572 | C16: =PROPER(IF(H16="i",VLOOKUP(B16,'Ins SINAPI 06-2025 Onerado'!$B$11:$F$50003,2,0),VLOOKUP(B16,'Comp SINAPI 06-2025 Onerado'!$B$11:$C$49969,2,0))) -> Encarregado Geral De Obras Com Encargos Complementares | D16: =IF(H16="i",VLOOKUP(B16,'Ins SINAPI 06-2025 Onerado'!$B$11:$F$50003,2,0),VLOOKUP(B16,'Comp SINAPI 06-2025 Onerado'!$B$11:$H$49969,3,0)) -> MES | E16: 0.8 | F16: =IF(H16="i",VLOOKUP(B16,'Ins SINAPI 06-2025 Onerado'!$B$11:$F$50003,5,0),VLOOKUP(B16,'Comp SINAPI 06-2025 Onerado'!$B$11:$E$49969,4,0)) -> 7155.34 | G16: =TRUNC(E16*F16,2) -> 5724.27 | H16: ca | I16: =_xlfn.ISFORMULA(F16) -> TRUE
A17: EMBASA | B17: 74.13.43 | C17: VIGIA - AN | D17: MES | E17: 4 | F17: 4676.79 | G17: =TRUNC(E17*F17,2) -> 18707.16 | H17: ca | I17: =_xlfn.ISFORMULA(F17) -> FALSE | J17: considerando 4 vigias intercalando em dupla na jornada de 12/36
I18: FALSE
B19: CPU.02 | C19: Mobilização e desmobilização de instalação do canteiro | D19: un | E19: 1 | G19: =SUM(G27,G26,G21,G20) -> 3179.97 | H19: S | I19: FALSE | J19: mobilização e desmobilização de Petrolina a barragem | N19: 2 dias
A20: =B19 -> CPU.02 | C20: MATERIAL | G20: 0 | H20: ss | I20: FALSE
A21: =B19 -> CPU.02 | C21: EQUIPAMENTOS | G21: =SUM(G22:G25) -> 3179.97 | H21: ss | I21: FALSE
A22: PRÓPRIA | B22: CODE | C22: Veículo tipo pick-up, cabine dupla - 2.0 16V 4x4 diesel Aut. | D22: dia | E22: 2 | F22: ='CPU-VEICULO_PickUp'!$C$11 -> 387.6106724 | G22: =TRUNC(E22*F22,2) -> 775.22 | H22: ca | I22: TRUE
A23: SINAPI | B23: 100946 | C23: =PROPER(IF(H23="i",VLOOKUP(B23,'Ins SINAPI 06-2025 Onerado'!$B$11:$F$50003,2,0),VLOOKUP(B23,'Comp SINAPI 06-2025 Onerado'!$B$11:$C$49969,2,0))) -> Transporte Com Caminhão Carroceria 9T, Em Via Urbana Em Revestimento Primário (Unidade: Txkm). Af_07/2020 | D23: =IF(H23="i",VLOOKUP(B23,'Ins SINAPI 06-2025 Onerado'!$B$11:$F$50003,2,0),VLOOKUP(B23,'Comp SINAPI 06-2025 Onerado'!$B$11:$H$49969,3,0)) -> TXKM | E23: ='Memorial de cálculo'!H18 -> 210.2 | F23: =IF(H23="i",VLOOKUP(B23,'Ins SINAPI 06-2025 Onerado'!$B$11:$F$50003,5,0),VLOOKUP(B23,'Comp SINAPI 06-2025 Onerado'!$B$11:$E$49969,4,0)) -> 2.43 | G23: =TRUNC(E23*F23,2) -> 510.78 | H23: ca | I23: TRUE | J23: considerando 5 toneladas de carga
A24: SINAPI | B24: 100947 | C24: =PROPER(IF(H24="i",VLOOKUP(B24,'Ins SINAPI 06-2025 Onerado'!$B$11:$F$50003,2,0),VLOOKUP(B24,'Comp SINAPI 06-2025 Onerado'!$B$11:$C$49969,2,0))) -> Transporte Com Caminhão Carroceria 9T, Em Via Urbana Pavimentada, Dmt Até 30Km (Unidade: Txkm). Af_07/2020 | D24: =IF(H24="i",VLOOKUP(B24,'Ins SINAPI 06-2025 Onerado'!$B$11:$F$50003,2,0),VLOOKUP(B24,'Comp SINAPI 06-2025 Onerado'!$B$11:$H$49969,3,0)) -> TXKM | E24: ='Memorial de cálculo'!H21 -> 300 | F24: =IF(H24="i",VLOOKUP(B24,'Ins SINAPI 06-2025 Onerado'!$B$11:$F$50003,5,0),VLOOKUP(B24,'Comp SINAPI 06-2025 Onerado'!$B$11:$E$49969,4,0)) -> 2.24 | G24: =TRUNC(E24*F24,2) -> 672 | H24: ca | I24: TRUE
A25: SINAPI | B25: 100948 | C25: =PROPER(IF(H25="i",VLOOKUP(B25,'Ins SINAPI 06-2025 Onerado'!$B$11:$F$50003,2,0),VLOOKUP(B25,'Comp SINAPI 06-2025 Onerado'!$B$11:$C$49969,2,0))) -> Transporte Com Caminhão Carroceria 9T, Em Via Urbana Pavimentada, Adicional Para Dmt Excedente A 30 Km (Unidade: Txkm). Af_07/2020 | D25: =IF(H25="i",VLOOKUP(B25,'Ins SINAPI 06-2025 Onerado'!$B$11:$F$50003,2,0),VLOOKUP(B25,'Comp SINAPI 06-2025 Onerado'!$B$11:$H$49969,3,0)) -> TXKM | E25: ='Memorial de cálculo'!H24 -> 1373 | F25: =IF(H25="i",VLOOKUP(B25,'Ins SINAPI 06-2025 Onerado'!$B$11:$F$50003,5,0),VLOOKUP(B25,'Comp SINAPI 06-2025 Onerado'!$B$11:$E$49969,4,0)) -> 0.89 | G25: =TRUNC(E25*F25,2) -> 1221.97 | H25: ca | I25: TRUE
A26: =B19 -> CPU.02 | C26: SERVIÇOS | G26: 0 | H26: ss | I26: FALSE
A27: =B19 -> CPU.02 | C27: MÃO DE OBRA | G27: 0 | H27: mdo | I27: FALSE
I28: FALSE
B29: CPU.03 | C29: Execução de canteiro de obras, inclusive, limpeza, refeitório, sanitários e central de formas | D29: m2 | E29: 1 | G29: =SUM(G38,G32,G31,G30) -> 719.53 | H29: S | I29: FALSE
A30: =B29 -> CPU.03 | C30: MATERIAL | G30: 0 | H30: ss | I30: FALSE
A31: =B29 -> CPU.03 | C31: EQUIPAMENTOS | G31: 0 | H31: ss | I31: FALSE
A32: =B29 -> CPU.03 | C32: SERVIÇOS | G32: =SUM(G33:G37) -> 719.53 | H32: ss | I32: FALSE
A33: SINAPI | B33: 98524 | C33: =PROPER(IF(H33="i",VLOOKUP(B33,'Ins SINAPI 06-2025 Onerado'!$B$11:$F$50003,2,0),VLOOKUP(B33,'Comp SINAPI 06-2025 Onerado'!$B$11:$C$49969,2,0))) -> Limpeza Manual De Vegetação Em Terreno Com Enxada. Af_03/2024 | D33: =IF(H33="i",VLOOKUP(B33,'Ins SINAPI 06-2025 Onerado'!$B$11:$F$50003,2,0),VLOOKUP(B33,'Comp SINAPI 06-2025 Onerado'!$B$11:$H$49969,3,0)) -> M2 | E33: 1 | F33: =IF(H33="i",VLOOKUP(B33,'Ins SINAPI 06-2025 Onerado'!$B$11:$F$50003,5,0),VLOOKUP(B33,'Comp SINAPI 06-2025 Onerado'!$B$11:$E$49969,4,0)) -> 5.19 | G33: =TRUNC(E33*F33,2) -> 5.19 | H33: ca | I33: TRUE
A34: PRÓPRIA | B34: 93210-ADAPTADO | C34: ='COMPOSICÕES MODIFICADAS'!D149 -> EXECUÇÃO DE REFEITÓRIO EM CANTEIRO DE OBRA EM CHAPA DE MADEIRA COMPENSADA, NÃO INCLUSO MOBILIÁRIO E EQUIPAMENTOS. AF_02/2016 | D34: m2 | E34: ='Memorial de cálculo'!H29/'Memorial de cálculo'!H28 -> 0.2631578947 | F34: ='COMPOSICÕES MODIFICADAS'!D154 -> 596.3895623 | G34: =TRUNC(E34*F34,2) -> 156.94 | H34: ca | I34: TRUE | J34: Modificações realizadas de acordo com o parecer de custos do G6 - São Gregório
A35: PRÓPRIA | B35: 93212-ADAPTADO | C35: EXECUÇÃO DE SANITÁRIO E VESTIÁRIO EM CANTEIRO DE OBRA EM CHAPA DE MADEIRA COMPENSADA, NÃO INCLUSO MOBILIÁRIO. AF_02/2016 | D35: m2 | E35: ='Memorial de cálculo'!H30/'Memorial de cálculo'!H28 -> 0.3157894737 | F35: ='COMPOSICÕES MODIFICADAS'!D9 -> 981.58 | G35: =TRUNC(E35*F35,2) -> 309.97 | H35: ca | I35: TRUE
A36: PRÓPRIA | B36: 93583-ADAPTADO | C36: EXECUÇÃO DE CENTRAL DE FÔRMAS, PRODUÇÃO DE ARGAMASSA OU CONCRETO EM CANTEIRO DE OBRA, NÃO INCLUSO MOBILIÁRIO E EQUIPAMENTOS. AF_04/2016 | D36: m2 | E36: ='Memorial de cálculo'!H31/'Memorial de cálculo'!H28 -> 0.4210526316 | F36: ='COMPOSICÕES MODIFICADAS'!D114 -> 523.97 | G36: =TRUNC(E36*F36,2) -> 220.61 | H36: ca | I36: TRUE
A37: PRÓPRIA | B37: CODE | C37: Hospedagem | D37: un | E37: ='Memorial de cálculo'!D33*'Memorial de cálculo'!H33 -> 0.1394375 | F37: ='CPU HOSPEDAGEM'!$C$19 -> 192.3545076 | G37: =TRUNC(E37*F37,2) -> 26.82 | H37: ca | I37: TRUE
A38: =B29 -> CPU.03 | C38: MÃO DE OBRA | G38: 0 | H38: mdo | I38: FALSE
I39: FALSE
B40: CPU.04 | C40: Limpeza de vegetação | D40: m2 | E40: 1 | G40: =SUM(G48,G43,G42,G41) -> 7.89 | H40: S | I40: FALSE | K40: =G40*14000 -> 110460
A41: =B40 -> CPU.04 | C41: MATERIAL | G41: 0 | H41: ss | I41: FALSE
A42: =B40 -> CPU.04 | C42: EQUIPAMENTOS | G42: 0 | H42: ss | I42: FALSE
A43: =B40 -> CPU.04 | C43: SERVIÇOS | G43: =SUM(G44:G47) -> 7.89 | H43: ss | I43: FALSE
A44: SINAPI | B44: 98524 | C44: =PROPER(IF(H44="i",VLOOKUP(B44,'Ins SINAPI 06-2025 Onerado'!$B$11:$F$50003,2,0),VLOOKUP(B44,'Comp SINAPI 06-2025 Onerado'!$B$11:$C$49969,2,0))) -> Limpeza Manual De Vegetação Em Terreno Com Enxada. Af_03/2024 | D44: =IF(H44="i",VLOOKUP(B44,'Ins SINAPI 06-2025 Onerado'!$B$11:$F$50003,2,0),VLOOKUP(B44,'Comp SINAPI 06-2025 Onerado'!$B$11:$H$49969,3,0)) -> M2 | E44: 1 | F44: =IF(H44="i",VLOOKUP(B44,'Ins SINAPI 06-2025 Onerado'!$B$11:$F$50003,5,0),VLOOKUP(B44,'Comp SINAPI 06-2025 Onerado'!$B$11:$E$49969,4,0)) -> 5.19 | G44: =TRUNC(E44*F44,2) -> 5.19 | H44: ca | I44: TRUE
A45: PRÓPRIA | B45: CODE | C45: Hospedagem | D45: un | E45: ='Memorial de cálculo'!D37*'Memorial de cálculo'!H37 -> 0.0025 | F45: ='CPU HOSPEDAGEM'!$C$19 -> 192.3545076 | G45: =TRUNC(E45*F45,2) -> 0.48 | H45: ca | I45: TRUE
A46: PRÓPRIA | B46: CODE | C46: Veículo tipo pick-up, cabine dupla - 2.0 16V 4x4 diesel Aut. | D46: dia | E46: ='Memorial de cálculo'!H37 -> 0.000625 | F46: ='CPU-VEICULO_PickUp'!$C$11 -> 387.6106724 | G46: =TRUNC(E46*F46,2) -> 0.24 | H46: ca | I46: TRUE
A47: SINAPI | B47: 93589 | C47: =PROPER(IF(H47="i",VLOOKUP(B47,'Ins SINAPI 06-2025 Onerado'!$B$11:$F$50003,2,0),VLOOKUP(B47,'Comp SINAPI 06-2025 Onerado'!$B$11:$C$49969,2,0))) -> Transporte Com Caminhão Basculante De 10 M³, Em Via Urbana Em Revestimento Primário (Unidade: M3Xkm). Af_07/2020 | D47: =IF(H47="i",VLOOKUP(B47,'Ins SINAPI 06-2025 Onerado'!$B$11:$F$50003,2,0),VLOOKUP(B47,'Comp SINAPI 06-2025 Onerado'!$B$11:$H$49969,3,0)) -> M3XKM | E47: =15*0.05 -> 0.75 | F47: =IF(H47="i",VLOOKUP(B47,'Ins SINAPI 06-2025 Onerado'!$B$11:$F$50003,5,0),VLOOKUP(B47,'Comp SINAPI 06-2025 Onerado'!$B$11:$E$49969,4,0)) -> 2.65 | G47: =TRUNC(E47*F47,2) -> 1.98 | H47: ca | I47: TRUE | J47: considerando 5 cm de altura da vegetação e 15 km para bota-fora
A48: =B40 -> CPU.04 | C48: MÃO DE OBRA | G48: 0 | H48: mdo | I48: FALSE
I49: FALSE
B50: CPU.05 | C50: Corte de tronco e remoção de raiz | D50: un | E50: 1 | G50: =SUM(G61,G53,G52,G51) -> 430.47 | H50: S | I50: FALSE
A51: =B50 -> CPU.05 | C51: MATERIAL | G51: 0 | H51: ss | I51: FALSE
A52: =B50 -> CPU.05 | C52: EQUIPAMENTOS | G52: 0 | H52: ss | I52: FALSE
A53: =B50 -> CPU.05 | C53: SERVIÇOS | G53: =SUM(G54:G60) -> 430.47 | H53: ss | I53: FALSE
A54: SINAPI | B54: 98529 | C54: =PROPER(IF(H54="i",VLOOKUP(B54,'Ins SINAPI 06-2025 Onerado'!$B$11:$F$50003,2,0),VLOOKUP(B54,'Comp SINAPI 06-2025 Onerado'!$B$11:$C$49969,2,0))) -> Corte Raso E Recorte De Árvore Com Diâmetro De Tronco Maior Ou Igual A 0,20 M E Menor Que 0,40 M. Af_03/2024 | D54: =IF(H54="i",VLOOKUP(B54,'Ins SINAPI 06-2025 Onerado'!$B$11:$F$50003,2,0),VLOOKUP(B54,'Comp SINAPI 06-2025 Onerado'!$B$11:$H$49969,3,0)) -> UN | E54: 1 | F54: =IF(H54="i",VLOOKUP(B54,'Ins SINAPI 06-2025 Onerado'!$B$11:$F$50003,5,0),VLOOKUP(B54,'Comp SINAPI 06-2025 Onerado'!$B$11:$E$49969,4,0)) -> 82.02 | G54: =TRUNC(E54*F54,2) -> 82.02 | H54: ca | I54: TRUE
A55: SINAPI | B55: 98526 | C55: =PROPER(IF(H55="i",VLOOKUP(B55,'Ins SINAPI 06-2025 Onerado'!$B$11:$F$50003,2,0),VLOOKUP(B55,'Comp SINAPI 06-2025 Onerado'!$B$11:$C$49969,2,0))) -> Remoção De Raízes Remanescentes De Tronco De Árvore Com Diâmetro Maior Ou Igual A 0,20 M E Menor Que 0,40 M. Af_03/2024 | D55: =IF(H55="i",VLOOKUP(B55,'Ins SINAPI 06-2025 Onerado'!$B$11:$F$50003,2,0),VLOOKUP(B55,'Comp SINAPI 06-2025 Onerado'!$B$11:$H$49969,3,0)) -> UN | E55: 1 | F55: =IF(H55="i",VLOOKUP(B55,'Ins SINAPI 06-2025 Onerado'!$B$11:$F$50003,5,0),VLOOKUP(B55,'Comp SINAPI 06-2025 Onerado'!$B$11:$E$49969,4,0)) -> 150.45 | G55: 150.45 | H55: ca | I55: TRUE
A56: SINAPI | B56: 6081 | C56: =PROPER(IF(H56="i",VLOOKUP(B56,'Ins SINAPI 06-2025 Onerado'!$B$11:$F$50003,2,0),VLOOKUP(B56,'Comp SINAPI 06-2025 Onerado'!$G$11:$H$49969,2,0))) -> Argila Ou Barro Para Aterro/Reaterro (Com Transporte Ate 10 Km) | D56: =IF(H56="i",VLOOKUP(B56,'Ins SINAPI 06-2025 Onerado'!$B$11:$F$50003,3,0),VLOOKUP(B56,'Comp SINAPI 06-2025 Onerado'!$G$11:$H$49969,3,0)) -> M3 | E56: 0.5 | F56: =IF(H56="i",VLOOKUP(B56,'Ins SINAPI 06-2025 Onerado'!$B$11:$F$50003,5,0),VLOOKUP(B56,'Comp SINAPI 06-2025 Onerado'!$G$11:$H$49969,5,0)) -> 54.26 | G56: 27.13 | H56: i | I56: TRUE | J56: considerando 0,5 m3 por árvore
A57: SINAPI | B57: 93382 | C57: =PROPER(IF(H57="i",VLOOKUP(B57,'Ins SINAPI 06-2025 Onerado'!$B$11:$F$50003,2,0),VLOOKUP(B57,'Comp SINAPI 06-2025 Onerado'!$B$11:$C$49969,2,0))) -> Reaterro Manual De Valas, Com Compactador De Solos De Percussão. Af_08/2023 | D57: =IF(H57="i",VLOOKUP(B57,'Ins SINAPI 06-2025 Onerado'!$B$11:$F$50003,2,0),VLOOKUP(B57,'Comp SINAPI 06-2025 Onerado'!$B$11:$H$49969,3,0)) -> M3 | E57: 0.5 | F57: =IF(H57="i",VLOOKUP(B57,'Ins SINAPI 06-2025 Onerado'!$B$11:$F$50003,5,0),VLOOKUP(B57,'Comp SINAPI 06-2025 Onerado'!$B$11:$E$49969,4,0)) -> 30.51 | G57: 15.25 | H57: ca | I57: TRUE
A58: PRÓPRIA | B58: CODE | C58: Hospedagem | D58: un | E58: ='Memorial de cálculo'!D41*'Memorial de cálculo'!H41+'Memorial de cálculo'!D42*'Memorial de cálculo'!H42 -> 0.41525 | F58: ='CPU HOSPEDAGEM'!$C$19 -> 192.3545076 | G58: 79.87 | H58: ca | I58: TRUE
A59: PRÓPRIA | B59: CODE | C59: Veículo tipo pick-up, cabine dupla - 2.0 16V 4x4 diesel Aut. | D59: dia | E59: =LARGE('Memorial de cálculo'!H41:H42,1) -> 0.1441875 | F59: ='CPU-VEICULO_PickUp'!$C$11 -> 387.6106724 | G59: 55.88 | H59: ca | I59: TRUE
A60: SINAPI | B60: 93589 | C60: =PROPER(IF(H60="i",VLOOKUP(B60,'Ins SINAPI 06-2025 Onerado'!$B$11:$F$50003,2,0),VLOOKUP(B60,'Comp SINAPI 06-2025 Onerado'!$B$11:$C$49969,2,0))) -> Transporte Com Caminhão Basculante De 10 M³, Em Via Urbana Em Revestimento Primário (Unidade: M3Xkm). Af_07/2020 | D60: =IF(H60="i",VLOOKUP(B60,'Ins SINAPI 06-2025 Onerado'!$B$11:$F$50003,2,0),VLOOKUP(B60,'Comp SINAPI 06-2025 Onerado'!$B$11:$H$49969,3,0)) -> M3XKM | E60: =15*0.5 -> 7.5 | F60: =IF(H60="i",VLOOKUP(B60,'Ins SINAPI 06-2025 Onerado'!$B$11:$F$50003,5,0),VLOOKUP(B60,'Comp SINAPI 06-2025 Onerado'!$B$11:$E$49969,4,0)) -> 2.65 | G60: 19.87 | H60: ca | I60: TRUE | J60: considerando 0,5 m3 por árvore e 15 km para bota-fora
A61: =B50 -> CPU.05 | C61: MÃO DE OBRA | G61: 0 | H61: mdo | I61: FALSE
I62: FALSE
B63: CPU.06 | C63: Tratamento para impermeabilização de fissuras com injeção de poliuretano | D63: m | E63: 1 | G63: =SUM(G71,G66,G65,G64) -> 115.27 | H63: S | I63: FALSE
A64: =B63 -> CPU.06 | C64: MATERIAL | G64: 0 | H64: ss | I64: FALSE
A65: =B63 -> CPU.06 | C65: EQUIPAMENTOS | G65: 0 | H65: ss | I65: FALSE
A66: =B63 -> CPU.06 | C66: SERVIÇOS | G66: =SUM(G67:G70) -> 115.27 | H66: ss | I66: FALSE
A67: EMBASA | B67: 05.10.51 | C67: INJEÇÃO DE ESPUMA DE POLIURETANO | D67: KG | E67: 0.8 | F67: 95.71 | G67: =TRUNC(E67*F67,2) -> 76.56 | H67: ca | I67: FALSE
A68: EMBASA | B68: 05.10.91 | C68: INSTALAÇÃO DE INJETOR DE POLIURETANO | D68: UN | E68: 0.3 | F68: 22.32 | G68: =TRUNC(E68*F68,2) -> 6.69 | H68: ca | I68: FALSE
A69: PRÓPRIA | B69: CODE | C69: Hospedagem | D69: un | E69: ='Memorial de cálculo'!D46*'Memorial de cálculo'!H46 -> 0.05 | F69: 252.8 | G69: =TRUNC(E69*F69,2) -> 12.64 | H69: ca | I69: FALSE
A70: PRÓPRIA | B70: CODE | C70: Veículo tipo pick-up, cabine dupla - 2.0 16V 4x4 diesel Aut. | D70: dia | E70: ='Memorial de cálculo'!H46 -> 0.05 | F70: ='CPU-VEICULO_PickUp'!$C$11 -> 387.6106724 | G70: =TRUNC(E70*F70,2) -> 19.38 | H70: ca | I70: TRUE
A71: =B63 -> CPU.06 | C71: MÃO DE OBRA | G71: 0 | H71: mdo | I71: FALSE
I72: FALSE
B73: CPU.07 | C73: Enrocamento c/ pedra de mão c/ fornecimento e assentamento | D73: m3 | E73: 1 | G73: =SUM(G84,G77,G76,G74) -> 373.7 | H73: S | I73: FALSE
A74: =B73 -> CPU.07 | C74: MATERIAL | G74: =SUM(G75) -> 109.11 | H74: ss | I74: FALSE
A75: SINAPI | B75: 4730 | C75: =PROPER(IF(H75="i",VLOOKUP(B75,'Ins SINAPI 06-2025 Onerado'!$B$11:$F$50003,2,0),VLOOKUP(B75,'Comp SINAPI 06-2025 Onerado'!$G$11:$H$49969,2,0))) -> Pedra De Mao Ou Pedra Rachao Para Arrimo/Fundacao (Posto Pedreira/Fornecedor, Sem Frete) | D75: =IF(H75="i",VLOOKUP(B75,'Ins SINAPI 06-2025 Onerado'!$B$11:$F$50003,3,0),VLOOKUP(B75,'Comp SINAPI 06-2025 Onerado'!$G$11:$H$49969,3,0)) -> M3 | E75: 1 | F75: =IF(H75="i",VLOOKUP(B75,'Ins SINAPI 06-2025 Onerado'!$B$11:$F$50003,5,0),VLOOKUP(B75,'Comp SINAPI 06-2025 Onerado'!$G$11:$H$49969,5,0)) -> 109.11 | G75: =TRUNC(E75*F75,2) -> 109.11 | H75: i | I75: TRUE
A76: =B73 -> CPU.07 | C76: EQUIPAMENTOS | G76: 0 | H76: ss | I76: FALSE
A77: =B73 -> CPU.07 | C77: SERVIÇOS | G77: =SUM(G78:G83) -> 253.02 | H77: ss | I77: FALSE
A78: SINAPI | B78: 93592 | C78: =PROPER(IF(H78="i",VLOOKUP(B78,'Ins SINAPI 06-2025 Onerado'!$B$11:$F$50003,2,0),VLOOKUP(B78,'Comp SINAPI 06-2025 Onerado'!$B$11:$C$49969,2,0))) -> Transporte Com Caminhão Basculante De 14 M³, Em Via Urbana Em Revestimento Primário (Unidade: M3Xkm). Af_07/2020 | D78: =IF(H78="i",VLOOKUP(B78,'Ins SINAPI 06-2025 Onerado'!$B$11:$F$50003,2,0),VLOOKUP(B78,'Comp SINAPI 06-2025 Onerado'!$B$11:$H$49969,3,0)) -> M3XKM | E78: ='Memorial de cálculo'!H8 -> 21.02 | F78: =IF(H78="i",VLOOKUP(B78,'Ins SINAPI 06-2025 Onerado'!$B$11:$F$50003,5,0),VLOOKUP(B78,'Comp SINAPI 06-2025 Onerado'!$B$11:$E$49969,4,0)) -> 2.32 | G78: =TRUNC(E78*F78,2) -> 48.76 | H78: ca | I78: TRUE
A79: SINAPI | B79: 95876 | C79: =PROPER(IF(H79="i",VLOOKUP(B79,'Ins SINAPI 06-2025 Onerado'!$B$11:$F$50003,2,0),VLOOKUP(B79,'Comp SINAPI 06-2025 Onerado'!$B$11:$C$49969,2,0))) -> Transporte Com Caminhão Basculante De 14 M³, Em Via Urbana Pavimentada, Dmt Até 30 Km (Unidade: M3Xkm). Af_07/2020 | D79: =IF(H79="i",VLOOKUP(B79,'Ins SINAPI 06-2025 Onerado'!$B$11:$F$50003,2,0),VLOOKUP(B79,'Comp SINAPI 06-2025 Onerado'!$B$11:$H$49969,3,0)) -> M3XKM | E79: =30 -> 30 | F79: =IF(H79="i",VLOOKUP(B79,'Ins SINAPI 06-2025 Onerado'!$B$11:$F$50003,5,0),VLOOKUP(B79,'Comp SINAPI 06-2025 Onerado'!$B$11:$E$49969,4,0)) -> 2.1 | G79: 63 | H79: ca | I79: TRUE
A80: SINAPI | B80: 93593 | C80: =PROPER(IF(H80="i",VLOOKUP(B80,'Ins SINAPI 06-2025 Onerado'!$B$11:$F$50003,2,0),VLOOKUP(B80,'Comp SINAPI 06-2025 Onerado'!$B$11:$C$49969,2,0))) -> Transporte Com Caminhão Basculante De 14 M³, Em Via Urbana Pavimentada, Adicional Para Dmt Excedente A 30 Km (Unidade: M3Xkm). Af_07/2020 | D80: =IF(H80="i",VLOOKUP(B80,'Ins SINAPI 06-2025 Onerado'!$B$11:$F$50003,2,0),VLOOKUP(B80,'Comp SINAPI 06-2025 Onerado'!$B$11:$H$49969,3,0)) -> M3XKM | E80: ='Memorial de cálculo'!H7-30 -> 137.3 | F80: =IF(H80="i",VLOOKUP(B80,'Ins SINAPI 06-2025 Onerado'!$B$11:$F$50003,5,0),VLOOKUP(B80,'Comp SINAPI 06-2025 Onerado'!$B$11:$E$49969,4,0)) -> 0.84 | G80: 115.33 | H80: ca | I80: TRUE
A81: SINAPI | B81: 100979 | C81: =PROPER(IF(H81="i",VLOOKUP(B81,'Ins SINAPI 06-2025 Onerado'!$B$11:$F$50003,2,0),VLOOKUP(B81,'Comp SINAPI 06-2025 Onerado'!$B$11:$C$49969,2,0))) -> Carga, Manobra E Descarga De Solos E Materiais Granulares Em Caminhão Basculante 14 M³ - Carga Com Escavadeira Hidráulica (Caçamba De 1,20 M³ / 155 Hp) E Descarga Livre (Unidade: M3). Af_07/2020 | D81: =IF(H81="i",VLOOKUP(B81,'Ins SINAPI 06-2025 Onerado'!$B$11:$F$50003,2,0),VLOOKUP(B81,'Comp SINAPI 06-2025 Onerado'!$B$11:$H$49969,3,0)) -> M3 | E81: 1 | F81: =IF(H81="i",VLOOKUP(B81,'Ins SINAPI 06-2025 Onerado'!$B$11:$F$50003,5,0),VLOOKUP(B81,'Comp SINAPI 06-2025 Onerado'!$B$11:$E$49969,4,0)) -> 6.63 | G81: 6.63 | H81: ca | I81: =_xlfn.ISFORMULA(F81) -> TRUE
A82: PRÓPRIA | B82: CODE | C82: Hospedagem | D82: un | E82: ='Memorial de cálculo'!D50*'Memorial de cálculo'!H50+'Memorial de cálculo'!D51*'Memorial de cálculo'!H51 -> 0.05 | F82: ='CPU HOSPEDAGEM'!$C$19 -> 192.3545076 | G82: 9.61 | H82: ca | I82: TRUE
A83: PRÓPRIA | B83: CODE | C83: Veículo tipo pick-up, cabine dupla - 2.0 16V 4x4 diesel Aut. | D83: dia | E83: =LARGE('Memorial de cálculo'!H50:H51,1) -> 0.025 | F83: ='CPU-VEICULO_PickUp'!$C$11 -> 387.6106724 | G83: 9.69 | H83: ca | I83: TRUE
A84: =B73 -> CPU.07 | C84: MÃO DE OBRA | G84: =SUM(G85:G86) -> 11.57 | H84: mdo | I84: FALSE
A85: SINAPI | B85: 88309 | C85: =PROPER(IF(H85="i",VLOOKUP(B85,'Ins SINAPI 06-2025 Onerado'!$B$11:$F$50003,2,0),VLOOKUP(B85,'Comp SINAPI 06-2025 Onerado'!$B$11:$C$49969,2,0))) -> Pedreiro Com Encargos Complementares | D85: =IF(H85="i",VLOOKUP(B85,'Ins SINAPI 06-2025 Onerado'!$B$11:$F$50003,2,0),VLOOKUP(B85,'Comp SINAPI 06-2025 Onerado'!$B$11:$H$49969,3,0)) -> H | E85: 0.2 | F85: =IF(H85="i",VLOOKUP(B85,'Ins SINAPI 06-2025 Onerado'!$B$11:$F$50003,5,0),VLOOKUP(B85,'Comp SINAPI 06-2025 Onerado'!$B$11:$E$49969,4,0)) -> 33.52 | G85: 6.7 | H85: ca | I85: TRUE
A86: SINAPI | B86: 88316 | C86: =PROPER(IF(H86="i",VLOOKUP(B86,'Ins SINAPI 06-2025 Onerado'!$B$11:$F$50003,2,0),VLOOKUP(B86,'Comp SINAPI 06-2025 Onerado'!$B$11:$C$49969,2,0))) -> Servente Com Encargos Complementares | D86: =IF(H86="i",VLOOKUP(B86,'Ins SINAPI 06-2025 Onerado'!$B$11:$F$50003,2,0),VLOOKUP(B86,'Comp SINAPI 06-2025 Onerado'!$B$11:$H$49969,3,0)) -> H | E86: 0.2 | F86: =IF(H86="i",VLOOKUP(B86,'Ins SINAPI 06-2025 Onerado'!$B$11:$F$50003,5,0),VLOOKUP(B86,'Comp SINAPI 06-2025 Onerado'!$B$11:$E$49969,4,0)) -> 24.37 | G86: 4.87 | H86: ca | I86: TRUE
I87: FALSE
B88: CPU.08 | C88: Canaleta meia cana de concreto (D=30cm) - Fornecimento e instalação | D88: m | E88: 1 | G88: =SUM(G100,G91,G90,G89) -> 154.24 | H88: S | I88: FALSE
A89: =B88 -> CPU.08 | C89: MATERIAL | G89: 0 | H89: ss | I89: FALSE
A90: =B88 -> CPU.08 | C90: EQUIPAMENTOS | G90: 0 | H90: ss | I90: FALSE
A91: =B88 -> CPU.08 | C91: SERVIÇOS | G91: =SUM(G92:G99) -> 154.24 | H91: ss | I91: FALSE
A92: SINAPI | B92: 93358 | C92: =PROPER(IF(H92="i",VLOOKUP(B92,'Ins SINAPI 06-2025 Onerado'!$B$11:$F$50003,2,0),VLOOKUP(B92,'Comp SINAPI 06-2025 Onerado'!$B$11:$C$49969,2,0))) -> Escavação Manual De Vala. Af_09/2024 | D92: =IF(H92="i",VLOOKUP(B92,'Ins SINAPI 06-2025 Onerado'!$B$11:$F$50003,2,0),VLOOKUP(B92,'Comp SINAPI 06-2025 Onerado'!$B$11:$H$49969,3,0)) -> M3 | E92: 0.1188 | F92: =IF(H92="i",VLOOKUP(B92,'Ins SINAPI 06-2025 Onerado'!$B$11:$F$50003,5,0),VLOOKUP(B92,'Comp SINAPI 06-2025 Onerado'!$B$11:$E$49969,4,0)) -> 96.4 | G92: =TRUNC(E92*F92,2) -> 11.45 | H92: ca | I92: TRUE | J92: Indice com base na composição ED-48552 - do SBC
A93: SBC | B93: ED-51093 | C93: APILOAMENTO E REGULARIZACAO MANUAL DE FUNDO DE CAVAS | D93: M2 | E93: 0.36 | F93: 26.06 | G93: =TRUNC(E93*F93,2) -> 9.38 | I93: FALSE | J93: Indice com base na composição ED-48552 - do SBC
A94: SINAPI | B94: 102990 | C94: =PROPER(IF(H94="i",VLOOKUP(B94,'Ins SINAPI 06-2025 Onerado'!$B$11:$F$50003,2,0),VLOOKUP(B94,'Comp SINAPI 06-2025 Onerado'!$B$11:$C$49969,2,0))) -> Canaleta Meia Cana Pré-Moldada De Concreto (D = 30 Cm) - Fornecimento E Instalação. Af_05/2025 | D94: =IF(H94="i",VLOOKUP(B94,'Ins SINAPI 06-2025 Onerado'!$B$11:$F$50003,2,0),VLOOKUP(B94,'Comp SINAPI 06-2025 Onerado'!$B$11:$H$49969,3,0)) -> M | E94: 1 | F94: =IF(H94="i",VLOOKUP(B94,'Ins SINAPI 06-2025 Onerado'!$B$11:$F$50003,5,0),VLOOKUP(B94,'Comp SINAPI 06-2025 Onerado'!$B$11:$E$49969,4,0)) -> 46.45 | G94: =TRUNC(E94*F94,2) -> 46.45 | H94: ca | I94: TRUE
A95: SINAPI | B95: 100946 | C95: =PROPER(IF(H95="i",VLOOKUP(B95,'Ins SINAPI 06-2025 Onerado'!$B$11:$F$50003,2,0),VLOOKUP(B95,'Comp SINAPI 06-2025 Onerado'!$B$11:$C$49969,2,0))) -> Transporte Com Caminhão Carroceria 9T, Em Via Urbana Em Revestimento Primário (Unidade: Txkm). Af_07/2020 | D95: =IF(H95="i",VLOOKUP(B95,'Ins SINAPI 06-2025 Onerado'!$B$11:$F$50003,2,0),VLOOKUP(B95,'Comp SINAPI 06-2025 Onerado'!$B$11:$H$49969,3,0)) -> TXKM | E95: =0.052*'Memorial de cálculo'!H8 -> 1.09304 | F95: =IF(H95="i",VLOOKUP(B95,'Ins SINAPI 06-2025 Onerado'!$B$11:$F$50003,5,0),VLOOKUP(B95,'Comp SINAPI 06-2025 Onerado'!$B$11:$E$49969,4,0)) -> 2.43 | G95: 2.65 | H95: ca | I95: TRUE | J95: considerando 52 kg por metro de canaleta
A96: SINAPI | B96: 100947 | C96: =PROPER(IF(H96="i",VLOOKUP(B96,'Ins SINAPI 06-2025 Onerado'!$B$11:$F$50003,2,0),VLOOKUP(B96,'Comp SINAPI 06-2025 Onerado'!$B$11:$C$49969,2,0))) -> Transporte Com Caminhão Carroceria 9T, Em Via Urbana Pavimentada, Dmt Até 30Km (Unidade: Txkm). Af_07/2020 | D96: =IF(H96="i",VLOOKUP(B96,'Ins SINAPI 06-2025 Onerado'!$B$11:$F$50003,2,0),VLOOKUP(B96,'Comp SINAPI 06-2025 Onerado'!$B$11:$H$49969,3,0)) -> TXKM | E96: =0.052*30 -> 1.56 | F96: =IF(H96="i",VLOOKUP(B96,'Ins SINAPI 06-2025 Onerado'!$B$11:$F$50003,5,0),VLOOKUP(B96,'Comp SINAPI 06-2025 Onerado'!$B$11:$E$49969,4,0)) -> 2.24 | G96: 3.49 | H96: ca | I96: TRUE
A97: SINAPI | B97: 100948 | C97: =PROPER(IF(H97="i",VLOOKUP(B97,'Ins SINAPI 06-2025 Onerado'!$B$11:$F$50003,2,0),VLOOKUP(B97,'Comp SINAPI 06-2025 Onerado'!$B$11:$C$49969,2,0))) -> Transporte Com Caminhão Carroceria 9T, Em Via Urbana Pavimentada, Adicional Para Dmt Excedente A 30 Km (Unidade: Txkm). Af_07/2020 | D97: =IF(H97="i",VLOOKUP(B97,'Ins SINAPI 06-2025 Onerado'!$B$11:$F$50003,2,0),VLOOKUP(B97,'Comp SINAPI 06-2025 Onerado'!$B$11:$H$49969,3,0)) -> TXKM | E97: =0.052*('Memorial de cálculo'!H7-30) -> 7.1396 | F97: =IF(H97="i",VLOOKUP(B97,'Ins SINAPI 06-2025 Onerado'!$B$11:$F$50003,5,0),VLOOKUP(B97,'Comp SINAPI 06-2025 Onerado'!$B$11:$E$49969,4,0)) -> 0.89 | G97: 6.35 | H97: ca | I97: TRUE
A98: PRÓPRIA | B98: CODE | C98: Hospedagem | D98: un | E98: ='Memorial de cálculo'!D55*'Memorial de cálculo'!G55+'Memorial de cálculo'!D56*'Memorial de cálculo'!H56 -> 0.31635 | F98: ='CPU HOSPEDAGEM'!$C$19 -> 192.3545076 | G98: 60.85 | H98: ca | I98: TRUE
A99: PRÓPRIA | B99: CODE | C99: Veículo tipo pick-up, cabine dupla - 2.0 16V 4x4 diesel Aut. | D99: dia | E99: =LARGE('Memorial de cálculo'!H55:H56,1) -> 0.03515 | F99: ='CPU-VEICULO_PickUp'!$C$11 -> 387.6106724 | G99: 13.62 | H99: ca | I99: TRUE
A100: =B88 -> CPU.08 | C100: MÃO DE OBRA | G100: 0 | H100: mdo | I100: FALSE
I101: FALSE
B102: CPU.09 | C102: Entrada para descida d'água | D102: un | E102: 1 | G102: =SUM(G110,G105,G104,G103) -> 177.89 | H102: S | I102: FALSE
A103: =B110 | C103: MATERIAL | G103: 0 | H103: ss | I103: FALSE
A104: =B102 -> CPU.09 | C104: EQUIPAMENTOS | G104: 0 | H104: ss | I104: FALSE
A105: =B102 -> CPU.09 | C105: SERVIÇOS | G105: =SUM(G106:G109) -> 177.89 | H105: ss | I105: FALSE
A106: SINAPI | B106: 94964 | C106: =PROPER(IF(H106="i",VLOOKUP(B106,'Ins SINAPI 06-2025 Onerado'!$B$11:$F$50003,2,0),VLOOKUP(B106,'Comp SINAPI 06-2025 Onerado'!$B$11:$C$49969,2,0))) -> Concreto Fck = 20Mpa, Traço 1:2,7:3 (Em Massa Seca De Cimento/ Areia Média/ Brita 1) - Preparo Mecânico Com Betoneira 400 L. Af_05/2021 | D106: =IF(H106="i",VLOOKUP(B106,'Ins SINAPI 06-2025 Onerado'!$B$11:$F$50003,2,0),VLOOKUP(B106,'Comp SINAPI 06-2025 Onerado'!$B$11:$H$49969,3,0)) -> M3 | E106: =2*1*0.3*0.1 -> 0.06 | F106: =IF(H106="i",VLOOKUP(B106,'Ins SINAPI 06-2025 Onerado'!$B$11:$F$50003,5,0),VLOOKUP(B106,'Comp SINAPI 06-2025 Onerado'!$B$11:$E$49969,4,0)) -> 553.78 | G106: =TRUNC(E106*F106,2) -> 33.22 | H106: ca | I106: TRUE | J106: comprimento 1 m, altura 0,30 m e espessura 0,10 m
A107: SINAPI | B107: 92268 | C107: =PROPER(IF(H107="i",VLOOKUP(B107,'Ins SINAPI 06-2025 Onerado'!$B$11:$F$50003,2,0),VLOOKUP(B107,'Comp SINAPI 06-2025 Onerado'!$B$11:$C$49969,2,0))) -> Fabricação De Fôrma Para Lajes, Em Chapa De Madeira Compensada Plastificada, E = 18 Mm. Af_09/2020 | D107: =IF(H107="i",VLOOKUP(B107,'Ins SINAPI 06-2025 Onerado'!$B$11:$F$50003,2,0),VLOOKUP(B107,'Comp SINAPI 06-2025 Onerado'!$B$11:$H$49969,3,0)) -> M2 | E107: =2*1*0.3 -> 0.6 | F107: =IF(H107="i",VLOOKUP(B107,'Ins SINAPI 06-2025 Onerado'!$B$11:$F$50003,5,0),VLOOKUP(B107,'Comp SINAPI 06-2025 Onerado'!$B$11:$E$49969,4,0)) -> 76.42 | G107: =TRUNC(E107*F107,2) -> 45.85 | H107: ca | I107: TRUE | J107: comprimento 1 m, altura 0,30 m
A108: PRÓPRIA | B108: CODE | C108: Hospedagem | D108: un | E108: ='Memorial de cálculo'!D63*'Memorial de cálculo'!H63+'Memorial de cálculo'!D64*'Memorial de cálculo'!H64+'Memorial de cálculo'!D60*'Memorial de cálculo'!H60+'Memorial de cálculo'!D61*'Memorial de cálculo'!H61 -> 0.2330095 | F108: ='CPU HOSPEDAGEM'!$C$19 -> 192.3545076 | G108: =TRUNC(E108*F108,2) -> 44.82 | H108: ca | I108: TRUE
A109: PRÓPRIA | B109: CODE | C109: Veículo tipo pick-up, cabine dupla - 2.0 16V 4x4 diesel Aut. | D109: dia | E109: =LARGE('Memorial de cálculo'!H60:H64,1) -> 0.1393315 | F109: ='CPU-VEICULO_PickUp'!$C$11 -> 387.6106724 | G109: =TRUNC(E109*F109,2) -> 54 | H109: ca | I109: TRUE
A110: =B102 -> CPU.09 | C110: MÃO DE OBRA | G110: 0 | H110: mdo | I110: FALSE
I111: FALSE
B112: CPU.10 | C112: Plantio de vegetação para proteção de talude com hidrossemeadura, inclusive adubação e transporte | D112: m2 | E112: 1 | G112: =SUM(G121,G115,G114,G113) -> 10.26 | H112: S | I112: FALSE
A113: =B120 | C113: MATERIAL | G113: 0 | H113: ss | I113: FALSE
A114: =B112 -> CPU.10 | C114: EQUIPAMENTOS | G114: 0 | H114: ss | I114: FALSE
A115: =B112 -> CPU.10 | C115: SERVIÇOS | G115: =SUM(G116:G120) -> 10.26 | H115: ss | I115: FALSE
A116: SICRO | B116: 4413905 | C116: Hidrossemeadura | D116: M2 | E116: 1 | F116: 6.9 | G116: =TRUNC(E116*F116,2) -> 6.9 | H116: ca | I116: FALSE
A117: SINAPI | B117: 100946 | C117: =PROPER(IF(H117="i",VLOOKUP(B117,'Ins SINAPI 06-2025 Onerado'!$B$11:$F$50003,2,0),VLOOKUP(B117,'Comp SINAPI 06-2025 Onerado'!$B$11:$C$49969,2,0))) -> Transporte Com Caminhão Carroceria 9T, Em Via Urbana Em Revestimento Primário (Unidade: Txkm). Af_07/2020 | D117: =IF(H117="i",VLOOKUP(B117,'Ins SINAPI 06-2025 Onerado'!$B$11:$F$50003,2,0),VLOOKUP(B117,'Comp SINAPI 06-2025 Onerado'!$B$11:$H$49969,3,0)) -> TXKM | E117: =13*0.02 -> 0.26 | F117: =IF(H117="i",VLOOKUP(B117,'Ins SINAPI 06-2025 Onerado'!$B$11:$F$50003,5,0),VLOOKUP(B117,'Comp SINAPI 06-2025 Onerado'!$B$11:$E$49969,4,0)) -> 2.43 | G117: 0.63 | H117: ca | I117: TRUE
A118: SINAPI | B118: 100947 | C118: =PROPER(IF(H118="i",VLOOKUP(B118,'Ins SINAPI 06-2025 Onerado'!$B$11:$F$50003,2,0),VLOOKUP(B118,'Comp SINAPI 06-2025 Onerado'!$B$11:$C$49969,2,0))) -> Transporte Com Caminhão Carroceria 9T, Em Via Urbana Pavimentada, Dmt Até 30Km (Unidade: Txkm). Af_07/2020 | D118: =IF(H118="i",VLOOKUP(B118,'Ins SINAPI 06-2025 Onerado'!$B$11:$F$50003,2,0),VLOOKUP(B118,'Comp SINAPI 06-2025 Onerado'!$B$11:$H$49969,3,0)) -> TXKM | E118: =30*0.02 -> 0.6 | F118: =IF(H118="i",VLOOKUP(B118,'Ins SINAPI 06-2025 Onerado'!$B$11:$F$50003,5,0),VLOOKUP(B118,'Comp SINAPI 06-2025 Onerado'!$B$11:$E$49969,4,0)) -> 2.24 | G118: 1.34 | H118: ca | I118: TRUE | L118: Distância para jacobina 43 km
A119: PRÓPRIA | B119: CODE | C119: Hospedagem | D119: un | E119: ='Memorial de cálculo'!D68*'Memorial de cálculo'!H68 -> 0.002409638554 | F119: ='CPU HOSPEDAGEM'!$C$19 -> 192.3545076 | G119: 0.46 | H119: ca | I119: TRUE
A120: PRÓPRIA | B120: CODE | C120: Veículo tipo pick-up, cabine dupla - 2.0 16V 4x4 diesel Aut. | D120: dia | E120: =LARGE('Memorial de cálculo'!H68:H68,1) -> 0.002409638554 | F120: ='CPU-VEICULO_PickUp'!$C$11 -> 387.6106724 | G120: 0.93 | H120: ca | I120: TRUE
A121: =B112 -> CPU.10 | C121: MÃO DE OBRA | G121: 0 | H121: mdo | I121: FALSE
I122: FALSE
B123: CPU.11 | C123: Apicoamento da superfície | D123: m2 | E123: 1 | G123: =SUM(G133,G126,G125,G124) -> 33.92 | H123: S | I123: FALSE
A124: =B133 | C124: MATERIAL | G124: 0 | H124: ss | I124: FALSE
A125: =B123 -> CPU.11 | C125: EQUIPAMENTOS | G125: 0 | H125: ss | I125: FALSE
A126: =B123 -> CPU.11 | C126: SERVIÇOS | G126: =SUM(G127:G132) -> 33.92 | H126: ss | I126: FALSE
A127: SINAPI | B127: 97631 | C127: =PROPER(IF(H127="i",VLOOKUP(B127,'Ins SINAPI 06-2025 Onerado'!$B$11:$F$50003,2,0),VLOOKUP(B127,'Comp SINAPI 06-2025 Onerado'!$B$11:$C$49969,2,0))) -> Demolição De Argamassas, De Forma Manual, Sem Reaproveitamento. Af_09/2023 | D127: =IF(H127="i",VLOOKUP(B127,'Ins SINAPI 06-2025 Onerado'!$B$11:$F$50003,2,0),VLOOKUP(B127,'Comp SINAPI 06-2025 Onerado'!$B$11:$H$49969,3,0)) -> M2 | E127: =0.05*15 -> 0.75 | F127: =IF(H127="i",VLOOKUP(B127,'Ins SINAPI 06-2025 Onerado'!$B$11:$F$50003,5,0),VLOOKUP(B127,'Comp SINAPI 06-2025 Onerado'!$B$11:$E$49969,4,0)) -> 13.28 | G127: =TRUNC(E127*F127,2) -> 9.96 | H127: ca | I127: TRUE
A128: SINAPI | B128: 93589 | C128: =PROPER(IF(H128="i",VLOOKUP(B128,'Ins SINAPI 06-2025 Onerado'!$B$11:$F$50003,2,0),VLOOKUP(B128,'Comp SINAPI 06-2025 Onerado'!$B$11:$C$49969,2,0))) -> Transporte Com Caminhão Basculante De 10 M³, Em Via Urbana Em Revestimento Primário (Unidade: M3Xkm). Af_07/2020 | D128: =IF(H128="i",VLOOKUP(B128,'Ins SINAPI 06-2025 Onerado'!$B$11:$F$50003,2,0),VLOOKUP(B128,'Comp SINAPI 06-2025 Onerado'!$B$11:$H$49969,3,0)) -> M3XKM | E128: =0.05*15 -> 0.75 | F128: =IF(H128="i",VLOOKUP(B128,'Ins SINAPI 06-2025 Onerado'!$B$11:$F$50003,5,0),VLOOKUP(B128,'Comp SINAPI 06-2025 Onerado'!$B$11:$E$49969,4,0)) -> 2.65 | G128: 1.98 | H128: ca | I128: TRUE | K128: considerando 5 cm de entulho e 15 km para bota-fora
A129: SINAPI | B129: 95875 | C129: =PROPER(IF(H129="i",VLOOKUP(B129,'Ins SINAPI 06-2025 Onerado'!$B$11:$F$50003,2,0),VLOOKUP(B129,'Comp SINAPI 06-2025 Onerado'!$B$11:$C$49969,2,0))) -> Transporte Com Caminhão Basculante De 10 M³, Em Via Urbana Pavimentada, Dmt Até 30 Km (Unidade: M3Xkm). Af_07/2020 | D129: =IF(H129="i",VLOOKUP(B129,'Ins SINAPI 06-2025 Onerado'!$B$11:$F$50003,2,0),VLOOKUP(B129,'Comp SINAPI 06-2025 Onerado'!$B$11:$H$49969,3,0)) -> M3XKM | E129: =0.05*15 -> 0.75 | F129: =IF(H129="i",VLOOKUP(B129,'Ins SINAPI 06-2025 Onerado'!$B$11:$F$50003,5,0),VLOOKUP(B129,'Comp SINAPI 06-2025 Onerado'!$B$11:$E$49969,4,0)) -> 2.45 | G129: 1.83 | H129: ca | I129: TRUE | K129: considerando 5 cm de entulho e 15 km para bota-fora
A130: SINAPI | B130: 95875 | C130: =PROPER(IF(H130="i",VLOOKUP(B130,'Ins SINAPI 06-2025 Onerado'!$B$11:$F$50003,2,0),VLOOKUP(B130,'Comp SINAPI 06-2025 Onerado'!$B$11:$C$49969,2,0))) -> Transporte Com Caminhão Basculante De 10 M³, Em Via Urbana Pavimentada, Dmt Até 30 Km (Unidade: M3Xkm). Af_07/2020 | D130: =IF(H130="i",VLOOKUP(B130,'Ins SINAPI 06-2025 Onerado'!$B$11:$F$50003,2,0),VLOOKUP(B130,'Comp SINAPI 06-2025 Onerado'!$B$11:$H$49969,3,0)) -> M3XKM | E130: =0.05*15 -> 0.75 | F130: =IF(H130="i",VLOOKUP(B130,'Ins SINAPI 06-2025 Onerado'!$B$11:$F$50003,5,0),VLOOKUP(B130,'Comp SINAPI 06-2025 Onerado'!$B$11:$E$49969,4,0)) -> 2.45 | G130: 1.83 | H130: ca | I130: TRUE | K130: considerando 5 cm de entulho e 15 km para bota-fora
A131: PRÓPRIA | B131: CODE | C131: Hospedagem | D131: un | E131: ='Memorial de cálculo'!D72*'Memorial de cálculo'!H72+'Memorial de cálculo'!D73*'Memorial de cálculo'!H73 -> 0.0627875 | F131: ='CPU HOSPEDAGEM'!$C$19 -> 192.3545076 | G131: 12.07 | H131: ca | I131: TRUE
A132: PRÓPRIA | B132: CODE | C132: Veículo tipo pick-up, cabine dupla - 2.0 16V 4x4 diesel Aut. | D132: dia | E132: =LARGE('Memorial de cálculo'!H72:H73,1) -> 0.01613333333 | F132: ='CPU-VEICULO_PickUp'!$C$11 -> 387.6106724 | G132: 6.25 | H132: ca | I132: TRUE
A133: =B123 -> CPU.11 | C133: MÃO DE OBRA | G133: 0 | H133: mdo | I133: FALSE
I134: FALSE
B135: CPU.12 | C135: Enrocamento ARCO tipo rachão reciclado cinza classe A jogado com fornecimento | D135: m3 | E135: 1 | G135: =SUM(G146,G139,G138,G136) -> 297.13 | H135: S | I135: FALSE
A136: =B135 -> CPU.12 | C136: MATERIAL | G136: =SUM(G137) -> 60 | H136: ss | I136: FALSE
A137: SINAPI | B137: 40553 | C137: =PROPER(IF(H137="i",VLOOKUP(B137,'Ins SINAPI 06-2025 Onerado'!$B$11:$F$50003,2,0),VLOOKUP(B137,'Comp SINAPI 06-2025 Onerado'!$G$11:$H$49969,2,0))) -> Agregado Reciclado, Tipo Rachao Reciclado Cinza, Classe A | D137: =IF(H137="i",VLOOKUP(B137,'Ins SINAPI 06-2025 Onerado'!$B$11:$F$50003,3,0),VLOOKUP(B137,'Comp SINAPI 06-2025 Onerado'!$G$11:$H$49969,3,0)) -> M3 | E137: 1 | F137: =IF(H137="i",VLOOKUP(B137,'Ins SINAPI 06-2025 Onerado'!$B$11:$F$50003,5,0),VLOOKUP(B137,'Comp SINAPI 06-2025 Onerado'!$B$11:$E$49969,4,0)) -> 60 | G137: =TRUNC(E137*F137,2) -> 60 | H137: i | I137: TRUE
A138: =B135 -> CPU.12 | C138: EQUIPAMENTOS | G138: 0 | H138: ss | I138: FALSE
A139: =B135 -> CPU.12 | C139: SERVIÇOS | G139: =SUM(G140:G145) -> 236.56 | H139: ss | I139: FALSE
A140: SINAPI | B140: 93592 | C140: =PROPER(IF(H140="i",VLOOKUP(B140,'Ins SINAPI 06-2025 Onerado'!$B$11:$F$50003,2,0),VLOOKUP(B140,'Comp SINAPI 06-2025 Onerado'!$B$11:$C$49969,2,0))) -> Transporte Com Caminhão Basculante De 14 M³, Em Via Urbana Em Revestimento Primário (Unidade: M3Xkm). Af_07/2020 | D140: =IF(H140="i",VLOOKUP(B140,'Ins SINAPI 06-2025 Onerado'!$B$11:$F$50003,2,0),VLOOKUP(B140,'Comp SINAPI 06-2025 Onerado'!$B$11:$H$49969,3,0)) -> M3XKM | E140: ='Memorial de cálculo'!H8 -> 21.02 | F140: =IF(H140="i",VLOOKUP(B140,'Ins SINAPI 06-2025 Onerado'!$B$11:$F$50003,5,0),VLOOKUP(B140,'Comp SINAPI 06-2025 Onerado'!$B$11:$E$49969,4,0)) -> 2.32 | G140: =TRUNC(E140*F140,2) -> 48.76 | H140: ca | I140: TRUE
A141: SINAPI | B141: 95876 | C141: =PROPER(IF(H141="i",VLOOKUP(B141,'Ins SINAPI 06-2025 Onerado'!$B$11:$F$50003,2,0),VLOOKUP(B141,'Comp SINAPI 06-2025 Onerado'!$B$11:$C$49969,2,0))) -> Transporte Com Caminhão Basculante De 14 M³, Em Via Urbana Pavimentada, Dmt Até 30 Km (Unidade: M3Xkm). Af_07/2020 | D141: =IF(H141="i",VLOOKUP(B141,'Ins SINAPI 06-2025 Onerado'!$B$11:$F$50003,2,0),VLOOKUP(B141,'Comp SINAPI 06-2025 Onerado'!$B$11:$H$49969,3,0)) -> M3XKM | E141: 30 | F141: =IF(H141="i",VLOOKUP(B141,'Ins SINAPI 06-2025 Onerado'!$B$11:$F$50003,5,0),VLOOKUP(B141,'Comp SINAPI 06-2025 Onerado'!$B$11:$E$49969,4,0)) -> 2.1 | G141: 63 | H141: ca | I141: TRUE
A142: SINAPI | B142: 93593 | C142: =PROPER(IF(H142="i",VLOOKUP(B142,'Ins SINAPI 06-2025 Onerado'!$B$11:$F$50003,2,0),VLOOKUP(B142,'Comp SINAPI 06-2025 Onerado'!$B$11:$C$49969,2,0))) -> Transporte Com Caminhão Basculante De 14 M³, Em Via Urbana Pavimentada, Adicional Para Dmt Excedente A 30 Km (Unidade: M3Xkm). Af_07/2020 | D142: =IF(H142="i",VLOOKUP(B142,'Ins SINAPI 06-2025 Onerado'!$B$11:$F$50003,2,0),VLOOKUP(B142,'Comp SINAPI 06-2025 Onerado'!$B$11:$H$49969,3,0)) -> M3XKM | E142: ='Memorial de cálculo'!H7-30 -> 137.3 | F142: =IF(H142="i",VLOOKUP(B142,'Ins SINAPI 06-2025 Onerado'!$B$11:$F$50003,5,0),VLOOKUP(B142,'Comp SINAPI 06-2025 Onerado'!$B$11:$E$49969,4,0)) -> 0.84 | G142: 115.33 | H142: ca | I142: TRUE
A143: SINAPI | B143: 100976 | C143: =PROPER(IF(H143="i",VLOOKUP(B143,'Ins SINAPI 06-2025 Onerado'!$B$11:$F$50003,2,0),VLOOKUP(B143,'Comp SINAPI 06-2025 Onerado'!$B$11:$C$49969,2,0))) -> Carga, Manobra E Descarga De Solos E Materiais Granulares Em Caminhão Basculante 18 M³ - Carga Com Pá Carregadeira (Caçamba De 1,7 A 2,8 M³ / 128 Hp) E Descarga Livre (Unidade: M3). Af_07/2020 | D143: =IF(H143="i",VLOOKUP(B143,'Ins SINAPI 06-2025 Onerado'!$B$11:$F$50003,2,0),VLOOKUP(B143,'Comp SINAPI 06-2025 Onerado'!$B$11:$H$49969,3,0)) -> M3 | E143: 1 | F143: =IF(H143="i",VLOOKUP(B143,'Ins SINAPI 06-2025 Onerado'!$B$11:$F$50003,5,0),VLOOKUP(B143,'Comp SINAPI 06-2025 Onerado'!$B$11:$E$49969,4,0)) -> 8.51 | G143: 8.51 | H143: ca | I143: TRUE
A144: PRÓPRIA | B144: CODE | C144: Hospedagem | D144: un | E144: ='Memorial de cálculo'!D77*'Memorial de cálculo'!H77+'Memorial de cálculo'!D78*'Memorial de cálculo'!H78 -> 0.0025 | F144: ='CPU HOSPEDAGEM'!$C$19 -> 192.3545076 | G144: 0.48 | H144: ca | I144: TRUE
A145: PRÓPRIA | B145: CODE | C145: Veículo tipo pick-up, cabine dupla - 2.0 16V 4x4 diesel Aut. | D145: dia | E145: =LARGE('Memorial de cálculo'!H77:H78,1) -> 0.00125 | F145: ='CPU-VEICULO_PickUp'!$C$11 -> 387.6106724 | G145: 0.48 | H145: ca | I145: =_xlfn.ISFORMULA(F145) -> TRUE
A146: =B135 -> CPU.12 | C146: MÃO DE OBRA | G146: =SUM(G147:G148) -> 0.57 | H146: mdo | I146: FALSE
A147: SINAPI | B147: 88309 | C147: =PROPER(IF(H147="i",VLOOKUP(B147,'Ins SINAPI 06-2025 Onerado'!$B$11:$F$50003,2,0),VLOOKUP(B147,'Comp SINAPI 06-2025 Onerado'!$B$11:$C$49969,2,0))) -> Pedreiro Com Encargos Complementares | D147: =IF(H147="i",VLOOKUP(B147,'Ins SINAPI 06-2025 Onerado'!$B$11:$F$50003,2,0),VLOOKUP(B147,'Comp SINAPI 06-2025 Onerado'!$B$11:$H$49969,3,0)) -> H | E147: 0.01 | F147: =IF(H147="i",VLOOKUP(B147,'Ins SINAPI 06-2025 Onerado'!$B$11:$F$50003,5,0),VLOOKUP(B147,'Comp SINAPI 06-2025 Onerado'!$B$11:$E$49969,4,0)) -> 33.52 | G147: 0.33 | H147: ca | I147: TRUE
A148: SINAPI | B148: 88316 | C148: =PROPER(IF(H148="i",VLOOKUP(B148,'Ins SINAPI 06-2025 Onerado'!$B$11:$F$50003,2,0),VLOOKUP(B148,'Comp SINAPI 06-2025 Onerado'!$B$11:$C$49969,2,0))) -> Servente Com Encargos Complementares | D148: =IF(H148="i",VLOOKUP(B148,'Ins SINAPI 06-2025 Onerado'!$B$11:$F$50003,2,0),VLOOKUP(B148,'Comp SINAPI 06-2025 Onerado'!$B$11:$H$49969,3,0)) -> H | E148: 0.01 | F148: =IF(H148="i",VLOOKUP(B148,'Ins SINAPI 06-2025 Onerado'!$B$11:$F$50003,5,0),VLOOKUP(B148,'Comp SINAPI 06-2025 Onerado'!$B$11:$E$49969,4,0)) -> 24.37 | G148: 0.24 | H148: ca | I148: TRUE
I149: FALSE
B150: CPU.13 | C150: Recomposição das erosões, inclusive, regularização da superfície e reaterro | D150: m3 | E150: 1 | G150: =SUM(G166,G154,G153,G151) -> 323.93 | H150: S | I150: FALSE
A151: =B150 -> CPU.13 | C151: MATERIAL | G151: =SUM(G152) -> 54.26 | H151: ss | I151: FALSE
A152: SINAPI | B152: 6081 | C152: =PROPER(IF(H152="i",VLOOKUP(B152,'Ins SINAPI 06-2025 Onerado'!$B$11:$F$50003,2,0),VLOOKUP(B152,'Comp SINAPI 06-2025 Onerado'!$G$11:$H$49969,2,0))) -> Argila Ou Barro Para Aterro/Reaterro (Com Transporte Ate 10 Km) | D152: =IF(H152="i",VLOOKUP(B152,'Ins SINAPI 06-2025 Onerado'!$B$11:$F$50003,3,0),VLOOKUP(B152,'Comp SINAPI 06-2025 Onerado'!$G$11:$H$49969,3,0)) -> M3 | E152: 1 | F152: =IF(H152="i",VLOOKUP(B152,'Ins SINAPI 06-2025 Onerado'!$B$11:$F$50003,5,0),VLOOKUP(B152,'Comp SINAPI 06-2025 Onerado'!$G$11:$H$49969,5,0)) -> 54.26 | G152: =TRUNC(E152*F152,2) -> 54.26 | H152: i | I152: TRUE
A153: =B150 -> CPU.13 | C153: EQUIPAMENTOS | G153: 0 | H153: ss | I153: FALSE
A154: =B150 -> CPU.13 | C154: SERVIÇOS | G154: =SUM(G155:G165) -> 269.67 | H154: ss | I154: FALSE
A155: SINAPI | B155: 101230 | C155: =PROPER(IF(H155="i",VLOOKUP(B155,'Ins SINAPI 06-2025 Onerado'!$B$11:$F$50003,2,0),VLOOKUP(B155,'Comp SINAPI 06-2025 Onerado'!$B$11:$C$49969,2,0))) -> Escavação Vertical Para Infraestrutura, Com Carga, Descarga E Transporte De Solo De 1ª Categoria, Com Escavadeira Hidráulica (Caçamba: 0,8 M³ / 111 Hp), Frota De 3 Caminhões Basculantes De 14 M³, Dmt Até 1 Km E Velocidade Média14 Km/H. Af_05/2020 | D155: =IF(H155="i",VLOOKUP(B155,'Ins SINAPI 06-2025 Onerado'!$B$11:$F$50003,2,0),VLOOKUP(B155,'Comp SINAPI 06-2025 Onerado'!$B$11:$H$49969,3,0)) -> M3 | E155: 0.1 | F155: =IF(H155="i",VLOOKUP(B155,'Ins SINAPI 06-2025 Onerado'!$B$11:$F$50003,5,0),VLOOKUP(B155,'Comp SINAPI 06-2025 Onerado'!$B$11:$E$49969,4,0)) -> 11.03 | G155: =TRUNC(E155*F155,2) -> 1.1 | H155: ca | I155: TRUE | J155: Preparação da superfície 10%
A156: SINAPI | B156: 93589 | C156: =PROPER(IF(H156="i",VLOOKUP(B156,'Ins SINAPI 06-2025 Onerado'!$B$11:$F$50003,2,0),VLOOKUP(B156,'Comp SINAPI 06-2025 Onerado'!$B$11:$C$49969,2,0))) -> Transporte Com Caminhão Basculante De 10 M³, Em Via Urbana Em Revestimento Primário (Unidade: M3Xkm). Af_07/2020 | D156: =IF(H156="i",VLOOKUP(B156,'Ins SINAPI 06-2025 Onerado'!$B$11:$F$50003,2,0),VLOOKUP(B156,'Comp SINAPI 06-2025 Onerado'!$B$11:$H$49969,3,0)) -> M3XKM | E156: ='Memorial de cálculo'!$H$8-10 -> 11.02 | F156: =IF(H156="i",VLOOKUP(B156,'Ins SINAPI 06-2025 Onerado'!$B$11:$F$50003,5,0),VLOOKUP(B156,'Comp SINAPI 06-2025 Onerado'!$B$11:$E$49969,4,0)) -> 2.65 | G156: 29.2 | H156: ca | I156: TRUE | J156: Transporte da argila
A157: SINAPI | B157: 95875 | C157: =PROPER(IF(H157="i",VLOOKUP(B157,'Ins SINAPI 06-2025 Onerado'!$B$11:$F$50003,2,0),VLOOKUP(B157,'Comp SINAPI 06-2025 Onerado'!$B$11:$C$49969,2,0))) -> Transporte Com Caminhão Basculante De 10 M³, Em Via Urbana Pavimentada, Dmt Até 30 Km (Unidade: M3Xkm). Af_07/2020 | D157: =IF(H157="i",VLOOKUP(B157,'Ins SINAPI 06-2025 Onerado'!$B$11:$F$50003,2,0),VLOOKUP(B157,'Comp SINAPI 06-2025 Onerado'!$B$11:$H$49969,3,0)) -> M3XKM | E157: =30 -> 30 | F157: =IF(H157="i",VLOOKUP(B157,'Ins SINAPI 06-2025 Onerado'!$B$11:$F$50003,5,0),VLOOKUP(B157,'Comp SINAPI 06-2025 Onerado'!$B$11:$E$49969,4,0)) -> 2.45 | G157: 73.5 | H157: ca | I157: TRUE
A158: SINAPI | B158: 93590 | C158: =PROPER(IF(H158="i",VLOOKUP(B158,'Ins SINAPI 06-2025 Onerado'!$B$11:$F$50003,2,0),VLOOKUP(B158,'Comp SINAPI 06-2025 Onerado'!$B$11:$C$49969,2,0))) -> Transporte Com Caminhão Basculante De 10 M³, Em Via Urbana Pavimentada, Adicional Para Dmt Excedente A 30 Km (Unidade: M3Xkm). Af_07/2020 | D158: =IF(H158="i",VLOOKUP(B158,'Ins SINAPI 06-2025 Onerado'!$B$11:$F$50003,2,0),VLOOKUP(B158,'Comp SINAPI 06-2025 Onerado'!$B$11:$H$49969,3,0)) -> M3XKM | E158: ='Memorial de cálculo'!$H$7-30 -> 137.3 | F158: =IF(H158="i",VLOOKUP(B158,'Ins SINAPI 06-2025 Onerado'!$B$11:$F$50003,5,0),VLOOKUP(B158,'Comp SINAPI 06-2025 Onerado'!$B$11:$E$49969,4,0)) -> 0.96 | G158: 131.8 | H158: ca | I158: TRUE
A159: SINAPI | B159: 100976 | C159: =PROPER(IF(H159="i",VLOOKUP(B159,'Ins SINAPI 06-2025 Onerado'!$B$11:$F$50003,2,0),VLOOKUP(B159,'Comp SINAPI 06-2025 Onerado'!$B$11:$C$49969,2,0))) -> Carga, Manobra E Descarga De Solos E Materiais Granulares Em Caminhão Basculante 18 M³ - Carga Com Pá Carregadeira (Caçamba De 1,7 A 2,8 M³ / 128 Hp) E Descarga Livre (Unidade: M3). Af_07/2020 | D159: =IF(H159="i",VLOOKUP(B159,'Ins SINAPI 06-2025 Onerado'!$B$11:$F$50003,2,0),VLOOKUP(B159,'Comp SINAPI 06-2025 Onerado'!$B$11:$H$49969,3,0)) -> M3 | E159: 1 | F159: =IF(H159="i",VLOOKUP(B159,'Ins SINAPI 06-2025 Onerado'!$B$11:$F$50003,5,0),VLOOKUP(B159,'Comp SINAPI 06-2025 Onerado'!$B$11:$E$49969,4,0)) -> 8.51 | G159: 8.51 | H159: ca | I159: TRUE
A160: SINAPI | B160: 100951 | C160: =PROPER(IF(H160="i",VLOOKUP(B160,'Ins SINAPI 06-2025 Onerado'!$B$11:$F$50003,2,0),VLOOKUP(B160,'Comp SINAPI 06-2025 Onerado'!$B$11:$C$49969,2,0))) -> Transporte Com Caminhão Carroceria Com Guindauto (Munck), Momento Máximo De Carga 11,7 Tm, Em Via Urbana Em Revestimento Primário (Unidade: Txkm). Af_07/2020 | D160: =IF(H160="i",VLOOKUP(B160,'Ins SINAPI 06-2025 Onerado'!$B$11:$F$50003,2,0),VLOOKUP(B160,'Comp SINAPI 06-2025 Onerado'!$B$11:$H$49969,3,0)) -> TXKM | E160: =1.5*'Memorial de cálculo'!$H$8*2/'Memorial de cálculo'!N81 -> 0.4671111111 | F160: =IF(H160="i",VLOOKUP(B160,'Ins SINAPI 06-2025 Onerado'!$B$11:$F$50003,5,0),VLOOKUP(B160,'Comp SINAPI 06-2025 Onerado'!$B$11:$E$49969,4,0)) -> 3.12 | G160: =TRUNC(E160*F160,2) -> 1.45 | H160: ca | I160: TRUE | J160: Tonelada da máquina | L160: 1.5
A161: SINAPI | B161: 100952 | C161: =PROPER(IF(H161="i",VLOOKUP(B161,'Ins SINAPI 06-2025 Onerado'!$B$11:$F$50003,2,0),VLOOKUP(B161,'Comp SINAPI 06-2025 Onerado'!$B$11:$C$49969,2,0))) -> Transporte Com Caminhão Carroceria Com Guindauto (Munck), Momento Máximo De Carga 11,7 Tm, Em Via Urbana Pavimentada, Dmt Até 30Km (Unidade: Txkm). Af_07/2020 | D161: =IF(H161="i",VLOOKUP(B161,'Ins SINAPI 06-2025 Onerado'!$B$11:$F$50003,2,0),VLOOKUP(B161,'Comp SINAPI 06-2025 Onerado'!$B$11:$H$49969,3,0)) -> TXKM | E161: =1.5*30*2/'Memorial de cálculo'!N81 -> 0.6666666667 | F161: =IF(H161="i",VLOOKUP(B161,'Ins SINAPI 06-2025 Onerado'!$B$11:$F$50003,5,0),VLOOKUP(B161,'Comp SINAPI 06-2025 Onerado'!$B$11:$E$49969,4,0)) -> 2.87 | G161: 1.91 | H161: ca | I161: TRUE | J161: Tonelada da máquina | L161: 1.5
A162: SINAPI | B162: 100953 | C162: =PROPER(IF(H162="i",VLOOKUP(B162,'Ins SINAPI 06-2025 Onerado'!$B$11:$F$50003,2,0),VLOOKUP(B162,'Comp SINAPI 06-2025 Onerado'!$B$11:$C$49969,2,0))) -> Transporte Com Caminhão Carroceria Com Guindauto (Munck), Momento Máximo De Carga 11,7 Tm, Em Via Urbana Pavimentada, Adicional Para Dmt Excedente A 30 Km (Unidade: Txkm). Af_07/2020 | D162: =IF(H162="i",VLOOKUP(B162,'Ins SINAPI 06-2025 Onerado'!$B$11:$F$50003,2,0),VLOOKUP(B162,'Comp SINAPI 06-2025 Onerado'!$B$11:$H$49969,3,0)) -> TXKM | E162: =1.5*('Memorial de cálculo'!$H$7-30)*2/'Memorial de cálculo'!N81 -> 3.051111111 | F162: =IF(H162="i",VLOOKUP(B162,'Ins SINAPI 06-2025 Onerado'!$B$11:$F$50003,5,0),VLOOKUP(B162,'Comp SINAPI 06-2025 Onerado'!$B$11:$E$49969,4,0)) -> 1.14 | G162: 3.47 | H162: ca | I162: TRUE | J162: Tonelada da máquina | L162: 1.5
A163: SINAPI | B163: 96385 | C163: =PROPER(IF(H163="i",VLOOKUP(B163,'Ins SINAPI 06-2025 Onerado'!$B$11:$F$50003,2,0),VLOOKUP(B163,'Comp SINAPI 06-2025 Onerado'!$B$11:$C$49969,2,0))) -> Execução E Compactação De Corpo De Aterro De Aterro (95% De Energia Do Proctor Normal) Com Solo Predominantemente Argiloso Espessura 15 Cm - Exclusive Material, Escavação, Carga E Transporte. Af_09/2024 | D163: =IF(H163="i",VLOOKUP(B163,'Ins SINAPI 06-2025 Onerado'!$B$11:$F$50003,2,0),VLOOKUP(B163,'Comp SINAPI 06-2025 Onerado'!$B$11:$H$49969,3,0)) -> M3 | E163: 1 | F163: =IF(H163="i",VLOOKUP(B163,'Ins SINAPI 06-2025 Onerado'!$B$11:$F$50003,5,0),VLOOKUP(B163,'Comp SINAPI 06-2025 Onerado'!$B$11:$E$49969,4,0)) -> 13.48 | G163: 13.48 | H163: ca | I163: TRUE
A164: COTAÇÃO | B164: CT.01 | C164: Hospedagem | D164: un | E164: ='Memorial de cálculo'!D82*'Memorial de cálculo'!H82+'Memorial de cálculo'!D83*'Memorial de cálculo'!H83+'Memorial de cálculo'!D84*'Memorial de cálculo'!H84 -> 0.0153585375 | F164: ='CPU HOSPEDAGEM'!$C$19 -> 192.3545076 | G164: 2.95 | H164: ca | I164: TRUE
A165: PRÓPRIA | B165: CODE | C165: Veículo tipo pick-up, cabine dupla - 2.0 16V 4x4 diesel Aut. | D165: dia | E165: =LARGE('Memorial de cálculo'!H82:H84,1) -> 0.0059586125 | F165: ='CPU-VEICULO_PickUp'!$C$11 -> 387.6106724 | G165: 2.3 | H165: ca | I165: TRUE
A166: =B150 -> CPU.13 | C166: MÃO DE OBRA | G166: 0 | H166: mdo | I166: FALSE
I167: FALSE
B168: CPU.14 | C168: Regularização e compactação | D168: m2 | E168: 1 | G168: =SUM(G175,G171,G170,G169) -> 3.72 | H168: S | I168: FALSE
A169: =B168 -> CPU.14 | C169: MATERIAL | G169: 0 | H169: ss | I169: FALSE
A170: =B168 -> CPU.14 | C170: EQUIPAMENTOS | G170: 0 | H170: ss | I170: FALSE
A171: =B168 -> CPU.14 | C171: SERVIÇOS | G171: =SUM(G172:G174) -> 3.72 | H171: ss | I171: FALSE
A172: SINAPI | B172: 100576 | C172: =PROPER(IF(H172="i",VLOOKUP(B172,'Ins SINAPI 06-2025 Onerado'!$B$11:$F$50003,2,0),VLOOKUP(B172,'Comp SINAPI 06-2025 Onerado'!$B$11:$C$49969,2,0))) -> Regularização E Compactação De Subleito De Solo Predominantemente Argiloso, Para Obras De Construção De Pavimentos. Af_09/2024 | D172: =IF(H172="i",VLOOKUP(B172,'Ins SINAPI 06-2025 Onerado'!$B$11:$F$50003,2,0),VLOOKUP(B172,'Comp SINAPI 06-2025 Onerado'!$B$11:$H$49969,3,0)) -> M2 | E172: 1 | F172: =IF(H172="i",VLOOKUP(B172,'Ins SINAPI 06-2025 Onerado'!$B$11:$F$50003,5,0),VLOOKUP(B172,'Comp SINAPI 06-2025 Onerado'!$B$11:$E$49969,4,0)) -> 3.11 | G172: =TRUNC(E172*F172,2) -> 3.11 | H172: ca | I172: TRUE
A173: COTAÇÃO | B173: CT.01 | C173: Hospedagem | D173: un | E173: ='Memorial de cálculo'!D88*'Memorial de cálculo'!H88 -> 0.0010769 | F173: ='CPU HOSPEDAGEM'!$C$19 -> 192.3545076 | G173: =TRUNC(E173*F173,2) -> 0.2 | H173: ca | I173: TRUE
A174: PRÓPRIA | B174: CODE | C174: Veículo tipo pick-up, cabine dupla - 2.0 16V 4x4 diesel Aut. | D174: dia | E174: =LARGE('Memorial de cálculo'!H88,1) -> 0.0010769 | F174: ='CPU-VEICULO_PickUp'!$C$11 -> 387.6106724 | G174: =TRUNC(E174*F174,2) -> 0.41 | H174: ca | I174: TRUE
A175: =B168 -> CPU.14 | C175: MÃO DE OBRA | G175: 0 | H175: mdo | I175: FALSE
I176: FALSE
B177: CPU.15 | C177: Execução de Revestimento com BGTC | D177: m3 | E177: 1 | G177: =SUM(G188,G180,G179,G178) -> 483.4 | H177: S | I177: FALSE
A178: =B177 -> CPU.15 | C178: MATERIAL | G178: 0 | H178: ss | I178: FALSE
A179: =B177 -> CPU.15 | C179: EQUIPAMENTOS | G179: 0 | H179: ss | I179: FALSE
A180: =B177 -> CPU.15 | C180: SERVIÇOS | G180: =SUM(G181:G187) -> 483.4 | H180: ss | I180: FALSE
A181: SINAPI | B181: 96397 | C181: =PROPER(IF(H181="i",VLOOKUP(B181,'Ins SINAPI 06-2025 Onerado'!$B$11:$F$50003,2,0),VLOOKUP(B181,'Comp SINAPI 06-2025 Onerado'!$B$11:$C$49969,2,0))) -> Construção De Base E Sub-Base Para Pavimentação De Brita Graduada Simples Tratada Com Cimento, Com Espessura De 15 Cm - Exclusive Carga E Transporte. Af_09/2024 | D181: =IF(H181="i",VLOOKUP(B181,'Ins SINAPI 06-2025 Onerado'!$B$11:$F$50003,2,0),VLOOKUP(B181,'Comp SINAPI 06-2025 Onerado'!$B$11:$H$49969,3,0)) -> M3 | E181: 1 | F181: =IF(H181="i",VLOOKUP(B181,'Ins SINAPI 06-2025 Onerado'!$B$11:$F$50003,5,0),VLOOKUP(B181,'Comp SINAPI 06-2025 Onerado'!$B$11:$E$49969,4,0)) -> 268.36 | G181: =TRUNC(E181*F181,2) -> 268.36 | H181: ca | I181: TRUE
A182: SINAPI | B182: 93592 | C182: =PROPER(IF(H182="i",VLOOKUP(B182,'Ins SINAPI 06-2025 Onerado'!$B$11:$F$50003,2,0),VLOOKUP(B182,'Comp SINAPI 06-2025 Onerado'!$B$11:$C$49969,2,0))) -> Transporte Com Caminhão Basculante De 14 M³, Em Via Urbana Em Revestimento Primário (Unidade: M3Xkm). Af_07/2020 | D182: =IF(H182="i",VLOOKUP(B182,'Ins SINAPI 06-2025 Onerado'!$B$11:$F$50003,2,0),VLOOKUP(B182,'Comp SINAPI 06-2025 Onerado'!$B$11:$H$49969,3,0)) -> M3XKM | E182: ='Memorial de cálculo'!$H$8-10 -> 11.02 | F182: =IF(H182="i",VLOOKUP(B182,'Ins SINAPI 06-2025 Onerado'!$B$11:$F$50003,5,0),VLOOKUP(B182,'Comp SINAPI 06-2025 Onerado'!$B$11:$E$49969,4,0)) -> 2.32 | G182: 25.56 | H182: ca | I182: TRUE
A183: SINAPI | B183: 95876 | C183: =PROPER(IF(H183="i",VLOOKUP(B183,'Ins SINAPI 06-2025 Onerado'!$B$11:$F$50003,2,0),VLOOKUP(B183,'Comp SINAPI 06-2025 Onerado'!$B$11:$C$49969,2,0))) -> Transporte Com Caminhão Basculante De 14 M³, Em Via Urbana Pavimentada, Dmt Até 30 Km (Unidade: M3Xkm). Af_07/2020 | D183: =IF(H183="i",VLOOKUP(B183,'Ins SINAPI 06-2025 Onerado'!$B$11:$F$50003,2,0),VLOOKUP(B183,'Comp SINAPI 06-2025 Onerado'!$B$11:$H$49969,3,0)) -> M3XKM | E183: =30 -> 30 | F183: =IF(H183="i",VLOOKUP(B183,'Ins SINAPI 06-2025 Onerado'!$B$11:$F$50003,5,0),VLOOKUP(B183,'Comp SINAPI 06-2025 Onerado'!$B$11:$E$49969,4,0)) -> 2.1 | G183: 63 | H183: ca | I183: TRUE
A184: SINAPI | B184: 93593 | C184: =PROPER(IF(H184="i",VLOOKUP(B184,'Ins SINAPI 06-2025 Onerado'!$B$11:$F$50003,2,0),VLOOKUP(B184,'Comp SINAPI 06-2025 Onerado'!$B$11:$C$49969,2,0))) -> Transporte Com Caminhão Basculante De 14 M³, Em Via Urbana Pavimentada, Adicional Para Dmt Excedente A 30 Km (Unidade: M3Xkm). Af_07/2020 | D184: =IF(H184="i",VLOOKUP(B184,'Ins SINAPI 06-2025 Onerado'!$B$11:$F$50003,2,0),VLOOKUP(B184,'Comp SINAPI 06-2025 Onerado'!$B$11:$H$49969,3,0)) -> M3XKM | E184: ='Memorial de cálculo'!$H$7-30 -> 137.3 | F184: =IF(H184="i",VLOOKUP(B184,'Ins SINAPI 06-2025 Onerado'!$B$11:$F$50003,5,0),VLOOKUP(B184,'Comp SINAPI 06-2025 Onerado'!$B$11:$E$49969,4,0)) -> 0.84 | G184: 115.33 | H184: ca | I184: TRUE
A185: SINAPI | B185: 100976 | C185: =PROPER(IF(H185="i",VLOOKUP(B185,'Ins SINAPI 06-2025 Onerado'!$B$11:$F$50003,2,0),VLOOKUP(B185,'Comp SINAPI 06-2025 Onerado'!$B$11:$C$49969,2,0))) -> Carga, Manobra E Descarga De Solos E Materiais Granulares Em Caminhão Basculante 18 M³ - Carga Com Pá Carregadeira (Caçamba De 1,7 A 2,8 M³ / 128 Hp) E Descarga Livre (Unidade: M3). Af_07/2020 | D185: =IF(H185="i",VLOOKUP(B185,'Ins SINAPI 06-2025 Onerado'!$B$11:$F$50003,2,0),VLOOKUP(B185,'Comp SINAPI 06-2025 Onerado'!$B$11:$H$49969,3,0)) -> M3 | E185: 1 | F185: =IF(H185="i",VLOOKUP(B185,'Ins SINAPI 06-2025 Onerado'!$B$11:$F$50003,5,0),VLOOKUP(B185,'Comp SINAPI 06-2025 Onerado'!$B$11:$E$49969,4,0)) -> 8.51 | G185: 8.51 | H185: ca | I185: TRUE
A186: COTAÇÃO | B186: CT.01 | C186: Hospedagem | D186: un | E186: ='Memorial de cálculo'!D92*'Memorial de cálculo'!H92 -> 0.004568675 | F186: ='CPU HOSPEDAGEM'!$C$19 -> 192.3545076 | G186: 0.87 | H186: ca | I186: TRUE
A187: PRÓPRIA | B187: CODE | C187: Veículo tipo pick-up, cabine dupla - 2.0 16V 4x4 diesel Aut. | D187: dia | E187: =LARGE('Memorial de cálculo'!H92,1) -> 0.004568675 | F187: ='CPU-VEICULO_PickUp'!$C$11 -> 387.6106724 | G187: 1.77 | H187: ca | I187: TRUE
A188: =B177 -> CPU.15 | C188: MÃO DE OBRA | G188: 0 | H188: mdo | I188: FALSE
I189: FALSE
B190: CPU.16 | C190: Restauração com uso de concreto | D190: m3 | E190: 1 | G190: =SUM(G200,G193,G192,G191) -> 1335.82 | H190: S | I190: FALSE
A191: =B190 -> CPU.16 | C191: MATERIAL | G191: 0 | H191: ss | I191: FALSE
A192: =B190 -> CPU.16 | C192: EQUIPAMENTOS | G192: 0 | H192: ss | I192: FALSE
A193: =B190 -> CPU.16 | C193: SERVIÇOS | G193: =SUM(G194:G199) -> 1335.82 | H193: ss | I193: FALSE
A194: SINAPI | B194: 94965 | C194: =PROPER(IF(H194="i",VLOOKUP(B194,'Ins SINAPI 06-2025 Onerado'!$B$11:$F$50003,2,0),VLOOKUP(B194,'Comp SINAPI 06-2025 Onerado'!$B$11:$C$49969,2,0))) -> Concreto Fck = 25Mpa, Traço 1:2,3:2,7 (Em Massa Seca De Cimento/ Areia Média/ Brita 1) - Preparo Mecânico Com Betoneira 400 L. Af_05/2021 | D194: =IF(H194="i",VLOOKUP(B194,'Ins SINAPI 06-2025 Onerado'!$B$11:$F$50003,2,0),VLOOKUP(B194,'Comp SINAPI 06-2025 Onerado'!$B$11:$H$49969,3,0)) -> M3 | E194: 1 | F194: =IF(H194="i",VLOOKUP(B194,'Ins SINAPI 06-2025 Onerado'!$B$11:$F$50003,5,0),VLOOKUP(B194,'Comp SINAPI 06-2025 Onerado'!$B$11:$E$49969,4,0)) -> 570.65 | G194: =TRUNC(E194*F194,2) -> 570.65 | H194: ca | I194: TRUE
A195: SINAPI | B195: 93589 | C195: =PROPER(IF(H195="i",VLOOKUP(B195,'Ins SINAPI 06-2025 Onerado'!$B$11:$F$50003,2,0),VLOOKUP(B195,'Comp SINAPI 06-2025 Onerado'!$B$11:$C$49969,2,0))) -> Transporte Com Caminhão Basculante De 10 M³, Em Via Urbana Em Revestimento Primário (Unidade: M3Xkm). Af_07/2020 | D195: =IF(H195="i",VLOOKUP(B195,'Ins SINAPI 06-2025 Onerado'!$B$11:$F$50003,2,0),VLOOKUP(B195,'Comp SINAPI 06-2025 Onerado'!$B$11:$H$49969,3,0)) -> M3XKM | E195: ='Memorial de cálculo'!$H$8 -> 21.02 | F195: =IF(H195="i",VLOOKUP(B195,'Ins SINAPI 06-2025 Onerado'!$B$11:$F$50003,5,0),VLOOKUP(B195,'Comp SINAPI 06-2025 Onerado'!$B$11:$E$49969,4,0)) -> 2.65 | G195: 55.7 | H195: ca | I195: TRUE
A196: SINAPI | B196: 95875 | C196: =PROPER(IF(H196="i",VLOOKUP(B196,'Ins SINAPI 06-2025 Onerado'!$B$11:$F$50003,2,0),VLOOKUP(B196,'Comp SINAPI 06-2025 Onerado'!$B$11:$C$49969,2,0))) -> Transporte Com Caminhão Basculante De 10 M³, Em Via Urbana Pavimentada, Dmt Até 30 Km (Unidade: M3Xkm). Af_07/2020 | D196: =IF(H196="i",VLOOKUP(B196,'Ins SINAPI 06-2025 Onerado'!$B$11:$F$50003,2,0),VLOOKUP(B196,'Comp SINAPI 06-2025 Onerado'!$B$11:$H$49969,3,0)) -> M3XKM | E196: =30 -> 30 | F196: =IF(H196="i",VLOOKUP(B196,'Ins SINAPI 06-2025 Onerado'!$B$11:$F$50003,5,0),VLOOKUP(B196,'Comp SINAPI 06-2025 Onerado'!$B$11:$E$49969,4,0)) -> 2.45 | G196: 73.5 | H196: ca | I196: TRUE
A197: SINAPI | B197: 95875 | C197: =PROPER(IF(H197="i",VLOOKUP(B197,'Ins SINAPI 06-2025 Onerado'!$B$11:$F$50003,2,0),VLOOKUP(B197,'Comp SINAPI 06-2025 Onerado'!$B$11:$C$49969,2,0))) -> Transporte Com Caminhão Basculante De 10 M³, Em Via Urbana Pavimentada, Dmt Até 30 Km (Unidade: M3Xkm). Af_07/2020 | D197: =IF(H197="i",VLOOKUP(B197,'Ins SINAPI 06-2025 Onerado'!$B$11:$F$50003,2,0),VLOOKUP(B197,'Comp SINAPI 06-2025 Onerado'!$B$11:$H$49969,3,0)) -> M3XKM | E197: ='Memorial de cálculo'!$H$7-30 -> 137.3 | F197: =IF(H197="i",VLOOKUP(B197,'Ins SINAPI 06-2025 Onerado'!$B$11:$F$50003,5,0),VLOOKUP(B197,'Comp SINAPI 06-2025 Onerado'!$B$11:$E$49969,4,0)) -> 2.45 | G197: 336.38 | H197: ca | I197: TRUE
A198: PRÓPRIA | B198: CODE | C198: Hospedagem | D198: un | E198: ='Memorial de cálculo'!D96*'Memorial de cálculo'!H96 -> 0.7758375 | F198: ='CPU HOSPEDAGEM'!$C$19 -> 192.3545076 | G198: 149.23 | H198: ca | I198: TRUE
A199: PRÓPRIA | B199: CODE | C199: Veículo tipo pick-up, cabine dupla - 2.0 16V 4x4 diesel Aut. | D199: dia | E199: =LARGE('Memorial de cálculo'!H96,1) -> 0.38791875 | F199: ='CPU-VEICULO_PickUp'!$C$11 -> 387.6106724 | G199: 150.36 | H199: ca | I199: TRUE
A200: =B190 -> CPU.16 | C200: MÃO DE OBRA | G200: 0 | H200: mdo | I200: FALSE
I201: FALSE
B202: CPU.17 | C202: Preenchimento de erosão com uso de Pedra Argamassada | D202: m3 | E202: 1 | G202: =SUM(G212,G205,G204,G203) -> 1220.41 | H202: S | I202: FALSE
... 174 more rows

Sheet COMPOSICÕES MODIFICADAS
A3: Código | D3: 93212 ADAPTADO
A4: Descrição | D4: EXECUÇÃO DE SANITÁRIO E VESTIÁRIO EM CANTEIRO DE OBRA EM CHAPA DE MADEIRA COMPENSADA, NÃO INCLUSO MOBILIÁRIO. AF_02/2016
A5: Data | D5: 2024-06-01
A6: Estado | D6: Bahia
A7: Tipo | D7: CANT - CANTEIRO DE OBRAS
A8: Unidade | D8: m²
A9: Valor sem Desoneração | D9: =SUM(I12,I16,I20:I54,I58:I61,I65:I78,I85:I105) -> 981.58
A11: Natureza | B11: Fonte | C11: codigo | D11: Descrição | E11: Tipo | F11: Unidade | G11: Valor sem Desoneração | H11: Coeficiente | I11: Preço sem Desoneração
A12: C | B12: SINAPI | C12: 89173 | D12: (COMPOSIÇÃO REPRESENTATIVA) DO SERVIÇO DE EMBOÇO/MASSA ÚNICA, APLICADO MANUALMENTE, TRAÇO 1:2:8, EM BETONEIRA DE 400L, PAREDES INTERNAS, COM EXECUÇÃO DE TALISCAS, EDIFICAÇÃO HABITACIONAL UNIFAMILIAR (CASAS) E EDIFICAÇÃO PÚBLICA PADRÃO. AF_12/2014 - ADAPTADO | E12: REVE - REVESTIMENTO E TRATAMENTO DE SUPERFÍCIES | F12: m² | G12: =SUM(I13:I15) -> 45.51 | H12: 0.7679 | I12: =ROUND(G12*H12,2) -> 34.95
A13: C | B13: SINAPI | C13: 87531 | D13: =VLOOKUP(C13,'Comp SINAPI 06-2025 Onerado'!$B$11:$F$9696,2,FALSE) -> EMBOÇO, EM ARGAMASSA TRAÇO 1:2:8, PREPARO MECÂNICO, APLICADO MANUALMENTE EM PAREDES INTERNAS DE AMBIENTES COM ÁREA ENTRE 5M² E 10M², E = 17,5MM, COM TALISCAS. AF_03/2024 | E13: REVE - REVESTIMENTO E TRATAMENTO DE SUPERFÍCIES | F13: m² | G13: =VLOOKUP(C13,'Comp SINAPI 06-2025 Onerado'!$B$11:$F$9696,4,FALSE) -> 43.86 | H13: 0.154 | I13: =ROUND(G13*H13,2) -> 6.75 | K13: =_xlfn.ISFORMULA(G13) -> TRUE
A14: C | B14: SINAPI | C14: 87527 | D14: =VLOOKUP(C14,'Comp SINAPI 06-2025 Onerado'!$B$11:$F$9696,2,FALSE) -> EMBOÇO, EM ARGAMASSA TRAÇO 1:2:8, PREPARO MECÂNICO, APLICADO MANUALMENTE EM PAREDES INTERNAS DE AMBIENTES COM ÁREA MENOR QUE 5M², E =17,5MM, COM TALISCAS. AF_03/2024 | E14: REVE - REVESTIMENTO E TRATAMENTO DE SUPERFÍCIES | F14: m² | G14: =VLOOKUP(C14,'Comp SINAPI 06-2025 Onerado'!$B$11:$F$9696,4,FALSE) -> 48.94 | H14: 0.1121 | I14: =ROUND(G14*H14,2) -> 5.49 | K14: =_xlfn.ISFORMULA(G14) -> TRUE
A15: C | B15: SINAPI | C15: 87529 | D15: =VLOOKUP(C15,'Comp SINAPI 06-2025 Onerado'!$B$11:$F$9696,2,FALSE) -> MASSA ÚNICA, EM ARGAMASSA TRAÇO 1:2:8, PREPARO MECÂNICO, APLICADA MANUALMENTE EM PAREDES INTERNAS DE AMBIENTES COM ÁREA ENTRE 5M² E 10M², E = 17,5MM, COM TALISCAS. AF_03/2024 | E15: REVE - REVESTIMENTO E TRATAMENTO DE SUPERFÍCIES | F15: m² | G15: =VLOOKUP(C15,'Comp SINAPI 06-2025 Onerado'!$B$11:$F$9696,4,FALSE) -> 45.33 | H15: 0.7339 | I15: =ROUND(G15*H15,2) -> 33.27 | K15: TRUE
A16: C | B16: SINAPI | C16: 89171 | D16: (COMPOSIÇÃO REPRESENTATIVA) DO SERVIÇO DE REVESTIMENTO CERÂMICO PARA PISO COM PLACAS TIPO ESMALTADA EXTRA DE DIMENSÕES 35X35 CM, PARA EDIFICAÇÃO HABITACIONAL UNIFAMILIAR (CASA) E EDIFICAÇÃO PÚBLICA PADRÃO. AF_11/2014 - ADAPTADO | E16: PISO - PISOS | F16: m² | G16: =SUM(I17:I19) -> 51.43 | H16: 0.4628 | I16: 23.8 | K16: TRUE
A17: C | B17: SINAPI | C17: 87247 | D17: =VLOOKUP(C17,'Comp SINAPI 06-2025 Onerado'!$B$11:$F$9696,2,FALSE) -> REVESTIMENTO CERÂMICO PARA PISO COM PLACAS TIPO ESMALTADA DE DIMENSÕES 35X35 CM APLICADA EM AMBIENTES DE ÁREA ENTRE 5 M2 E 10 M2. AF_02/2023_PE | E17: PISO - PISOS | F17: m² | G17: =VLOOKUP(C17,'Comp SINAPI 06-2025 Onerado'!$B$11:$F$9696,4,FALSE) -> 56.27 | H17: 0.3365 | I17: =ROUND(G17*H17,2) -> 18.93 | K17: TRUE
A18: C | B18: SINAPI | C18: 87248 | D18: =VLOOKUP(C18,'Comp SINAPI 06-2025 Onerado'!$B$11:$F$9696,2,FALSE) -> REVESTIMENTO CERÂMICO PARA PISO COM PLACAS TIPO ESMALTADA DE DIMENSÕES 35X35 CM APLICADA EM AMBIENTES DE ÁREA MAIOR QUE 10 M2. AF_02/2023_PE | E18: PISO - PISOS | F18: m² | G18: =VLOOKUP(C18,'Comp SINAPI 06-2025 Onerado'!$B$11:$F$9696,4,FALSE) -> 47.6 | H18: 0.6087 | I18: =ROUND(G18*H18,2) -> 28.97 | K18: TRUE
A19: C | B19: SINAPI | C19: 87246 | D19: =VLOOKUP(C19,'Comp SINAPI 06-2025 Onerado'!$B$11:$F$9696,2,FALSE) -> REVESTIMENTO CERÂMICO PARA PISO COM PLACAS TIPO ESMALTADA DE DIMENSÕES 35X35 CM APLICADA EM AMBIENTES DE ÁREA MENOR QUE 5 M2. AF_02/2023_PE | E19: PISO - PISOS | F19: m² | G19: =VLOOKUP(C19,'Comp SINAPI 06-2025 Onerado'!$B$11:$F$9696,4,FALSE) -> 64.33 | H19: 0.0548 | I19: 3.53 | K19: TRUE
A20: C | B20: SINAPI | C20: 101165 | D20: =VLOOKUP(C20,'Comp SINAPI 06-2025 Onerado'!$B$11:$F$9696,2,FALSE) -> ALVENARIA DE EMBASAMENTO COM BLOCO ESTRUTURAL DE CONCRETO, DE 14X19X29CM E ARGAMASSA DE ASSENTAMENTO COM PREPARO EM BETONEIRA. AF_05/2020 | E20: FUES - FUNDAÇÕES E ESTRUTURAS | F20: m³ | G20: =VLOOKUP(C20,'Comp SINAPI 06-2025 Onerado'!$B$11:$F$9696,4,FALSE) -> 976.56 | H20: 0.0286 | I20: 27.93 | K20: TRUE
A21: C | B21: SINAPI | C21: 103328 | D21: =VLOOKUP(C21,'Comp SINAPI 06-2025 Onerado'!$B$11:$F$9696,2,FALSE) -> ALVENARIA DE VEDAÇÃO DE BLOCOS CERÂMICOS FURADOS NA HORIZONTAL DE 9X19X19 CM (ESPESSURA 9 CM) E ARGAMASSA DE ASSENTAMENTO COM PREPARO EM BETONEIRA. AF_12/2021 | E21: PARE - PAREDES/PAINEIS | F21: m² | G21: =VLOOKUP(C21,'Comp SINAPI 06-2025 Onerado'!$B$11:$F$9696,4,FALSE) -> 106.38 | H21: 0.4675 | I21: 49.73 | K21: TRUE
A22: C | B22: SINAPI | C22: 91924 | D22: =VLOOKUP(C22,'Comp SINAPI 06-2025 Onerado'!$B$11:$F$9696,2,FALSE) -> CABO DE COBRE FLEXÍVEL ISOLADO, 1,5 MM², ANTI-CHAMA 450/750 V, PARA CIRCUITOS TERMINAIS - FORNECIMENTO E INSTALAÇÃO. AF_03/2023 | E22: INEL - INSTALAÇÃO ELÉTRICA/ELETRIFICAÇÃO E ILUMINAÇÃO EXTERNA | F22: M | G22: =VLOOKUP(C22,'Comp SINAPI 06-2025 Onerado'!$B$11:$F$9696,4,FALSE) -> 3.25 | H22: 1.253 | I22: 4.07 | K22: TRUE
A23: C | B23: SINAPI | C23: 92981 | D23: =VLOOKUP(C23,'Comp SINAPI 06-2025 Onerado'!$B$11:$F$9696,2,FALSE) -> CABO DE COBRE FLEXÍVEL ISOLADO, 16 MM², ANTI-CHAMA 450/750 V, PARA DISTRIBUIÇÃO - FORNECIMENTO E INSTALAÇÃO. AF_10/2020 | E23: INEL - INSTALAÇÃO ELÉTRICA/ELETRIFICAÇÃO E ILUMINAÇÃO EXTERNA | F23: M | G23: =VLOOKUP(C23,'Comp SINAPI 06-2025 Onerado'!$B$11:$F$9696,4,FALSE) -> 16.65 | H23: 0.2611 | I23: 4.35 | K23: TRUE
A24: C | B24: SINAPI | C24: 91926 | D24: =VLOOKUP(C24,'Comp SINAPI 06-2025 Onerado'!$B$11:$F$9696,2,FALSE) -> CABO DE COBRE FLEXÍVEL ISOLADO, 2,5 MM², ANTI-CHAMA 450/750 V, PARA CIRCUITOS TERMINAIS - FORNECIMENTO E INSTALAÇÃO. AF_03/2023 | E24: INEL - INSTALAÇÃO ELÉTRICA/ELETRIFICAÇÃO E ILUMINAÇÃO EXTERNA | F24: M | G24: =VLOOKUP(C24,'Comp SINAPI 06-2025 Onerado'!$B$11:$F$9696,4,FALSE) -> 4.69 | H24: 0.4699 | I24: 2.2 | K24: TRUE
A25: C | B25: SINAPI | C25: 91928 | D25: =VLOOKUP(C25,'Comp SINAPI 06-2025 Onerado'!$B$11:$F$9696,2,FALSE) -> CABO DE COBRE FLEXÍVEL ISOLADO, 4 MM², ANTI-CHAMA 450/750 V, PARA CIRCUITOS TERMINAIS - FORNECIMENTO E INSTALAÇÃO. AF_03/2023 | E25: INEL - INSTALAÇÃO ELÉTRICA/ELETRIFICAÇÃO E ILUMINAÇÃO EXTERNA | F25: M | G25: =VLOOKUP(C25,'Comp SINAPI 06-2025 Onerado'!$B$11:$F$9696,4,FALSE) -> 7.22 | H25: 1.0442 | I25: 7.54 | K25: TRUE
A26: C | B26: SINAPI | C26: 97886 | D26: =VLOOKUP(C26,'Comp SINAPI 06-2025 Onerado'!$B$11:$F$9696,2,FALSE) -> CAIXA ENTERRADA ELÉTRICA RETANGULAR, EM ALVENARIA COM TIJOLOS CERÂMICOS MACIÇOS, FUNDO COM BRITA, DIMENSÕES INTERNAS: 0,3X0,3X0,3 M. AF_12/2020 | E26: INEL - INSTALAÇÃO ELÉTRICA/ELETRIFICAÇÃO E ILUMINAÇÃO EXTERNA | F26: UN | G26: =VLOOKUP(C26,'Comp SINAPI 06-2025 Onerado'!$B$11:$F$9696,4,FALSE) -> 184.61 | H26: 0.0522 | I26: 9.64 | K26: TRUE
A27: C | B27: SINAPI | C27: 97906 | D27: =VLOOKUP(C27,'Comp SINAPI 06-2025 Onerado'!$B$11:$F$9696,2,FALSE) -> CAIXA ENTERRADA HIDRÁULICA RETANGULAR, EM ALVENARIA COM BLOCOS DE CONCRETO, DIMENSÕES INTERNAS: 0,6X0,6X0,6 M PARA REDE DE ESGOTO. AF_12/2020 | E27: INHI - INSTALAÇÕES HIDROS SANITÁRIAS | F27: UN | G27: =VLOOKUP(C27,'Comp SINAPI 06-2025 Onerado'!$B$11:$F$9696,4,FALSE) -> 487.51 | H27: 0.0348 | I27: 16.97 | K27: TRUE
A28: C | B28: SINAPI | C28: 91937 | D28: =VLOOKUP(C28,'Comp SINAPI 06-2025 Onerado'!$B$11:$F$9696,2,FALSE) -> CAIXA OCTOGONAL 3" X 3", PVC, INSTALADA EM LAJE - FORNECIMENTO E INSTALAÇÃO. AF_03/2023 | E28: INEL - INSTALAÇÃO ELÉTRICA/ELETRIFICAÇÃO E ILUMINAÇÃO EXTERNA | F28: UN | G28: =VLOOKUP(C28,'Comp SINAPI 06-2025 Onerado'!$B$11:$F$9696,4,FALSE) -> 16.95 | H28: 0.1392 | I28: 2.36 | K28: TRUE
A29: C | B29: SINAPI | C29: 87903 | D29: =VLOOKUP(C29,'Comp SINAPI 06-2025 Onerado'!$B$11:$F$9696,2,FALSE) -> CHAPISCO APLICADO EM ALVENARIA (COM PRESENÇA DE VÃOS) E ESTRUTURAS DE CONCRETO DE FACHADA, COM ROLO PARA TEXTURA ACRÍLICA. ARGAMASSA INDUSTRIALIZADA COM PREPARO EM MISTURADOR 300 KG. AF_10/2022 | E29: REVE - REVESTIMENTO E TRATAMENTO DE SUPERFÍCIES | F29: m² | G29: =VLOOKUP(C29,'Comp SINAPI 06-2025 Onerado'!$B$11:$F$9696,4,FALSE) -> 13.06 | H29: 0.1681 | I29: 2.2 | K29: TRUE
A30: C | B30: SINAPI | C30: 87885 | D30: =VLOOKUP(C30,'Comp SINAPI 06-2025 Onerado'!$B$11:$F$9696,2,FALSE) -> CHAPISCO APLICADO NO TETO OU EM ALVENARIA E ESTRUTURA, COM ROLO PARA TEXTURA ACRÍLICA. ARGAMASSA INDUSTRIALIZADA COM PREPARO EM MISTURADOR 300 KG. AF_10/2022 | E30: REVE - REVESTIMENTO E TRATAMENTO DE SUPERFÍCIES | F30: m² | G30: =VLOOKUP(C30,'Comp SINAPI 06-2025 Onerado'!$B$11:$F$9696,4,FALSE) -> 10.24 | H30: 0.7679 | I30: 7.86 | K30: TRUE
A31: C | B31: SINAPI | C31: 90466 | D31: =VLOOKUP(C31,'Comp SINAPI 06-2025 Onerado'!$B$11:$F$9696,2,FALSE) -> CHUMBAMENTO LINEAR EM ALVENARIA PARA RAMAIS/DISTRIBUIÇÃO DE INSTALAÇÕES HIDRÁULICAS COM DIÂMETROS MENORES OU IGUAIS A 40 MM. AF_09/2023 | E31: INHI - INSTALAÇÕES HIDROS SANITÁRIAS | F31: M | G31: =VLOOKUP(C31,'Comp SINAPI 06-2025 Onerado'!$B$11:$F$9696,4,FALSE) -> 17.74 | H31: 0.0722 | I31: 1.28 | K31: TRUE
A32: C | B32: SINAPI | C32: 100860 | D32: =VLOOKUP(C32,'Comp SINAPI 06-2025 Onerado'!$B$11:$F$9696,2,FALSE) -> CHUVEIRO ELÉTRICO COMUM CORPO PLÁSTICO, TIPO DUCHA - FORNECIMENTO E INSTALAÇÃO. AF_01/2020 | E32: INHI - INSTALAÇÕES HIDROS SANITÁRIAS | F32: UN | G32: =VLOOKUP(C32,'Comp SINAPI 06-2025 Onerado'!$B$11:$F$9696,4,FALSE) -> 109.56 | H32: 0.0696 | I32: 7.63 | K32: TRUE
A33: C | B33: SINAPI | C33: 95805 | D33: =VLOOKUP(C33,'Comp SINAPI 06-2025 Onerado'!$B$11:$F$9696,2,FALSE) -> CONDULETE DE PVC, TIPO B, PARA ELETRODUTO DE PVC SOLDÁVEL DN 25 MM (3/4''), APARENTE - FORNECIMENTO E INSTALAÇÃO. AF_10/2022 | E33: INEL - INSTALAÇÃO ELÉTRICA/ELETRIFICAÇÃO E ILUMINAÇÃO EXTERNA | F33: UN | G33: =VLOOKUP(C33,'Comp SINAPI 06-2025 Onerado'!$B$11:$F$9696,4,FALSE) -> 23.47 | H33: 0.0174 | I33: 0.41 | K33: TRUE
A34: C | B34: SINAPI | C34: 95811 | D34: =VLOOKUP(C34,'Comp SINAPI 06-2025 Onerado'!$B$11:$F$9696,2,FALSE) -> CONDULETE DE PVC, TIPO LB, PARA ELETRODUTO DE PVC SOLDÁVEL DN 25 MM (3/4''), APARENTE - FORNECIMENTO E INSTALAÇÃO. AF_10/2022 | E34: INEL - INSTALAÇÃO ELÉTRICA/ELETRIFICAÇÃO E ILUMINAÇÃO EXTERNA | F34: UN | G34: =VLOOKUP(C34,'Comp SINAPI 06-2025 Onerado'!$B$11:$F$9696,4,FALSE) -> 19.04 | H34: 0.0522 | I34: 0.99 | K34: TRUE
A35: C | B35: SINAPI | C35: 91911 | D35: =VLOOKUP(C35,'Comp SINAPI 06-2025 Onerado'!$B$11:$F$9696,2,FALSE) -> CURVA 90 GRAUS PARA ELETRODUTO, PVC, ROSCÁVEL, DN 20 MM (1/2"), PARA CIRCUITOS TERMINAIS, INSTALADA EM PAREDE - FORNECIMENTO E INSTALAÇÃO. AF_03/2023 | E35: INEL - INSTALAÇÃO ELÉTRICA/ELETRIFICAÇÃO E ILUMINAÇÃO EXTERNA | F35: UN | G35: =VLOOKUP(C35,'Comp SINAPI 06-2025 Onerado'!$B$11:$F$9696,4,FALSE) -> 18.58 | H35: 0.0696 | I35: 1.29 | K35: TRUE
A36: C | B36: SINAPI | C36: 91890 | D36: =VLOOKUP(C36,'Comp SINAPI 06-2025 Onerado'!$B$11:$F$9696,2,FALSE) -> CURVA 90 GRAUS PARA ELETRODUTO, PVC, ROSCÁVEL, DN 25 MM (3/4"), PARA CIRCUITOS TERMINAIS, INSTALADA EM FORRO - FORNECIMENTO E INSTALAÇÃO. AF_03/2023 | E36: INEL - INSTALAÇÃO ELÉTRICA/ELETRIFICAÇÃO E ILUMINAÇÃO EXTERNA | F36: UN | G36: =VLOOKUP(C36,'Comp SINAPI 06-2025 Onerado'!$B$11:$F$9696,4,FALSE) -> 14.68 | H36: 0.0174 | I36: 0.26 | K36: TRUE
A37: C | B37: SINAPI | C37: 89748 | D37: =VLOOKUP(C37,'Comp SINAPI 06-2025 Onerado'!$B$11:$F$9696,2,FALSE) -> CURVA CURTA 90 GRAUS, PVC, SERIE NORMAL, ESGOTO PREDIAL, DN 100 MM, JUNTA ELÁSTICA, FORNECIDO E INSTALADO EM RAMAL DE DESCARGA OU RAMAL DE ESGOTO SANITÁRIO. AF_08/2022 | E37: INHI - INSTALAÇÕES HIDROS SANITÁRIAS | F37: UN | G37: =VLOOKUP(C37,'Comp SINAPI 06-2025 Onerado'!$B$11:$F$9696,4,FALSE) -> 38.98 | H37: 0.0522 | I37: 2.03 | K37: TRUE
A38: C | B38: SINAPI | C38: 101891 | D38: =VLOOKUP(C38,'Comp SINAPI 06-2025 Onerado'!$B$11:$F$9696,2,FALSE) -> DISJUNTOR MONOPOLAR TIPO NEMA, CORRENTE NOMINAL DE 35 ATÉ 50A - FORNECIMENTO E INSTALAÇÃO. AF_10/2020 | E38: INEL - INSTALAÇÃO ELÉTRICA/ELETRIFICAÇÃO E ILUMINAÇÃO EXTERNA | F38: UN | G38: =VLOOKUP(C38,'Comp SINAPI 06-2025 Onerado'!$B$11:$F$9696,4,FALSE) -> 27.91 | H38: 0.1044 | I38: 2.91 | K38: TRUE
A39: C | B39: SINAPI | C39: 91862 | D39: =VLOOKUP(C39,'Comp SINAPI 06-2025 Onerado'!$B$11:$F$9696,2,FALSE) -> ELETRODUTO RÍGIDO ROSCÁVEL, PVC, DN 20 MM (1/2"), PARA CIRCUITOS TERMINAIS, INSTALADO EM FORRO - FORNECIMENTO E INSTALAÇÃO. AF_03/2023 | E39: INEL - INSTALAÇÃO ELÉTRICA/ELETRIFICAÇÃO E ILUMINAÇÃO EXTERNA | F39: M | G39: =VLOOKUP(C39,'Comp SINAPI 06-2025 Onerado'!$B$11:$F$9696,4,FALSE) -> 9.74 | H39: 0.3307 | I39: 3.22 | K39: TRUE
A40: C | B40: SINAPI | C40: 91870 | D40: =VLOOKUP(C40,'Comp SINAPI 06-2025 Onerado'!$B$11:$F$9696,2,FALSE) -> ELETRODUTO RÍGIDO ROSCÁVEL, PVC, DN 20 MM (1/2"), PARA CIRCUITOS TERMINAIS, INSTALADO EM PAREDE - FORNECIMENTO E INSTALAÇÃO. AF_03/2023 | E40: INEL - INSTALAÇÃO ELÉTRICA/ELETRIFICAÇÃO E ILUMINAÇÃO EXTERNA | F40: M | G40: =VLOOKUP(C40,'Comp SINAPI 06-2025 Onerado'!$B$11:$F$9696,4,FALSE) -> 13.19 | H40: 0.1566 | I40: 2.07 | K40: TRUE
A41: C | B41: SINAPI | C41: 91863 | D41: =VLOOKUP(C41,'Comp SINAPI 06-2025 Onerado'!$B$11:$F$9696,2,FALSE) -> ELETRODUTO RÍGIDO ROSCÁVEL, PVC, DN 25 MM (3/4"), PARA CIRCUITOS TERMINAIS, INSTALADO EM FORRO - FORNECIMENTO E INSTALAÇÃO. AF_03/2023 | E41: INEL - INSTALAÇÃO ELÉTRICA/ELETRIFICAÇÃO E ILUMINAÇÃO EXTERNA | F41: M | G41: =VLOOKUP(C41,'Comp SINAPI 06-2025 Onerado'!$B$11:$F$9696,4,FALSE) -> 11.43 | H41: 0.1305 | I41: 1.49 | K41: TRUE
A42: C | B42: SINAPI | C42: 91871 | D42: =VLOOKUP(C42,'Comp SINAPI 06-2025 Onerado'!$B$11:$F$9696,2,FALSE) -> ELETRODUTO RÍGIDO ROSCÁVEL, PVC, DN 25 MM (3/4"), PARA CIRCUITOS TERMINAIS, INSTALADO EM PAREDE - FORNECIMENTO E INSTALAÇÃO. AF_03/2023 | E42: INEL - INSTALAÇÃO ELÉTRICA/ELETRIFICAÇÃO E ILUMINAÇÃO EXTERNA | F42: M | G42: =VLOOKUP(C42,'Comp SINAPI 06-2025 Onerado'!$B$11:$F$9696,4,FALSE) -> 14.88 | H42: 0.0261 | I42: 0.39 | K42: TRUE
A43: C | B43: SINAPI | C43: 87777 | D43: =VLOOKUP(C43,'Comp SINAPI 06-2025 Onerado'!$B$11:$F$9696,2,FALSE) -> EMBOÇO OU MASSA ÚNICA EM ARGAMASSA TRAÇO 1:2:8, PREPARO MANUAL, APLICADA MANUALMENTE EM PANOS DE FACHADA COM PRESENÇA DE VÃOS, ESPESSURA DE 25 MM. AF_08/2022 | E43: REVE - REVESTIMENTO E TRATAMENTO DE SUPERFÍCIES | F43: m² | G43: =VLOOKUP(C43,'Comp SINAPI 06-2025 Onerado'!$B$11:$F$9696,4,FALSE) -> 68.05 | H43: 0.1681 | I43: 11.44 | K43: TRUE
A44: C | B44: SINAPI | C44: 93358 | D44: =VLOOKUP(C44,'Comp SINAPI 06-2025 Onerado'!$B$11:$F$9696,2,FALSE) -> ESCAVAÇÃO MANUAL DE VALA. AF_09/2024 | E44: MOVT - MOVIMENTO DE TERRA | F44: m³ | G44: =VLOOKUP(C44,'Comp SINAPI 06-2025 Onerado'!$B$11:$F$9696,4,FALSE) -> 96.4 | H44: 0.0279 | I44: 2.69 | K44: TRUE
A45: C | B45: SINAPI | C45: 91305 | D45: =VLOOKUP(C45,'Comp SINAPI 06-2025 Onerado'!$B$11:$F$9696,2,FALSE) -> FECHADURA DE EMBUTIR PARA PORTA DE BANHEIRO, COMPLETA, ACABAMENTO PADRÃO POPULAR, INCLUSO EXECUÇÃO DE FURO - FORNECIMENTO E INSTALAÇÃO. AF_12/2019 | E45: ESQV - ESQUADRIAS/FERRAGENS/VIDROS | F45: UN | G45: =VLOOKUP(C45,'Comp SINAPI 06-2025 Onerado'!$B$11:$F$9696,4,FALSE) -> 122.22 | H45: 0.0522 | I45: 6.38 | K45: TRUE
A46: C | B46: SINAPI | C46: 91170 | D46: =VLOOKUP(C46,'Comp SINAPI 06-2025 Onerado'!$B$11:$F$9696,2,FALSE) -> FIXAÇÃO DE TUBOS HORIZONTAIS DE PVC ÁGUA, PVC ESGOTO, PVC ÁGUA PLUVIAL, CPVC, PPR, COBRE OU AÇO, DIÂMETROS MENORES OU IGUAIS A 40 MM, COM ABRAÇADEIRA METÁLICA RÍGIDA TIPO U PERFIL 1 1/4", FIXADA EM PERFILADO EM LAJE. AF_09/2023_PS | E46: INHI - INSTALAÇÕES HIDROS SANITÁRIAS | F46: M | G46: =VLOOKUP(C46,'Comp SINAPI 06-2025 Onerado'!$B$11:$F$9696,4,FALSE) -> 11.52 | H46: 0.4612 | I46: 5.31 | K46: TRUE
A47: C | B47: SINAPI | C47: 91173 | D47: =VLOOKUP(C47,'Comp SINAPI 06-2025 Onerado'!$B$11:$F$9696,2,FALSE) -> FIXAÇÃO DE TUBOS VERTICAIS DE PVC ÁGUA, PVC ESGOTO, PVC ÁGUA PLUVIAL, CPVC, PPR, COBRE OU AÇO, DIÂMETROS MENORES OU IGUAIS A 40 MM, COM ABRAÇADEIRA METÁLICA RÍGIDA TIPO U PERFIL 1 1/4", FIXADA EM PERFILADO EM PAREDE. AF_09/2023_PS | E47: INHI - INSTALAÇÕES HIDROS SANITÁRIAS | F47: M | G47: =VLOOKUP(C47,'Comp SINAPI 06-2025 Onerado'!$B$11:$F$9696,4,FALSE) -> 4.29 | H47: 0.1827 | I47: 0.78 | K47: TRUE
A48: C | B48: SINAPI | C48: 96985 | D48: =VLOOKUP(C48,'Comp SINAPI 06-2025 Onerado'!$B$11:$F$9696,2,FALSE) -> HASTE DE ATERRAMENTO, DIÂMETRO 5/8", COM 3 METROS - FORNECIMENTO E INSTALAÇÃO. AF_08/2023 | E48: INEL - INSTALAÇÃO ELÉTRICA/ELETRIFICAÇÃO E ILUMINAÇÃO EXTERNA | F48: UN | G48: =VLOOKUP(C48,'Comp SINAPI 06-2025 Onerado'!$B$11:$F$9696,4,FALSE) -> 89.11 | H48: 0.0522 | I48: 4.65 | K48: TRUE
A49: C | B49: SINAPI | C49: 91959 | D49: =VLOOKUP(C49,'Comp SINAPI 06-2025 Onerado'!$B$11:$F$9696,2,FALSE) -> INTERRUPTOR SIMPLES (2 MÓDULOS), 10A/250V, INCLUINDO SUPORTE E PLACA - FORNECIMENTO E INSTALAÇÃO. AF_03/2023 | E49: INEL - INSTALAÇÃO ELÉTRICA/ELETRIFICAÇÃO E ILUMINAÇÃO EXTERNA | F49: UN | G49: =VLOOKUP(C49,'Comp SINAPI 06-2025 Onerado'!$B$11:$F$9696,4,FALSE) -> 44.61 | H49: 0.0174 | I49: 0.78 | K49: TRUE
A50: C | B50: SINAPI | C50: 91967 | D50: =VLOOKUP(C50,'Comp SINAPI 06-2025 Onerado'!$B$11:$F$9696,2,FALSE) -> INTERRUPTOR SIMPLES (3 MÓDULOS), 10A/250V, INCLUINDO SUPORTE E PLACA - FORNECIMENTO E INSTALAÇÃO. AF_03/2023 | E50: INEL - INSTALAÇÃO ELÉTRICA/ELETRIFICAÇÃO E ILUMINAÇÃO EXTERNA | F50: UN | G50: =VLOOKUP(C50,'Comp SINAPI 06-2025 Onerado'!$B$11:$F$9696,4,FALSE) -> 59.68 | H50: 0.0174 | I50: 1.04 | K50: TRUE
A51: C | B51: SINAPI | C51: 94559 | D51: =VLOOKUP(C51,'Comp SINAPI 06-2025 Onerado'!$B$11:$F$9696,2,FALSE) -> JANELA DE AÇO TIPO BASCULANTE, PARA VIDROS (VIDROS NÃO INCLUSOS), BATENTE/ REQUADRO INCLUSO (6,5 A 14 CM), DIMENSÕES 60X60 CM, COM COM PINTURA ANTICORROSIVA, SEM ACABAMENTO, COM FERRAGENS, FIXAÇÃO COM ARGAMASSA, EXCLUSIVE CONTRAMARCO - FORNECIMENTO E INSTALAÇÃO. AF_11/2024 | E51: ESQV - ESQUADRIAS/FERRAGENS/VIDROS | F51: m² | G51: =VLOOKUP(C51,'Comp SINAPI 06-2025 Onerado'!$B$11:$F$9696,4,FALSE) -> 761.46 | H51: 0.0905 | I51: 68.91 | K51: TRUE
A52: C | B52: SINAPI | C52: 89724 | D52: =VLOOKUP(C52,'Comp SINAPI 06-2025 Onerado'!$B$11:$F$9696,2,FALSE) -> JOELHO 90 GRAUS, PVC, SERIE NORMAL, ESGOTO PREDIAL, DN 40 MM, JUNTA SOLDÁVEL, FORNECIDO E INSTALADO EM RAMAL DE DESCARGA OU RAMAL DE ESGOTO SANITÁRIO. AF_08/2022 | E52: INHI - INSTALAÇÕES HIDROS SANITÁRIAS | F52: UN | G52: =VLOOKUP(C52,'Comp SINAPI 06-2025 Onerado'!$B$11:$F$9696,4,FALSE) -> 10.67 | H52: 0.174 | I52: 1.86 | K52: TRUE
A53: C | B53: SINAPI | C53: 89731 | D53: =VLOOKUP(C53,'Comp SINAPI 06-2025 Onerado'!$B$11:$F$9696,2,FALSE) -> JOELHO 90 GRAUS, PVC, SERIE NORMAL, ESGOTO PREDIAL, DN 50 MM, JUNTA ELÁSTICA, FORNECIDO E INSTALADO EM RAMAL DE DESCARGA OU RAMAL DE ESGOTO SANITÁRIO. AF_08/2022 | E53: INHI - INSTALAÇÕES HIDROS SANITÁRIAS | F53: UN | G53: =VLOOKUP(C53,'Comp SINAPI 06-2025 Onerado'!$B$11:$F$9696,4,FALSE) -> 15.15 | H53: 0.0174 | I53: 0.26 | K53: TRUE
A54: C | B54: SINAPI | C54: 89970 | D54: KIT DE REGISTRO DE PRESSÃO BRUTO DE LATÃO ¾", INCLUSIVE CONEXÕES, ROSCÁVEL, INSTALADO EM RAMAL DE ÁGUA FRIA - FORNECIMENTO E INSTALAÇÃO. AF_12/2014 | E54: INHI - INSTALAÇÕES HIDROS SANITÁRIAS | F54: UN | G54: =SUM(I55:I57) -> 47.88 | H54: 0.0696 | I54: 3.33 | K54: TRUE
A55: C | B55: SINAPI | C55: 89383 | D55: =VLOOKUP(C55,'Comp SINAPI 06-2025 Onerado'!$B$11:$F$9696,2,FALSE) -> ADAPTADOR CURTO COM BOLSA E ROSCA PARA REGISTRO, PVC, SOLDÁVEL, DN 25MM X 3/4, INSTALADO EM RAMAL OU SUB-RAMAL DE ÁGUA - FORNECIMENTO E INSTALAÇÃO. AF_06/2022 | E55: INHI - INSTALAÇÕES HIDROS SANITÁRIAS | F55: UN | G55: =VLOOKUP(C55,'Comp SINAPI 06-2025 Onerado'!$B$11:$F$9696,4,FALSE) -> 7.09 | H55: 1 | I55: =ROUND(G55*H55,2) -> 7.09 | K55: TRUE
A56: C | B56: SINAPI | C56: 89385 | D56: =VLOOKUP(C56,'Comp SINAPI 06-2025 Onerado'!$B$11:$F$9696,2,FALSE) -> LUVA SOLDÁVEL E COM ROSCA, PVC, SOLDÁVEL, DN 25MM X 3/4, INSTALADO EM RAMAL OU SUB-RAMAL DE ÁGUA - FORNECIMENTO E INSTALAÇÃO. AF_06/2022 | E56: INHI - INSTALAÇÕES HIDROS SANITÁRIAS | F56: UN | G56: =VLOOKUP(C56,'Comp SINAPI 06-2025 Onerado'!$B$11:$F$9696,4,FALSE) -> 7.63 | H56: 1 | I56: =ROUND(G56*H56,2) -> 7.63 | K56: TRUE
A57: C | B57: SINAPI | C57: 89351 | D57: =VLOOKUP(C57,'Comp SINAPI 06-2025 Onerado'!$B$11:$F$9696,2,FALSE) -> REGISTRO DE PRESSÃO BRUTO, LATÃO, ROSCÁVEL, 3/4'' - FORNECIMENTO E INSTALAÇÃO. AF_08/2021 | E57: INHI - INSTALAÇÕES HIDROS SANITÁRIAS | F57: UN | G57: =VLOOKUP(C57,'Comp SINAPI 06-2025 Onerado'!$B$11:$F$9696,4,FALSE) -> 33.16 | H57: 1 | I57: 33.16 | K57: TRUE
A58: C | B58: SINAPI | C58: 95240 | D58: =VLOOKUP(C58,'Comp SINAPI 06-2025 Onerado'!$B$11:$F$9696,2,FALSE) -> LASTRO DE CONCRETO MAGRO, APLICADO EM PISOS, LAJES SOBRE SOLO OU RADIERS, ESPESSURA DE 3 CM. AF_01/2024 | E58: FUES - FUNDAÇÕES E ESTRUTURAS | F58: m² | G58: =VLOOKUP(C58,'Comp SINAPI 06-2025 Onerado'!$B$11:$F$9696,4,FALSE) -> 22.03 | H58: 0.0064 | I58: 0.14 | K58: TRUE
A59: C | B59: SINAPI | C59: 95241 | D59: =VLOOKUP(C59,'Comp SINAPI 06-2025 Onerado'!$B$11:$F$9696,2,FALSE) -> LASTRO DE CONCRETO MAGRO, APLICADO EM PISOS, LAJES SOBRE SOLO OU RADIERS, ESPESSURA DE 5 CM. AF_01/2024 | E59: FUES - FUNDAÇÕES E ESTRUTURAS | F59: m² | G59: =VLOOKUP(C59,'Comp SINAPI 06-2025 Onerado'!$B$11:$F$9696,4,FALSE) -> 42.28 | H59: 1.3328 | I59: 56.35 | K59: TRUE
A60: C | B60: SINAPI | C60: 86943 | D60: =VLOOKUP(C60,'Comp SINAPI 06-2025 Onerado'!$B$11:$F$9696,2,FALSE) -> LAVATÓRIO LOUÇA BRANCA SUSPENSO, 29,5 X 39CM OU EQUIVALENTE, PADRÃO POPULAR, INCLUSO SIFÃO FLEXÍVEL EM PVC, VÁLVULA E ENGATE FLEXÍVEL 30CM EM PLÁSTICO E TORNEIRA CROMADA DE MESA, PADRÃO POPULAR - FORNECIMENTO E INSTALAÇÃO. AF_01/2020 | E60: INHI - INSTALAÇÕES HIDROS SANITÁRIAS | F60: UN | G60: =VLOOKUP(C60,'Comp SINAPI 06-2025 Onerado'!$B$11:$F$9696,4,FALSE) -> 281.85 | H60: 0.0522 | I60: =ROUND(G60*H60,2) -> 14.71 | K60: TRUE
A61: C | B61: SINAPI | C61: 97586 | D61: LUMINÁRIA TIPO CALHA, DE SOBREPOR, COM 2 LÂMPADAS TUBULARES FLUORESCENTES DE 36 W, COM REATOR DE PARTIDA RÁPIDA - FORNECIMENTO E INSTALAÇÃO. AF_02/2020 | E61: INEL - INSTALAÇÃO ELÉTRICA/ELETRIFICAÇÃO E ILUMINAÇÃO EXTERNA | F61: UN | G61: =SUM(I62:I64) -> 224.27 | H61: 0.1392 | I61: =ROUND(G61*H61,2) -> 31.22 | K61: TRUE
A62: C | B62: SINAPI | C62: 88247 | D62: =VLOOKUP(C62,'Comp SINAPI 06-2025 Onerado'!$B$11:$F$9696,2,FALSE) -> AUXILIAR DE ELETRICISTA COM ENCARGOS COMPLEMENTARES | E62: SEDI - SERVIÇOS DIVERSOS | F62: H | G62: =VLOOKUP(C62,'Comp SINAPI 06-2025 Onerado'!$B$11:$F$9696,4,FALSE) -> 25.56 | H62: 0.1727 | I62: =ROUND(G62*H62,2) -> 4.41 | K62: TRUE
A63: C | B63: SINAPI | C63: 88264 | D63: =VLOOKUP(C63,'Comp SINAPI 06-2025 Onerado'!$B$11:$F$9696,2,FALSE) -> ELETRICISTA COM ENCARGOS COMPLEMENTARES | E63: SEDI - SERVIÇOS DIVERSOS | F63: H | G63: =VLOOKUP(C63,'Comp SINAPI 06-2025 Onerado'!$B$11:$F$9696,4,FALSE) -> 33.94 | H63: 0.4144 | I63: =ROUND(G63*H63,2) -> 14.06 | K63: TRUE
A64: I | B64: SINAPI | C64: 3780 | D64: =VLOOKUP(C64,'Ins SINAPI 06-2025 Onerado'!$B$11:$F$9696,2,FALSE) -> LUMINARIA DE SOBREPOR EM CHAPA DE ACO PARA 1 LAMPADA FLUORESCENTE DE *36* W, ALETADA, COMPLETA (LAMPADA E REATOR INCLUSOS) | E64: Material | F64: UN | G64: 102.9 | H64: 2 | I64: =ROUND(G64*H64,2) -> 205.8 | K64: FALSE
A65: C | B65: SINAPI | C65: 91882 | D65: =VLOOKUP(C65,'Comp SINAPI 06-2025 Onerado'!$B$11:$F$9696,2,FALSE) -> LUVA PARA ELETRODUTO, PVC, ROSCÁVEL, DN 20 MM (1/2"), PARA CIRCUITOS TERMINAIS, INSTALADA EM PAREDE - FORNECIMENTO E INSTALAÇÃO. AF_03/2023 | E65: INEL - INSTALAÇÃO ELÉTRICA/ELETRIFICAÇÃO E ILUMINAÇÃO EXTERNA | F65: UN | G65: =VLOOKUP(C65,'Comp SINAPI 06-2025 Onerado'!$B$11:$F$9696,4,FALSE) -> 11.47 | H65: 0.0348 | I65: 0.4 | K65: TRUE
A66: C | B66: SINAPI | C66: 91875 | D66: =VLOOKUP(C66,'Comp SINAPI 06-2025 Onerado'!$B$11:$F$9696,2,FALSE) -> LUVA PARA ELETRODUTO, PVC, ROSCÁVEL, DN 25 MM (3/4"), PARA CIRCUITOS TERMINAIS, INSTALADA EM FORRO - FORNECIMENTO E INSTALAÇÃO. AF_03/2023 | E66: INEL - INSTALAÇÃO ELÉTRICA/ELETRIFICAÇÃO E ILUMINAÇÃO EXTERNA | F66: UN | G66: =VLOOKUP(C66,'Comp SINAPI 06-2025 Onerado'!$B$11:$F$9696,4,FALSE) -> 9.19 | H66: 0.0348 | I66: 0.32 | K66: TRUE
A67: C | B67: SINAPI | C67: 87548 | D67: =VLOOKUP(C67,'Comp SINAPI 06-2025 Onerado'!$B$11:$F$9696,2,FALSE) -> MASSA ÚNICA, EM ARGAMASSA TRAÇO 1:2:8, PREPARO MANUAL, APLICADA MANUALMENTE EM PAREDES INTERNAS DE AMBIENTES COM ÁREA ENTRE 5M² E 10M², E = 10MM, COM TALISCAS. AF_03/2024 | E67: REVE - REVESTIMENTO E TRATAMENTO DE SUPERFÍCIES | F67: m² | G67: =VLOOKUP(C67,'Comp SINAPI 06-2025 Onerado'!$B$11:$F$9696,4,FALSE) -> 33.89 | H67: 0.1894 | I67: 6.42 | K67: TRUE
A68: C | B68: SINAPI | C68: 98445 | D68: =VLOOKUP(C68,'Comp SINAPI 06-2025 Onerado'!$B$11:$F$9696,2,FALSE) -> PAREDE DE MADEIRA COMPENSADA PARA CONSTRUÇÃO TEMPORÁRIA EM CHAPA SIMPLES, EXTERNA, COM ÁREA LÍQUIDA MAIOR OU IGUAL A 6 M², COM VÃO. AF_03/2024 | E68: CANT - CANTEIRO DE OBRAS | F68: m² | G68: =VLOOKUP(C68,'Comp SINAPI 06-2025 Onerado'!$B$11:$F$9696,4,FALSE) -> 117.09 | H68: 0.4081 | I68: 47.78 | K68: TRUE
A69: C | B69: SINAPI | C69: 98441 | D69: =VLOOKUP(C69,'Comp SINAPI 06-2025 Onerado'!$B$11:$F$9696,2,FALSE) -> PAREDE DE MADEIRA COMPENSADA PARA CONSTRUÇÃO TEMPORÁRIA EM CHAPA SIMPLES, EXTERNA, SEM VÃO. AF_03/2024 | E69: CANT - CANTEIRO DE OBRAS | F69: m² | G69: =VLOOKUP(C69,'Comp SINAPI 06-2025 Onerado'!$B$11:$F$9696,4,FALSE) -> 98.31 | H69: 0.2612 | I69: 25.68 | K69: TRUE
A70: C | B70: SINAPI | C70: 98446 | D70: =VLOOKUP(C70,'Comp SINAPI 06-2025 Onerado'!$B$11:$F$9696,2,FALSE) -> PAREDE DE MADEIRA COMPENSADA PARA CONSTRUÇÃO TEMPORÁRIA EM CHAPA SIMPLES, EXTERNA, COM ÁREA LÍQUIDA MENOR QUE 6 M², COM VÃO. AF_03/2024 | E70: CANT - CANTEIRO DE OBRAS | F70: m² | G70: =VLOOKUP(C70,'Comp SINAPI 06-2025 Onerado'!$B$11:$F$9696,4,FALSE) -> 151.76 | H70: 0.3182 | I70: 48.29 | K70: TRUE
A71: C | B71: SINAPI | C71: 98441 | D71: =VLOOKUP(C71,'Comp SINAPI 06-2025 Onerado'!$B$11:$F$9696,2,FALSE) -> PAREDE DE MADEIRA COMPENSADA PARA CONSTRUÇÃO TEMPORÁRIA EM CHAPA SIMPLES, EXTERNA, SEM VÃO. AF_03/2024 | E71: CANT - CANTEIRO DE OBRAS | F71: m² | G71: =VLOOKUP(C71,'Comp SINAPI 06-2025 Onerado'!$B$11:$F$9696,4,FALSE) -> 98.31 | H71: 0.3007 | I71: 29.56 | K71: TRUE
A72: C | B72: SINAPI | C72: 98447 | D72: =VLOOKUP(C72,'Comp SINAPI 06-2025 Onerado'!$B$11:$F$9696,2,FALSE) -> PAREDE DE MADEIRA COMPENSADA PARA CONSTRUÇÃO TEMPORÁRIA EM CHAPA SIMPLES, INTERNA, COM ÁREA LÍQUIDA MAIOR OU IGUAL A 6 M², COM VÃO. AF_03/2024 | E72: CANT - CANTEIRO DE OBRAS | F72: m² | G72: =VLOOKUP(C72,'Comp SINAPI 06-2025 Onerado'!$B$11:$F$9696,4,FALSE) -> 89.79 | H72: 0.1297 | I72: 11.65 | K72: TRUE
A73: C | B73: SINAPI | C73: 98443 | D73: =VLOOKUP(C73,'Comp SINAPI 06-2025 Onerado'!$B$11:$F$9696,2,FALSE) -> PAREDE DE MADEIRA COMPENSADA PARA CONSTRUÇÃO TEMPORÁRIA EM CHAPA SIMPLES, INTERNA, SEM VÃO. AF_03/2024 | E73: CANT - CANTEIRO DE OBRAS | F73: m² | G73: =VLOOKUP(C73,'Comp SINAPI 06-2025 Onerado'!$B$11:$F$9696,4,FALSE) -> 74.86 | H73: 0.083 | I73: 6.21 | K73: TRUE
A74: C | B74: SINAPI | C74: 98448 | D74: =VLOOKUP(C74,'Comp SINAPI 06-2025 Onerado'!$B$11:$F$9696,2,FALSE) -> PAREDE DE MADEIRA COMPENSADA PARA CONSTRUÇÃO TEMPORÁRIA EM CHAPA SIMPLES, INTERNA, COM ÁREA LÍQUIDA MENOR QUE 6 M², COM VÃO. AF_03/2024 | E74: CANT - CANTEIRO DE OBRAS | F74: m² | G74: =VLOOKUP(C74,'Comp SINAPI 06-2025 Onerado'!$B$11:$F$9696,4,FALSE) -> 117.66 | H74: 0.1011 | I74: 11.9 | K74: TRUE
A75: C | B75: SINAPI | C75: 98443 | D75: =VLOOKUP(C75,'Comp SINAPI 06-2025 Onerado'!$B$11:$F$9696,2,FALSE) -> PAREDE DE MADEIRA COMPENSADA PARA CONSTRUÇÃO TEMPORÁRIA EM CHAPA SIMPLES, INTERNA, SEM VÃO. AF_03/2024 | E75: CANT - CANTEIRO DE OBRAS | F75: m² | G75: =VLOOKUP(C75,'Comp SINAPI 06-2025 Onerado'!$B$11:$F$9696,4,FALSE) -> 74.86 | H75: 0.0956 | I75: 7.16 | K75: TRUE
A76: C | B76: SINAPI | C76: 88489 | D76: =VLOOKUP(C76,'Comp SINAPI 06-2025 Onerado'!$B$11:$F$9696,2,FALSE) -> PINTURA LÁTEX ACRÍLICA PREMIUM, APLICAÇÃO MANUAL EM PAREDES, DUAS DEMÃOS. AF_04/2023 | E76: PINT - PINTURAS | F76: m² | G76: =VLOOKUP(C76,'Comp SINAPI 06-2025 Onerado'!$B$11:$F$9696,4,FALSE) -> 13.96 | H76: 2.4442 | I76: 34.12 | K76: TRUE
A77: C | B77: SINAPI | C77: 98679 | D77: =VLOOKUP(C77,'Comp SINAPI 06-2025 Onerado'!$B$11:$F$9696,2,FALSE) -> PISO CIMENTADO, TRAÇO 1:3 (CIMENTO E AREIA), ACABAMENTO LISO, ESPESSURA 2,0 CM, PREPARO MECÂNICO DA ARGAMASSA. AF_09/2020 | E77: PISO - PISOS | F77: m² | G77: =VLOOKUP(C77,'Comp SINAPI 06-2025 Onerado'!$B$11:$F$9696,4,FALSE) -> 44.42 | H77: 0.5134 | I77: 22.81 | K77: TRUE
A78: C | B78: SINAPI | C78: 89957 | D78: PONTO DE CONSUMO TERMINAL DE ÁGUA FRIA (SUBRAMAL) COM TUBULAÇÃO DE PVC, DN 25 MM, INSTALADO EM RAMAL DE ÁGUA, INCLUSOS RASGO E CHUMBAMENTO EM ALVENARIA. AF_12/2014 (ADAPTADO) | E78: INHI - INSTALAÇÕES HIDROS SANITÁRIAS | F78: UN | G78: =SUM(I79:I84) -> 154.05 | H78: 0.174 | I78: =ROUND(G78*H78,2) -> 26.8 | K78: =_xlfn.ISFORMULA(G78) -> TRUE
A79: C | B79: SINAPI | C79: 90466 | D79: =VLOOKUP(C79,'Comp SINAPI 06-2025 Onerado'!$B$11:$F$9696,2,FALSE) -> CHUMBAMENTO LINEAR EM ALVENARIA PARA RAMAIS/DISTRIBUIÇÃO DE INSTALAÇÕES HIDRÁULICAS COM DIÂMETROS MENORES OU IGUAIS A 40 MM. AF_09/2023 | E79: Material | F79: M | G79: =VLOOKUP(C79,'Comp SINAPI 06-2025 Onerado'!$B$11:$F$9696,4,FALSE) -> 17.74 | H79: 2.14 | I79: 37.96 | K79: TRUE
A80: C | B80: SINAPI | C80: 89366 | D80: =VLOOKUP(C80,'Comp SINAPI 06-2025 Onerado'!$B$11:$F$9696,2,FALSE) -> JOELHO 90 GRAUS COM BUCHA DE LATÃO, PVC, SOLDÁVEL, DN 25MM, X 3/4 INSTALADO EM RAMAL OU SUB-RAMAL DE ÁGUA - FORNECIMENTO E INSTALAÇÃO. AF_06/2022 | E80: Material | F80: UN | G80: =VLOOKUP(C80,'Comp SINAPI 06-2025 Onerado'!$B$11:$F$9696,4,FALSE) -> 16.07 | H80: 1 | I80: 16.07 | K80: TRUE
A81: C | B81: SINAPI | C81: 89362 | D81: =VLOOKUP(C81,'Comp SINAPI 06-2025 Onerado'!$B$11:$F$9696,2,FALSE) -> JOELHO 90 GRAUS, PVC, SOLDÁVEL, DN 25MM, INSTALADO EM RAMAL OU SUB-RAMAL DE ÁGUA - FORNECIMENTO E INSTALAÇÃO. AF_06/2022 | E81: Material | F81: UN | G81: =VLOOKUP(C81,'Comp SINAPI 06-2025 Onerado'!$B$11:$F$9696,4,FALSE) -> 10.41 | H81: 1.18 | I81: 12.28 | K81: TRUE
A82: C | B82: SINAPI | C82: 90443 | D82: =VLOOKUP(C82,'Comp SINAPI 06-2025 Onerado'!$B$11:$F$9696,2,FALSE) -> RASGO LINEAR MANUAL EM ALVENARIA, PARA RAMAIS/ DISTRIBUIÇÃO DE INSTALAÇÕES HIDRÁULICAS, DIÂMETROS MENORES OU IGUAIS A 40 MM. AF_09/2023 | E82: Material | F82: M | G82: =VLOOKUP(C82,'Comp SINAPI 06-2025 Onerado'!$B$11:$F$9696,4,FALSE) -> 9.32 | H82: 2.14 | I82: 19.94 | K82: TRUE
A83: C | B83: SINAPI | C83: 89395 | D83: =VLOOKUP(C83,'Comp SINAPI 06-2025 Onerado'!$B$11:$F$9696,2,FALSE) -> TE, PVC, SOLDÁVEL, DN 25MM, INSTALADO EM RAMAL OU SUB-RAMAL DE ÁGUA - FORNECIMENTO E INSTALAÇÃO. AF_06/2022 | E83: Material | F83: UN | G83: =VLOOKUP(C83,'Comp SINAPI 06-2025 Onerado'!$B$11:$F$9696,4,FALSE) -> 14.26 | H83: 0.89 | I83: 12.69 | K83: TRUE
A84: C | B84: SINAPI | C84: 89356 | D84: =VLOOKUP(C84,'Comp SINAPI 06-2025 Onerado'!$B$11:$F$9696,2,FALSE) -> TUBO, PVC, SOLDÁVEL, DE 25MM, INSTALADO EM RAMAL OU SUB-RAMAL DE ÁGUA - FORNECIMENTO E INSTALAÇÃO. AF_06/2022 | E84: Material | F84: M | G84: =VLOOKUP(C84,'Comp SINAPI 06-2025 Onerado'!$B$11:$F$9696,4,FALSE) -> 25.75 | H84: 2.14 | I84: 55.11 | K84: TRUE
A85: C | B85: SINAPI | C85: 90822 | D85: =VLOOKUP(C85,'Comp SINAPI 06-2025 Onerado'!$B$11:$F$9696,2,FALSE) -> PORTA DE MADEIRA PARA PINTURA, SEMI-OCA (LEVE OU MÉDIA), 80X210CM, ESPESSURA DE 3,5CM, INCLUSO DOBRADIÇAS - FORNECIMENTO E INSTALAÇÃO. AF_12/2019 | E85: ESQV - ESQUADRIAS/FERRAGENS/VIDROS | F85: UN | G85: =VLOOKUP(C85,'Comp SINAPI 06-2025 Onerado'!$B$11:$F$9696,4,FALSE) -> 397.95 | H85: 0.0348 | I85: 13.85 | K85: TRUE
A86: C | B86: SINAPI | C86: 101876 | D86: =VLOOKUP(C86,'Comp SINAPI 06-2025 Onerado'!$B$11:$F$9696,2,FALSE) -> QUADRO DE DISTRIBUIÇÃO DE ENERGIA EM PVC, DE EMBUTIR, SEM BARRAMENTO, PARA 6 DISJUNTORES - FORNECIMENTO E INSTALAÇÃO. AF_10/2020 | E86: INEL - INSTALAÇÃO ELÉTRICA/ELETRIFICAÇÃO E ILUMINAÇÃO EXTERNA | F86: UN | G86: =VLOOKUP(C86,'Comp SINAPI 06-2025 Onerado'!$B$11:$F$9696,4,FALSE) -> 82.06 | H86: 0.0174 | I86: 1.43 | K86: TRUE
A87: C | B87: SINAPI | C87: 89709 | D87: =VLOOKUP(C87,'Comp SINAPI 06-2025 Onerado'!$B$11:$F$9696,2,FALSE) -> RALO SIFONADO, PVC, DN 100 X 40 MM, JUNTA SOLDÁVEL, FORNECIDO E INSTALADO EM RAMAL DE DESCARGA OU EM RAMAL DE ESGOTO SANITÁRIO. AF_08/2022 | E87: INHI - INSTALAÇÕES HIDROS SANITÁRIAS | F87: UN | G87: =VLOOKUP(C87,'Comp SINAPI 06-2025 Onerado'!$B$11:$F$9696,4,FALSE) -> 20.05 | H87: 0.0696 | I87: 1.4 | K87: TRUE
A88: C | B88: SINAPI | C88: 90443 | D88: =VLOOKUP(C88,'Comp SINAPI 06-2025 Onerado'!$B$11:$F$9696,2,FALSE) -> RASGO LINEAR MANUAL EM ALVENARIA, PARA RAMAIS/ DISTRIBUIÇÃO DE INSTALAÇÕES HIDRÁULICAS, DIÂMETROS MENORES OU IGUAIS A 40 MM. AF_09/2023 | E88: INHI - INSTALAÇÕES HIDROS SANITÁRIAS | F88: M | G88: =VLOOKUP(C88,'Comp SINAPI 06-2025 Onerado'!$B$11:$F$9696,4,FALSE) -> 9.32 | H88: 0.0722 | I88: 0.67 | K88: TRUE
A89: C | B89: SINAPI | C89: 93382 | D89: =VLOOKUP(C89,'Comp SINAPI 06-2025 Onerado'!$B$11:$F$9696,2,FALSE) -> REATERRO MANUAL DE VALAS, COM COMPACTADOR DE SOLOS DE PERCUSSÃO. AF_08/2023 | E89: MOVT - MOVIMENTO DE TERRA | F89: m³ | G89: =VLOOKUP(C89,'Comp SINAPI 06-2025 Onerado'!$B$11:$F$9696,4,FALSE) -> 30.51 | H89: 0.0072 | I89: 0.22 | K89: TRUE
A90: C | B90: SINAPI | C90: 89784 | D90: =VLOOKUP(C90,'Comp SINAPI 06-2025 Onerado'!$B$11:$F$9696,2,FALSE) -> TE, PVC, SERIE NORMAL, ESGOTO PREDIAL, DN 50 X 50 MM, JUNTA ELÁSTICA, FORNECIDO E INSTALADO EM RAMAL DE DESCARGA OU RAMAL DE ESGOTO SANITÁRIO. AF_08/2022 | E90: INHI - INSTALAÇÕES HIDROS SANITÁRIAS | F90: UN | G90: =VLOOKUP(C90,'Comp SINAPI 06-2025 Onerado'!$B$11:$F$9696,4,FALSE) -> 23.77 | H90: 0.0174 | I90: 0.41 | K90: TRUE
A91: C | B91: SINAPI | C91: 94210 | D91: =VLOOKUP(C91,'Comp SINAPI 06-2025 Onerado'!$B$11:$F$9696,2,FALSE) -> TELHAMENTO COM TELHA ONDULADA DE FIBROCIMENTO E = 6 MM, COM RECOBRIMENTO LATERAL DE 1 1/4 DE ONDA PARA TELHADO COM INCLINAÇÃO MÁXIMA DE 10°, COM ATÉ 2 ÁGUAS, INCLUSO IÇAMENTO. AF_07/2019 | E91: COBE - COBERTURA | F91: m² | G91: =VLOOKUP(C91,'Comp SINAPI 06-2025 Onerado'!$B$11:$F$9696,4,FALSE) -> 50.68 | H91: 1.3566 | I91: 68.75 | K91: TRUE
A92: C | B92: SINAPI | C92: 92000 | D92: =VLOOKUP(C92,'Comp SINAPI 06-2025 Onerado'!$B$11:$F$9696,2,FALSE) -> TOMADA BAIXA DE EMBUTIR (1 MÓDULO), 2P+T 10 A, INCLUINDO SUPORTE E PLACA - FORNECIMENTO E INSTALAÇÃO. AF_03/2023 | E92: INEL - INSTALAÇÃO ELÉTRICA/ELETRIFICAÇÃO E ILUMINAÇÃO EXTERNA | F92: UN | G92: =VLOOKUP(C92,'Comp SINAPI 06-2025 Onerado'!$B$11:$F$9696,4,FALSE) -> 30.82 | H92: 0.0348 | I92: 1.07 | K92: TRUE
A93: C | B93: SINAPI | C93: 92543 | D93: =VLOOKUP(C93,'Comp SINAPI 06-2025 Onerado'!$B$11:$F$9696,2,FALSE) -> TRAMA DE MADEIRA COMPOSTA POR TERÇAS PARA TELHADOS DE ATÉ 2 ÁGUAS PARA TELHA ONDULADA DE FIBROCIMENTO, METÁLICA, PLÁSTICA OU TERMOACÚSTICA, INCLUSO TRANSPORTE VERTICAL. AF_07/2019 | E93: COBE - COBERTURA | F93: m² | G93: =VLOOKUP(C93,'Comp SINAPI 06-2025 Onerado'!$B$11:$F$9696,4,FALSE) -> 25.38 | H93: 1.3566 | I93: 34.43 | K93: TRUE
A94: C | B94: SINAPI | C94: 89714 | D94: =VLOOKUP(C94,'Comp SINAPI 06-2025 Onerado'!$B$11:$F$9696,2,FALSE) -> TUBO PVC, SERIE NORMAL, ESGOTO PREDIAL, DN 100 MM, FORNECIDO E INSTALADO EM RAMAL DE DESCARGA OU RAMAL DE ESGOTO SANITÁRIO. AF_08/2022 | E94: INHI - INSTALAÇÕES HIDROS SANITÁRIAS | F94: M | G94: =VLOOKUP(C94,'Comp SINAPI 06-2025 Onerado'!$B$11:$F$9696,4,FALSE) -> 38.16 | H94: 0.047 | I94: 1.79 | K94: TRUE
A95: C | B95: SINAPI | C95: 89711 | D95: =VLOOKUP(C95,'Comp SINAPI 06-2025 Onerado'!$B$11:$F$9696,2,FALSE) -> TUBO PVC, SERIE NORMAL, ESGOTO PREDIAL, DN 40 MM, FORNECIDO E INSTALADO EM RAMAL DE DESCARGA OU RAMAL DE ESGOTO SANITÁRIO. AF_08/2022 | E95: INHI - INSTALAÇÕES HIDROS SANITÁRIAS | F95: M | G95: =VLOOKUP(C95,'Comp SINAPI 06-2025 Onerado'!$B$11:$F$9696,4,FALSE) -> 22.35 | H95: 0.1631 | I95: 3.65 | K95: TRUE
A96: C | B96: SINAPI | C96: 89712 | D96: =VLOOKUP(C96,'Comp SINAPI 06-2025 Onerado'!$B$11:$F$9696,2,FALSE) -> TUBO PVC, SERIE NORMAL, ESGOTO PREDIAL, DN 50 MM, FORNECIDO E INSTALADO EM RAMAL DE DESCARGA OU RAMAL DE ESGOTO SANITÁRIO. AF_08/2022 | E96: INHI - INSTALAÇÕES HIDROS SANITÁRIAS | F96: M | G96: =VLOOKUP(C96,'Comp SINAPI 06-2025 Onerado'!$B$11:$F$9696,4,FALSE) -> 27.39 | H96: 0.2235 | I96: 6.12 | K96: TRUE
A97: C | B97: SINAPI | C97: 86888 | D97: =VLOOKUP(C97,'Comp SINAPI 06-2025 Onerado'!$B$11:$F$9696,2,FALSE) -> VASO SANITÁRIO SIFONADO COM CAIXA ACOPLADA LOUÇA BRANCA - FORNECIMENTO E INSTALAÇÃO. AF_01/2020 | E97: INHI - INSTALAÇÕES HIDROS SANITÁRIAS | F97: UN | G97: =VLOOKUP(C97,'Comp SINAPI 06-2025 Onerado'!$B$11:$F$9696,4,FALSE) -> 533.2 | H97: 0.0522 | I97: 27.83 | K97: TRUE
A98: I | B98: SINAPI | C98: 11712 | D98: =VLOOKUP(C98,'Ins SINAPI 06-2025 Onerado'!$B$11:$F$9696,2,FALSE) -> CAIXA SIFONADA, PVC, 150 X 150 X 50 MM, COM GRELHA QUADRADA, BRANCA (NBR 5688) | E98: Material | F98: UN | G98: =VLOOKUP(C98,'Ins SINAPI 06-2025 Onerado'!$B$11:$F$9696,5,FALSE) -> 36.2 | H98: 0.0348 | I98: 1.26 | K98: TRUE
A99: I | B99: SINAPI | C99: 3080 | D99: =VLOOKUP(C99,'Ins SINAPI 06-2025 Onerado'!$B$11:$F$9696,2,FALSE) -> FECHADURA ESPELHO PARA PORTA EXTERNA, EM ACO INOX (MAQUINA, TESTA E CONTRA-TESTA) E EM ZAMAC (MACANETA, LINGUETA E TRINCOS) COM ACABAMENTO CROMADO, MAQUINA DE 40 MM, INCLUINDO CHAVE TIPO CILINDRO | E99: Material | F99: CJ | G99: =VLOOKUP(C99,'Ins SINAPI 06-2025 Onerado'!$B$11:$F$9696,5,FALSE) -> 78.9 | H99: 0.0348 | I99: 2.75 | K99: TRUE
A100: I | B100: SINAPI | C100: 11587 | D100: =VLOOKUP(C100,'Ins SINAPI 06-2025 Onerado'!$B$11:$F$9696,2,FALSE) -> FORRO DE PVC LISO, BRANCO, REGUA DE 10 CM, ESPESSURA APROXIMADA DE 8 MM (COM COLOCACAO / SEM ESTRUTURA METALICA) | E100: Material | F100: m² | G100: =VLOOKUP(C100,'Ins SINAPI 06-2025 Onerado'!$B$11:$F$9696,5,FALSE) -> 83.43 | H100: 0.9762 | I100: 81.44 | K100: TRUE
A101: I | B101: SINAPI | C101: 3659 | D101: =VLOOKUP(C101,'Ins SINAPI 06-2025 Onerado'!$B$11:$F$9696,2,FALSE) -> JUNCAO SIMPLES DE REDUCAO, PVC, DN 100 X 50 MM, SERIE NORMAL PARA ESGOTO PREDIAL | E101: Material | F101: UN | G101: =VLOOKUP(C101,'Ins SINAPI 06-2025 Onerado'!$B$11:$F$9696,5,FALSE) -> 15.05 | H101: 0.0174 | I101: 0.26 | K101: TRUE
A102: I | B102: SINAPI | C102: 3670 | D102: =VLOOKUP(C102,'Ins SINAPI 06-2025 Onerado'!$B$11:$F$9696,2,FALSE) -> JUNCAO SIMPLES, PVC, 45 GRAUS, DN 100 X 100 MM, SERIE NORMAL PARA ESGOTO PREDIAL | E102: Material | F102: UN | G102: =VLOOKUP(C102,'Ins SINAPI 06-2025 Onerado'!$B$11:$F$9696,5,FALSE) -> 19.32 | H102: 0.0348 | I102: 0.67 | K102: TRUE
A103: I | B103: SINAPI | C103: 11697 | D103: =VLOOKUP(C103,'Ins SINAPI 06-2025 Onerado'!$B$11:$F$9696,2,FALSE) -> MICTORIO COLETIVO ACO INOX (AISI 304), E = 0,8 MM, DE *100 X 40 X 30* CM (C X A X P) | E103: Material | F103: UN | G103: =VLOOKUP(C103,'Ins SINAPI 06-2025 Onerado'!$B$11:$F$9696,5,FALSE) -> 618.69 | H103: 0.0174 | I103: 10.77 | K103: TRUE
A104: I | B104: SINAPI | C104: 43777 | D104: =VLOOKUP(C104,'Ins SINAPI 06-2025 Onerado'!$B$11:$F$9696,2,FALSE) -> PORTA DE MADEIRA, FOLHA LEVE (NBR 15930), DE 600 X 2100 MM, E = 35 MM, NUCLEO COLMEIA, CAPA LISA EM HDF, ACABAMENTO MELAMINICO EM PADRAO MADEIRA | E104: Material | F104: UN | G104: =VLOOKUP(C104,'Ins SINAPI 06-2025 Onerado'!$B$11:$F$9696,5,FALSE) -> 244.01 | H104: 0.0447618 | I104: 10.92 | K104: TRUE
A105: I | B105: SINAPI | C105: 21112 | D105: =VLOOKUP(C105,'Ins SINAPI 06-2025 Onerado'!$B$11:$F$9696,2,FALSE) -> VALVULA DE DESCARGA EM METAL CROMADO PARA MICTORIO COM ACIONAMENTO POR PRESSAO E FECHAMENTO AUTOMATICO | E105: Material | F105: UN | G105: =VLOOKUP(C105,'Ins SINAPI 06-2025 Onerado'!$B$11:$F$9696,5,FALSE) -> 308.83 | H105: 0.0174 | I105: 5.37 | K105: TRUE
K106: FALSE
K107: FALSE
A108: Código | D108: 93583 ADAPTADO | K108: FALSE
A109: Descrição | D109: EXECUÇÃO DE CENTRAL DE FÔRMAS, PRODUÇÃO DE ARGAMASSA OU CONCRETO EM CANTEIRO DE OBRA, NÃO INCLUSO MOBILIÁRIO E EQUIPAMENTOS. AF_04/2016 | K109: FALSE
A110: Data | D110: 2024-06-01 | K110: FALSE
A111: Estado | D111: Bahia | K111: FALSE
A112: Tipo | D112: CANT - CANTEIRO DE OBRAS | K112: FALSE
A113: Unidade | D113: m² | K113: FALSE
A114: Valor sem Desoneração | D114: =SUM(I117:I131,I135:I145) -> 523.97 | K114: FALSE
K115: FALSE
A116: Natureza | B116: Fonte | C116: codigo | D116: Descrição | E116: Tipo | F116: Unidade | G116: Valor sem Desoneração | H116: Coeficiente | I116: Valor sem Desoneração | K116: FALSE
A117: C | B117: SINAPI | C117: 91924 | D117: =VLOOKUP(C117,'Comp SINAPI 06-2025 Onerado'!$B$11:$F$9696,2,FALSE) -> CABO DE COBRE FLEXÍVEL ISOLADO, 1,5 MM², ANTI-CHAMA 450/750 V, PARA CIRCUITOS TERMINAIS - FORNECIMENTO E INSTALAÇÃO. AF_03/2023 | E117: INEL - INSTALAÇÃO ELÉTRICA/ELETRIFICAÇÃO E ILUMINAÇÃO EXTERNA | F117: M | G117: =VLOOKUP(C117,'Comp SINAPI 06-2025 Onerado'!$B$11:$F$9696,4,FALSE) -> 3.25 | H117: 1,0821 | I117: 2.91 | K117: TRUE
A118: C | B118: SINAPI | C118: 92981 | D118: =VLOOKUP(C118,'Comp SINAPI 06-2025 Onerado'!$B$11:$F$9696,2,FALSE) -> CABO DE COBRE FLEXÍVEL ISOLADO, 16 MM², ANTI-CHAMA 450/750 V, PARA DISTRIBUIÇÃO - FORNECIMENTO E INSTALAÇÃO. AF_10/2020 | E118: INEL - INSTALAÇÃO ELÉTRICA/ELETRIFICAÇÃO E ILUMINAÇÃO EXTERNA | F118: M | G118: =VLOOKUP(C118,'Comp SINAPI 06-2025 Onerado'!$B$11:$F$9696,4,FALSE) -> 16.65 | H118: 0,4831 | I118: 6.66 | K118: TRUE
A119: C | B119: SINAPI | C119: 91926 | D119: =VLOOKUP(C119,'Comp SINAPI 06-2025 Onerado'!$B$11:$F$9696,2,FALSE) -> CABO DE COBRE FLEXÍVEL ISOLADO, 2,5 MM², ANTI-CHAMA 450/750 V, PARA CIRCUITOS TERMINAIS - FORNECIMENTO E INSTALAÇÃO. AF_03/2023 | E119: INEL - INSTALAÇÃO ELÉTRICA/ELETRIFICAÇÃO E ILUMINAÇÃO EXTERNA | F119: M | G119: =VLOOKUP(C119,'Comp SINAPI 06-2025 Onerado'!$B$11:$F$9696,4,FALSE) -> 4.69 | H119: 2,087 | I119: 8.05 | K119: TRUE
A120: C | B120: SINAPI | C120: 97886 | D120: =VLOOKUP(C120,'Comp SINAPI 06-2025 Onerado'!$B$11:$F$9696,2,FALSE) -> CAIXA ENTERRADA ELÉTRICA RETANGULAR, EM ALVENARIA COM TIJOLOS CERÂMICOS MACIÇOS, FUNDO COM BRITA, DIMENSÕES INTERNAS: 0,3X0,3X0,3 M. AF_12/2020 | E120: INEL - INSTALAÇÃO ELÉTRICA/ELETRIFICAÇÃO E ILUMINAÇÃO EXTERNA | F120: UN | G120: =VLOOKUP(C120,'Comp SINAPI 06-2025 Onerado'!$B$11:$F$9696,4,FALSE) -> 184.61 | H120: 0,0966 | I120: 14.63 | K120: TRUE
A121: C | B121: SINAPI | C121: 95805 | D121: =VLOOKUP(C121,'Comp SINAPI 06-2025 Onerado'!$B$11:$F$9696,2,FALSE) -> CONDULETE DE PVC, TIPO B, PARA ELETRODUTO DE PVC SOLDÁVEL DN 25 MM (3/4''), APARENTE - FORNECIMENTO E INSTALAÇÃO. AF_10/2022 | E121: INEL - INSTALAÇÃO ELÉTRICA/ELETRIFICAÇÃO E ILUMINAÇÃO EXTERNA | F121: UN | G121: =VLOOKUP(C121,'Comp SINAPI 06-2025 Onerado'!$B$11:$F$9696,4,FALSE) -> 23.47 | H121: 0,3865 | I121: 9.89 | K121: TRUE
A122: C | B122: SINAPI | C122: 101891 | D122: =VLOOKUP(C122,'Comp SINAPI 06-2025 Onerado'!$B$11:$F$9696,2,FALSE) -> DISJUNTOR MONOPOLAR TIPO NEMA, CORRENTE NOMINAL DE 35 ATÉ 50A - FORNECIMENTO E INSTALAÇÃO. AF_10/2020 | E122: INEL - INSTALAÇÃO ELÉTRICA/ELETRIFICAÇÃO E ILUMINAÇÃO EXTERNA | F122: UN | G122: =VLOOKUP(C122,'Comp SINAPI 06-2025 Onerado'!$B$11:$F$9696,4,FALSE) -> 27.91 | H122: 0,2899 | I122: 9.01 | K122: TRUE
A123: C | B123: SINAPI | C123: 91862 | D123: =VLOOKUP(C123,'Comp SINAPI 06-2025 Onerado'!$B$11:$F$9696,2,FALSE) -> ELETRODUTO RÍGIDO ROSCÁVEL, PVC, DN 20 MM (1/2"), PARA CIRCUITOS TERMINAIS, INSTALADO EM FORRO - FORNECIMENTO E INSTALAÇÃO. AF_03/2023 | E123: INEL - INSTALAÇÃO ELÉTRICA/ELETRIFICAÇÃO E ILUMINAÇÃO EXTERNA | F123: M | G123: =VLOOKUP(C123,'Comp SINAPI 06-2025 Onerado'!$B$11:$F$9696,4,FALSE) -> 9.74 | H123: 0,4251 | I123: 3.91 | K123: TRUE
A124: C | B124: SINAPI | C124: 91870 | D124: =VLOOKUP(C124,'Comp SINAPI 06-2025 Onerado'!$B$11:$F$9696,2,FALSE) -> ELETRODUTO RÍGIDO ROSCÁVEL, PVC, DN 20 MM (1/2"), PARA CIRCUITOS TERMINAIS, INSTALADO EM PAREDE - FORNECIMENTO E INSTALAÇÃO. AF_03/2023 | E124: INEL - INSTALAÇÃO ELÉTRICA/ELETRIFICAÇÃO E ILUMINAÇÃO EXTERNA | F124: M | G124: =VLOOKUP(C124,'Comp SINAPI 06-2025 Onerado'!$B$11:$F$9696,4,FALSE) -> 13.19 | H124: 0,4638 | I124: 5.53 | K124: TRUE
A125: C | B125: SINAPI | C125: 93358 | D125: =VLOOKUP(C125,'Comp SINAPI 06-2025 Onerado'!$B$11:$F$9696,2,FALSE) -> ESCAVAÇÃO MANUAL DE VALA. AF_09/2024 | E125: MOVT - MOVIMENTO DE TERRA | F125: m³ | G125: =VLOOKUP(C125,'Comp SINAPI 06-2025 Onerado'!$B$11:$F$9696,4,FALSE) -> 96.4 | H125: 0,0078 | I125: 0.62 | K125: TRUE
A126: C | B126: SINAPI | C126: 91170 | D126: =VLOOKUP(C126,'Comp SINAPI 06-2025 Onerado'!$B$11:$F$9696,2,FALSE) -> FIXAÇÃO DE TUBOS HORIZONTAIS DE PVC ÁGUA, PVC ESGOTO, PVC ÁGUA PLUVIAL, CPVC, PPR, COBRE OU AÇO, DIÂMETROS MENORES OU IGUAIS A 40 MM, COM ABRAÇADEIRA METÁLICA RÍGIDA TIPO U PERFIL 1 1/4", FIXADA EM PERFILADO EM LAJE. AF_09/2023_PS | E126: INHI - INSTALAÇÕES HIDROS SANITÁRIAS | F126: M | G126: =VLOOKUP(C126,'Comp SINAPI 06-2025 Onerado'!$B$11:$F$9696,4,FALSE) -> 11.52 | H126: 0,4251 | I126: 4.54 | K126: TRUE
A127: C | B127: SINAPI | C127: 91173 | D127: =VLOOKUP(C127,'Comp SINAPI 06-2025 Onerado'!$B$11:$F$9696,2,FALSE) -> FIXAÇÃO DE TUBOS VERTICAIS DE PVC ÁGUA, PVC ESGOTO, PVC ÁGUA PLUVIAL, CPVC, PPR, COBRE OU AÇO, DIÂMETROS MENORES OU IGUAIS A 40 MM, COM ABRAÇADEIRA METÁLICA RÍGIDA TIPO U PERFIL 1 1/4", FIXADA EM PERFILADO EM PAREDE. AF_09/2023_PS | E127: INHI - INSTALAÇÕES HIDROS SANITÁRIAS | F127: M | G127: =VLOOKUP(C127,'Comp SINAPI 06-2025 Onerado'!$B$11:$F$9696,4,FALSE) -> 4.29 | H127: 0,4638 | I127: 1.84 | K127: TRUE
A128: C | B128: SINAPI | C128: 96985 | D128: =VLOOKUP(C128,'Comp SINAPI 06-2025 Onerado'!$B$11:$F$9696,2,FALSE) -> HASTE DE ATERRAMENTO, DIÂMETRO 5/8", COM 3 METROS - FORNECIMENTO E INSTALAÇÃO. AF_08/2023 | E128: INEL - INSTALAÇÃO ELÉTRICA/ELETRIFICAÇÃO E ILUMINAÇÃO EXTERNA | F128: UN | G128: =VLOOKUP(C128,'Comp SINAPI 06-2025 Onerado'!$B$11:$F$9696,4,FALSE) -> 89.11 | H128: 0,0966 | I128: 10.39 | K128: TRUE
A129: C | B129: SINAPI | C129: 92023 | D129: =VLOOKUP(C129,'Comp SINAPI 06-2025 Onerado'!$B$11:$F$9696,2,FALSE) -> INTERRUPTOR SIMPLES (1 MÓDULO) COM 1 TOMADA DE EMBUTIR 2P+T 10 A, INCLUINDO SUPORTE E PLACA - FORNECIMENTO E INSTALAÇÃO. AF_03/2023 | E129: INEL - INSTALAÇÃO ELÉTRICA/ELETRIFICAÇÃO E ILUMINAÇÃO EXTERNA | F129: UN | G129: =VLOOKUP(C129,'Comp SINAPI 06-2025 Onerado'!$B$11:$F$9696,4,FALSE) -> 50.29 | H129: 0,0966 | I129: 4.67 | K129: TRUE
A130: C | B130: SINAPI | C130: 95241 | D130: =VLOOKUP(C130,'Comp SINAPI 06-2025 Onerado'!$B$11:$F$9696,2,FALSE) -> LASTRO DE CONCRETO MAGRO, APLICADO EM PISOS, LAJES SOBRE SOLO OU RADIERS, ESPESSURA DE 5 CM. AF_01/2024 | E130: FUES - FUNDAÇÕES E ESTRUTURAS | F130: m² | G130: =VLOOKUP(C130,'Comp SINAPI 06-2025 Onerado'!$B$11:$F$9696,4,FALSE) -> 42.28 | H130: 1,9256 | I130: 59.65 | K130: TRUE
A131: C | B131: SINAPI | C131: 97586 | D131: LUMINÁRIA TIPO CALHA, DE SOBREPOR, COM 2 LÂMPADAS TUBULARES FLUORESCENTES DE 36 W, COM REATOR DE PARTIDA RÁPIDA - FORNECIMENTO E INSTALAÇÃO. AF_02/2020 | E131: INEL - INSTALAÇÃO ELÉTRICA/ELETRIFICAÇÃO E ILUMINAÇÃO EXTERNA | F131: UN | G131: =SUM(I132:I134) -> 224.27 | H131: 0.1392 | I131: =ROUND(G131*H131,2) -> 31.22 | K131: TRUE
A132: C | B132: SINAPI | C132: 88247 | D132: =VLOOKUP(C132,'Comp SINAPI 06-2025 Onerado'!$B$11:$F$9696,2,FALSE) -> AUXILIAR DE ELETRICISTA COM ENCARGOS COMPLEMENTARES | E132: SEDI - SERVIÇOS DIVERSOS | F132: H | G132: =VLOOKUP(C132,'Comp SINAPI 06-2025 Onerado'!$B$11:$F$9696,4,FALSE) -> 25.56 | H132: 0.1727 | I132: =ROUND(G132*H132,2) -> 4.41 | K132: TRUE
A133: C | B133: SINAPI | C133: 88264 | D133: =VLOOKUP(C133,'Comp SINAPI 06-2025 Onerado'!$B$11:$F$9696,2,FALSE) -> ELETRICISTA COM ENCARGOS COMPLEMENTARES | E133: SEDI - SERVIÇOS DIVERSOS | F133: H | G133: =VLOOKUP(C133,'Comp SINAPI 06-2025 Onerado'!$B$11:$F$9696,4,FALSE) -> 33.94 | H133: 0.4144 | I133: =ROUND(G133*H133,2) -> 14.06 | K133: TRUE
A134: I | B134: SINAPI | C134: 3780 | D134: =VLOOKUP(C134,'Ins SINAPI 06-2025 Onerado'!$B$11:$F$9696,2,FALSE) -> LUMINARIA DE SOBREPOR EM CHAPA DE ACO PARA 1 LAMPADA FLUORESCENTE DE *36* W, ALETADA, COMPLETA (LAMPADA E REATOR INCLUSOS) | E134: Material | F134: UN | G134: =G64 -> 102.9 | H134: 2 | I134: =ROUND(G134*H134,2) -> 205.8 | K134: TRUE
A135: C | B135: SINAPI | C135: 98445 | D135: =VLOOKUP(C135,'Comp SINAPI 06-2025 Onerado'!$B$11:$F$9696,2,FALSE) -> PAREDE DE MADEIRA COMPENSADA PARA CONSTRUÇÃO TEMPORÁRIA EM CHAPA SIMPLES, EXTERNA, COM ÁREA LÍQUIDA MAIOR OU IGUAL A 6 M², COM VÃO. AF_03/2024 | E135: CANT - CANTEIRO DE OBRAS | F135: m² | G135: =VLOOKUP(C135,'Comp SINAPI 06-2025 Onerado'!$B$11:$F$9696,4,FALSE) -> 117.09 | H135: 0,1508 | I135: 28.43 | K135: TRUE
A136: C | B136: SINAPI | C136: 98441 | D136: =VLOOKUP(C136,'Comp SINAPI 06-2025 Onerado'!$B$11:$F$9696,2,FALSE) -> PAREDE DE MADEIRA COMPENSADA PARA CONSTRUÇÃO TEMPORÁRIA EM CHAPA SIMPLES, EXTERNA, SEM VÃO. AF_03/2024 | E136: CANT - CANTEIRO DE OBRAS | F136: m² | G136: =VLOOKUP(C136,'Comp SINAPI 06-2025 Onerado'!$B$11:$F$9696,4,FALSE) -> 98.31 | H136: 0,0966 | I136: 15.02 | K136: TRUE
A137: C | B137: SINAPI | C137: 98446 | D137: =VLOOKUP(C137,'Comp SINAPI 06-2025 Onerado'!$B$11:$F$9696,2,FALSE) -> PAREDE DE MADEIRA COMPENSADA PARA CONSTRUÇÃO TEMPORÁRIA EM CHAPA SIMPLES, EXTERNA, COM ÁREA LÍQUIDA MENOR QUE 6 M², COM VÃO. AF_03/2024 | E137: CANT - CANTEIRO DE OBRAS | F137: m² | G137: =VLOOKUP(C137,'Comp SINAPI 06-2025 Onerado'!$B$11:$F$9696,4,FALSE) -> 151.76 | H137: 0,1176 | I137: 28.54 | K137: TRUE
A138: C | B138: SINAPI | C138: 98441 | D138: =VLOOKUP(C138,'Comp SINAPI 06-2025 Onerado'!$B$11:$F$9696,2,FALSE) -> PAREDE DE MADEIRA COMPENSADA PARA CONSTRUÇÃO TEMPORÁRIA EM CHAPA SIMPLES, EXTERNA, SEM VÃO. AF_03/2024 | E138: CANT - CANTEIRO DE OBRAS | F138: m² | G138: =VLOOKUP(C138,'Comp SINAPI 06-2025 Onerado'!$B$11:$F$9696,4,FALSE) -> 98.31 | H138: 0.3007 | I138: =ROUND(G138*H138,2) -> 29.56 | K138: TRUE
A139: C | B139: SINAPI | C139: 88489 | D139: =VLOOKUP(C139,'Comp SINAPI 06-2025 Onerado'!$B$11:$F$9696,2,FALSE) -> PINTURA LÁTEX ACRÍLICA PREMIUM, APLICAÇÃO MANUAL EM PAREDES, DUAS DEMÃOS. AF_04/2023 | E139: PINT - PINTURAS | F139: m² | G139: =VLOOKUP(C139,'Comp SINAPI 06-2025 Onerado'!$B$11:$F$9696,4,FALSE) -> 13.96 | H139: 0,4761 | I139: 6.35 | K139: TRUE
A140: C | B140: SINAPI | C140: 101876 | D140: =VLOOKUP(C140,'Comp SINAPI 06-2025 Onerado'!$B$11:$F$9696,2,FALSE) -> QUADRO DE DISTRIBUIÇÃO DE ENERGIA EM PVC, DE EMBUTIR, SEM BARRAMENTO, PARA 6 DISJUNTORES - FORNECIMENTO E INSTALAÇÃO. AF_10/2020 | E140: INEL - INSTALAÇÃO ELÉTRICA/ELETRIFICAÇÃO E ILUMINAÇÃO EXTERNA | F140: UN | G140: =VLOOKUP(C140,'Comp SINAPI 06-2025 Onerado'!$B$11:$F$9696,4,FALSE) -> 82.06 | H140: 0,0966 | I140: 10.05 | K140: TRUE
A141: C | B141: SINAPI | C141: 94210 | D141: =VLOOKUP(C141,'Comp SINAPI 06-2025 Onerado'!$B$11:$F$9696,2,FALSE) -> TELHAMENTO COM TELHA ONDULADA DE FIBROCIMENTO E = 6 MM, COM RECOBRIMENTO LATERAL DE 1 1/4 DE ONDA PARA TELHADO COM INCLINAÇÃO MÁXIMA DE 10°, COM ATÉ 2 ÁGUAS, INCLUSO IÇAMENTO. AF_07/2019 | E141: COBE - COBERTURA | F141: m² | G141: =VLOOKUP(C141,'Comp SINAPI 06-2025 Onerado'!$B$11:$F$9696,4,FALSE) -> 50.68 | H141: 1,9256 | I141: 125 | K141: TRUE
A142: C | B142: SINAPI | C142: 92008 | D142: =VLOOKUP(C142,'Comp SINAPI 06-2025 Onerado'!$B$11:$F$9696,2,FALSE) -> TOMADA BAIXA DE EMBUTIR (2 MÓDULOS), 2P+T 10 A, INCLUINDO SUPORTE E PLACA - FORNECIMENTO E INSTALAÇÃO. AF_03/2023 | E142: INEL - INSTALAÇÃO ELÉTRICA/ELETRIFICAÇÃO E ILUMINAÇÃO EXTERNA | F142: UN | G142: =VLOOKUP(C142,'Comp SINAPI 06-2025 Onerado'!$B$11:$F$9696,4,FALSE) -> 47.1 | H142: 0,2899 | I142: 13.41 | K142: =_xlfn.ISFORMULA(G142) -> TRUE
A143: C | B143: SINAPI | C143: 92543 | D143: =VLOOKUP(C143,'Comp SINAPI 06-2025 Onerado'!$B$11:$F$9696,2,FALSE) -> TRAMA DE MADEIRA COMPOSTA POR TERÇAS PARA TELHADOS DE ATÉ 2 ÁGUAS PARA TELHA ONDULADA DE FIBROCIMENTO, METÁLICA, PLÁSTICA OU TERMOACÚSTICA, INCLUSO TRANSPORTE VERTICAL. AF_07/2019 | E143: COBE - COBERTURA | F143: m² | G143: =VLOOKUP(C143,'Comp SINAPI 06-2025 Onerado'!$B$11:$F$9696,4,FALSE) -> 25.38 | H143: 1,9256 | I143: 49.21 | K143: TRUE
A144: I | B144: SINAPI | C144: 10886 | D144: =VLOOKUP(C144,'Ins SINAPI 06-2025 Onerado'!$B$11:$F$9696,2,FALSE) -> EXTINTOR DE INCENDIO PORTATIL COM CARGA DE AGUA PRESSURIZADA DE 10 L, CLASSE A | E144: Material | F144: UN | G144: =VLOOKUP(C144,'Ins SINAPI 06-2025 Onerado'!$B$11:$F$9696,5,FALSE) -> 253.31 | H144: 0,0966 | I144: 22.82 | K144: TRUE
A145: I | B145: SINAPI | C145: 10891 | D145: =VLOOKUP(C145,'Ins SINAPI 06-2025 Onerado'!$B$11:$F$9696,2,FALSE) -> EXTINTOR DE INCENDIO PORTATIL COM CARGA DE PO QUIMICO SECO (PQS) DE 4 KG, CLASSE BC | E145: Material | F145: UN | G145: =VLOOKUP(C145,'Ins SINAPI 06-2025 Onerado'!$B$11:$F$9696,5,FALSE) -> 244.96 | H145: 0,0966 | I145: 22.06 | K145: TRUE
K146: FALSE
K147: FALSE
A148: Código | D148: 93210 ADAPTADO | K148: FALSE
A149: Descrição | D149: EXECUÇÃO DE REFEITÓRIO EM CANTEIRO DE OBRA EM CHAPA DE MADEIRA COMPENSADA, NÃO INCLUSO MOBILIÁRIO E EQUIPAMENTOS. AF_02/2016 | K149: FALSE
A150: Data | D150: 2024-06-01 | K150: FALSE
A151: Estado | D151: Bahia | K151: FALSE
A152: Tipo | D152: CANT - CANTEIRO DE OBRAS | K152: FALSE
A153: Unidade | D153: m² | K153: FALSE
A154: Valor sem Desoneração | D154: =SUM(I157:I179,I183:I188,I195:I208) -> 596.3895623 | K154: FALSE
K155: FALSE
A156: Natureza | B156: Fonte | C156: codigo | D156: Descrição | E156: Tipo | F156: Unidade | G156: Valor sem Desoneração | H156: Coeficiente | I156: Valor sem Desoneração | K156: FALSE
A157: C | B157: SINAPI | C157: 101165 | D157: =VLOOKUP(C157,'Comp SINAPI 06-2025 Onerado'!$B$11:$F$9696,2,FALSE) -> ALVENARIA DE EMBASAMENTO COM BLOCO ESTRUTURAL DE CONCRETO, DE 14X19X29CM E ARGAMASSA DE ASSENTAMENTO COM PREPARO EM BETONEIRA. AF_05/2020 | E157: FUES - FUNDAÇÕES E ESTRUTURAS | F157: m³ | G157: =VLOOKUP(C157,'Comp SINAPI 06-2025 Onerado'!$B$11:$F$9696,4,FALSE) -> 976.56 | H157: 0.04 | I157: =G157*H157 -> 39.0624 | K157: TRUE
A158: C | B158: SINAPI | C158: 86934 | D158: =VLOOKUP(C158,'Comp SINAPI 06-2025 Onerado'!$B$11:$F$9696,2,FALSE) -> BANCADA DE MÁRMORE SINTÉTICO 120 X 60CM, COM CUBA INTEGRADA, INCLUSO SIFÃO TIPO FLEXÍVEL EM PVC, VÁLVULA EM PLÁSTICO CROMADO TIPO AMERICANA E TORNEIRA CROMADA LONGA, DE PAREDE, PADRÃO POPULAR - FORNECIMENTO E INSTALAÇÃO. AF_01/2020 | E158: INHI - INSTALAÇÕES HIDROS SANITÁRIAS | F158: UN | G158: =VLOOKUP(C158,'Comp SINAPI 06-2025 Onerado'!$B$11:$F$9696,4,FALSE) -> 438.06 | H158: 0.0268 | I158: =G158*H158 -> 11.740008 | K158: TRUE
A159: C | B159: SINAPI | C159: 91924 | D159: =VLOOKUP(C159,'Comp SINAPI 06-2025 Onerado'!$B$11:$F$9696,2,FALSE) -> CABO DE COBRE FLEXÍVEL ISOLADO, 1,5 MM², ANTI-CHAMA 450/750 V, PARA CIRCUITOS TERMINAIS - FORNECIMENTO E INSTALAÇÃO. AF_03/2023 | E159: INEL - INSTALAÇÃO ELÉTRICA/ELETRIFICAÇÃO E ILUMINAÇÃO EXTERNA | F159: M | G159: =VLOOKUP(C159,'Comp SINAPI 06-2025 Onerado'!$B$11:$F$9696,4,FALSE) -> 3.25 | H159: 0.8591 | I159: 2.792075 | K159: TRUE
A160: C | B160: SINAPI | C160: 91926 | D160: =VLOOKUP(C160,'Comp SINAPI 06-2025 Onerado'!$B$11:$F$9696,2,FALSE) -> CABO DE COBRE FLEXÍVEL ISOLADO, 2,5 MM², ANTI-CHAMA 450/750 V, PARA CIRCUITOS TERMINAIS - FORNECIMENTO E INSTALAÇÃO. AF_03/2023 | E160: INEL - INSTALAÇÃO ELÉTRICA/ELETRIFICAÇÃO E ILUMINAÇÃO EXTERNA | F160: M | G160: =VLOOKUP(C160,'Comp SINAPI 06-2025 Onerado'!$B$11:$F$9696,4,FALSE) -> 4.69 | H160: 2.5503 | I160: 11.960907 | K160: TRUE
A161: C | B161: SINAPI | C161: 98102 | D161: =VLOOKUP(C161,'Comp SINAPI 06-2025 Onerado'!$B$11:$F$9696,2,FALSE) -> CAIXA DE GORDURA SIMPLES, CIRCULAR, EM CONCRETO PRÉ-MOLDADO, DIÂMETRO INTERNO = 0,4 M, ALTURA INTERNA = 0,4 M. AF_12/2020 | E161: INHI - INSTALAÇÕES HIDROS SANITÁRIAS | F161: UN | G161: =VLOOKUP(C161,'Comp SINAPI 06-2025 Onerado'!$B$11:$F$9696,4,FALSE) -> 181.36 | H161: 0.0268 | I161: 4.860448 | K161: TRUE
A162: C | B162: SINAPI | C162: 97906 | D162: =VLOOKUP(C162,'Comp SINAPI 06-2025 Onerado'!$B$11:$F$9696,2,FALSE) -> CAIXA ENTERRADA HIDRÁULICA RETANGULAR, EM ALVENARIA COM BLOCOS DE CONCRETO, DIMENSÕES INTERNAS: 0,6X0,6X0,6 M PARA REDE DE ESGOTO. AF_12/2020 | E162: INHI - INSTALAÇÕES HIDROS SANITÁRIAS | F162: UN | G162: =VLOOKUP(C162,'Comp SINAPI 06-2025 Onerado'!$B$11:$F$9696,4,FALSE) -> 487.51 | H162: 0.0268 | I162: 13.065268 | K162: TRUE
A163: C | B163: SINAPI | C163: 91937 | D163: =VLOOKUP(C163,'Comp SINAPI 06-2025 Onerado'!$B$11:$F$9696,2,FALSE) -> CAIXA OCTOGONAL 3" X 3", PVC, INSTALADA EM LAJE - FORNECIMENTO E INSTALAÇÃO. AF_03/2023 | E163: INEL - INSTALAÇÃO ELÉTRICA/ELETRIFICAÇÃO E ILUMINAÇÃO EXTERNA | F163: UN | G163: =VLOOKUP(C163,'Comp SINAPI 06-2025 Onerado'!$B$11:$F$9696,4,FALSE) -> 16.95 | H163: 0.1611 | I163: 2.730645 | K163: TRUE
A164: C | B164: SINAPI | C164: 88262 | D164: =VLOOKUP(C164,'Comp SINAPI 06-2025 Onerado'!$B$11:$F$9696,2,FALSE) -> CARPINTEIRO DE FORMAS COM ENCARGOS COMPLEMENTARES | E164: SEDI - SERVIÇOS DIVERSOS | F164: H | G164: =VLOOKUP(C164,'Comp SINAPI 06-2025 Onerado'!$B$11:$F$9696,4,FALSE) -> 33.07 | H164: 1.1155 | I164: 36.889585 | K164: TRUE
A165: C | B165: SINAPI | C165: 95805 | D165: =VLOOKUP(C165,'Comp SINAPI 06-2025 Onerado'!$B$11:$F$9696,2,FALSE) -> CONDULETE DE PVC, TIPO B, PARA ELETRODUTO DE PVC SOLDÁVEL DN 25 MM (3/4''), APARENTE - FORNECIMENTO E INSTALAÇÃO. AF_10/2022 | E165: INEL - INSTALAÇÃO ELÉTRICA/ELETRIFICAÇÃO E ILUMINAÇÃO EXTERNA | F165: UN | G165: =VLOOKUP(C165,'Comp SINAPI 06-2025 Onerado'!$B$11:$F$9696,4,FALSE) -> 23.47 | H165: 0.1879 | I165: 4.410013 | K165: TRUE
A166: C | B166: SINAPI | C166: 95811 | D166: =VLOOKUP(C166,'Comp SINAPI 06-2025 Onerado'!$B$11:$F$9696,2,FALSE) -> CONDULETE DE PVC, TIPO LB, PARA ELETRODUTO DE PVC SOLDÁVEL DN 25 MM (3/4''), APARENTE - FORNECIMENTO E INSTALAÇÃO. AF_10/2022 | E166: INEL - INSTALAÇÃO ELÉTRICA/ELETRIFICAÇÃO E ILUMINAÇÃO EXTERNA | F166: UN | G166: =VLOOKUP(C166,'Comp SINAPI 06-2025 Onerado'!$B$11:$F$9696,4,FALSE) -> 19.04 | H166: 0.0268 | I166: 0.510272 | K166: TRUE
A167: C | B167: SINAPI | C167: 91911 | D167: =VLOOKUP(C167,'Comp SINAPI 06-2025 Onerado'!$B$11:$F$9696,2,FALSE) -> CURVA 90 GRAUS PARA ELETRODUTO, PVC, ROSCÁVEL, DN 20 MM (1/2"), PARA CIRCUITOS TERMINAIS, INSTALADA EM PAREDE - FORNECIMENTO E INSTALAÇÃO. AF_03/2023 | E167: INEL - INSTALAÇÃO ELÉTRICA/ELETRIFICAÇÃO E ILUMINAÇÃO EXTERNA | F167: UN | G167: =VLOOKUP(C167,'Comp SINAPI 06-2025 Onerado'!$B$11:$F$9696,4,FALSE) -> 18.58 | H167: 0.1074 | I167: 1.995492 | K167: TRUE
A168: C | B168: SINAPI | C168: 101891 | D168: =VLOOKUP(C168,'Comp SINAPI 06-2025 Onerado'!$B$11:$F$9696,2,FALSE) -> DISJUNTOR MONOPOLAR TIPO NEMA, CORRENTE NOMINAL DE 35 ATÉ 50A - FORNECIMENTO E INSTALAÇÃO. AF_10/2020 | E168: INEL - INSTALAÇÃO ELÉTRICA/ELETRIFICAÇÃO E ILUMINAÇÃO EXTERNA | F168: UN | G168: =VLOOKUP(C168,'Comp SINAPI 06-2025 Onerado'!$B$11:$F$9696,4,FALSE) -> 27.91 | H168: 0.1074 | I168: 2.997534 | K168: TRUE
A169: C | B169: SINAPI | C169: 91862 | D169: =VLOOKUP(C169,'Comp SINAPI 06-2025 Onerado'!$B$11:$F$9696,2,FALSE) -> ELETRODUTO RÍGIDO ROSCÁVEL, PVC, DN 20 MM (1/2"), PARA CIRCUITOS TERMINAIS, INSTALADO EM FORRO - FORNECIMENTO E INSTALAÇÃO. AF_03/2023 | E169: INEL - INSTALAÇÃO ELÉTRICA/ELETRIFICAÇÃO E ILUMINAÇÃO EXTERNA | F169: M | G169: =VLOOKUP(C169,'Comp SINAPI 06-2025 Onerado'!$B$11:$F$9696,4,FALSE) -> 9.74 | H169: 0.3221 | I169: 3.137254 | K169: TRUE
A170: C | B170: SINAPI | C170: 91870 | D170: =VLOOKUP(C170,'Comp SINAPI 06-2025 Onerado'!$B$11:$F$9696,2,FALSE) -> ELETRODUTO RÍGIDO ROSCÁVEL, PVC, DN 20 MM (1/2"), PARA CIRCUITOS TERMINAIS, INSTALADO EM PAREDE - FORNECIMENTO E INSTALAÇÃO. AF_03/2023 | E170: INEL - INSTALAÇÃO ELÉTRICA/ELETRIFICAÇÃO E ILUMINAÇÃO EXTERNA | F170: M | G170: =VLOOKUP(C170,'Comp SINAPI 06-2025 Onerado'!$B$11:$F$9696,4,FALSE) -> 13.19 | H170: 0.5369 | I170: 7.081711 | K170: TRUE
A171: C | B171: SINAPI | C171: 93358 | D171: =VLOOKUP(C171,'Comp SINAPI 06-2025 Onerado'!$B$11:$F$9696,2,FALSE) -> ESCAVAÇÃO MANUAL DE VALA. AF_09/2024 | E171: MOVT - MOVIMENTO DE TERRA | F171: m³ | G171: =VLOOKUP(C171,'Comp SINAPI 06-2025 Onerado'!$B$11:$F$9696,4,FALSE) -> 96.4 | H171: 0.039 | I171: 3.7596 | K171: TRUE
A172: C | B172: SINAPI | C172: 91170 | D172: =VLOOKUP(C172,'Comp SINAPI 06-2025 Onerado'!$B$11:$F$9696,2,FALSE) -> FIXAÇÃO DE TUBOS HORIZONTAIS DE PVC ÁGUA, PVC ESGOTO, PVC ÁGUA PLUVIAL, CPVC, PPR, COBRE OU AÇO, DIÂMETROS MENORES OU IGUAIS A 40 MM, COM ABRAÇADEIRA METÁLICA RÍGIDA TIPO U PERFIL 1 1/4", FIXADA EM PERFILADO EM LAJE. AF_09/2023_PS | E172: INHI - INSTALAÇÕES HIDROS SANITÁRIAS | F172: M | G172: =VLOOKUP(C172,'Comp SINAPI 06-2025 Onerado'!$B$11:$F$9696,4,FALSE) -> 11.52 | H172: 0.3221 | I172: 3.710592 | K172: TRUE
A173: C | B173: SINAPI | C173: 91173 | D173: =VLOOKUP(C173,'Comp SINAPI 06-2025 Onerado'!$B$11:$F$9696,2,FALSE) -> FIXAÇÃO DE TUBOS VERTICAIS DE PVC ÁGUA, PVC ESGOTO, PVC ÁGUA PLUVIAL, CPVC, PPR, COBRE OU AÇO, DIÂMETROS MENORES OU IGUAIS A 40 MM, COM ABRAÇADEIRA METÁLICA RÍGIDA TIPO U PERFIL 1 1/4", FIXADA EM PERFILADO EM PAREDE. AF_09/2023_PS | E173: INHI - INSTALAÇÕES HIDROS SANITÁRIAS | F173: M | G173: =VLOOKUP(C173,'Comp SINAPI 06-2025 Onerado'!$B$11:$F$9696,4,FALSE) -> 4.29 | H173: 0.5369 | I173: 2.303301 | K173: TRUE
A174: C | B174: SINAPI | C174: 92023 | D174: =VLOOKUP(C174,'Comp SINAPI 06-2025 Onerado'!$B$11:$F$9696,2,FALSE) -> INTERRUPTOR SIMPLES (1 MÓDULO) COM 1 TOMADA DE EMBUTIR 2P+T 10 A, INCLUINDO SUPORTE E PLACA - FORNECIMENTO E INSTALAÇÃO. AF_03/2023 | E174: INEL - INSTALAÇÃO ELÉTRICA/ELETRIFICAÇÃO E ILUMINAÇÃO EXTERNA | F174: UN | G174: =VLOOKUP(C174,'Comp SINAPI 06-2025 Onerado'!$B$11:$F$9696,4,FALSE) -> 50.29 | H174: 0.0268 | I174: 1.347772 | K174: TRUE
A175: C | B175: SINAPI | C175: 89724 | D175: =VLOOKUP(C175,'Comp SINAPI 06-2025 Onerado'!$B$11:$F$9696,2,FALSE) -> JOELHO 90 GRAUS, PVC, SERIE NORMAL, ESGOTO PREDIAL, DN 40 MM, JUNTA SOLDÁVEL, FORNECIDO E INSTALADO EM RAMAL DE DESCARGA OU RAMAL DE ESGOTO SANITÁRIO. AF_08/2022 | E175: INHI - INSTALAÇÕES HIDROS SANITÁRIAS | F175: UN | G175: =VLOOKUP(C175,'Comp SINAPI 06-2025 Onerado'!$B$11:$F$9696,4,FALSE) -> 10.67 | H175: 0.0537 | I175: 0.572979 | K175: TRUE
A176: C | B176: SINAPI | C176: 95240 | D176: =VLOOKUP(C176,'Comp SINAPI 06-2025 Onerado'!$B$11:$F$9696,2,FALSE) -> LASTRO DE CONCRETO MAGRO, APLICADO EM PISOS, LAJES SOBRE SOLO OU RADIERS, ESPESSURA DE 3 CM. AF_01/2024 | E176: FUES - FUNDAÇÕES E ESTRUTURAS | F176: m² | G176: =VLOOKUP(C176,'Comp SINAPI 06-2025 Onerado'!$B$11:$F$9696,4,FALSE) -> 22.03 | H176: 0.009 | I176: 0.19827 | K176: TRUE
A177: C | B177: SINAPI | C177: 95241 | D177: =VLOOKUP(C177,'Comp SINAPI 06-2025 Onerado'!$B$11:$F$9696,2,FALSE) -> LASTRO DE CONCRETO MAGRO, APLICADO EM PISOS, LAJES SOBRE SOLO OU RADIERS, ESPESSURA DE 5 CM. AF_01/2024 | E177: FUES - FUNDAÇÕES E ESTRUTURAS | F177: m² | G177: =VLOOKUP(C177,'Comp SINAPI 06-2025 Onerado'!$B$11:$F$9696,4,FALSE) -> 42.28 | H177: 1.451 | I177: 61.34828 | K177: TRUE
A178: C | B178: SINAPI | C178: 86943 | D178: =VLOOKUP(C178,'Comp SINAPI 06-2025 Onerado'!$B$11:$F$9696,2,FALSE) -> LAVATÓRIO LOUÇA BRANCA SUSPENSO, 29,5 X 39CM OU EQUIVALENTE, PADRÃO POPULAR, INCLUSO SIFÃO FLEXÍVEL EM PVC, VÁLVULA E ENGATE FLEXÍVEL 30CM EM PLÁSTICO E TORNEIRA CROMADA DE MESA, PADRÃO POPULAR - FORNECIMENTO E INSTALAÇÃO. AF_01/2020 | E178: INHI - INSTALAÇÕES HIDROS SANITÁRIAS | F178: UN | G178: =VLOOKUP(C178,'Comp SINAPI 06-2025 Onerado'!$B$11:$F$9696,4,FALSE) -> 281.85 | H178: 0.0268 | I178: 7.55358 | K178: TRUE
A179: C | B179: SINAPI | C179: 97586 | D179: LUMINÁRIA TIPO CALHA, DE SOBREPOR, COM 2 LÂMPADAS TUBULARES FLUORESCENTES DE 36 W, COM REATOR DE PARTIDA RÁPIDA - FORNECIMENTO E INSTALAÇÃO. AF_02/2020 ADAPTADA | E179: INEL - INSTALAÇÃO ELÉTRICA/ELETRIFICAÇÃO E ILUMINAÇÃO EXTERNA | F179: UN | G179: =SUM(I180:I182) -> 121.378948 | H179: 0.1611 | I179: =G179*H179 -> 19.55414852 | K179: TRUE
A180: C | B180: SINAPI | C180: 88247 | D180: =VLOOKUP(C180,'Comp SINAPI 06-2025 Onerado'!$B$11:$F$9696,2,FALSE) -> AUXILIAR DE ELETRICISTA COM ENCARGOS COMPLEMENTARES | E180: SEDI - SERVIÇOS DIVERSOS | F180: H | G180: =VLOOKUP(C180,'Comp SINAPI 06-2025 Onerado'!$B$11:$F$9696,4,FALSE) -> 25.56 | H180: 0.1727 | I180: 4.414212 | K180: TRUE
A181: C | B181: SINAPI | C181: 88264 | D181: =VLOOKUP(C181,'Comp SINAPI 06-2025 Onerado'!$B$11:$F$9696,2,FALSE) -> ELETRICISTA COM ENCARGOS COMPLEMENTARES | E181: SEDI - SERVIÇOS DIVERSOS | F181: H | G181: =VLOOKUP(C181,'Comp SINAPI 06-2025 Onerado'!$B$11:$F$9696,4,FALSE) -> 33.94 | H181: 0.4144 | I181: 14.064736 | K181: TRUE
A182: C | B182: SINAPI | C182: 3780 | D182: =VLOOKUP(C182,'Ins SINAPI 06-2025 Onerado'!$B$11:$F$9696,2,FALSE) -> LUMINARIA DE SOBREPOR EM CHAPA DE ACO PARA 1 LAMPADA FLUORESCENTE DE *36* W, ALETADA, COMPLETA (LAMPADA E REATOR INCLUSOS) | E182: Material | F182: UN | G182: =G134 -> 102.9 | H182: 1 | I182: 102.9 | K182: TRUE
A183: C | B183: SINAPI | C183: 98445 | D183: =VLOOKUP(C183,'Comp SINAPI 06-2025 Onerado'!$B$11:$F$9696,2,FALSE) -> PAREDE DE MADEIRA COMPENSADA PARA CONSTRUÇÃO TEMPORÁRIA EM CHAPA SIMPLES, EXTERNA, COM ÁREA LÍQUIDA MAIOR OU IGUAL A 6 M², COM VÃO. AF_03/2024 | E183: CANT - CANTEIRO DE OBRAS | F183: m² | G183: =VLOOKUP(C183,'Comp SINAPI 06-2025 Onerado'!$B$11:$F$9696,4,FALSE) -> 117.09 | H183: 0.2264 | I183: 26.509176 | K183: TRUE
A184: C | B184: SINAPI | C184: 98441 | D184: =VLOOKUP(C184,'Comp SINAPI 06-2025 Onerado'!$B$11:$F$9696,2,FALSE) -> PAREDE DE MADEIRA COMPENSADA PARA CONSTRUÇÃO TEMPORÁRIA EM CHAPA SIMPLES, EXTERNA, SEM VÃO. AF_03/2024 | E184: CANT - CANTEIRO DE OBRAS | F184: m² | G184: =VLOOKUP(C184,'Comp SINAPI 06-2025 Onerado'!$B$11:$F$9696,4,FALSE) -> 98.31 | H184: 0.1449 | I184: 14.245119 | K184: TRUE
A185: C | B185: SINAPI | C185: 98446 | D185: =VLOOKUP(C185,'Comp SINAPI 06-2025 Onerado'!$B$11:$F$9696,2,FALSE) -> PAREDE DE MADEIRA COMPENSADA PARA CONSTRUÇÃO TEMPORÁRIA EM CHAPA SIMPLES, EXTERNA, COM ÁREA LÍQUIDA MENOR QUE 6 M², COM VÃO. AF_03/2024 | E185: CANT - CANTEIRO DE OBRAS | F185: m² | G185: =VLOOKUP(C185,'Comp SINAPI 06-2025 Onerado'!$B$11:$F$9696,4,FALSE) -> 151.76 | H185: 0.1765 | I185: 26.78564 | K185: TRUE
A186: C | B186: SINAPI | C186: 98441 | D186: =VLOOKUP(C186,'Comp SINAPI 06-2025 Onerado'!$B$11:$F$9696,2,FALSE) -> PAREDE DE MADEIRA COMPENSADA PARA CONSTRUÇÃO TEMPORÁRIA EM CHAPA SIMPLES, EXTERNA, SEM VÃO. AF_03/2024 | E186: CANT - CANTEIRO DE OBRAS | F186: m² | G186: =VLOOKUP(C186,'Comp SINAPI 06-2025 Onerado'!$B$11:$F$9696,4,FALSE) -> 98.31 | H186: 0.1668 | I186: 16.398108 | K186: TRUE
A187: C | B187: SINAPI | C187: 88489 | D187: =VLOOKUP(C187,'Comp SINAPI 06-2025 Onerado'!$B$11:$F$9696,2,FALSE) -> PINTURA LÁTEX ACRÍLICA PREMIUM, APLICAÇÃO MANUAL EM PAREDES, DUAS DEMÃOS. AF_04/2023 | E187: PINT - PINTURAS | F187: m² | G187: =VLOOKUP(C187,'Comp SINAPI 06-2025 Onerado'!$B$11:$F$9696,4,FALSE) -> 13.96 | H187: 1.4293 | I187: 19.953028 | K187: TRUE
A188: C | B188: SINAPI | C188: 89957 | D188: PONTO DE CONSUMO TERMINAL DE ÁGUA FRIA (SUBRAMAL) COM TUBULAÇÃO DE PVC, DN 25 MM, INSTALADO EM RAMAL DE ÁGUA, INCLUSOS RASGO E CHUMBAMENTO EM ALVENARIA. AF_12/2014 ATUALIZADA | E188: INHI - INSTALAÇÕES HIDROS SANITÁRIAS | F188: UN | G188: =SUM(I189:I194) -> 154.0586 | H188: 0.0537 | I188: 8.27294682 | K188: TRUE
A189: C | B189: SINAPI | C189: 90466 | D189: =VLOOKUP(C189,'Comp SINAPI 06-2025 Onerado'!$B$11:$F$9696,2,FALSE) -> CHUMBAMENTO LINEAR EM ALVENARIA PARA RAMAIS/DISTRIBUIÇÃO DE INSTALAÇÕES HIDRÁULICAS COM DIÂMETROS MENORES OU IGUAIS A 40 MM. AF_09/2023 | E189: INHI - INSTALAÇÕES HIDROS SANITÁRIAS | F189: M | G189: =VLOOKUP(C189,'Comp SINAPI 06-2025 Onerado'!$B$11:$F$9696,4,FALSE) -> 17.74 | H189: 2.14 | I189: 37.9636 | K189: TRUE
A190: C | B190: SINAPI | C190: 89366 | D190: =VLOOKUP(C190,'Comp SINAPI 06-2025 Onerado'!$B$11:$F$9696,2,FALSE) -> JOELHO 90 GRAUS COM BUCHA DE LATÃO, PVC, SOLDÁVEL, DN 25MM, X 3/4 INSTALADO EM RAMAL OU SUB-RAMAL DE ÁGUA - FORNECIMENTO E INSTALAÇÃO. AF_06/2022 | E190: INHI - INSTALAÇÕES HIDROS SANITÁRIAS | F190: UN | G190: =VLOOKUP(C190,'Comp SINAPI 06-2025 Onerado'!$B$11:$F$9696,4,FALSE) -> 16.07 | H190: 1 | I190: 16.07 | K190: TRUE
A191: C | B191: SINAPI | C191: 89362 | D191: =VLOOKUP(C191,'Comp SINAPI 06-2025 Onerado'!$B$11:$F$9696,2,FALSE) -> JOELHO 90 GRAUS, PVC, SOLDÁVEL, DN 25MM, INSTALADO EM RAMAL OU SUB-RAMAL DE ÁGUA - FORNECIMENTO E INSTALAÇÃO. AF_06/2022 | E191: INHI - INSTALAÇÕES HIDROS SANITÁRIAS | F191: UN | G191: =VLOOKUP(C191,'Comp SINAPI 06-2025 Onerado'!$B$11:$F$9696,4,FALSE) -> 10.41 | H191: 1.18 | I191: 12.2838 | K191: TRUE
A192: C | B192: SINAPI | C192: 90443 | D192: =VLOOKUP(C192,'Comp SINAPI 06-2025 Onerado'!$B$11:$F$9696,2,FALSE) -> RASGO LINEAR MANUAL EM ALVENARIA, PARA RAMAIS/ DISTRIBUIÇÃO DE INSTALAÇÕES HIDRÁULICAS, DIÂMETROS MENORES OU IGUAIS A 40 MM. AF_09/2023 | E192: INHI - INSTALAÇÕES HIDROS SANITÁRIAS | F192: M | G192: =VLOOKUP(C192,'Comp SINAPI 06-2025 Onerado'!$B$11:$F$9696,4,FALSE) -> 9.32 | H192: 2.14 | I192: 19.9448 | K192: TRUE
A193: C | B193: SINAPI | C193: 89395 | D193: =VLOOKUP(C193,'Comp SINAPI 06-2025 Onerado'!$B$11:$F$9696,2,FALSE) -> TE, PVC, SOLDÁVEL, DN 25MM, INSTALADO EM RAMAL OU SUB-RAMAL DE ÁGUA - FORNECIMENTO E INSTALAÇÃO. AF_06/2022 | E193: INHI - INSTALAÇÕES HIDROS SANITÁRIAS | F193: UN | G193: =VLOOKUP(C193,'Comp SINAPI 06-2025 Onerado'!$B$11:$F$9696,4,FALSE) -> 14.26 | H193: 0.89 | I193: 12.6914 | K193: TRUE
A194: C | B194: SINAPI | C194: 89356 | D194: =VLOOKUP(C194,'Comp SINAPI 06-2025 Onerado'!$B$11:$F$9696,2,FALSE) -> TUBO, PVC, SOLDÁVEL, DE 25MM, INSTALADO EM RAMAL OU SUB-RAMAL DE ÁGUA - FORNECIMENTO E INSTALAÇÃO. AF_06/2022 | E194: INHI - INSTALAÇÕES HIDROS SANITÁRIAS | F194: M | G194: =VLOOKUP(C194,'Comp SINAPI 06-2025 Onerado'!$B$11:$F$9696,4,FALSE) -> 25.75 | H194: 2.14 | I194: 55.105 | K194: TRUE
A195: C | B195: SINAPI | C195: 90822 | D195: =VLOOKUP(C195,'Comp SINAPI 06-2025 Onerado'!$B$11:$F$9696,2,FALSE) -> PORTA DE MADEIRA PARA PINTURA, SEMI-OCA (LEVE OU MÉDIA), 80X210CM, ESPESSURA DE 3,5CM, INCLUSO DOBRADIÇAS - FORNECIMENTO E INSTALAÇÃO. AF_12/2019 | E195: ESQV - ESQUADRIAS/FERRAGENS/VIDROS | F195: UN | G195: =VLOOKUP(C195,'Comp SINAPI 06-2025 Onerado'!$B$11:$F$9696,4,FALSE) -> 397.95 | H195: 0.0268 | I195: 10.66506 | K195: TRUE
A196: C | B196: SINAPI | C196: 101876 | D196: =VLOOKUP(C196,'Comp SINAPI 06-2025 Onerado'!$B$11:$F$9696,2,FALSE) -> QUADRO DE DISTRIBUIÇÃO DE ENERGIA EM PVC, DE EMBUTIR, SEM BARRAMENTO, PARA 6 DISJUNTORES - FORNECIMENTO E INSTALAÇÃO. AF_10/2020 | E196: INEL - INSTALAÇÃO ELÉTRICA/ELETRIFICAÇÃO E ILUMINAÇÃO EXTERNA | F196: UN | G196: =VLOOKUP(C196,'Comp SINAPI 06-2025 Onerado'!$B$11:$F$9696,4,FALSE) -> 82.06 | H196: 0.0268 | I196: 2.199208 | K196: TRUE
A197: C | B197: SINAPI | C197: 93382 | D197: =VLOOKUP(C197,'Comp SINAPI 06-2025 Onerado'!$B$11:$F$9696,2,FALSE) -> REATERRO MANUAL DE VALAS, COM COMPACTADOR DE SOLOS DE PERCUSSÃO. AF_08/2023 | E197: MOVT - MOVIMENTO DE TERRA | F197: m³ | G197: =VLOOKUP(C197,'Comp SINAPI 06-2025 Onerado'!$B$11:$F$9696,4,FALSE) -> 30.51 | H197: 0.01 | I197: 0.3051 | K197: TRUE
A198: C | B198: SINAPI | C198: 94210 | D198: =VLOOKUP(C198,'Comp SINAPI 06-2025 Onerado'!$B$11:$F$9696,2,FALSE) -> TELHAMENTO COM TELHA ONDULADA DE FIBROCIMENTO E = 6 MM, COM RECOBRIMENTO LATERAL DE 1 1/4 DE ONDA PARA TELHADO COM INCLINAÇÃO MÁXIMA DE 10°, COM ATÉ 2 ÁGUAS, INCLUSO IÇAMENTO. AF_07/2019 | E198: COBE - COBERTURA | F198: m² | G198: =VLOOKUP(C198,'Comp SINAPI 06-2025 Onerado'!$B$11:$F$9696,4,FALSE) -> 50.68 | H198: 1.451 | I198: 73.53668 | K198: TRUE
A199: C | B199: SINAPI | C199: 92000 | D199: =VLOOKUP(C199,'Comp SINAPI 06-2025 Onerado'!$B$11:$F$9696,2,FALSE) -> TOMADA BAIXA DE EMBUTIR (1 MÓDULO), 2P+T 10 A, INCLUINDO SUPORTE E PLACA - FORNECIMENTO E INSTALAÇÃO. AF_03/2023 | E199: INEL - INSTALAÇÃO ELÉTRICA/ELETRIFICAÇÃO E ILUMINAÇÃO EXTERNA | F199: UN | G199: =VLOOKUP(C199,'Comp SINAPI 06-2025 Onerado'!$B$11:$F$9696,4,FALSE) -> 30.82 | H199: 0.0268 | I199: 0.825976 | K199: TRUE
A200: C | B200: SINAPI | C200: 92008 | D200: =VLOOKUP(C200,'Comp SINAPI 06-2025 Onerado'!$B$11:$F$9696,2,FALSE) -> TOMADA BAIXA DE EMBUTIR (2 MÓDULOS), 2P+T 10 A, INCLUINDO SUPORTE E PLACA - FORNECIMENTO E INSTALAÇÃO. AF_03/2023 | E200: INEL - INSTALAÇÃO ELÉTRICA/ELETRIFICAÇÃO E ILUMINAÇÃO EXTERNA | F200: UN | G200: =VLOOKUP(C200,'Comp SINAPI 06-2025 Onerado'!$B$11:$F$9696,4,FALSE) -> 47.1 | H200: 0.1342 | I200: 6.32082 | K200: TRUE
A201: C | B201: SINAPI | C201: 92543 | D201: =VLOOKUP(C201,'Comp SINAPI 06-2025 Onerado'!$B$11:$F$9696,2,FALSE) -> TRAMA DE MADEIRA COMPOSTA POR TERÇAS PARA TELHADOS DE ATÉ 2 ÁGUAS PARA TELHA ONDULADA DE FIBROCIMENTO, METÁLICA, PLÁSTICA OU TERMOACÚSTICA, INCLUSO TRANSPORTE VERTICAL. AF_07/2019 | E201: COBE - COBERTURA | F201: m² | G201: =VLOOKUP(C201,'Comp SINAPI 06-2025 Onerado'!$B$11:$F$9696,4,FALSE) -> 25.38 | H201: 1.451 | I201: 36.82638 | K201: TRUE
A202: C | B202: SINAPI | C202: 89714 | D202: =VLOOKUP(C202,'Comp SINAPI 06-2025 Onerado'!$B$11:$F$9696,2,FALSE) -> TUBO PVC, SERIE NORMAL, ESGOTO PREDIAL, DN 100 MM, FORNECIDO E INSTALADO EM RAMAL DE DESCARGA OU RAMAL DE ESGOTO SANITÁRIO. AF_08/2022 | E202: INHI - INSTALAÇÕES HIDROS SANITÁRIAS | F202: M | G202: =VLOOKUP(C202,'Comp SINAPI 06-2025 Onerado'!$B$11:$F$9696,4,FALSE) -> 38.16 | H202: 0.1423 | I202: 5.430168 | K202: TRUE
A203: C | B203: SINAPI | C203: 89711 | D203: =VLOOKUP(C203,'Comp SINAPI 06-2025 Onerado'!$B$11:$F$9696,2,FALSE) -> TUBO PVC, SERIE NORMAL, ESGOTO PREDIAL, DN 40 MM, FORNECIDO E INSTALADO EM RAMAL DE DESCARGA OU RAMAL DE ESGOTO SANITÁRIO. AF_08/2022 | E203: INHI - INSTALAÇÕES HIDROS SANITÁRIAS | F203: M | G203: =VLOOKUP(C203,'Comp SINAPI 06-2025 Onerado'!$B$11:$F$9696,4,FALSE) -> 22.35 | H203: 0.0886 | I203: 1.98021 | K203: TRUE
... 5 more rows

Sheet BDI serv
A1: =Resumo!A1 -> Ministério da Integração e do Desenvolvimento Regional
A2: =Resumo!A2 -> Companhia de Desenvolvimento dos Vales do São Francisco e do Parnaíba
A4: COMPOSIÇÃO DE BDI - SERVIÇOS - NÃO DESONERADO
A5: OBRA: | B5: =Resumo!B5 -> Execução de manutenção e recuperação nas barragens de Poções, Poço da Pedra, Taquarandi, Caatinga de Moura e Tamboril II, localizadas no estado da Bahia. | D5: BDI (serv.): | E5: =D23 -> 0.2321
A6: LOCAL: | B6: =Resumo!B6 -> BARRAGENS DA BAHIA | D6: BDI (forn.): | E6: ='BDI forn'!E6 -> 0.136
A7: DATA BASE: | B7: =Resumo!B7 -> 2025-08-01
A8: PRAZO: | B8: =Resumo!B8 -> 210 dias
A9: ITEM | B9: DESCRIÇÃO | C9: SIGLA | D9: % APLICADO | E9: REFERÊNCIA TCU (ACÓRDÃO Nº 2622/2013)
E10: 1º QUARTIL | F10: 2º QUARTIL | G10: 3º QUARTIL
A11: 1 | B11: ADMINISTRAÇÃO CENTRAL | C11: AC | D11: =E11 -> 0.04 | E11: 0.04 | F11: 0.0552 | G11: 0.0785
A12: 2 | B12: IMPOSTOS | C12: T | D12: =SUM(D13:D16) -> 0.0665
A13: 2.1 | B13: ISS (*) | D13: 0.03 | E13: - | F13: - | G13: -
A14: 2.2 | B14: PIS | D14: 0.0065 | E14: - | F14: - | G14: -
A15: 2.3 | B15: Cofins | D15: 0.03 | E15: - | F15: - | G15: -
A16: 2.4 | B16: Contribuição previdênciária sobre a receita bruta (CPRB) | E16: - | F16: - | G16: -
A17: 3 | B17: SEGURO, GARANTIA E RISCO | D17: =SUM(D18:D20) -> 0.0227
A18: 3.1 | B18: Seguro | C18: S | D18: =E18 -> 0.0081 | E18: 0.0081 | F18: 0.0122 | G18: 0.0199
A19: 3.2 | B19: Garantia | C19: G
A20: 3.3 | B20: Risco | C20: R | D20: =E20 -> 0.0146 | E20: 0.0146 | F20: 0.0232 | G20: 0.0316
A21: 4 | B21: DESPESAS FINANCEIRAS | C21: DF | D21: =F21 -> 0.0102 | E21: 0.0094 | F21: 0.0102 | G21: 0.01363
A22: 5 | B22: LUCRO | C22: L | D22: =E22 -> 0.0714 | E22: 0.0714 | F22: 0.084 | G22: 0.1043
B23: BDI ADOTADO: | D23: =ROUND(((((1+D11+D17)*(1+D21)*(1+D22))/(1-D12))-1),4) -> 0.2321
A24: Considerações: O BDI foi calculado através da seguinte fórmula, regulamentada pelo Acórdão Nº 2622/2013 – TCU.
H173: =SUM(H174:H177) -> 0
D177: mec | F177: 2 | G177: 128

Sheet BDI forn
A1: =Resumo!A1 -> Ministério da Integração e do Desenvolvimento Regional
A2: =Resumo!A2 -> Companhia de Desenvolvimento dos Vales do São Francisco e do Parnaíba
A4: COMPOSIÇÃO DE BDI - FORNECIMENTO - NÃO DESONERADO
A5: ='Caatinga de Moura'!A5 -> OBRA: | B5: =Resumo!B5 -> Execução de manutenção e recuperação nas barragens de Poções, Poço da Pedra, Taquarandi, Caatinga de Moura e Tamboril II, localizadas no estado da Bahia. | D5: BDI (serv.): | E5: ='BDI serv'!E5 -> 0.2321
A6: ='Caatinga de Moura'!A6 -> LOCAL: | B6: =Resumo!B6 -> BARRAGENS DA BAHIA | D6: BDI (forn.): | E6: =D23 -> 0.136
A7: ='Caatinga de Moura'!A7 -> DATA BASE: | B7: =Resumo!B7 -> 2025-08-01
A8: ='Caatinga de Moura'!A8 -> PRAZO: | B8: =Resumo!B8 -> 210 dias
A9: ITEM | B9: DESCRIÇÃO | C9: SIGLA | D9: % APLICADO | E9: REFERÊNCIA TCU (ACÓRDÃO Nº 2622/2013)
E10: 1º QUARTIL | F10: 2º QUARTIL | G10: 3º QUARTIL
A11: 1 | B11: ADMINISTRAÇÃO CENTRAL | C11: AC | D11: 0.03 | E11: 0.015 | F11: 0.0345 | G11: 0.0449
A12: 2 | B12: IMPOSTOS | C12: T | D12: =SUM(D13:D16) -> 0.0365
A13: 2.1 | B13: ISS (*) | E13: - | F13: - | G13: -
A14: 2.2 | B14: PIS | D14: 0.0065 | E14: - | F14: - | G14: -
A15: 2.3 | B15: Cofins | D15: 0.03 | E15: - | F15: - | G15: -
A16: 2.4 | B16: Contribuição previdênciária sobre a receita bruta (CPRB) | E16: - | F16: - | G16: -
A17: 3 | B17: SEGURO, GARANTIA E RISCO | D17: =SUM(D18:D20) -> 0.0086
A18: 3.1 | B18: Seguro | C18: S | D18: =E18 -> 0.003 | E18: 0.003 | F18: 0.0048 | G18: 0.0082
A19: 3.2 | B19: Garantia | C19: G
A20: 3.3 | B20: Risco | C20: R | D20: =E20 -> 0.0056 | E20: 0.0056 | F20: 0.0085 | G20: 0.0089
A21: 4 | B21: DESPESAS FINANCEIRAS | C21: DF | D21: =F21 -> 0.0085 | E21: 0.0085 | F21: 0.0085 | G21: 0.0111
A22: 5 | B22: LUCRO | C22: L | D22: 0.045 | E22: 0.035 | F22: 0.0511 | G22: 0.0622
B23: BDI ADOTADO: | D23: =ROUND(((((1+D11+D17)*(1+D21)*(1+D22))/(1-D12))-1),4) -> 0.136
A24: Considerações: O BDI foi calculado através da seguinte fórmula, regulamentada pelo Acórdão Nº 2622/2013 – TCU.
H173: =SUM(H174:H177) -> 0
D177: mec | F177: 2 | G177: 128

Sheet Memorial de cálculo
A1: Ministério da Integração e do Desenvolvimento Regional
A2: Companhia de desenvolvimento dos Vales do São Francisco e do Parnaíba | I2: Quantitativos por Barragem
A4: MEMORIAL DE CÁLCULO | I4: Poções | J4: Poço da Pedra | K4: Taquarandi | L4: Caatinga de Moura | M4: Tamboril II | N4: MÉDIA
A5: OBRA: | B5: =Resumo!B5 -> Execução de manutenção e recuperação nas barragens de Poções, Poço da Pedra, Taquarandi, Caatinga de Moura e Tamboril II, localizadas no estado da Bahia. | D5: DESLOCAMENTO - Juazeiro para Barragem (km): | H5: =N5 -> 188.32 | I5: =I7+I8 -> 60.6 | J5: =J7+J8 -> 97 | K5: 226 | L5: 236 | M5: 322 | N5: =AVERAGE(I5:M5) -> 188.32
A6: LOCAL: | B6: =Resumo!B6 -> BARRAGENS DA BAHIA
A7: DATA BASE: | B7: =Resumo!B7 -> 2025-08-01 | D7: VIA URBANA PAVIMENTADA - Juazeiro para Barragem (km) | H7: =N7 -> 167.3 | I7: 39.6 | J7: 72.9 | K7: 200 | L7: 202 | M7: 322 | N7: =AVERAGE(I7:M7) -> 167.3
A8: PRAZO: | B8: =Resumo!B8 -> 210 dias | D8: REVESTIMENTO PRIMÁRIO - Juazeiro para Barragem (km) | H8: =N8 -> 21.02 | I8: 21 | J8: 24.1 | K8: 26 | L8: 34 | M8: 0 | N8: =AVERAGE(I8:M8) -> 21.02
A9: ITEM | B9: DESCRIÇÃO | C9: UNID. | D9: PARÂMETRO 1 | E9: PARÂMETRO 2 | F9: PARÂMETRO 3 | G9: PARÂMETRO 4 | H9: TOTAL
A11: =CPU!B10 -> CPU.01 | B11: =VLOOKUP(A11,CPU!$B$10:$G$5119,2,0) -> Administração Local | C11: =VLOOKUP(A11,CPU!$B$10:$G$5119,3,0) -> mês | D11: QUANT.PESSOAS | E11: HORAS DIÁRIA | F11: DIAS TRABALHADOS NO MÊS | G11: MESES | H11: 3
B12: =CPU!C15 -> Engenheiro Civil De Obra Pleno Com Encargos Complementares | C12: h | D12: 1 | E12: 1.5 | F12: =4*5 -> 20 | H12: =D12*E12*F12 -> 30
B13: =CPU!C16 -> Encarregado Geral De Obras Com Encargos Complementares | C13: mês | D13: 1 | G13: 0.8 | H13: =D13*G13 -> 0.8
B14: =CPU!C17 -> VIGIA - AN | C14: h | D14: 4 | E14: 12 | F14: 15 | H14: =D14*E14*F14 -> 720
B15: A escala de trabalho 12x36 para vigias noturnos consiste em trabalhar 12 horas seguidas e folgar 36 horas
A17: =CPU!B19 -> CPU.02 | B17: =VLOOKUP(A17,CPU!$B$10:$G$5119,2,0) -> Mobilização e desmobilização de instalação do canteiro | C17: =VLOOKUP(A17,CPU!$B$10:$G$5119,3,0) -> un | H17: 1
A18: 100946 | B18: =IF(I18="ca",VLOOKUP(A18,'Comp SINAPI 06-2025 Onerado'!B:C,2,0),VLOOKUP(A18,'Ins SINAPI 06-2025 Onerado'!B:C,2,0)) -> TRANSPORTE COM CAMINHÃO CARROCERIA 9T, EM VIA URBANA EM REVESTIMENTO PRIMÁRIO (UNIDADE: TXKM). AF_07/2020 | C18: =IF(I18="ca",VLOOKUP(A18,'Comp SINAPI 06-2025 Onerado'!B:D,3,0),VLOOKUP(A18,'Ins SINAPI 06-2025 Onerado'!B:D,3,0)) -> TXKM | H18: =$C$20*$D$20*$E$20 -> 210.2 | I18: ca
C19: T | D19: km | E19: N. viagens
C20: 5 | D20: =H8 -> 21.02 | E20: 2
A21: 100947 | B21: =IF(I21="ca",VLOOKUP(A21,'Comp SINAPI 06-2025 Onerado'!B:C,2,0),VLOOKUP(A21,'Ins SINAPI 06-2025 Onerado'!B:C,2,0)) -> TRANSPORTE COM CAMINHÃO CARROCERIA 9T, EM VIA URBANA PAVIMENTADA, DMT ATÉ 30KM (UNIDADE: TXKM). AF_07/2020 | C21: =IF(I21="ca",VLOOKUP(A21,'Comp SINAPI 06-2025 Onerado'!B:D,3,0),VLOOKUP(A21,'Ins SINAPI 06-2025 Onerado'!B:D,3,0)) -> TXKM | H21: =$C$23*$D$23*$E$23 -> 300 | I21: ca
C22: T | D22: km | E22: N. viagens
C23: 5 | D23: 30 | E23: 2
A24: 100948 | B24: =IF(I24="ca",VLOOKUP(A24,'Comp SINAPI 06-2025 Onerado'!B:C,2,0),VLOOKUP(A24,'Ins SINAPI 06-2025 Onerado'!B:C,2,0)) -> TRANSPORTE COM CAMINHÃO CARROCERIA 9T, EM VIA URBANA PAVIMENTADA, ADICIONAL PARA DMT EXCEDENTE A 30 KM (UNIDADE: TXKM). AF_07/2020 | C24: =IF(I24="ca",VLOOKUP(A24,'Comp SINAPI 06-2025 Onerado'!B:D,3,0),VLOOKUP(A24,'Ins SINAPI 06-2025 Onerado'!B:D,3,0)) -> TXKM | H24: =$C$26*$D$26*$E$26 -> 1373 | I24: ca
C25: T | D25: km | E25: N. viagens
C26: 5 | D26: =H5-D23-D20 -> 137.3 | E26: 2
A28: =CPU!B29 -> CPU.03 | B28: =VLOOKUP(A28,CPU!$B$10:$G$5119,2,0) -> Execução de canteiro de obras, inclusive, limpeza, refeitório, sanitários e central de formas | C28: =VLOOKUP(A28,CPU!$B$10:$G$5119,3,0) -> m2 | H28: =SUM(H29:H31) -> 28.5
B29: Área do Refeitório Em Canteiro De Obra | C29: m2 | D29: 1 | E29: 3 | F29: 2.5 | H29: =D29*E29*F29 -> 7.5
B30: Área do Sanitário Em Canteiro De Obra | C30: m2 | D30: 1 | E30: 4.5 | F30: 2 | H30: =D30*E30*F30 -> 9
B31: Área da Central de Fôrmas Em Canteiro De Obra | C31: m2 | D31: 1 | E31: 4 | F31: 3 | H31: =D31*E31*F31 -> 12
B32: Mao de obra | C32: m2 | D32: QUANT.PESSOAS | E32: RENDIMENTO (H/M2) | F32: m2 | G32: HORAS | H32: DIAS | I32: DIAS | J32: DIAS | K32: DIAS | L32: DIAS | M32: DIAS
B33: Carpinteiro | C33: h | D33: 2 | E33: =1.1155/D33 -> 0.55775 | F33: 1 | G33: =F33*(E33) -> 0.55775 | H33: =G33/8 -> 0.06971875 | I33: =$H$28*$E$33/8 -> 1.986984375 | J33: 1.986984375 | K33: 1.986984375 | L33: 1.986984375 | M33: 1.986984375
A35: =CPU!B40 -> CPU.04 | B35: =VLOOKUP(A35,CPU!$B$10:$G$5119,2,0) -> Limpeza de vegetação | C35: =VLOOKUP(A35,CPU!$B$10:$G$5119,3,0) -> m2 | I35: ='Caatinga de Moura'!F27 -> 4150
B36: Mao de obra | C36: m2 | D36: QUANT.PESSOAS | E36: RENDIMENTO (H/M2) | F36: m2 | G36: HORAS | H36: DIAS | I36: DIAS | J36: DIAS | K36: DIAS | L36: DIAS | M36: DIAS | N36: DIAS
B37: Servente | C37: h | D37: 4 | E37: =20/1000/D37 -> 0.005 | F37: 1 | G37: =F37*(E37) -> 0.005 | H37: =G37/8 -> 0.000625
B38: Rendimento 400 m² por dia por servente
A39: =CPU!B50 -> CPU.05 | B39: =VLOOKUP(A39,CPU!$B$10:$G$5119,2,0) -> Corte de tronco e remoção de raiz | C39: =VLOOKUP(A39,CPU!$B$10:$G$5119,3,0) -> un | I39: ='Caatinga de Moura'!F28 -> 10
B40: Mão de obra | D40: QUANT.PESSOAS | E40: RENDIMENTO (H/un) | F40: un | G40: HORAS | H40: DIAS | I40: DIAS | J40: DIAS | K40: DIAS | L40: DIAS | M40: DIAS | N40: DIAS
B41: Servente | C41: h | D41: 2 | E41: =2.1685/D41 -> 1.08425 | F41: 1 | G41: =F41*(E41) -> 1.08425 | H41: =G41/8 -> 0.13553125
B42: Jardineiro | C42: h | D42: 1 | E42: =1.1535/D42 -> 1.1535 | F42: 1 | G42: =F42*(E42) -> 1.1535 | H42: =G42/8 -> 0.1441875
A44: CPU.06 | B44: =VLOOKUP(A44,CPU!$B$10:$G$5119,2,0) -> Tratamento para impermeabilização de fissuras com injeção de poliuretano | C44: =VLOOKUP(A44,CPU!$B$10:$G$5119,3,0) -> m
B45: Mao de obra | D45: QUANT.PESSOAS | E45: RENDIMENTO (H/m) | F45: =C44 -> m | G45: HORAS | H45: DIAS | I45: DIAS | J45: DIAS | K45: DIAS | L45: DIAS | M45: DIAS
B46: Servente | D46: 1 | E46: =0.5*CPU!E67/D46 -> 0.4 | F46: 1 | G46: =F46*(E46) -> 0.4 | H46: =G46/8 -> 0.05
A48: CPU.07 | B48: =VLOOKUP(A48,CPU!$B$10:$G$5119,2,0) -> Enrocamento c/ pedra de mão c/ fornecimento e assentamento | C48: =VLOOKUP(A48,CPU!$B$10:$G$5119,3,0) -> m3
B49: Mao de obra | D49: QUANT.PESSOAS | E49: RENDIMENTO (H/M3) | F49: m3 | G49: HORAS | H49: DIAS | I49: DIAS | J49: DIAS | K49: DIAS | L49: DIAS | M49: DIAS | N49: DIAS
B50: Pedreiro | D50: 1 | E50: =0.2/D50 -> 0.2 | F50: 1 | G50: =F50*(E50) -> 0.2 | H50: =G50/8 -> 0.025
B51: Servente | D51: 1 | E51: =0.2/D51 -> 0.2 | F51: 1 | G51: =F51*(E51) -> 0.2 | H51: =G51/8 -> 0.025
A53: =CPU!B88 -> CPU.08 | B53: =VLOOKUP(A53,CPU!$B$10:$G$5119,2,0) -> Canaleta meia cana de concreto (D=30cm) - Fornecimento e instalação | C53: =VLOOKUP(A53,CPU!$B$10:$G$5119,3,0) -> m
B54: Mao de obra | D54: QUANT.PESSOAS | E54: RENDIMENTO (H/m) | F54: m | G54: HORAS | H54: DIAS | I54: DIAS | J54: DIAS | K54: DIAS | L54: DIAS | M54: DIAS | N54: DIAS
B55: Pedreiro | D55: 1 | E55: =0.2812/D55 -> 0.2812 | F55: 1 | G55: =F55*(E55) -> 0.2812 | H55: =G55/8 -> 0.03515
B56: Servente | D56: 1 | E56: =0.2812/D56 -> 0.2812 | F56: 1 | G56: =F56*(E56) -> 0.2812 | H56: =G56/8 -> 0.03515
A58: =CPU!B102 -> CPU.09 | B58: =VLOOKUP(A58,CPU!$B$10:$G$5119,2,0) -> Entrada para descida d'água | C58: =VLOOKUP(A58,CPU!$B$10:$G$5119,3,0) -> un
B59: Mao de obra | D59: QUANT.PESSOAS | E59: RENDIMENTO (H/m3) | F59: m3 | G59: HORAS | H59: DIAS | I59: DIAS | J59: DIAS | K59: DIAS | L59: DIAS | M59: DIAS | N59: DIAS
B60: Servente | D60: 1 | E60: =2.5333/D60 -> 2.5333 | F60: 0.44 | G60: =F60*(E60) -> 1.114652 | H60: =G60/8 -> 0.1393315
B61: Operador de betoneira | D61: 1 | E61: =1.6046/D61 -> 1.6046 | F61: 0.44 | G61: =F61*(E61) -> 0.706024 | H61: =G61/8 -> 0.088253
B62: Mao de obra | D62: QUANT.PESSOAS | E62: RENDIMENTO (H/m2) | F62: m2 | G62: HORAS | H62: DIAS | I62: DIAS | J62: DIAS | K62: DIAS | L62: DIAS | M62: DIAS | N62: DIAS
B63: Ajudante de carpinteiro | D63: 1 | E63: =0.005/D63 -> 0.005 | F63: 4.34 | G63: =F63*(E63) -> 0.0217 | H63: =G63/8 -> 0.0027125
B64: Carpinteiro | D64: 1 | E64: =0.005/D64 -> 0.005 | F64: 4.34 | G64: =F64*(E64) -> 0.0217 | H64: =G64/8 -> 0.0027125
A66: =CPU!B112 -> CPU.10 | B66: =VLOOKUP(A66,CPU!$B$10:$G$5119,2,0) -> Plantio de vegetação para proteção de talude com hidrossemeadura, inclusive adubação e transporte | C66: =VLOOKUP(A66,CPU!$B$10:$G$5119,3,0) -> m2 | N66: MÉDIA
B67: Mao de obra | D67: QUANT.PESSOAS | E67: RENDIMENTO (H/m2) | F67: m2 | G67: HORAS | H67: DIAS | I67: DIAS | J67: DIAS | K67: DIAS | L67: DIAS | M67: DIAS | N67: DIAS
B68: Servente | D68: 1 | E68: =(8/415)/D68 -> 0.01927710843 | F68: 1 | G68: =F68*(E68) -> 0.01927710843 | H68: =G68/8 -> 0.002409638554
A70: =CPU!B123 -> CPU.11 | B70: =VLOOKUP(A70,CPU!$B$10:$G$5119,2,0) -> Apicoamento da superfície | C70: =VLOOKUP(A70,CPU!$B$10:$G$5119,3,0) -> m2
B71: Mao de obra | D71: QUANT.PESSOAS | E71: RENDIMENTO (H/m2) | F71: m2 | G71: HORAS | H71: DIAS | I71: DIAS | J71: DIAS | K71: DIAS | L71: DIAS | M71: DIAS | N71: DIAS
B72: PEDREIRO | D72: 1 | E72: =0.1151/D72 -> 0.1151 | F72: 1 | G72: =F72*(E72) -> 0.1151 | H72: =G72/8 -> 0.0143875
B73: SERVENTE | D73: 3 | E73: =0.3872/D73 -> 0.1290666667 | F73: 1 | G73: =F73*(E73) -> 0.1290666667 | H73: =G73/8 -> 0.01613333333
A75: =CPU!B135 -> CPU.12 | B75: =VLOOKUP(A75,CPU!$B$10:$G$5119,2,0) -> Enrocamento ARCO tipo rachão reciclado cinza classe A jogado com fornecimento | C75: =VLOOKUP(A75,CPU!$B$10:$G$5119,3,0) -> m3
B76: Mao de obra | D76: QUANT.PESSOAS | E76: RENDIMENTO (H/m3) | F76: m3 | G76: HORAS | H76: DIAS | I76: DIAS | J76: DIAS | K76: DIAS | L76: DIAS | M76: DIAS | N76: DIAS
B77: Pedreiro | D77: 1 | E77: =0.01/D77 -> 0.01 | F77: 1 | G77: =F77*(E77) -> 0.01 | H77: =G77/8 -> 0.00125
B78: Servente | D78: 1 | E78: =0.01/D78 -> 0.01 | F78: 1 | G78: =F78*(E78) -> 0.01 | H78: =G78/8 -> 0.00125
I79: Quantitativo previsto por Barragem (m³)
A80: =CPU!B150 -> CPU.13 | B80: =VLOOKUP(A80,CPU!$B$10:$G$5119,2,0) -> Recomposição das erosões, inclusive, regularização da superfície e reaterro | C80: =VLOOKUP(A80,CPU!$B$10:$G$5119,3,0) -> m3 | I80: Poções | J80: Poço da Pedra | K80: Taquarandi | L80: Caatinga de Moura | M80: Tamboril II | N80: MÉDIA
B81: Mao de obra | D81: QUANT.PESSOAS | E81: RENDIMENTO (H/M3) | F81: m3 | G81: HORAS | H81: DIAS | J81: ='Poço da Pedra'!F32 -> 8 | K81: =Taquarandi!F32 -> 139 | M81: ='Tamboril II'!F32 -> 258 | N81: =AVERAGE(I81:M81) -> 135
B82: Servente | D82: 1 | E82: =(0.012+0.0356689)/D82 -> 0.0476689 | F82: 1 | G82: =F82*(E82) -> 0.0476689 | H82: =G82/8 -> 0.0059586125
B83: Motorista | D83: 1 | E83: =(0.0228+0.0153+0.004257)/D83 -> 0.042357 | F83: 1 | G83: =F83*(E83) -> 0.042357 | H83: =G83/8 -> 0.005294625
B84: Operador de máquina | D84: 1 | E84: =(0.0096+0.0083+0.0045112+0.0104312)/D84 -> 0.0328424 | F84: 1 | G84: =F84*(E84) -> 0.0328424 | H84: =G84/8 -> 0.0041053
B85: rolo compactador + motoniveladora
A86: =CPU!B168 -> CPU.14 | B86: =VLOOKUP(A86,CPU!$B$10:$G$5119,2,0) -> Regularização e compactação | C86: =VLOOKUP(A86,CPU!$B$10:$G$5119,3,0) -> m2
B87: Mao de obra | C87: m2 | D87: QUANT.PESSOAS | E87: RENDIMENTO (H/M2) | F87: m2 | G87: HORAS | H87: DIAS | I87: DIAS | J87: DIAS | K87: DIAS | L87: DIAS | M87: DIAS | N87: DIAS
B88: Servente | C88: h | D88: 1 | E88: =0.0086152/D88 -> 0.0086152 | F88: 1 | G88: =F88*(E88) -> 0.0086152 | H88: =G88/8 -> 0.0010769
A90: =CPU!B177 -> CPU.15 | B90: =VLOOKUP(A90,CPU!$B$10:$G$5119,2,0) -> Execução de Revestimento com BGTC | C90: =VLOOKUP(A90,CPU!$B$10:$G$5119,3,0) -> m3
B91: Mao de obra | C91: m3 | D91: QUANT.PESSOAS | E91: RENDIMENTO (H/M3) | F91: m3 | G91: HORAS | H91: DIAS | I91: DIAS | J91: DIAS | K91: DIAS | L91: DIAS | M91: DIAS | N91: DIAS
B92: Servente | C92: h | D92: 1 | E92: =0.0365494/D92 -> 0.0365494 | F92: 1 | G92: =F92*(E92) -> 0.0365494 | H92: =G92/8 -> 0.004568675
A94: =CPU!B190 -> CPU.16 | B94: =VLOOKUP(A94,CPU!$B$10:$G$5119,2,0) -> Restauração com uso de concreto | C94: =VLOOKUP(A94,CPU!$B$10:$G$5119,3,0) -> m3
B95: Mao de obra | C95: m3 | D95: QUANT.PESSOAS | E95: RENDIMENTO (H/M3) | F95: m3 | G95: HORAS | H95: DIAS | I95: DIAS | J95: DIAS | K95: DIAS | L95: DIAS | M95: DIAS | N95: DIAS
B96: Servente | C96: h | D96: 2 | E96: =6.2067/D96 -> 3.10335 | F96: 1 | G96: =F96*(E96) -> 3.10335 | H96: =G96/8 -> 0.38791875
A98: =CPU!B202 -> CPU.17 | B98: =VLOOKUP(A98,CPU!$B$10:$G$5119,2,0) -> Preenchimento de erosão com uso de Pedra Argamassada | C98: =VLOOKUP(A98,CPU!$B$10:$G$5119,3,0) -> m3
B99: Mao de obra | D99: QUANT.PESSOAS | E99: RENDIMENTO (H/m3) | F99: m3 | G99: HORAS | H99: DIAS
B100: Pedreiro | D100: 1 | E100: =2.2158/D100 -> 2.2158 | F100: 1 | G100: =F100*(E100) -> 2.2158 | H100: =G100/8 -> 0.276975
B101: Servente | D101: 2 | E101: =3.1021/D101 -> 1.55105 | F101: 1 | G101: =F101*(E101) -> 1.55105 | H101: =G101/8 -> 0.19388125
A103: =CPU!B214 -> CPU.18 | B103: =VLOOKUP(A103,CPU!$B$10:$G$5119,2,0) -> Régua Linimétrica Padrão “ANA”, Aço Carbono - 2 X 70 X 1000 mm (Fornecimento e Instalação) | C103: =VLOOKUP(A103,CPU!$B$10:$G$5119,3,0) -> un
B104: Mao de obra | D104: QUANT.PESSOAS | E104: RENDIMENTO (H/UN) | F104: un | G104: HORAS | H104: DIAS
B105: Topógrafo | D105: 1 | E105: =0.8/D105 -> 0.8 | F105: 1 | G105: =F105*(E105) -> 0.8 | H105: =G105/8 -> 0.1
B106: Servente | D106: 1 | E106: =1.6/D106 -> 1.6 | F106: 1 | G106: =F106*(E106) -> 1.6 | H106: =G106/8 -> 0.2
A108: =CPU!B227 -> CPU.19 | B108: =VLOOKUP(A108,CPU!$B$10:$G$5119,2,0) -> Canal retangular em gabião | C108: =VLOOKUP(A108,CPU!$B$10:$G$5119,3,0) -> m
B109: Mao de obra | D109: QUANT.PESSOAS | E109: RENDIMENTO (H/m) | F109: =C108 -> m | G109: HORAS | H109: DIAS | I109: DIAS | J109: DIAS | K109: DIAS | L109: DIAS | M109: DIAS
B110: Pedreiro | D110: 3 | E110: =2/D110 -> 0.6666666667 | F110: 1 | G110: =F110*(E110) -> 0.6666666667 | H110: =G110/8 -> 0.08333333333
B111: Servente | D111: 2 | E111: =2/D111 -> 1 | F111: 1 | G111: =F111*(E111) -> 1 | H111: =G111/8 -> 0.125
A113: =CPU!B240 -> CPU.20 | B113: =VLOOKUP(A113,CPU!$B$10:$G$5119,2,0) -> Guia (meio-fio) e sarjeta conjudados de concreto, moldada In Loco, 45cm base (15 cm Base da Guia +30 cm Base da Sarjeta) x 22 cm Altura | C113: =VLOOKUP(A113,CPU!$B$10:$G$5119,3,0) -> m
B114: Mao de obra | C114: m | D114: QUANT.PESSOAS | E114: RENDIMENTO (H/M) | F114: m | G114: HORAS | H114: DIAS | I114: DIAS | J114: DIAS | K114: DIAS | L114: DIAS | M114: DIAS | N114: DIAS
B115: Ajudante | C115: h | D115: 1 | E115: =0.1093/D115 -> 0.1093 | F115: 1 | G115: =F115*(E115) -> 0.1093 | H115: =G115/8 -> 0.0136625
B116: Pedreiro | C116: h | D116: 2 | E116: =0.2265/D116 -> 0.11325 | F116: 1 | G116: =F116*(E116) -> 0.11325 | H116: =G116/8 -> 0.01415625
B117: Servente | C117: h | D117: 3 | E117: =0.453/D117 -> 0.151 | F117: 1 | G117: =F117*(E117) -> 0.151 | H117: =G117/8 -> 0.018875
I118: Quantitativo previsto por Barragem (m)
A119: =CPU!B240 -> CPU.20 | B119: Transporte máquina extrusora | D119: Distância total (km) | E119: Velocidade média (km/h) | F119: Nº de viagens | G119: Tempo total (h) | H119: Tempo total unitario (h/m) | N119: MÉDIA
A120: 53827 | B120: =IF(O120="ca",VLOOKUP(A120,'Comp SINAPI 06-2025 Onerado'!B:C,2,0),VLOOKUP(A120,'Ins SINAPI 06-2025 Onerado'!B:C,2,0)) -> CAMINHÃO TOCO, PESO BRUTO TOTAL 14.300 KG, CARGA ÚTIL MÁXIMA 9590 KG, DISTÂNCIA ENTRE EIXOS 4,76 M, POTÊNCIA 185 CV (NÃO INCLUI CARROCERIA) - MATERIAIS NA OPERAÇÃO. AF_06/2014 | C120: =IF(O120="ca",VLOOKUP(A120,'Comp SINAPI 06-2025 Onerado'!B:D,3,0),VLOOKUP(A120,'Ins SINAPI 06-2025 Onerado'!B:D,3,0)) -> H | D120: =SUM(I5:M5) -> 941.6 | E120: 60 | F120: =2 -> 2 | G120: =D120/E120*F120 -> 31.38666667 | H120: =G120/N120 -> 0.06130208333 | I120: 264 | J120: 616 | K120: 960 | L120: 490 | M120: 230 | N120: =AVERAGE(I120:M120) -> 512 | O120: ca
A122: CPU.21 | B122: =VLOOKUP(A122,CPU!$B$10:$G$5119,2,0) -> Saída da válvula de descarga em gabião com dispositivo de dissipação de energia | C122: =VLOOKUP(A122,CPU!$B$10:$G$5119,3,0) -> UN
B123: Mao de obra | D123: QUANT.PESSOAS | E123: RENDIMENTO (H/UN) | F123: =C122 -> UN | G123: HORAS | H123: DIAS | I123: DIAS | J123: DIAS | K123: DIAS | L123: DIAS | M123: DIAS
B124: Pedreiro | D124: 3 | E124: =2.8*3.3/D124 -> 3.08 | F124: 1 | G124: =F124*(E124) -> 3.08 | H124: =G124/8 -> 0.385
B125: Servente | D125: 2 | E125: =2.8*3.3/D125 -> 4.62 | F125: 1 | G125: =F125*(E125) -> 4.62 | H125: =G125/8 -> 0.5775
A127: =CPU!B266 -> CPU.22 | B127: =VLOOKUP(A127,CPU!$B$10:$G$5119,2,0) -> Tratamento de fissuras secas com injeção de adesivo estrutural à base de resina epóxi de baixa viscosidade - fornecimento e aplicação mecanizada | C127: =VLOOKUP(A127,CPU!$B$10:$G$5119,3,0) -> m
B128: Mao de obra | D128: QUANT.PESSOAS | E128: RENDIMENTO (H/kg) | F128: kg | G128: HORAS | H128: DIAS
B129: Servente | D129: 1 | E129: =(3/7.78368)/D129 -> 0.3854218056 | F129: 1 | G129: =F129*(E129) -> 0.3854218056 | H129: =G129/8 -> 0.0481777257
A131: =CPU!B276 -> CPU.23 | B131: =VLOOKUP(A131,CPU!$B$10:$G$5119,2,0) -> Emboço ou massa única em argamassa | C131: =VLOOKUP(A131,CPU!$B$10:$G$5119,3,0) -> m2
B132: Mao de obra | D132: QUANT.PESSOAS | E132: RENDIMENTO (H/m2) | F132: m2 | G132: HORAS | H132: DIAS
B133: Servente | D133: 2 | E133: =0.545/D133 -> 0.2725 | F133: 1 | G133: =F133*(E133) -> 0.2725 | H133: =G133/8 -> 0.0340625
B134: Pedreiro | D134: 2 | E134: =0.545/D134 -> 0.2725 | F134: 1 | G134: =F134*(E134) -> 0.2725 | H134: =G134/8 -> 0.0340625
A136: =CPU!B285 -> CPU.24 | B136: =VLOOKUP(A136,CPU!$B$10:$G$5119,2,0) -> Limpeza da superfície | C136: =VLOOKUP(A136,CPU!$B$10:$G$5119,3,0) -> m2
B137: Mao de obra | D137: QUANT.PESSOAS | E137: RENDIMENTO (H/m2) | F137: m2 | G137: HORAS | H137: DIAS
B138: Servente | D138: 1 | E138: =0.089/D138 -> 0.089 | F138: 1 | G138: =F138*(E138) -> 0.089 | H138: =G138/8 -> 0.011125
A140: =CPU!B294 -> CPU.25 | B140: =VLOOKUP(A140,CPU!$B$10:$G$5119,2,0) -> Projeto geométrico | C140: =VLOOKUP(A140,CPU!$B$10:$G$5119,3,0) -> un
B141: Mao de obra | D141: QUANT.PESSOAS | E141: RENDIMENTO (H/un) | F141: un | G141: HORAS | H141: DIAS
B142: Engenheiro Civil De Obra Junior Com Encargos Complementares | D142: 1 | E142: =CPU!E299/D142 -> 30 | F142: 1 | G142: =F142*(E142) -> 30 | H142: =G142/8 -> 3.75
B143: Engenheiro Civil De Obra Senior Com Encargos Complementares | D143: 1 | E143: =CPU!E300/D143 -> 20 | F143: 1 | G143: =F143*(E143) -> 20 | H143: =G143/8 -> 2.5
B144: Desenhista Projetista Com Encargos Complementares | D144: 1 | E144: =CPU!E301/D144 -> 60 | F144: 1 | G144: =F144*(E144) -> 60 | H144: =G144/8 -> 7.5
A146: =CPU!B303 -> CPU.26 | B146: =VLOOKUP(A146,CPU!$B$10:$G$5119,2,0) -> Injeção de nata de cimento em buracos | C146: =VLOOKUP(A146,CPU!$B$10:$G$5119,3,0) -> m3
B147: Mao de obra | D147: QUANT.PESSOAS | E147: RENDIMENTO (H/m3) | F147: m3 | G147: HORAS | H147: DIAS
B148: Servente | D148: 1 | E148: =1/D148 -> 1 | F148: 1 | G148: =F148*(E148) -> 1 | H148: =G148/8 -> 0.125
A150: =CPU!B312 -> CPU.27 | B150: =VLOOKUP(A150,CPU!$B$10:$G$5119,2,0) -> Pintura esmalte, incl. base anticorrosiva e lixamento, em duas demãos | C150: =VLOOKUP(A150,CPU!$B$10:$G$5119,3,0) -> m2 | N150: =AVERAGE(I150:M150) -> 
B151: Mao de obra | D151: QUANT.PESSOAS | E151: RENDIMENTO (H/M2) | F151: =C150 -> m2 | G151: HORAS | H151: DIAS | I151: DIAS | J151: DIAS | K151: DIAS | L151: DIAS | M151: DIAS
B152: Ajusante de pintor | D152: 1 | E152: =0.5/D152 -> 0.5 | F152: 1 | G152: =F152*(E152) -> 0.5 | H152: =G152/8 -> 0.0625
B153: Pintor | D153: 1 | E153: =0.5/D153 -> 0.5 | F153: 1 | G153: =F153*(E153) -> 0.5 | H153: =G153/8 -> 0.0625
A155: =CPU!B321 -> CPU.28 | B155: =VLOOKUP(A155,CPU!$B$10:$G$5119,2,0) -> Aplicação de Graute cimentício para pequenos reparos estruturais | C155: =VLOOKUP(A155,CPU!$B$10:$G$5119,3,0) -> m3
B156: Mao de obra | D156: QUANT.PESSOAS | E156: RENDIMENTO (H/M3) | F156: =C155 -> m3 | G156: HORAS | H156: DIAS | I156: DIAS | J156: DIAS | K156: DIAS | L156: DIAS | M156: DIAS
B157: Servente | D157: 3 | E157: =5.5/D157 -> 1.833333333 | F157: 1 | G157: =F157*(E157) -> 1.833333333 | H157: =G157/8 -> 0.2291666667
A159: =CPU!B331 -> CPU.29 | B159: =VLOOKUP(A159,CPU!$B$10:$G$5119,2,0) -> Fornecimento e Assentamento de Guia (meio-fio) Pré-fabricado, dimensões 100x15x20 cm (comprimento x base x altura) | C159: =VLOOKUP(A159,CPU!$B$10:$G$5119,3,0) -> M
B160: Mao de obra | D160: QUANT.PESSOAS | E160: RENDIMENTO (H/M) | F160: m | G160: HORAS | H160: DIAS | I160: DIAS | J160: DIAS | K160: DIAS | L160: DIAS | M160: DIAS
B161: Servente | D161: 2 | E161: =(0.2296)/D161 -> 0.1148 | F161: 1 | G161: =F161*(E161) -> 0.1148 | H161: =G161/8 -> 0.01435
B162: Pedreiro | D162: 2 | E162: =(0.2296)/D162 -> 0.1148 | F162: 1 | G162: =F162*(E162) -> 0.1148 | H162: =G162/8 -> 0.01435
A164: =CPU!B350 -> CPU.31 | B164: =VLOOKUP(A164,CPU!$B$10:$G$5119,2,0) -> Concreto projetado c/ aditivo impermeabilizante | C164: =VLOOKUP(A164,CPU!$B$10:$G$5119,3,0) -> m3
B165: Mao de obra | D165: QUANT.PESSOAS | E165: RENDIMENTO (H/M3) | F165: =C164 -> m3 | G165: HORAS | H165: DIAS | I165: DIAS | J165: DIAS | K165: DIAS | L165: DIAS | M165: DIAS
B166: Ajudante especializado | D166: 1 | E166: =(1/2.50992)/D166 -> 0.3984190731 | F166: 1 | G166: =F166*(E166) -> 0.3984190731 | H166: =G166/8 -> 0.04980238414
B167: Servente | D167: 4 | E167: =(1/2.50992)/D167 -> 0.09960476828 | F167: 1 | G167: =F167*(E167) -> 0.09960476828 | H167: =G167/8 -> 0.01245059603
A169: =CPU!B360 -> CPU.32 | B169: =VLOOKUP(A169,CPU!$B$10:$G$5119,2,0) -> Escavação mecânica e regularização | C169: =VLOOKUP(A169,CPU!$B$10:$G$5119,3,0) -> m3
B170: Mao de obra | D170: QUANT.PESSOAS | E170: RENDIMENTO (H/M3) | F170: =C169 -> m3 | G170: HORAS | H170: DIAS | I170: DIAS | J170: DIAS | K170: DIAS | L170: DIAS | M170: DIAS
B171: Servente | D171: 1 | E171: =(1/26)/D171 -> 0.03846153846 | F171: 1 | G171: =F171*(E171) -> 0.03846153846 | H171: =G171/8 -> 0.004807692308
A173: CPU.33 | B173: =VLOOKUP(A173,CPU!$B$10:$G$5119,2,0) -> Selagem superficial de fissuras com adesivo estrutural à base de resina epóxi de alta viscosidade | C173: =VLOOKUP(A173,CPU!$B$10:$G$5119,3,0) -> m
B174: Mao de obra | D174: QUANT.PESSOAS | E174: RENDIMENTO (H/M) | F174: =C173 -> m | G174: HORAS | H174: DIAS | I174: DIAS | J174: DIAS | K174: DIAS | L174: DIAS | M174: DIAS
B175: Servente | D175: 1 | E175: =(1/3.15846)/D175*0.3 -> 0.09498299804 | F175: 1 | G175: =F175*(E175) -> 0.09498299804 | H175: =G175/8 -> 0.01187287476
E326: ='Memorial de cálculo'!D161*'Memorial de cálculo'!E1654 -> 0

Sheet CPU HOSPEDAGEM
B2: Engenharia Consultiva da Codevasf
B3: CPU - HOSPEDAGEM EQUIPE DE CAMPO (4 PESSOAS/MÊS) | D3: Código/Referencia
B4: ALUGUEL | C4: 3074.56 | D4: F020003334/EMBASA insumo
B5: Aquisição de Mobiliário | C5: =41.81*C16 -> 167.24 | D5: B8954/DNIT
B6: Material de limpeza e diarista | C6: =131.08+(123*8) -> 1115.08 | D6: 10563/ORSE - E200300131/EMBASA
B7: manutenção da casa alugada - Serviços Gerais/Vigia | C7: 2771.31 | D7: 41096/SINAPI
B8: Energia | C8: 180 | D8: 10555/ORSE
B9: Água | C9: 394.99 | D9: 10554/ORSE
B10: telefone/Internet | C10: =154.99+89 -> 243.99 | D10: 10557/10558/ORSE
B11: IPTU (mês) | C11: =(C4*0.5)/12 -> 128.1066667
B13: Custo Mensal: | C13: =SUM(C4:C12) -> 8075.276667
B14: Custo Mensal por pessoa: | C14: =C13/C16 -> 2018.819167
B15: Custo diário por pessoa: | C15: =C14/22 -> 91.76450758
B16: número de pessoas: | C16: 4
B17: Alimentação: | C17: 100.59 | D17: Tabela Diária Codevasf 2025
B19: Diária Total (alimentação + hospedagem): | C19: =C15+C17 -> 192.3545076

Sheet Cronograma Geral
A1: Ministério da Integração e do Desenvolvimento Regional
A2: Companhia de Desenvolvimento dos Vales do São Francisco e do Parnaíba
A4: CRONOGRAMA FÍSICO-FINANCEIRO NÃO DESONERADO
A5: ='Caatinga de Moura'!A5 -> OBRA: | B5: =Resumo!B5 -> Execução de manutenção e recuperação nas barragens de Poções, Poço da Pedra, Taquarandi, Caatinga de Moura e Tamboril II, localizadas no estado da Bahia.
A6: ='Caatinga de Moura'!A6 -> LOCAL: | B6: =Resumo!B6 -> BARRAGENS DA BAHIA
A7: ='Caatinga de Moura'!A7 -> DATA BASE: | B7: =Resumo!B7 -> 2025-08-01
A8: ='Caatinga de Moura'!A8 -> PRAZO: | B8: 210 dias
A9: ITEM | B9: DESCRIÇÃO | C9: TOTAL POR ETAPA | D9: MESES | K9: TOTAL
D10: 1 | E10: 2 | F10: 3 | G10: 4 | H10: 5 | I10: 6 | J10: 7
A11: 1.1 | B11: =VLOOKUP(A11,Resumo!A$11:I$1006,2) -> Poções | C11: =VLOOKUP(A11,Resumo!A$11:I$1006,7) -> 528236.4 | D11: =$C11*D12 -> 314351.8031 | E11: =$C11*E12 -> 176958.9257 | F11: =$C11*F12 -> 36925.67115 | K11: =SUM(D11:J11) -> 528236.4 | L11: R$
C12: =C11/C11 -> 1 | D12: ='Cronograma Poço da Pedra'!D40 -> 0.5950968224 | E12: ='Cronograma Poço da Pedra'!E40 -> 0.3349994922 | F12: ='Cronograma Poço da Pedra'!F40 -> 0.06990368545 | K12: 1 | L12: %
A13: 1.2 | B13: =VLOOKUP(A13,Resumo!A$11:I$1006,2) -> Poço da Pedra | C13: =VLOOKUP(A13,Resumo!A$11:I$1006,7) -> 623091.31 | D13: =$C13*D14 -> 370799.6586 | E13: =$C13*E14 -> 208735.2724 | F13: =$C13*F14 -> 43556.37894 | K13: 623091.31 | L13: R$
C14: =C13/C13 -> 1 | D14: ='Cronograma Poço da Pedra'!D40 -> 0.5950968224 | E14: ='Cronograma Poço da Pedra'!E40 -> 0.3349994922 | F14: ='Cronograma Poço da Pedra'!F40 -> 0.06990368545 | K14: 1 | L14: %
A15: 1.3 | B15: =VLOOKUP(A15,Resumo!A$11:I$1006,2) -> Taquarandi | C15: =VLOOKUP(A15,Resumo!A$11:I$1006,7) -> 930310.63 | G15: =$C15*G16 -> 394575.551 | H15: =$C15*H16 -> 224677.1979 | I15: =$C15*I16 -> 260981.6229 | J15: =$C15*J16 -> 50076.25817 | K15: 930310.63 | L15: R$
C16: =C15/C15 -> 1 | G16: ='Cronograma Taquarandi'!$D$42 -> 0.424133121 | H16: ='Cronograma Taquarandi'!$E$42 -> 0.2415077187 | I16: ='Cronograma Taquarandi'!$F$42 -> 0.2805317004 | J16: ='Cronograma Taquarandi'!$G$42 -> 0.05382745994 | K16: 1 | L16: %
A17: 1.4 | B17: =VLOOKUP(A17,Resumo!A$11:I$1006,2) -> Caatinga de Moura | C17: =VLOOKUP(A17,Resumo!A$11:I$1006,7) -> 271826.93 | G17: =$C17*G18 -> 111168.7876 | H17: =$C17*H18 -> 111116.7004 | I17: =$C17*I18 -> 49541.442 | K17: 271826.93 | L17: R$
C18: =C17/C17 -> 1 | G18: ='Cronograma Caatinga de Moura'!$D32 -> 0.4089689996 | H18: ='Cronograma Caatinga de Moura'!$E$32 -> 0.4087773804 | I18: ='Cronograma Caatinga de Moura'!$F32 -> 0.18225362 | K18: 1 | L18: %
A19: 1.5 | B19: =VLOOKUP(A19,Resumo!A$11:I$1006,2) -> Tamboril II | C19: =VLOOKUP(A19,Resumo!A$11:I$1006,7) -> 601993.27 | G19: =$C19*G20 -> 364104.6952 | H19: =$C19*H20 -> 205657.786 | I19: =$C19*I20 -> 32230.78879 | K19: 601993.27 | L19: R$
C20: =C19/C19 -> 1 | G20: ='Cronograma Tamboril II'!$D40 -> 0.6048318368 | H20: ='Cronograma Tamboril II'!$E40 -> 0.3416280484 | I20: ='Cronograma Tamboril II'!$F40 -> 0.0535401148 | K20: 1 | L20: %
B21: VALOR TOTAL: | C21: =SUMIF($L$11:$L$20,"R$",C$11:C$20) -> 2955458.54 | D21: 685151.4617 | E21: 385694.1982 | F21: 80482.05009 | G21: 869849.0338 | H21: 541451.6843 | I21: 342753.8537 | J21: 50076.25817 | K21: 2955458.54
B22: VALOR ACUMULADO: | D22: =D21 -> 685151.4617 | E22: =E21+D22 -> 1070845.66 | F22: =F21+E22 -> 1151327.71 | G22: 2021176.744 | H22: 2562628.428 | I22: 2905382.282 | J22: 2955458.54 | K22: =J22 -> 2955458.54 | N22: =IF(K22=Resumo!G22,"ok","ERRO") -> ok
B23: FÍSICO PARCIAL: | D23: =SUMIF($L$11:$L$20,"R$",D$11:D$20)/$C$21 -> 0.2318257734 | E23: 0.1305023207 | F23: 0.0272316627 | G23: 0.2943194845 | H23: 0.1832039519 | I23: 0.1159731558 | J23: 0.01694365104 | K23: 1
B24: AVANÇO FÍSICO: | D24: =D23 -> 0.2318257734 | E24: =E23+D24 -> 0.3623280941 | F24: =F23+E24 -> 0.3895597568 | G24: 0.6838792412 | H24: 0.8670831932 | I24: 0.983056349 | J24: 1

Sheet Cronograma Poções
A1: Ministério da Integração e do Desenvolvimento Regional
A2: Companhia de Desenvolvimento dos Vales do São Francisco e do Parnaíba
A4: CRONOGRAMA FÍSICO-FINANCEIRO NÃO DESONERADO
A5: =Resumo!A5 -> OBRA: | B5: =Resumo!B5 -> Execução de manutenção e recuperação nas barragens de Poções, Poço da Pedra, Taquarandi, Caatinga de Moura e Tamboril II, localizadas no estado da Bahia.
A6: =Resumo!A6 -> LOCAL: | B6: =Resumo!B6 -> BARRAGENS DA BAHIA
A7: =Resumo!A7 -> DATA BASE: | B7: =Resumo!B7 -> 2025-08-01
A8: =Resumo!A8 -> PRAZO: | B8: ='Poço da Pedra'!B8 -> 90 dias
B9: =Poções!B9 -> Poções
A10: ITEM | B10: DESCRIÇÃO | C10: TOTAL POR ETAPA | D10: MESES | G10: TOTAL
D11: 1 | E11: 2 | F11: 4
A12: 1 | B12: =VLOOKUP(A12,Poções!A:I,4) -> ADMINISTRAÇÃO DA OBRA | C12: =VLOOKUP(A12,Poções!A$11:I$1019,9) -> 105283.65 | D12: =$C12*D13 -> 42820.1572 | E12: =$C12*E13 -> 46314.21283 | F12: =$C12*F13 -> 16149.27997 | G12: =SUM(D12:F12) -> 105283.65 | H12: R$
C13: =C12/C12 -> 1 | D13: =SUMIF($H$14:$H$31,"R$",D$14:D$31)/$C$32 -> 0.4067123167 | E13: =(SUMIF($H$14:$H$31,"R$",E$14:E$31)/$C$32)+D34-D13 -> 0.4398993844 | F13: =1-SUM(D13:E13) -> 0.1533882989 | G13: 1 | H13: %
A14: 2 | B14: =VLOOKUP(A14,Poções!A:I,4) -> SERVIÇOS PRELIMINARES | C14: =VLOOKUP(A14,Poções!A$11:I$1019,9) -> 30284.52 | D14: =$C14*D15 -> 30284.52 | G14: 30284.52 | H14: R$
C15: =C14/C14 -> 1 | D15: 1 | G15: 1 | H15: %
A16: 3 | B16: =VLOOKUP(A16,Poções!A:I,4) -> CORTE DA VEGETAÇÃO E REMOÇÃO DAS RAIZES | C16: =VLOOKUP(A16,Poções!A$11:I$1019,9) -> 158957.56 | D16: =$C16*D17 -> 158957.56 | G16: 158957.56 | H16: R$
C17: =C16/C16 -> 1 | D17: 1 | G17: 1 | H17: %
A18: 4 | B18: =VLOOKUP(A18,Poções!A:I,4) -> RESTAURAÇÃO DA CRISTA | C18: =VLOOKUP(A18,Poções!A$11:I$1019,9) -> 24643.03 | D18: =$C18*D19 -> 24643.03 | G18: 24643.03 | H18: R$
C19: =C18/C18 -> 1 | D19: 1 | G19: 1 | H19: %
A20: 5 | B20: =VLOOKUP(A20,Poções!A:I,4) -> MANUTENÇÃO NO PARAMENTO DE MONTANTE | C20: =VLOOKUP(A20,Poções!A$11:I$1019,9) -> 46324.2 | E20: =$C20*E21 -> 46324.2 | G20: 46324.2 | H20: R$
C21: =C20/C20 -> 1 | E21: 1 | G21: 1 | H21: %
A22: 6 | B22: =VLOOKUP(A22,Poções!A:I,4) -> MANUTENÇÃO DO PARAMENTO DE JUSANTE | C22: =VLOOKUP(A22,Poções!A$11:I$1019,9) -> 134788.5 | E22: =$C22*E23 -> 134788.5 | G22: 134788.5 | H22: R$
C23: =C22/C22 -> 1 | E23: 1 | G23: 1 | H23: %
A24: 7 | B24: =VLOOKUP(A24,Poções!A:I,4) -> MANUTENÇÃO DOS EQUIPAMENTOS HIDROMECÂNICOS | C24: =VLOOKUP(A24,Poções!A$11:I$1019,9) -> 3073.58 | E24: =$C24*E25 -> 3073.58 | G24: 3073.58 | H24: R$
C25: =C24/C24 -> 1 | E25: 1 | G25: 1 | H25: %
A26: 8 | B26: =VLOOKUP(A26,Poções!A:I,4) -> SERVIÇOS COMPLEMENTARES | C26: =VLOOKUP(A26,Poções!A$11:I$1019,9) -> 4886.86 | E26: =$C26*E27 -> 4886.86 | G26: 4886.86 | H26: R$
C27: =C26/C26 -> 1 | E27: 1 | G27: 1 | H27: %
A28: 9 | B28: =VLOOKUP(A28,Poções!A:I,4) -> PROJETO "AS IS" | C28: =VLOOKUP(A28,Poções!A$11:I$1019,9) -> 17606.65 | F28: =$C28*F29 -> 17606.65 | G28: 17606.65 | H28: R$
C29: =C28/C28 -> 1 | F29: 1 | G29: 1 | H29: %
A30: 10 | B30: =VLOOKUP(A30,Poções!A:I,4) -> FISCALIZAÇÃO E ACOMPANHAMENTO | C30: =VLOOKUP(A30,Poções!A$11:I$1019,9) -> 2387.85 | D30: =C30/5*2 -> 955.14 | E30: =C30/5 -> 477.57 | F30: =C30/5*2 -> 955.14 | G30: 2387.85 | H30: R$
C31: =C30/C30 -> 1 | D31: =D30/$C$30 -> 0.4 | E31: =E30/$C$30 -> 0.2 | F31: 0.4 | G31: 1 | H31: %
B32: VALOR TOTAL: | C32: =SUMIF($H$12:$H$31,"R$",C$12:C$31) -> 528236.4 | D32: =SUMIF($H$12:$H$31,"R$",D$12:D$31) -> 257660.4072 | E32: =SUMIF($H$12:$H$31,"R$",E$12:E$31) -> 235864.9228 | F32: =SUMIF($H$12:$H$31,"R$",F$12:F$31) -> 34711.06997 | G32: =SUMIF($H$12:$H$31,"R$",G$12:G$31) -> 528236.4 | K32: VERIFICAÇÃO
B33: VALOR ACUMULADO: | D33: =D32 -> 257660.4072 | E33: =E32+D33 -> 493525.33 | F33: =F32 -> 34711.06997 | G33: =G32 -> 528236.4 | K33: =IF(G33=Poções!I74,"OK","ERRO") -> OK
B34: FÍSICO PARCIAL: | D34: =SUMIF($H$12:$H$31,"R$",D$12:D$31)/$C$32 -> 0.4877748054 | E34: =SUMIF($H$12:$H$31,"R$",E$12:E$31)/$C$32 -> 0.4465139525 | F34: =SUMIF($H$12:$H$31,"R$",F$12:F$31)/$C$32 -> 0.06571124211 | G34: =SUMIF($H$12:$H$31,"R$",G$12:G$31)/$C$32 -> 1
B35: AVANÇO FÍSICO: | D35: =D34 -> 0.4877748054 | E35: =E34+D35 -> 0.9342887579 | F35: =F34 -> 0.06571124211

Sheet Cronograma Poço da Pedra
A1: Ministério da Integração e do Desenvolvimento Regional
A2: Companhia de Desenvolvimento dos Vales do São Francisco e do Parnaíba
A4: CRONOGRAMA FÍSICO-FINANCEIRO NÃO DESONERADO
A5: =Resumo!A5 -> OBRA: | B5: =Resumo!B5 -> Execução de manutenção e recuperação nas barragens de Poções, Poço da Pedra, Taquarandi, Caatinga de Moura e Tamboril II, localizadas no estado da Bahia.
A6: =Resumo!A6 -> LOCAL: | B6: =Resumo!B6 -> BARRAGENS DA BAHIA
A7: =Resumo!A7 -> DATA BASE: | B7: =Resumo!B7 -> 2025-08-01
A8: =Resumo!A8 -> PRAZO: | B8: ='Poço da Pedra'!B8 -> 90 dias
B9: ='Poço da Pedra'!B9 -> Poço da Pedra
A10: ITEM | B10: DESCRIÇÃO | C10: TOTAL POR ETAPA | D10: MESES | G10: TOTAL
D11: 1 | E11: 2 | F11: 3
A12: 1 | B12: =VLOOKUP(A12,'Poço da Pedra'!A:I,4) -> ADMINISTRAÇÃO DA OBRA | C12: =VLOOKUP(A12,'Poço da Pedra'!A$11:I$1035,9) -> 105283.65 | D12: =$C12*D13 -> 53597.58864 | E12: =$C12*E13 -> 37919.15242 | F12: =$C12*F13 -> 13766.90894 | G12: =SUM(D12:F12) -> 105283.65 | H12: R$
C13: =C12/C12 -> 1 | D13: =SUMIF($H$14:$H$37,"R$",D$14:D$37)/$C$38 -> 0.5090779873 | E13: =SUMIF($H$14:$H$37,"R$",E$14:E$37)/$C$38+D40-D13 -> 0.3601618335 | F13: =1-SUM(D13:E13) -> 0.1307601792 | G13: 1 | H13: %
A14: 2 | B14: =VLOOKUP(A14,'Poço da Pedra'!A:I,4) -> SERVIÇOS PRELIMINARES | C14: =VLOOKUP(A14,'Poço da Pedra'!A$11:I$1035,9) -> 30284.52 | D14: =$C14*D15 -> 30284.52 | G14: 30284.52 | H14: R$
C15: =C14/C14 -> 1 | D15: 1 | G15: 1 | H15: %
A16: 3 | B16: =VLOOKUP(A16,'Poço da Pedra'!A:I,4) -> CORTE DA VEGETAÇÃO E REMOÇÃO DAS RAIZES | C16: =VLOOKUP(A16,'Poço da Pedra'!A$11:I$1035,9) -> 240035.16 | D16: =$C16*D17 -> 240035.16 | G16: 240035.16 | H16: R$
C17: =C16/C16 -> 1 | D17: 1 | G17: 1 | H17: %
A18: 4 | B18: =VLOOKUP(A18,'Poço da Pedra'!A:I,4) -> RECUPERAÇÃO DO MACIÇO | C18: =VLOOKUP(A18,'Poço da Pedra'!A$11:I$1035,9) -> 3487.04 | D18: =$C18*D19 -> 3487.04 | G18: 3487.04 | H18: R$
C19: =C18/C18 -> 1 | D19: 1 | G19: 1 | H19: %
A20: 5 | B20: =VLOOKUP(A20,'Poço da Pedra'!A:I,4) -> REGULARIZAÇÃO E PAVIMENTAÇÃO DA CRISTA | C20: =VLOOKUP(A20,'Poço da Pedra'!A$11:I$1035,9) -> 84880.42 | D20: =$C20*D21 -> 42440.21 | E20: =$C20*E21 -> 42440.21 | G20: 84880.42 | H20: R$
C21: =C20/C20 -> 1 | D21: 0.5 | E21: 0.5 | G21: 1 | H21: %
A22: 6 | B22: =VLOOKUP(A22,'Poço da Pedra'!A:I,4) -> MANUTENÇÃO NO TALUDE DE MONTANTE | C22: =VLOOKUP(A22,'Poço da Pedra'!A$11:I$1035,9) -> 27625.8 | E22: =$C22*E23 -> 27625.8 | G22: 27625.8 | H22: R$
C23: =C22/C22 -> 1 | E23: 1 | G23: 1 | H23: %
A24: 7 | B24: =VLOOKUP(A24,'Poço da Pedra'!A:I,4) -> DRENAGEM SUPERFICIAL DO TALUDE DE JUSANTE | C24: =VLOOKUP(A24,'Poço da Pedra'!A$11:I$1035,9) -> 2240.18 | E24: =$C24*E25 -> 2240.18 | G24: 2240.18 | H24: R$
C25: =C24/C24 -> 1 | E25: 1 | G25: 1 | H25: %
A26: 8 | B26: =VLOOKUP(A26,'Poço da Pedra'!A:I,4) -> PROTEÇÃO SUPERFICIAL DO TALUDE DE JUSANTE | C26: =VLOOKUP(A26,'Poço da Pedra'!A$11:I$1035,9) -> 87216 | E26: =$C26*E27 -> 87216 | G26: 87216 | H26: R$
C27: =C26/C26 -> 1 | E27: 1 | G27: 1 | H27: %
A28: 9 | B28: =VLOOKUP(A28,'Poço da Pedra'!A:I,4) -> RESTAURAÇÃO DO MURO LATERAL | C28: =VLOOKUP(A28,'Poço da Pedra'!A$11:I$1035,9) -> 3065.86 | E28: =$C28*E29 -> 3065.86 | G28: 3065.86 | H28: R$
C29: =C28/C28 -> 1 | E29: 1 | G29: 1 | H29: %
A30: 10 | B30: =VLOOKUP(A30,'Poço da Pedra'!A:I,4) -> RESTAURAÇÃO DA SOLEIRA DO VERTEDOURO | C30: =VLOOKUP(A30,'Poço da Pedra'!A$11:I$1035,9) -> 7750.5 | E30: =$C30*E31 -> 7750.5 | G30: 7750.5 | H30: R$
C31: =C30/C30 -> 1 | E31: 1 | G31: 1 | H31: %
A32: 11 | B32: =VLOOKUP(A32,'Poço da Pedra'!A:I,4) -> SERVIÇOS COMPLEMENTARES | C32: =VLOOKUP(A32,'Poço da Pedra'!A$11:I$1035,9) -> 8110.18 | F32: =$C32*F33 -> 8110.18 | G32: 8110.18 | H32: R$
C33: =C32/C32 -> 1 | F33: 1 | G33: 1 | H33: %
A34: 12 | B34: =VLOOKUP(A34,'Poço da Pedra'!A:I,4) -> PROJETO "AS IS" | C34: =VLOOKUP(A34,'Poço da Pedra'!A$11:I$1035,9) -> 20724.15 | F34: =$C34*F35 -> 20724.15 | G34: 20724.15 | H34: R$
C35: =C34/C34 -> 1 | F35: 1 | G35: 1 | H35: %
A36: 13 | B36: =VLOOKUP(A36,'Poço da Pedra'!A:I,4) -> FISCALIZAÇÃO E ACOMPANHAMENTO | C36: =VLOOKUP(A36,'Poço da Pedra'!A$11:I$1035,9) -> 2387.85 | D36: =C36/5*2 -> 955.14 | E36: =C36/5 -> 477.57 | F36: =C36/5*2 -> 955.14 | G36: 2387.85 | H36: R$
C37: =C36/C36 -> 1 | D37: =D36/$C$36 -> 0.4 | E37: =E36/$C$36 -> 0.2 | F37: =F36/$C$36 -> 0.4 | G37: 1 | H37: %
B38: VALOR TOTAL: | C38: =SUMIF($H$12:$H$37,"R$",C$12:C$37) -> 623091.31 | D38: =SUMIF($H$12:$H$37,"R$",D$12:D$37) -> 370799.6586 | E38: =SUMIF($H$12:$H$37,"R$",E$12:E$37) -> 208735.2724 | F38: =SUMIF($H$12:$H$37,"R$",F$12:F$37) -> 43556.37894 | G38: =SUMIF($H$12:$H$37,"R$",G$12:G$37) -> 623091.31 | K38: VERIFICAÇÃO
B39: VALOR ACUMULADO: | D39: =D38 -> 370799.6586 | E39: =E38+D39 -> 579534.9311 | F39: =F38 -> 43556.37894 | G39: =G38 -> 623091.31 | K39: =IF(G39='Poço da Pedra'!I85,"OK","ERRO") -> OK
B40: FÍSICO PARCIAL: | D40: =SUMIF($H$12:$H$37,"R$",D$12:D$37)/$C$38 -> 0.5950968224 | E40: =SUMIF($H$12:$H$37,"R$",E$12:E$37)/$C$38 -> 0.3349994922 | F40: =SUMIF($H$12:$H$37,"R$",F$12:F$37)/$C$38 -> 0.06990368545 | G40: =SUMIF($H$12:$H$37,"R$",G$12:G$37)/$C$38 -> 1
B41: AVANÇO FÍSICO: | D41: =D40 -> 0.5950968224 | E41: =E40+D41 -> 0.9300963145 | F41: =F40 -> 0.06990368545

Sheet Cronograma Taquarandi
A1: Ministério da Integração e do Desenvolvimento Regional
A2: Companhia de Desenvolvimento dos Vales do São Francisco e do Parnaíba
A4: CRONOGRAMA FÍSICO-FINANCEIRO NÃO DESONERADO
A5: =Resumo!A5 -> OBRA: | B5: =Resumo!B5 -> Execução de manutenção e recuperação nas barragens de Poções, Poço da Pedra, Taquarandi, Caatinga de Moura e Tamboril II, localizadas no estado da Bahia.
A6: =Resumo!A6 -> LOCAL: | B6: =Resumo!B6 -> BARRAGENS DA BAHIA
A7: =Resumo!A7 -> DATA BASE: | B7: =Resumo!B7 -> 2025-08-01
A8: =Resumo!A8 -> PRAZO: | B8: =Taquarandi!B8 -> 120 dias
B9: =Taquarandi!B9 -> Taquarandi
A10: ITEM | B10: DESCRIÇÃO | C10: TOTAL POR ETAPA | D10: MESES | H10: TOTAL
D11: 1 | E11: 2 | F11: 3 | G11: 4
A12: 1 | B12: =VLOOKUP(A12,Taquarandi!A$11:I$1041,4) -> ADMINISTRAÇÃO DA OBRA | C12: =VLOOKUP(A12,Taquarandi!A$11:I$1041,9) -> 140378.2 | D12: =$C12*D13 -> 51607.64102 | E12: =$C12*E13 -> 36286.3679 | F12: =$C12*F13 -> 32083.34291 | G12: =$C12*G13 -> 20400.84817 | H12: =SUM(D12:G12) -> 140378.2 | I12: R$
C13: =C12/C12 -> 1 | D13: =SUMIF($I$14:$I$35,"R$",D$14:D$39)/$C$40 -> 0.3676328733 | E13: =SUMIF($I$14:$I$35,"R$",E$14:E$39)/$C$40+D42-D13 -> 0.2584900497 | F13: =SUMIF($I$14:$I$35,"R$",F$14:F$39)/$C$40+E42-E13 -> 0.2285493254 | G13: =1-SUM(D13:F13) -> 0.1453277515 | H13: 1 | I13: %
A14: 2 | B14: =VLOOKUP(A14,Taquarandi!A$11:I$1041,4) -> SERVIÇOS PRELIMINARES | C14: =VLOOKUP(A14,Taquarandi!A$11:I$1041,9) -> 30284.52 | D14: =$C14*D15 -> 30284.52 | H14: 30284.52 | I14: R$
C15: =C14/C14 -> 1 | D15: 1 | H15: 1 | I15: %
A16: 3 | B16: =VLOOKUP(A16,Taquarandi!A$11:I$1041,4) -> CORTE DA VEGETAÇÃO E REMOÇÃO DAS RAIZES | C16: =VLOOKUP(A16,Taquarandi!A$11:I$1041,9) -> 192649.92 | D16: =$C16*D17 -> 192649.92 | H16: 192649.92 | I16: R$
C17: =C16/C16 -> 1 | D17: 1 | H17: 1 | I17: %
A18: 4 | B18: =VLOOKUP(A18,Taquarandi!A$11:I$1041,4) -> RECUPERAÇÃO DO MACIÇO | C18: =VLOOKUP(A18,Taquarandi!A$11:I$1041,9) -> 55476.29 | D18: =$C18*D19 -> 55476.29 | H18: 55476.29 | I18: R$
C19: =C18/C18 -> 1 | D19: 1 | H19: 1 | I19: %
A20: 5 | B20: =VLOOKUP(A20,Taquarandi!A$11:I$1041,4) -> REGULARIZAÇÃO E PAVIMENTAÇÃO DA CRISTA | C20: =VLOOKUP(A20,Taquarandi!A$11:I$1041,9) -> 127204.08 | D20: =$C20*D21 -> 63602.04 | E20: =$C20*E21 -> 63602.04 | H20: 127204.08 | I20: R$
C21: =C20/C20 -> 1 | D21: 0.5 | E21: 0.5 | H21: 1 | I21: %
A22: 6 | B22: =VLOOKUP(A22,Taquarandi!A$11:I$1041,4) -> MANUTENÇÃO NO TALUDE DE MONTANTE | C22: =VLOOKUP(A22,Taquarandi!A$11:I$1041,9) -> 29007.09 | E22: =$C22*E23 -> 29007.09 | H22: 29007.09 | I22: R$
C23: =C22/C22 -> 1 | E23: 1 | H23: 1 | I23: %
A24: 7 | B24: =VLOOKUP(A24,Taquarandi!A$11:I$1041,4) -> PROTEÇÃO SUPERFICIAL DO TALUDE DE JUSANTE | C24: =VLOOKUP(A24,Taquarandi!A$11:I$1041,9) -> 63857.28 | E24: =$C24*E25 -> 63857.28 | H24: 63857.28 | I24: R$
C25: =C24/C24 -> 1 | E25: 1 | H25: 1 | I25: %
A26: 8 | B26: =VLOOKUP(A26,Taquarandi!A$11:I$1041,4) -> RECUPERAÇÃO DA CANALETA INTERCEPTORA DE PÉ DE ATERRO NA OMBREIRA ESQUERDA DO TALUDE DE JUSANTE | C26: =VLOOKUP(A26,Taquarandi!A$11:I$1041,9) -> 31446.85 | E26: =$C26*E27 -> 31446.85 | H26: 31446.85 | I26: R$
C27: =C26/C26 -> 1 | E27: 1 | H27: 1 | I27: %
A28: 9 | B28: =VLOOKUP(A28,Taquarandi!A$11:I$1041,4) -> IMPLANTAÇÃO DE DISPOSITIVO DE DISSIPAÇÃO E CANAL PARA CONDUÇÃO DE FLUXO DA DESCARGA DE FUNDO PARA JUSANTE | C28: =VLOOKUP(A28,Taquarandi!A$11:I$1041,9) -> 163939.52 | F28: =$C28*F29 -> 163939.52 | H28: 163939.52 | I28: R$
C29: =C28/C28 -> 1 | F29: 1 | H29: 1 | I29: %
A30: 10 | B30: =VLOOKUP(A30,Taquarandi!A$11:I$1041,4) -> RESTAURAÇÃO DA SOLEIRA DO VERTEDOURO | C30: =VLOOKUP(A30,Taquarandi!A$11:I$1041,9) -> 5906.79 | F30: =$C30*F31 -> 5906.79 | H30: 5906.79 | I30: R$
C31: =C30/C30 -> 1 | F31: 1 | H31: 1 | I31: %
A32: 11 | B32: =VLOOKUP(A32,Taquarandi!A$11:I$1041,4) -> CONTENÇÃO DO PROCESSO EROSIVO NA OMBREIRA | C32: =VLOOKUP(A32,Taquarandi!A$11:I$1041,9) -> 58574.4 | F32: =$C32*F33 -> 58574.4 | H32: 58574.4 | I32: R$
C33: =C32/C32 -> 1 | F33: 1 | H33: 1 | I33: %
A34: 12 | B34: =VLOOKUP(A34,Taquarandi!A$11:I$1041,4) -> SERVIÇOS COMPLEMENTARES | C34: =VLOOKUP(A34,Taquarandi!A$11:I$1041,9) -> 10796.28 | G34: =$C34*G35 -> 10796.28 | H34: 10796.28 | I34: R$
C35: =C34/C34 -> 1 | G35: 1 | H35: 1 | I35: %
A36: 13 | B36: =VLOOKUP(A36,Taquarandi!A$11:I$1041,4) -> PROJETO "AS IS" | C36: =VLOOKUP(A36,Taquarandi!A$11:I$1041,9) -> 17923.99 | G36: =$C36*G37 -> 17923.99 | H36: 17923.99 | I36: R$
C37: =C36/C36 -> 1 | G37: 1 | H37: 1 | I37: %
A38: 14 | B38: =VLOOKUP(A38,Taquarandi!A$11:I$1041,4) -> FISCALIZAÇÃO E ACOMPANHAMENTO | C38: =VLOOKUP(A38,Taquarandi!A$11:I$1041,9) -> 2865.42 | D38: =C38/6*2 -> 955.14 | E38: =C38/6 -> 477.57 | F38: =C38/6 -> 477.57 | G38: =C38/6*2 -> 955.14 | H38: 2865.42 | I38: R$
C39: =C38/C38 -> 1 | D39: =D38/$C$38 -> 0.3333333333 | E39: =E38/$C$38 -> 0.1666666667 | F39: =F38/$C$38 -> 0.1666666667 | G39: =G38/$C$38 -> 0.3333333333 | H39: 1 | I39: %
B40: VALOR TOTAL: | C40: =SUMIF($I$12:$I$39,"R$",C$12:C$39) -> 930310.63 | D40: 394575.551 | E40: 224677.1979 | F40: 260981.6229 | G40: 50076.25817 | H40: 930310.63 | L40: VERIFICAÇÃO
B41: VALOR ACUMULADO: | D41: =D40 -> 394575.551 | E41: =E40+D41 -> 619252.7489 | F41: =F40+E41 -> 880234.3718 | G41: =G40 -> 50076.25817 | H41: =H40 -> 930310.63 | L41: =IF(H41=Taquarandi!I91,"OK","ERRO") -> OK | M41: =Taquarandi!I91 -> 930310.63
B42: FÍSICO PARCIAL: | D42: =SUMIF($I$12:$I$39,"R$",D$12:D$39)/$C$40 -> 0.424133121 | E42: =SUMIF($I$12:$I$39,"R$",E$12:E$39)/$C$40 -> 0.2415077187 | F42: =SUMIF($I$12:$I$39,"R$",F$12:F$39)/$C$40 -> 0.2805317004 | G42: =SUMIF($I$12:$I$39,"R$",G$12:G$39)/$C$40 -> 0.05382745994 | H42: =H40/$C$40 -> 1
B43: AVANÇO FÍSICO: | D43: =D42 -> 0.424133121 | E43: =E42+D43 -> 0.6656408397 | F43: =F42+E43 -> 0.9461725401 | G43: =G42 -> 0.05382745994

Sheet Cronograma Caatinga de Moura
A1: Ministério da Integração e do Desenvolvimento Regional
A2: Companhia de Desenvolvimento dos Vales do São Francisco e do Parnaíba
A4: CRONOGRAMA FÍSICO-FINANCEIRO NÃO DESONERADO
A5: =Resumo!A5 -> OBRA: | B5: =Resumo!B5 -> Execução de manutenção e recuperação nas barragens de Poções, Poço da Pedra, Taquarandi, Caatinga de Moura e Tamboril II, localizadas no estado da Bahia.
A6: =Resumo!A6 -> LOCAL: | B6: =Resumo!B6 -> BARRAGENS DA BAHIA
A7: =Resumo!A7 -> DATA BASE: | B7: =Resumo!B7 -> 2025-08-01
A8: =Resumo!A8 -> PRAZO: | B8: ='Caatinga de Moura'!B8 -> 90 dias
B9: ='Caatinga de Moura'!B9 -> Caatinga de Moura
A10: ITEM | B10: DESCRIÇÃO | C10: TOTAL POR ETAPA | D10: MESES | G10: TOTAL
D11: 1 | E11: 2 | F11: 3
A12: 1 | B12: =VLOOKUP(A12,'Caatinga de Moura'!A$11:I$1023,4) -> ADMINISTRAÇÃO DA OBRA | C12: =VLOOKUP(A12,'Caatinga de Moura'!A$11:I$1023,9) -> 105283.65 | D12: =$C12*D13 -> 31036.66762 | E12: =$C12*E13 -> 39687.10038 | F12: =$C12*F13 -> 34559.882 | G12: =SUM(D12:F12) -> 105283.65 | H12: R$
C13: =C12/C12 -> 1 | D13: =(SUMIF($H$14:$H$29,"R$",D$14:D$29)/$C$30) -> 0.2947909539 | E13: =(SUMIF($H$14:$H$29,"R$",E$14:E$29)/$C$30)+D32-D13 -> 0.3769540701 | F13: =1-SUM(D13:E13) -> 0.328254976 | G13: 1 | H13: %
A14: 2 | B14: =VLOOKUP(A14,'Caatinga de Moura'!A$11:I$1023,4) -> SERVIÇOS PRELIMINARES | C14: =VLOOKUP(A14,'Caatinga de Moura'!A$11:I$1023,9) -> 30284.52 | D14: =$C14*D15 -> 30284.52 | G14: 30284.52 | H14: R$
C15: =C14/C14 -> 1 | D15: 1 | G15: 1 | H15: %
A16: 3 | B16: =VLOOKUP(A16,'Caatinga de Moura'!A$11:I$1023,4) -> CORTE DA VEGETAÇÃO E REMOÇÃO DAS RAIZES | C16: =VLOOKUP(A16,'Caatinga de Moura'!A$11:I$1023,9) -> 45641.8 | D16: =$C16*D17 -> 45641.8 | G16: 45641.8 | H16: R$
C17: =C16/C16 -> 1 | D17: 1 | G17: 1 | H17: %
A18: 4.1 | B18: =VLOOKUP(A18,'Caatinga de Moura'!A$11:I$1023,4) -> CRISTA | C18: =VLOOKUP(A18,'Caatinga de Moura'!A$11:I$1023,9) -> 4205.8 | D18: =$C18*D19 -> 4205.8 | G18: 4205.8 | H18: R$
C19: =C18/C18 -> 1 | D19: 1 | G19: 1 | H19: %
A20: 4.2 | B20: =VLOOKUP(A20,'Caatinga de Moura'!A$11:I$1023,4) -> PARAMENTO DE MONTANTE | C20: =VLOOKUP(A20,'Caatinga de Moura'!A$11:I$1023,9) -> 34443.27 | E20: =$C20*E21 -> 34443.27 | G20: 34443.27 | H20: R$
C21: =C20/C20 -> 1 | E21: 1 | G21: 1 | H21: %
A22: 4.3 | B22: =VLOOKUP(A22,'Caatinga de Moura'!A$11:I$1023,4) -> PARAMENTO DE JUSANTE | C22: =VLOOKUP(A22,'Caatinga de Moura'!A$11:I$1023,9) -> 26727.27 | E22: =$C22*E23 -> 26727.27 | G22: 26727.27 | H22: R$
C23: =C22/C22 -> 1 | E23: 1 | G23: 1 | H23: %
A24: 5 | B24: =VLOOKUP(A24,'Caatinga de Moura'!A$11:I$1023,4) -> SERVIÇOS COMPLEMENTARES | C24: =VLOOKUP(A24,'Caatinga de Moura'!A$11:I$1023,9) -> 10259.06 | E24: =$C24*E25 -> 10259.06 | G24: 10259.06 | H24: R$
C25: =C24/C24 -> 1 | E25: 1 | G25: 1 | H25: %
A26: 6 | B26: =VLOOKUP(A26,'Caatinga de Moura'!A$11:I$1023,4) -> PROJETO "AS IS" | C26: =VLOOKUP(A26,'Caatinga de Moura'!A$11:I$1023,9) -> 12593.71 | F26: =$C26*F27 -> 12593.71 | G26: 12593.71 | H26: R$
C27: =C26/C26 -> 1 | F27: 1 | G27: 1 | H27: %
A28: 7 | B28: =VLOOKUP(A28,'Caatinga de Moura'!A$11:I$1023,4) -> FISCALIZAÇÃO E ACOMPANHAMENTO | C28: =VLOOKUP(A28,'Caatinga de Moura'!A$11:I$1023,9) -> 2387.85 | F28: =$C28*F29 -> 2387.85 | G28: 2387.85 | H28: R$
C29: =C28/C28 -> 1 | F29: 1 | G29: 1 | H29: %
B30: VALOR TOTAL: | C30: =SUMIF($H$12:$H$29,"R$",C$12:C$29) -> 271826.93 | D30: =SUMIF($H$12:$H$29,"R$",D$12:D$29) -> 111168.7876 | E30: =SUMIF($H$12:$H$29,"R$",E$12:E$29) -> 111116.7004 | F30: =SUMIF($H$12:$H$29,"R$",F$12:F$29) -> 49541.442 | G30: =SUMIF($H$12:$H$29,"R$",G$12:G$29) -> 271826.93 | K30: VERIFICAÇÃO
B31: VALOR ACUMULADO: | D31: =D30 -> 111168.7876 | E31: =E30+D31 -> 222285.488 | F31: =F30+E31 -> 271826.93 | G31: =G30 -> 271826.93 | K31: =IF(G31='Caatinga de Moura'!I61,"OK","ERRO") -> OK
B32: FÍSICO PARCIAL: | D32: =SUMIF($H$12:$H$29,"R$",D$12:D$29)/$C$30 -> 0.4089689996 | E32: =SUMIF($H$12:$H$29,"R$",E$12:E$29)/$C$30 -> 0.4087773804 | F32: =SUMIF($H$12:$H$29,"R$",F$12:F$29)/$C$30 -> 0.18225362 | G32: =G30/$C$30 -> 1
B33: AVANÇO FÍSICO: | D33: =D32 -> 0.4089689996 | E33: =E32+D33 -> 0.81774638 | F33: =F32+E33 -> 1

Sheet Cronograma Tamboril II
A1: Ministério da Integração e do Desenvolvimento Regional
A2: Companhia de Desenvolvimento dos Vales do São Francisco e do Parnaíba
A4: CRONOGRAMA FÍSICO-FINANCEIRO NÃO DESONERADO
A5: =Resumo!A5 -> OBRA: | B5: =Resumo!B5 -> Execução de manutenção e recuperação nas barragens de Poções, Poço da Pedra, Taquarandi, Caatinga de Moura e Tamboril II, localizadas no estado da Bahia.
A6: =Resumo!A6 -> LOCAL: | B6: =Resumo!B6 -> BARRAGENS DA BAHIA
A7: =Resumo!A7 -> DATA BASE: | B7: =Resumo!B7 -> 2025-08-01
A8: =Resumo!A8 -> PRAZO: | B8: ='Tamboril II'!B8 -> 90 dias
B9: ='Tamboril II'!B9 -> Tamboril II
A10: ITEM | B10: DESCRIÇÃO | C10: TOTAL POR ETAPA | D10: MESES | G10: TOTAL
D11: 1 | E11: 2 | F11: 4
A12: 1 | B12: =VLOOKUP(A12,'Tamboril II'!A$11:I$1041,4) -> ADMINISTRAÇÃO DA OBRA | C12: =VLOOKUP(A12,'Tamboril II'!A$11:I$1041,9) -> 105283.65 | D12: =$C12*D13 -> 54199.80521 | E12: =$C12*E13 -> 38681.816 | F12: =$C12*F13 -> 12402.02879 | G12: =SUM(D12:F12) -> 105283.65 | H12: R$
C13: =C12/C12 -> 1 | D13: =SUMIF($H$14:$H$37,"R$",D$14:D$37)/$C$38 -> 0.5147979312 | E13: =SUMIF($H$14:$H$37,"R$",E$14:E$37)/$C$38+D40-D13 -> 0.3674057273 | F13: =1-SUM(D13:E13) -> 0.1177963415 | G13: 1 | H13: %
A14: 2 | B14: =VLOOKUP(A14,'Tamboril II'!A$11:I$1041,4) -> SERVIÇOS PRELIMINARES | C14: =VLOOKUP(A14,'Tamboril II'!A$11:I$1041,9) -> 30284.52 | D14: =$C14*D15 -> 30284.52 | G14: 30284.52 | H14: R$
C15: =C14/C14 -> 1 | D15: 1 | G15: 1 | H15: %
A16: 3 | B16: =VLOOKUP(A16,'Tamboril II'!A$11:I$1041,4) -> CORTE DA VEGETAÇÃO E REMOÇÃO DAS RAIZES | C16: =VLOOKUP(A16,'Tamboril II'!A$11:I$1041,9) -> 110490.08 | D16: =$C16*D17 -> 110490.08 | G16: 110490.08 | H16: R$
C17: =C16/C16 -> 1 | D17: 1 | G17: 1 | H17: %
A18: 4 | B18: =VLOOKUP(A18,'Tamboril II'!A$11:I$1041,4) -> RECUPERAÇÃO DO MACIÇO | C18: =VLOOKUP(A18,'Tamboril II'!A$11:I$1041,9) -> 103705.8 | D18: =$C18*D19 -> 103705.8 | G18: 103705.8 | H18: R$
C19: =C18/C18 -> 1 | D19: 1 | G19: 1 | H19: %
A20: 5 | B20: =VLOOKUP(A20,'Tamboril II'!A$11:I$1041,4) -> REGULARIZAÇÃO E PAVIMENTAÇÃO DA CRISTA | C20: =VLOOKUP(A20,'Tamboril II'!A$11:I$1041,9) -> 128938.7 | D20: =$C20*D21 -> 64469.35 | E20: =$C20*E21 -> 64469.35 | G20: 128938.7 | H20: R$
C21: 1 | D21: 0.5 | E21: 0.5 | G21: 1 | H21: %
A22: 6 | B22: =VLOOKUP(A22,'Tamboril II'!A$11:I$1041,4) -> MANUTENÇÃO NO TALUDE DE MONTANTE | C22: =VLOOKUP(A22,'Tamboril II'!A$11:I$1041,9) -> 34532.25 | E22: =$C22*E23 -> 34532.25 | G22: 34532.25 | H22: R$
C23: 1 | E23: 1 | G23: 1 | H23: %
A24: 7 | B24: =VLOOKUP(A24,'Tamboril II'!A$11:I$1041,4) -> DRENAGEM SUPERFICIAL DO TALUDE DE JUSANTE | C24: =VLOOKUP(A24,'Tamboril II'!A$11:I$1041,9) -> 20872.92 | E24: =$C24*E25 -> 20872.92 | G24: 20872.92 | H24: R$
C25: 1 | E25: 1 | G25: 1 | H25: %
A26: 8 | B26: =VLOOKUP(A26,'Tamboril II'!A$11:I$1041,4) -> PROTEÇÃO SUPERFICIAL DO TALUDE DE JUSANTE | C26: =VLOOKUP(A26,'Tamboril II'!A$11:I$1041,9) -> 23270.24 | E26: =$C26*E27 -> 23270.24 | G26: 23270.24 | H26: R$
C27: 1 | E27: 1 | G27: 1 | H27: %
A28: 9 | B28: =VLOOKUP(A28,'Tamboril II'!A$11:I$1041,4) -> RESTAURAÇÃO DO MURO LATERAL | C28: =VLOOKUP(A28,'Tamboril II'!A$11:I$1041,9) -> 17656.8 | E28: =$C28*E29 -> 17656.8 | G28: 17656.8 | H28: R$
C29: 1 | E29: 1 | G29: 1 | H29: %
A30: 10 | B30: =VLOOKUP(A30,'Tamboril II'!A$11:I$1041,4) -> RESTAURAÇÃO DA SOLEIRA DO VERTEDOURO | C30: =VLOOKUP(A30,'Tamboril II'!A$11:I$1041,9) -> 5696.84 | E30: =$C30*E31 -> 5696.84 | G30: 5696.84 | H30: R$
C31: 1 | E31: 1 | G31: 1 | H31: %
A32: 11 | B32: =VLOOKUP(A32,'Tamboril II'!A$11:I$1041,4) -> SERVIÇOS COMPLEMENTARES | C32: =VLOOKUP(A32,'Tamboril II'!A$11:I$1041,9) -> 4349.64 | F32: =$C32*F33 -> 4349.64 | G32: 4349.64 | H32: R$
C33: 1 | F33: 1 | G33: 1 | H33: %
A34: 12 | B34: =VLOOKUP(A34,'Tamboril II'!A$11:I$1041,4) -> PROJETO "AS IS" | C34: =VLOOKUP(A34,'Tamboril II'!A$11:I$1041,9) -> 14523.98 | F34: =$C34*F35 -> 14523.98 | G34: 14523.98 | H34: R$
C35: 1 | F35: 1 | G35: 1 | H35: %
A36: 13 | B36: =VLOOKUP(A36,'Tamboril II'!A$11:I$1041,4) -> FISCALIZAÇÃO E ACOMPANHAMENTO | C36: =VLOOKUP(A36,'Tamboril II'!A$11:I$1041,9) -> 2387.85 | D36: =C36/5*2 -> 955.14 | E36: =C36/5 -> 477.57 | F36: =C36/5*2 -> 955.14 | G36: 2387.85 | H36: R$
C37: 1 | D37: =D36/$C$36 -> 0.4 | E37: =E36/$C$36 -> 0.2 | F37: =F36/$C$36 -> 0.4 | G37: 1 | H37: %
B38: VALOR TOTAL: | C38: =SUMIF($H$12:$H$37,"R$",C$12:C$37) -> 601993.27 | D38: =SUMIF($H$12:$H$37,"R$",D$12:D$37) -> 364104.6952 | E38: =SUMIF($H$12:$H$37,"R$",E$12:E$37) -> 205657.786 | F38: =SUMIF($H$12:$H$37,"R$",F$12:F$37) -> 32230.78879 | G38: =SUMIF($H$12:$H$37,"R$",G$12:G$37) -> 601993.27 | J38: VERIFICAÇÃO
B39: VALOR ACUMULADO: | D39: =D38 -> 364104.6952 | E39: =E38+D39 -> 569762.4812 | F39: =F38+E39 -> 601993.27 | G39: =F39 -> 601993.27 | J39: =IF(G39='Tamboril II'!I86,"OK","ERRO") -> OK
B40: FÍSICO PARCIAL: | D40: =SUMIF($H$12:$H$37,"R$",D$12:D$37)/$C$38 -> 0.6048318368 | E40: =SUMIF($H$12:$H$37,"R$",E$12:E$37)/$C$38 -> 0.3416280484 | F40: =SUMIF($H$12:$H$37,"R$",F$12:F$37)/$C$38 -> 0.0535401148 | G40: =G38/$C$38 -> 1
B41: AVANÇO FÍSICO: | D41: =D40 -> 0.6048318368 | E41: =E40+D41 -> 0.9464598852 | F41: =F40 -> 0.0535401148

Sheet CPU-VEICULO_PickUp
A5: Composição de Preços de Locação de Veículo tipo pick-up
B6: Data de atualização: | C6: 2025-01-22 | E6: CV | F6: Média | G6: Mediana | K6: CV | L6: Média | M6: Mediana | V6: CV | W6: Média | X6: Mediana
A7: CODEVASF | E7: =_xlfn.STDEV.S(E10:H10)/AVERAGE(E10:H10) -> 0.09461804749 | F7: =AVERAGE(E10:H10) -> 200477 | G7: =MEDIAN(E10:H10) -> 205565.5 | K7: =_xlfn.STDEV.S(L9:S9)/AVERAGE(L9:S9) -> 0.2049193683 | L7: =AVERAGE(L9:S9) -> 34.54857143 | M7: =MEDIAN(L9:S9) -> 30.91 | V7: =_xlfn.STDEV.S(W9:AD9)/AVERAGE(W9:AD9) -> 0.1241023561 | W7: =AVERAGE(W9:AD9) -> 499.0190625 | X7: =MEDIAN(W9:AD9) -> 499.45
A8: OBS: Preço sem BDI e sem motorista BDI= | E8: Preço FIPE | J8: PRODUTO | K8: MENOR (MÉDIA, MEDIANA) | L8: COT. 1 | M8: COT. 2 | N8: COT. 3 | O8: COT. 4 | P8: COT. 5 | Q8: COT. 6 | R8: COT. 7 | S8: COT. 8 | U8: PRODUTO | V8: MENOR (MÉDIA, MEDIANA) | W8: COT. 1 | X8: COT. 2 | Y8: COT. 3 | Z8: COT. 4 | AA8: COT. 5 | AB8: COT. 6 | AC8: COT. 7 | AD8: COT. 8
A9: Veículo tipo pick-up, cabine dupla - 2.0 16V 4x4 diesel Aut. | E9: Toro Ultra 2.0 16V 4x4 TB Diesel Aut. | F9: Toro Freedom 2.0 16V 4x4 TB Diesel Aut. | G9: Toro Volcano 2.0 16V 4x4 TB Diesel Aut. | H9: Toro Ranch 2.0 16V 4x4 TB Diesel Aut. | J9: LUBRIFICANTE 5W30 | K9: =SMALL(L7:M7,1) -> 30.91 | L9: 33.33 | M9: 26.9 | N9: 30.9 | O9: 30.9 | P9: 30.91 | Q9: 46 | R9: 42.9 | U9: Pneu 225/65 R17 | V9: =SMALL(W7:X7,1) -> 499.0190625 | W9: 499 | X9: 479.9 | Y9: 565.25 | Z9: 393.38 | AA9: 449.9 | AB9: =2059.44/4 -> 514.86 | AC9: =2359.85/4 -> 589.9625 | AD9: 499.9
B10: Custo Mensal (R$): | C10: =C51 -> 8527.434793 | E10: 215525 | F10: 175252 | G10: 196485 | H10: 214646
B11: Custo Diária (R$): | C11: =C10/22 -> 387.6106724
B12: Custo Horário (R$): | C12: =C10/176 -> 48.45133405
A13: A | B13: Depreciação mensal do equipamento
A14: A1 | B14: Preço de Aquisição | C14: =SMALL(F7:G7,1) -> 200477
A15: A2 | B15: Tempo previsto de vida útil (meses) | C15: 36
A16: A3 | B16: Previsão de recup. Na venda do bem usado | C16: 0.7
A17: A4 | B17: Custo mensal [A1-(A3xA1)]/A2 | C17: =(C14-(C16*C14))/C15 -> 1670.641667
A18: B | B18: Juros pelo Capital empregado
A19: B1 | B19: Taxa mensal de Juros * | C19: =POWER(1+C56,1/12)-1 -> 0.01171491692
A20: B2 | B20: Juros s/depreciação/aluguel (B1xA4) | C20: =C19*C17 -> 19.57142833
A21: C | B21: Conservação e manutenção ** | C21: 0.75
A22: C1 | B22: Taxa de gastos s/a deprec. Inc. seguros (%) | C22: =C21 -> 0.75 | AF22: PREÇO DO DIESEL | AG22: 6.04
A23: C2 | B23: Incidência mensal (C1xA4) | C23: =C22*C17 -> 1252.98125 | AF23: https://precos.petrobras.com.br/w/diesel/mg
A24: D | B24: Combustível
A25: D1 | B25: Média mensal de quilômetro por veículo | C25: ='Memorial de cálculo'!H5*2*22 -> 8286.08 | D25: *Foi considerado a distância média da SR para as barragens de ida e volta para cada barragem
A26: D2 | B26: Preço do litro de combustível | C26: =AG22 -> 6.04
A27: D3 | B27: Quilômetros rodados com um litro combustivel | C27: 10
A28: D4 | B28: Combustivel (D1/D3)*D2 | C28: =(C25/C27)*C26 -> 5004.79232
A29: E | B29: Lubrificantes
A30: E1 | B30: Quilometragem do Contrato (D1*12) | C30: =C25*36 -> 298298.88
A31: E2 | B31: Franquia por troca de óleo (km) | C31: 10000
A32: E3 | B32: Preço do litro de óleo | C32: =K9 -> 30.91
A33: E4 | B33: Quantidade de litros de óleo por troca | C33: 5
A34: E5 | B34: Quantidade de dias do Contrato | C34: =365*3 -> 1095
A35: E6 | B35: Lubrificantes E = (E1*E3*E4*30)/E2*E5 | C35: =(C30*C32*C33*30)/(C31*C34) -> 126.3071011
A36: F | B36: Pneus
A37: F1 | B37: Quilometragem do Contrato | C37: =C30 -> 298298.88
A38: F2 | B38: Vida do Pneu em quilômetros | C38: 45000
A39: F3 | B39: Quantidade de pneus | C39: 5
A40: F4 | B40: Preço do Pneu | C40: =V9 -> 499.0190625
A41: F5 | B41: Quantidade de dias do contrato | C41: =C34 -> 1095
A42: F6 | B42: Pneus = (F1*F3*F4*30)/(F2*F5) | C42: =(C37*C39*C40*30)/(C38*C41) -> 453.1410272
A43: G | B43: Motorista
A44: G1 | B44: Salário com encargos sociais | C44: 0
A45: H | B45: Custo Mensal
B46: Sem Motorista (A4+B2+C2+D4+E6+F6) | C46: =C17+C20+C23+C28+C35+C42 -> 8527.434793
B47: Com Motorista (A4+B2+C2+D4+E6+F6+G1) | C47: =C17+C20+C23+C28+C35+C42+C44 -> 8527.434793
A48: I | B48: Custo Direto p/ km Rodado
B49: Sem Motorista | C49: =C46/C25 -> 1.029127741
B50: Com Motorista | C50: =C47/C25 -> 1.029127741
A51: J | B51: Preço cobrado sem BDI | C51: =C46*(1+C8) -> 8527.434793
A52: J1 | B52: Sem Motorista | C52: =C51 -> 8527.434793
A53: J2 | B53: Com Motorista | C53: =C47 -> 8527.434793 | I53: https://www.google.com/search?q=lubrificante+5w30+1l&sa=X&sca_esv=c77f5342bf7e367a&tbm=shop&ei=e0uKZ-DcDNKp5OUPkOKj6QY&ved=0ahUKEwighoOy3_yKAxXSFLkGHRDxKG0Q4dUDCAg&uact=5&oq=lubrificante+5w30+1l&gs_lp=Egtwcm9kdWN0cy1jYyIUbHVicmlmaWNhbnRlIDV3MzAgMWxIgQ9Q4AlY8Q1wAHgAkAEAmAFroAGgA6oBAzEuM7gBA8gBAPgBAZgCAqAC0gHCAgUQABiABMICBhAAGAcYHsICBhAAGAgYHsICBhAAGBYYHpgDAIgGAZIHAzEuMaAHxQU&sclient=products-cc | T53: https://www.google.com/search?q=pneu+225%2F65+R17&sa=X&biw=1600&bih=757&tbm=shop&sxsrf=AJOqlzWsb-d4PS1_OUOEhKmRc2RbtSg3RQ%3A1677092596279&ei=9Gb2Y9K5ENTa5OUPvLykGA&ved=0ahUKEwjSg9Pj6Kn9AhVULbkGHTweCQMQ4dUDCAg&uact=5&oq=pneu+225%2F65+R17&gs_lcp=Cgtwcm9kdWN0cy1jYxADMgsIABCABBCxAxCDATIFCAAQgAQyBwgAEIAEEAoyBwgAEIAEEAoyBwgAEIAEEAoyBwgAEIAEEAoyBwgAEIAEEAoyBQgAEIAEMgcIABCABBAKMgcIABCABBAKOgQIIxAnOgQIABBDSgQIQRgAUABYoTJgqUBoAHAAeACAAdIFiAGUKZIBDTAuMi42LjIuMi4yLjGYAQCgAQHAAQE&sclient=products-cc
B55: OBSERVAÇÕES:
A56: * | B56: Calculado com base na taxa SELIC JANEIRO/2025: | C56: 0.15
B57: Taxa de Juros Selic — Português (Brasil) (www.gov.br)
A58: ** | B58: Conservação e manutenção - é calculado com o uso de um coeficiente multiplicador "k", conforme tabela abaixo, sobre a
B59: depreciação mensal do equipamento (Item A da planilha de composição de preços). Os valores de K são fornecidos por
B60: fabricantes.
B61: Metodologia conforme a bibliografia "Como Preparar Orçamentos de Obras", 3 edição, Aldo Dórea Mattos, 2019.

Sheet Cotação
A1: Ministério da Integração e do Desenvolvimento Regional
A2: Companhia de Desenvolvimento dos Vales do São Francisco e do Parnaíba
A4: ITEM | B4: EMPRESA | G4: ORÇADO POR | H4: DESCRIÇÃO / OBSERVAÇÃO | I4: UNID | J4: QUANT | K4: LINK OU LOCAL DO ARQUIVO | L4: VALOR
B5: DATA | C5: EMPRESA / CNPJ | D5: RESPONSÁVEL | E5: ENDEREÇO | F5: CONTATO | L5: MAT | M5: MDO | N5: TRANSPORTE | O5: TOTAL
A6: 1 | B6: 2025-07-31 | C6: POLIMEDIÇÃO COMERCIAL | D6: Preço na loja online | E6: R. Arlete, 151 - Jardim Penha - São Paulo - SP | F6: Tel: (11) 4328-3003 WhatsApp: (11) 98575-6343 polimedicao@gmail.com | G6: Murilo | H6: Régua Fluviométrica-linimétrica/alumínio 2x70x1000 Mm ( Ana) | I6: un | J6: 1 | K6: https://produto.mercadolivre.com.br/MLB-2779894267-regua-fluviometrica-linimetricaaluminio-2x70x1000-mm-ana-_JM?searchVariation=179904169563#polycard_client=search-nordic&searchVariation=179904169563&position=14&search_layout=stack&type=item&tracking_id=fc659489-e61e-4c1e-9f07-18621b543351 | L6: 134.96 | O6: =SUM(L6:N6) -> 134.96
A7: 2 | B7: 2025-07-31 | C7: Gravametal | D7: Preço na loja online | E7: Rua Uniflor, 1012 - Emiliano Perneta Pinhais - Paraná - CEP: 83324-227 | F7: ☎ (41) 3403-0144 ✆ (41) 99672-9692 ✉ gravametal@gmail.com | G7: Murilo | H7: Régua linimétrica em alumínio 2 X 70 X 1000MM | I7: un | J7: 1 | K7: https://www.gravametal.com.br/product-page/r%C3%A9gua-linim%C3%A9trica-fluviom%C3%A9trica-1000x70x2mm | L7: 209.9 | O7: =SUM(L7:N7) -> 209.9
A8: 4 | B8: 2025-05-16 | C8: Dualbase | D8: Consulta via email | E8: Av. Gentil Reinaldo Cordioli, 157 - CEP 88133-500 - Palhoça/SC | F8: Tel: (48) 3342 5202 adriano@dualbase.com.br | G8: Murilo | H8: Régua linimétrica em alumínio 2 X 70 X 1000MM | I8: un | J8: 1 | K8: www.dualbase.com.br | L8: 185 | O8: 165.9
N9: Média | O9: =AVERAGE(O6:O8) -> 170.2533333
N10: Mediana | O10: =MEDIAN(O6:O8) -> 165.9
N11: Menor | O11: =SMALL(O9:O10,1) -> 165.9

Sheet Encargos Sociais
A1: Ministério da Integração e do Desenvolvimento Regional
A2: Companhia de Desenvolvimento dos Vales do São Francisco e do Parnaíba
A4: COMPOSIÇÃO DE ENCARGOS SOCIAIS SOBRE A MÃO DE OBRA
A5: ='Caatinga de Moura'!A5 -> OBRA: | B5: =Resumo!B5 -> Execução de manutenção e recuperação nas barragens de Poções, Poço da Pedra, Taquarandi, Caatinga de Moura e Tamboril II, localizadas no estado da Bahia.
A6: ='Caatinga de Moura'!A6 -> LOCAL: | B6: =Resumo!B6 -> BARRAGENS DA BAHIA
A7: ='Caatinga de Moura'!A7 -> DATA BASE: | B7: =Resumo!B7 -> 2025-08-01
A8: ='Caatinga de Moura'!A8 -> PRAZO: | B8: =Resumo!B8 -> 210 dias
A10: PERNAMBUCO
A11: Encargos Sociais – Bahia VIGÊNCIA A PARTIR DE 01/2025
A12: ENCARGOS SOCIAIS SOBRE A MÃO DE OBRA
A13: CÓDIGO | B13: DESCRIÇÃO | C13: COM DESONERAÇÃO | E13: SEM DESONERAÇÃO
C14: HORISTA % | D14: MENSALISTA % | E14: HORISTA % | F14: MENSALISTA %
A15: GRUPO A
A16: A1 | B16: INSS | C16: 0.05 | D16: 0.05 | E16: 0.2 | F16: 0.2
A17: A2 | B17: SESI | C17: 0.015 | D17: 0.015 | E17: 0.015 | F17: 0.015
A18: A3 | B18: SENAI | C18: 0.01 | D18: 0.01 | E18: 0.01 | F18: 0.01
A19: A4 | B19: INCRA | C19: 0.002 | D19: 0.002 | E19: 0.002 | F19: 0.002
A20: A5 | B20: SEBRAE | C20: 0.006 | D20: 0.006 | E20: 0.006 | F20: 0.006
A21: A6 | B21: Salário Educação | C21: 0.025 | D21: 0.025 | E21: 0.025 | F21: 0.025
A22: A7 | B22: Seguro Contra Acidentes de Trabalho | C22: 0.03 | D22: 0.03 | E22: 0.03 | F22: 0.03
A23: A8 | B23: FGTS | C23: 0.08 | D23: 0.08 | E23: 0.08 | F23: 0.08
A24: A9 | B24: SECONCI | C24: 0 | D24: 0 | E24: 0 | F24: 0
A25: A | B25: Total | C25: =SUM(C16:C24) -> 0.218 | D25: =SUM(D16:D24) -> 0.218 | E25: =SUM(E16:E24) -> 0.368 | F25: =SUM(F16:F24) -> 0.368
A26: GRUPO B
A27: B1 | B27: Repouso Semanal Remunerado | C27: 0.1798 | D27: Não incide | E27: 0.1798 | F27: Não incide
A28: B2 | B28: Feriados | C28: 0.0397 | D28: Não incide | E28: 0.0397 | F28: Não incide
A29: B3 | B29: Auxílio - Enfermidade | C29: 0.0086 | D29: 0.0065 | E29: 0.0086 | F29: 0.0065
A30: B4 | B30: 13º Salário | C30: 0.1107 | D30: 0.0833 | E30: 0.1107 | F30: 0.0833
A31: B5 | B31: Licença Paternidade | C31: 0.0007 | D31: 0.0005 | E31: 0.0007 | F31: 0.0005
A32: B6 | B32: Faltas Justificadas | C32: 0.0074 | D32: 0.0056 | E32: 0.0074 | F32: 0.0056
A33: B7 | B33: Dias de Chuvas | C33: 0.0214 | D33: Não incide | E33: 0.0214 | F33: Não incide
A34: B8 | B34: Auxílio Acidente de Trabalho | C34: 0.001 | D34: 0.0007 | E34: 0.001 | F34: 0.0007
A35: B9 | B35: Férias Gozadas | C35: 0.1192 | D35: 0.0897 | E35: 0.1192 | F35: 0.0897
A36: B10 | B36: Salário Maternidade | C36: 0.0003 | D36: 0.0003 | E36: 0.0003 | F36: 0.0003
A37: B | B37: Total | C37: =SUM(C27:C36) -> 0.4888 | D37: =SUM(D27:D36) -> 0.1866 | E37: =SUM(E27:E36) -> 0.4888 | F37: =SUM(F27:F36) -> 0.1866
A38: GRUPO C
A39: C1 | B39: Aviso Prévio Indenizado | C39: 0.0549 | D39: 0.0413 | E39: 0.0549 | F39: 0.0413
A40: C2 | B40: Aviso Prévio Trabalhado | C40: 0.0013 | D40: 0.001 | E40: 0.0013 | F40: 0.001
A41: C3 | B41: Férias Indenizadas | C41: 0.0236 | D41: 0.0177 | E41: 0.0236 | F41: 0.0177
A42: C4 | B42: Depósito Rescisão Sem Justa Causa | C42: 0.0297 | D42: 0.0224 | E42: 0.0297 | F42: 0.0224
A43: C5 | B43: Indenização Adicional | C43: 0.0046 | D43: 0.0035 | E43: 0.0046 | F43: 0.0035
A44: C | B44: Total | C44: =SUM(C39:C43) -> 0.1141 | D44: =SUM(D39:D43) -> 0.0859 | E44: =SUM(E39:E43) -> 0.1141 | F44: =SUM(F39:F43) -> 0.0859
A45: GRUPO D
A46: D1 | B46: Reincidência de Grupo A sobre Grupo B | C46: 0.101 | D46: 0.0365 | E46: 0.1799 | F46: 0.0687
A47: D2 | B47: Reincidência de Grupo A sobre Aviso Prévio Trabalhado e Reincidência do FGTS sobre Aviso Prévio Indenizado | C47: 0.0047 | D47: 0.0035 | E47: 0.0049 | F47: 0.0037
A48: D | B48: Total | C48: =SUM(C46:C47) -> 0.1057 | D48: =SUM(D46:D47) -> 0.04 | E48: =SUM(E46:E47) -> 0.1848 | F48: =SUM(F46:F47) -> 0.0724
A49: TOTAL(A+B+C+D) | C49: =C25+C37+C44+C48 -> 0.9266 | D49: =D25+D37+D44+D48 -> 0.5305 | E49: =E25+E37+E44+E48 -> 1.1557 | F49: =F25+F37+F44+F48 -> 0.7129
A50: Fonte: Informação Dias de Chuva – INMET

Sheet Ins SINAPI 06-2025 Onerado
A1: SINAPI - Sistema Nacional de Pesquisa de Custos e Índices da Construção Civil
A2: RELATÓRIO DE PREÇOS DE INSUMOS - ENGARGOS SOCIAIS SEM DESONERAÇÃO
A3: Mês de Referência: | B3: 2025-06-01 | E3: Encargos sociais sobre a mão de obra:
A4: Data de emissão: | B4: 2025-07-11 | E4: (SEM DESONERAÇÃO) | F4: PE
E5: Localidade | F5: RECIFE
A6: Origem de preço: | B6: C = COLETADO | C6: CR = COEFICIENTE DE REPRESENTATIVIDADE | E6: Horista | F6: 1.1557
A7: Preço em branco para determinado estado significa que não houve coleta mínima de preços no mês de referência | E7: Mensalista | F7: 0.7129
A10: Classificação | B10: Código do Insumo | C10: Descrição do Insumo | D10: Unidade | E10: Origem de Preço | F10: PE
A11: SERVIÇOS | B11: 45333 | C11: ABERTURA PARA ENCAIXE DE CUBA OU LAVATORIO EM BANCADA DE MARMORE/ GRANITO OU OUTRO TIPO DE PEDRA NATURAL | D11: UN | E11: CR | F11: 113.72
A12: MATERIAL | B12: 11270 | C12: ABRACADEIRA DE LATAO PARA FIXACAO DE CABO PARA-RAIO, DIMENSOES 32 X 24 X 24 MM | D12: UN | E12: CR | F12: 2.82
A13: MATERIAL | B13: 412 | C13: ABRACADEIRA DE NYLON PARA AMARRACAO DE CABOS, COMPRIMENTO DE *230* X *7,6* MM | D13: UN | E13: CR | F13: 1.13
A14: MATERIAL | B14: 414 | C14: ABRACADEIRA DE NYLON PARA AMARRACAO DE CABOS, COMPRIMENTO DE 100 X 2,5 MM | D14: UN | E14: CR | F14: 0.07
A15: MATERIAL | B15: 410 | C15: ABRACADEIRA DE NYLON PARA AMARRACAO DE CABOS, COMPRIMENTO DE 150 X *3,6* MM | D15: UN | E15: CR | F15: 0.17
A16: MATERIAL | B16: 411 | C16: ABRACADEIRA DE NYLON PARA AMARRACAO DE CABOS, COMPRIMENTO DE 200 X *4,6* MM | D16: UN | E16: C | F16: 0.22
A17: MATERIAL | B17: 408 | C17: ABRACADEIRA DE NYLON PARA AMARRACAO DE CABOS, COMPRIMENTO DE 390 X *4,6* MM | D17: UN | E17: CR | F17: 1.09
A18: MATERIAL | B18: 39131 | C18: ABRACADEIRA EM ACO PARA AMARRACAO DE ELETRODUTOS, TIPO D, COM 1 1/2" E CUNHA DE FIXACAO | D18: UN | E18: CR | F18: 3.89
A19: MATERIAL | B19: 394 | C19: ABRACADEIRA EM ACO PARA AMARRACAO DE ELETRODUTOS, TIPO D, COM 1 1/2" E PARAFUSO DE FIXACAO | D19: UN | E19: CR | F19: 3.94
A20: MATERIAL | B20: 39130 | C20: ABRACADEIRA EM ACO PARA AMARRACAO DE ELETRODUTOS, TIPO D, COM 1 1/4" E CUNHA DE FIXACAO | D20: UN | E20: CR | F20: 3.55
A21: MATERIAL | B21: 395 | C21: ABRACADEIRA EM ACO PARA AMARRACAO DE ELETRODUTOS, TIPO D, COM 1 1/4" E PARAFUSO DE FIXACAO | D21: UN | E21: CR | F21: 3.8
A22: MATERIAL | B22: 39129 | C22: ABRACADEIRA EM ACO PARA AMARRACAO DE ELETRODUTOS, TIPO D, COM 1" E CUNHA DE FIXACAO | D22: UN | E22: CR | F22: 2.19
A23: MATERIAL | B23: 393 | C23: ABRACADEIRA EM ACO PARA AMARRACAO DE ELETRODUTOS, TIPO D, COM 1" E PARAFUSO DE FIXACAO | D23: UN | E23: C | F23: 2.29
A24: MATERIAL | B24: 39127 | C24: ABRACADEIRA EM ACO PARA AMARRACAO DE ELETRODUTOS, TIPO D, COM 1/2" E CUNHA DE FIXACAO | D24: UN | E24: CR | F24: 1.87
A25: MATERIAL | B25: 392 | C25: ABRACADEIRA EM ACO PARA AMARRACAO DE ELETRODUTOS, TIPO D, COM 1/2" E PARAFUSO DE FIXACAO | D25: UN | E25: CR | F25: 1.92
A26: MATERIAL | B26: 39133 | C26: ABRACADEIRA EM ACO PARA AMARRACAO DE ELETRODUTOS, TIPO D, COM 2 1/2" E CUNHA DE FIXACAO | D26: UN | E26: CR | F26: 5.11
A27: MATERIAL | B27: 397 | C27: ABRACADEIRA EM ACO PARA AMARRACAO DE ELETRODUTOS, TIPO D, COM 2 1/2" E PARAFUSO DE FIXACAO | D27: UN | E27: CR | F27: 5.65
A28: MATERIAL | B28: 39132 | C28: ABRACADEIRA EM ACO PARA AMARRACAO DE ELETRODUTOS, TIPO D, COM 2" E CUNHA DE FIXACAO | D28: UN | E28: CR | F28: 4.09
